Workbook

Sheet Comandos (hidden)
O1: Arquivo de atualização
O2: ATUALIZACAO_SH_INDEX
O3: Nomear as abas como "Deflacionada" "Nominal" e "RMR"
A7: (a) Clicar nos botões abaixo para atualizar as séries.
A14: (b) Salvar o arquivo
A15: (c) Dar um clique duplo na planilha "Análises" para esconder as abas e os títulos.
A16: (d) Antes de mandar o arquivo para a Comunicação, Salvar como SH_mes_anodereferencia, ir em "Exibir" e desmarcar títulos e fórmulas.
A18: IMPORTANTE: NÃO MESCLAR CÉLULAS OU INSERIR LINHAS E COLUNAS NAS TABELAS, POIS COMPROMETE O FUNCIONAMENTO DA PROGRAMAÇÃO!

Sheet Análises
AI1: Coluna | AM1: Geral | AO1: Extrativa | AQ1: Transformação
AE2: Mês | AF2: Ano | AH2: Tranf | AI2: Ext | AJ2: Geral | AM2: Acumulado | AN2: 12 meses | AO2: Acumulado | AP2: 12 meses | AQ2: Acumulado | AR2: 12 meses | AU2: =$B$13 -> 2023 | AV2: =$AL$13 -> 2022 | AW2: =$B$13 -> 2023 | AX2: =$AL$13 -> 2022 | AY2: =$B$13 -> 2023 | AZ2: =$AL$13 -> 2022 | BA2: =$B$13 -> 2023 | BB2: =$AL$13 -> 2022 | BC2: =$B$13 -> 2023 | BD2: =$AL$13 -> 2022 | BE2: =$B$13 -> 2023 | BF2: =$AL$13 -> 2022
AE3: 1 | AF3: 2003 | AH3: 5 | AI3: 4 | AJ3: 3 | AK3: Faturamento | AL3: TRUE | AM3: =((AU16/AV16)-1)*100 -> 11.62236252 | AN3: =((AVERAGE($AM$30:$AM$41)/AVERAGE($AM$18:$AM$29))-1)*100 -> 6.416068503 | AO3: =(($AU$33/$AV$33)-1)*100 -> 2.324697865 | AP3: =((AVERAGE($AM$57:$AM$68)/AVERAGE($AM$45:$AM$56))-1)*100 -> -8.156930257 | AQ3: =(($AU$51/$AV$51)-1)*100 -> 12.26149749 | AR3: =((AVERAGE($AM$84:$AM$95)/AVERAGE($AM$72:$AM$83))-1)*100 -> 7.870905734 | AT3: Mês/Ano | AU3: Faturamento | AV3: Faturamento | AW3: Horas Trabalhadas | AY3: Emprego | BA3: Massa salarial | BC3: RMR | BE3: UCI
AE4: 2 | AF4: 2004 | AH4: 5 | AI4: 4 | AJ4: 5 | AK4: Horas Trabalhadas | AL4: TRUE | AM4: =((AW16/AX16)-1)*100 -> -0.0632949191 | AN4: =((AVERAGE($AN$30:$AN$41)/AVERAGE($AN$18:$AN$29))-1)*100 -> 0.763020727 | AO4: =(($AW$33/$AX$33)-1)*100 -> 8.84293673 | AP4: =((AVERAGE($AN$57:$AN$68)/AVERAGE($AN$45:$AN$56))-1)*100 -> 2.827350005 | AQ4: =(($AW$51/$AX$51)-1)*100 -> -0.9448339243 | AR4: =((AVERAGE($AN$84:$AN$95)/AVERAGE($AN$72:$AN$83))-1)*100 -> 0.5584508749 | AT4: 1 | AU4: =INDEX(Serie_Encadeada[#All],MATCH($AT4&$AU$2,Serie_Encadeada[[#All],[Mês]],0),Análises!AJ$3) -> 97.3576 | AV4: =INDEX(Serie_Encadeada[#All],MATCH($AT4&$AV$2,Serie_Encadeada[[#All],[Mês]],0),Análises!AJ$3) -> 89.6161 | AW4: =INDEX(Serie_Encadeada[#All],MATCH($AT4&$AU$2,Serie_Encadeada[[#All],[Mês]],0),Análises!AJ$4) -> 99.1211 | AX4: =INDEX(Serie_Encadeada[#All],MATCH($AT4&$AV$2,Serie_Encadeada[[#All],[Mês]],0),Análises!AJ$4) -> 96.6082 | AY4: =INDEX(Serie_Encadeada[#All],MATCH($AT4&$AU$2,Serie_Encadeada[[#All],[Mês]],0),Análises!AJ$5) -> 109.56 | AZ4: =INDEX(Serie_Encadeada[#All],MATCH($AT4&$AV$2,Serie_Encadeada[[#All],[Mês]],0),Análises!AJ$5) -> 109.6654 | BA4: =INDEX(Serie_Encadeada[#All],MATCH($AT4&$AU$2,Serie_Encadeada[[#All],[Mês]],0),Análises!AJ$6) -> 130.7268 | BB4: =INDEX(Serie_Encadeada[#All],MATCH($AT4&$AV$2,Serie_Encadeada[[#All],[Mês]],0),Análises!AJ$6) -> 118.3335 | BC4: =INDEX(Serie_Encadeada[#All],MATCH($AT4&$AU$2,Serie_Encadeada[[#All],[Mês]],0),Análises!AJ$7) -> 119.3198 | BD4: =INDEX(Serie_Encadeada[#All],MATCH($AT4&$AV$2,Serie_Encadeada[[#All],[Mês]],0),Análises!AJ$7) -> 107.9041 | BE4: =INDEX(Serie_Encadeada[#All],MATCH($AT4&$AU$2,Serie_Encadeada[[#All],[Mês]],0),Análises!AJ$8) -> 80.0154 | BF4: =INDEX(Serie_Encadeada[#All],MATCH($AT4&$AV$2,Serie_Encadeada[[#All],[Mês]],0),Análises!AJ$8) -> 81.8199
AE5: 3 | AF5: 2005 | AH5: 5 | AI5: 4 | AJ5: 4 | AK5: Emprego | AL5: TRUE | AM5: =((AY16/AZ16)-1)*100 -> 0.4274424155 | AN5: =((AVERAGE($AO$30:$AO$41)/AVERAGE($AO$18:$AO$29))-1)*100 -> 0.07754138151 | AO5: =(($AY$33/$AZ$33)-1)*100 -> -0.8499413183 | AP5: =((AVERAGE($AO$57:$AO$68)/AVERAGE($AO$45:$AO$56))-1)*100 -> -2.966118354 | AQ5: =(($AY$51/$AZ$51)-1)*100 -> 0.5403208319 | AR5: =((AVERAGE($AO$84:$AO$95)/AVERAGE($AO$72:$AO$83))-1)*100 -> 0.3345130427 | AT5: 2 | AU5: =IF($AT5 >$A$13,"-", INDEX(Serie_Encadeada[#All],MATCH($AT5&$AU$2,Serie_Encadeada[[#All],[Mês]],0),Análises!AJ$3)) -> 96.3802 | AV5: =IF($AT5 >$A$13,"-",INDEX(Serie_Encadeada[#All],MATCH($AT5&$AV$2,Serie_Encadeada[[#All],[Mês]],0),Análises!$AJ$3)) -> 83.9493 | AW5: =IF($AT5 >$A$13,"-", INDEX(Serie_Encadeada[#All],MATCH($AT5&$AU$2,Serie_Encadeada[[#All],[Mês]],0),Análises!AJ$4)) -> 96.6632 | AX5: =IF($AT5 >$A$13,"-",INDEX(Serie_Encadeada[#All],MATCH($AT5&$AV$2,Serie_Encadeada[[#All],[Mês]],0),Análises!$AJ$4)) -> 99.3001 | AY5: =IF($AT5 >$A$13,"-", INDEX(Serie_Encadeada[#All],MATCH($AT5&$AU$2,Serie_Encadeada[[#All],[Mês]],0),Análises!AJ$5)) -> 110.1884 | AZ5: =IF($AT5 >$A$13,"-",INDEX(Serie_Encadeada[#All],MATCH($AT5&$AV$2,Serie_Encadeada[[#All],[Mês]],0),Análises!$AJ$5)) -> 109.1477 | BA5: =IF($AT5 >$A$13,"-", INDEX(Serie_Encadeada[#All],MATCH($AT5&$AU$2,Serie_Encadeada[[#All],[Mês]],0),Análises!AJ$6)) -> 126.6618 | BB5: =IF($AT5 >$A$13,"-",INDEX(Serie_Encadeada[#All],MATCH($AT5&$AV$2,Serie_Encadeada[[#All],[Mês]],0),Análises!$AJ$6)) -> 127.3092 | BC5: =IF($AT5 >$A$13,"-", INDEX(Serie_Encadeada[#All],MATCH($AT5&$AU$2,Serie_Encadeada[[#All],[Mês]],0),Análises!AJ$7)) -> 114.9502 | BD5: =IF($AT5 >$A$13,"-",INDEX(Serie_Encadeada[#All],MATCH($AT5&$AV$2,Serie_Encadeada[[#All],[Mês]],0),Análises!$AJ$7)) -> 116.6394 | BE5: =IF($AT5 >$A$13,"-",INDEX(Serie_Encadeada[#All],MATCH($AT5&$AU$2,Serie_Encadeada[[#All],[Mês]],0),Análises!$AJ$8)) -> 79.1382 | BF5: =IF($AT5 >$A$13,"-",INDEX(Serie_Encadeada[#All],MATCH($AT5&$AV$2,Serie_Encadeada[[#All],[Mês]],0),Análises!$AJ$8)) -> 82.5376
AE6: 4 | AF6: 2006 | AH6: 5 | AI6: 4 | AJ6: 6 | AK6: Massa salarial | AL6: TRUE | AM6: =((BA16/BB16)-1)*100 -> 4.781701227 | AN6: =((AVERAGE($AP$30:$AP$41)/AVERAGE($AP$18:$AP$29))-1)*100 -> 4.098873495 | AO6: =(($BA$33/$BB$33)-1)*100 -> -5.429323376 | AP6: =((AVERAGE($AP$57:$AP$68)/AVERAGE($AP$45:$AP$56))-1)*100 -> 0.2241231728 | AQ6: =(($BA$51/$BB$51)-1)*100 -> 6.114316077 | AR6: =((AVERAGE($AP$84:$AP$95)/AVERAGE($AP$72:$AP$83))-1)*100 -> 4.556991743 | AT6: 3 | AU6: =IF($AT6 >$A$13,"-", INDEX(Serie_Encadeada[#All],MATCH($AT6&$AU$2,Serie_Encadeada[[#All],[Mês]],0),Análises!AJ$3)) -> - | AV6: =IF($AT6 >$A$13,"-",INDEX(Serie_Encadeada[#All],MATCH($AT6&$AV$2,Serie_Encadeada[[#All],[Mês]],0),Análises!$AJ$3)) -> - | AW6: =IF($AT6 >$A$13,"-", INDEX(Serie_Encadeada[#All],MATCH($AT6&$AU$2,Serie_Encadeada[[#All],[Mês]],0),Análises!AJ$4)) -> - | AX6: =IF($AT6 >$A$13,"-",INDEX(Serie_Encadeada[#All],MATCH($AT6&$AV$2,Serie_Encadeada[[#All],[Mês]],0),Análises!$AJ$4)) -> - | AY6: =IF($AT6 >$A$13,"-", INDEX(Serie_Encadeada[#All],MATCH($AT6&$AU$2,Serie_Encadeada[[#All],[Mês]],0),Análises!AJ$5)) -> - | AZ6: =IF($AT6 >$A$13,"-",INDEX(Serie_Encadeada[#All],MATCH($AT6&$AV$2,Serie_Encadeada[[#All],[Mês]],0),Análises!$AJ$5)) -> - | BA6: =IF($AT6 >$A$13,"-", INDEX(Serie_Encadeada[#All],MATCH($AT6&$AU$2,Serie_Encadeada[[#All],[Mês]],0),Análises!AJ$6)) -> - | BB6: =IF($AT6 >$A$13,"-",INDEX(Serie_Encadeada[#All],MATCH($AT6&$AV$2,Serie_Encadeada[[#All],[Mês]],0),Análises!$AJ$6)) -> - | BC6: =IF($AT6 >$A$13,"-", INDEX(Serie_Encadeada[#All],MATCH($AT6&$AU$2,Serie_Encadeada[[#All],[Mês]],0),Análises!AJ$7)) -> - | BD6: =IF($AT6 >$A$13,"-",INDEX(Serie_Encadeada[#All],MATCH($AT6&$AV$2,Serie_Encadeada[[#All],[Mês]],0),Análises!$AJ$7)) -> - | BE6: =IF($AT6 >$A$13,"-",INDEX(Serie_Encadeada[#All],MATCH($AT6&$AU$2,Serie_Encadeada[[#All],[Mês]],0),Análises!$AJ$8)) -> - | BF6: =IF($AT6 >$A$13,"-",INDEX(Serie_Encadeada[#All],MATCH($AT6&$AV$2,Serie_Encadeada[[#All],[Mês]],0),Análises!$AJ$8)) -> -
AE7: 5 | AF7: 2007 | AH7: 5 | AI7: 4 | AJ7: 7 | AK7: Rendimento | AL7: TRUE | AM7: =((BC16/BD16)-1)*100 -> 4.331677381 | AN7: =((AVERAGE($AQ$30:$AQ$41)/AVERAGE($AQ$18:$AQ$29))-1)*100 -> 3.971199548 | AO7: =(($BC$33/$BD$33)-1)*100 -> -4.766569027 | AP7: =((AVERAGE($AQ$57:$AQ$68)/AVERAGE($AQ$45:$AQ$56))-1)*100 -> 3.148925776 | AQ7: =(($BC$51/$BD$51)-1)*100 -> 5.550753844 | AR7: =((AVERAGE($AQ$84:$AQ$95)/AVERAGE($AQ$72:$AQ$83))-1)*100 -> 4.170566344 | AT7: 4 | AU7: =IF($AT7 >$A$13,"-", INDEX(Serie_Encadeada[#All],MATCH($AT7&$AU$2,Serie_Encadeada[[#All],[Mês]],0),Análises!AJ$3)) -> - | AV7: =IF($AT7 >$A$13,"-",INDEX(Serie_Encadeada[#All],MATCH($AT7&$AV$2,Serie_Encadeada[[#All],[Mês]],0),Análises!$AJ$3)) -> - | AW7: =IF($AT7 >$A$13,"-", INDEX(Serie_Encadeada[#All],MATCH($AT7&$AU$2,Serie_Encadeada[[#All],[Mês]],0),Análises!AJ$4)) -> - | AX7: =IF($AT7 >$A$13,"-",INDEX(Serie_Encadeada[#All],MATCH($AT7&$AV$2,Serie_Encadeada[[#All],[Mês]],0),Análises!$AJ$4)) -> - | AY7: =IF($AT7 >$A$13,"-", INDEX(Serie_Encadeada[#All],MATCH($AT7&$AU$2,Serie_Encadeada[[#All],[Mês]],0),Análises!AJ$5)) -> - | AZ7: =IF($AT7 >$A$13,"-",INDEX(Serie_Encadeada[#All],MATCH($AT7&$AV$2,Serie_Encadeada[[#All],[Mês]],0),Análises!$AJ$5)) -> - | BA7: =IF($AT7 >$A$13,"-", INDEX(Serie_Encadeada[#All],MATCH($AT7&$AU$2,Serie_Encadeada[[#All],[Mês]],0),Análises!AJ$6)) -> - | BB7: =IF($AT7 >$A$13,"-",INDEX(Serie_Encadeada[#All],MATCH($AT7&$AV$2,Serie_Encadeada[[#All],[Mês]],0),Análises!$AJ$6)) -> - | BC7: =IF($AT7 >$A$13,"-", INDEX(Serie_Encadeada[#All],MATCH($AT7&$AU$2,Serie_Encadeada[[#All],[Mês]],0),Análises!AJ$7)) -> - | BD7: =IF($AT7 >$A$13,"-",INDEX(Serie_Encadeada[#All],MATCH($AT7&$AV$2,Serie_Encadeada[[#All],[Mês]],0),Análises!$AJ$7)) -> - | BE7: =IF($AT7 >$A$13,"-",INDEX(Serie_Encadeada[#All],MATCH($AT7&$AU$2,Serie_Encadeada[[#All],[Mês]],0),Análises!$AJ$8)) -> - | BF7: =IF($AT7 >$A$13,"-",INDEX(Serie_Encadeada[#All],MATCH($AT7&$AV$2,Serie_Encadeada[[#All],[Mês]],0),Análises!$AJ$8)) -> -
AE8: 6 | AF8: 2008 | AH8: 5 | AI8: 4 | AJ8: 8 | AK8: UCI | AL8: TRUE | AM8: =ROUNDUP(BE16-BF16,2)&" p.p." -> -2,61 p.p. | AN8: =(ROUNDUP(AVERAGE($AR$30:$AR$41)-AVERAGE($AR$18:$AR$29),2))&" p.p." -> -0,11 p.p. | AO8: =ROUNDUP($BE$33-$BF$33,2)&" p.p." -> -14,09 p.p. | AP8: =(ROUNDUP(AVERAGE($AR$57:$AR$68)-AVERAGE($AR$45:$AR$56),2))&" p.p." -> -5,1 p.p. | AQ8: =ROUNDUP($BE$51-$BF$51,2)&" p.p." -> -1,91 p.p. | AR8: =(ROUNDUP(AVERAGE($AR$84:$AR$95)-AVERAGE($AR$72:$AR$83),2))&" p.p." -> 0,21 p.p. | AT8: 5 | AU8: =IF($AT8 >$A$13,"-", INDEX(Serie_Encadeada[#All],MATCH($AT8&$AU$2,Serie_Encadeada[[#All],[Mês]],0),Análises!AJ$3)) -> - | AV8: =IF($AT8 >$A$13,"-",INDEX(Serie_Encadeada[#All],MATCH($AT8&$AV$2,Serie_Encadeada[[#All],[Mês]],0),Análises!$AJ$3)) -> - | AW8: =IF($AT8 >$A$13,"-", INDEX(Serie_Encadeada[#All],MATCH($AT8&$AU$2,Serie_Encadeada[[#All],[Mês]],0),Análises!AJ$4)) -> - | AX8: =IF($AT8 >$A$13,"-",INDEX(Serie_Encadeada[#All],MATCH($AT8&$AV$2,Serie_Encadeada[[#All],[Mês]],0),Análises!$AJ$4)) -> - | AY8: =IF($AT8 >$A$13,"-", INDEX(Serie_Encadeada[#All],MATCH($AT8&$AU$2,Serie_Encadeada[[#All],[Mês]],0),Análises!AJ$5)) -> - | AZ8: =IF($AT8 >$A$13,"-",INDEX(Serie_Encadeada[#All],MATCH($AT8&$AV$2,Serie_Encadeada[[#All],[Mês]],0),Análises!$AJ$5)) -> - | BA8: =IF($AT8 >$A$13,"-", INDEX(Serie_Encadeada[#All],MATCH($AT8&$AU$2,Serie_Encadeada[[#All],[Mês]],0),Análises!AJ$6)) -> - | BB8: =IF($AT8 >$A$13,"-",INDEX(Serie_Encadeada[#All],MATCH($AT8&$AV$2,Serie_Encadeada[[#All],[Mês]],0),Análises!$AJ$6)) -> - | BC8: =IF($AT8 >$A$13,"-", INDEX(Serie_Encadeada[#All],MATCH($AT8&$AU$2,Serie_Encadeada[[#All],[Mês]],0),Análises!AJ$7)) -> - | BD8: =IF($AT8 >$A$13,"-",INDEX(Serie_Encadeada[#All],MATCH($AT8&$AV$2,Serie_Encadeada[[#All],[Mês]],0),Análises!$AJ$7)) -> - | BE8: =IF($AT8 >$A$13,"-",INDEX(Serie_Encadeada[#All],MATCH($AT8&$AU$2,Serie_Encadeada[[#All],[Mês]],0),Análises!$AJ$8)) -> - | BF8: =IF($AT8 >$A$13,"-",INDEX(Serie_Encadeada[#All],MATCH($AT8&$AV$2,Serie_Encadeada[[#All],[Mês]],0),Análises!$AJ$8)) -> -
AE9: 7 | AF9: 2009 | AT9: 6 | AU9: =IF($AT9 >$A$13,"-", INDEX(Serie_Encadeada[#All],MATCH($AT9&$AU$2,Serie_Encadeada[[#All],[Mês]],0),Análises!AJ$3)) -> - | AV9: =IF($AT9 >$A$13,"-",INDEX(Serie_Encadeada[#All],MATCH($AT9&$AV$2,Serie_Encadeada[[#All],[Mês]],0),Análises!$AJ$3)) -> - | AW9: =IF($AT9 >$A$13,"-", INDEX(Serie_Encadeada[#All],MATCH($AT9&$AU$2,Serie_Encadeada[[#All],[Mês]],0),Análises!AJ$4)) -> - | AX9: =IF($AT9 >$A$13,"-",INDEX(Serie_Encadeada[#All],MATCH($AT9&$AV$2,Serie_Encadeada[[#All],[Mês]],0),Análises!$AJ$4)) -> - | AY9: =IF($AT9 >$A$13,"-", INDEX(Serie_Encadeada[#All],MATCH($AT9&$AU$2,Serie_Encadeada[[#All],[Mês]],0),Análises!AJ$5)) -> - | AZ9: =IF($AT9 >$A$13,"-",INDEX(Serie_Encadeada[#All],MATCH($AT9&$AV$2,Serie_Encadeada[[#All],[Mês]],0),Análises!$AJ$5)) -> - | BA9: =IF($AT9 >$A$13,"-", INDEX(Serie_Encadeada[#All],MATCH($AT9&$AU$2,Serie_Encadeada[[#All],[Mês]],0),Análises!AJ$6)) -> - | BB9: =IF($AT9 >$A$13,"-",INDEX(Serie_Encadeada[#All],MATCH($AT9&$AV$2,Serie_Encadeada[[#All],[Mês]],0),Análises!$AJ$6)) -> - | BC9: =IF($AT9 >$A$13,"-", INDEX(Serie_Encadeada[#All],MATCH($AT9&$AU$2,Serie_Encadeada[[#All],[Mês]],0),Análises!AJ$7)) -> - | BD9: =IF($AT9 >$A$13,"-",INDEX(Serie_Encadeada[#All],MATCH($AT9&$AV$2,Serie_Encadeada[[#All],[Mês]],0),Análises!$AJ$7)) -> - | BE9: =IF($AT9 >$A$13,"-",INDEX(Serie_Encadeada[#All],MATCH($AT9&$AU$2,Serie_Encadeada[[#All],[Mês]],0),Análises!$AJ$8)) -> - | BF9: =IF($AT9 >$A$13,"-",INDEX(Serie_Encadeada[#All],MATCH($AT9&$AV$2,Serie_Encadeada[[#All],[Mês]],0),Análises!$AJ$8)) -> -
AE10: 8 | AF10: 2010 | AK10: Denominador | AT10: 7 | AU10: =IF($AT10 >$A$13,"-", INDEX(Serie_Encadeada[#All],MATCH($AT10&$AU$2,Serie_Encadeada[[#All],[Mês]],0),Análises!AJ$3)) -> - | AV10: =IF($AT10 >$A$13,"-",INDEX(Serie_Encadeada[#All],MATCH($AT10&$AV$2,Serie_Encadeada[[#All],[Mês]],0),Análises!$AJ$3)) -> - | AW10: =IF($AT10 >$A$13,"-", INDEX(Serie_Encadeada[#All],MATCH($AT10&$AU$2,Serie_Encadeada[[#All],[Mês]],0),Análises!AJ$4)) -> - | AX10: =IF($AT10 >$A$13,"-",INDEX(Serie_Encadeada[#All],MATCH($AT10&$AV$2,Serie_Encadeada[[#All],[Mês]],0),Análises!$AJ$4)) -> - | AY10: =IF($AT10 >$A$13,"-", INDEX(Serie_Encadeada[#All],MATCH($AT10&$AU$2,Serie_Encadeada[[#All],[Mês]],0),Análises!AJ$5)) -> - | AZ10: =IF($AT10 >$A$13,"-",INDEX(Serie_Encadeada[#All],MATCH($AT10&$AV$2,Serie_Encadeada[[#All],[Mês]],0),Análises!$AJ$5)) -> - | BA10: =IF($AT10 >$A$13,"-", INDEX(Serie_Encadeada[#All],MATCH($AT10&$AU$2,Serie_Encadeada[[#All],[Mês]],0),Análises!AJ$6)) -> - | BB10: =IF($AT10 >$A$13,"-",INDEX(Serie_Encadeada[#All],MATCH($AT10&$AV$2,Serie_Encadeada[[#All],[Mês]],0),Análises!$AJ$6)) -> - | BC10: =IF($AT10 >$A$13,"-", INDEX(Serie_Encadeada[#All],MATCH($AT10&$AU$2,Serie_Encadeada[[#All],[Mês]],0),Análises!AJ$7)) -> - | BD10: =IF($AT10 >$A$13,"-",INDEX(Serie_Encadeada[#All],MATCH($AT10&$AV$2,Serie_Encadeada[[#All],[Mês]],0),Análises!$AJ$7)) -> - | BE10: =IF($AT10 >$A$13,"-",INDEX(Serie_Encadeada[#All],MATCH($AT10&$AU$2,Serie_Encadeada[[#All],[Mês]],0),Análises!$AJ$8)) -> - | BF10: =IF($AT10 >$A$13,"-",INDEX(Serie_Encadeada[#All],MATCH($AT10&$AV$2,Serie_Encadeada[[#All],[Mês]],0),Análises!$AJ$8)) -> -
A11: Referência | AE11: 9 | AF11: 2011 | AK11: Mês | AL11: Ano | AT11: 8 | AU11: =IF($AT11 >$A$13,"-", INDEX(Serie_Encadeada[#All],MATCH($AT11&$AU$2,Serie_Encadeada[[#All],[Mês]],0),Análises!AJ$3)) -> - | AV11: =IF($AT11 >$A$13,"-",INDEX(Serie_Encadeada[#All],MATCH($AT11&$AV$2,Serie_Encadeada[[#All],[Mês]],0),Análises!$AJ$3)) -> - | AW11: =IF($AT11 >$A$13,"-", INDEX(Serie_Encadeada[#All],MATCH($AT11&$AU$2,Serie_Encadeada[[#All],[Mês]],0),Análises!AJ$4)) -> - | AX11: =IF($AT11 >$A$13,"-",INDEX(Serie_Encadeada[#All],MATCH($AT11&$AV$2,Serie_Encadeada[[#All],[Mês]],0),Análises!$AJ$4)) -> - | AY11: =IF($AT11 >$A$13,"-", INDEX(Serie_Encadeada[#All],MATCH($AT11&$AU$2,Serie_Encadeada[[#All],[Mês]],0),Análises!AJ$5)) -> - | AZ11: =IF($AT11 >$A$13,"-",INDEX(Serie_Encadeada[#All],MATCH($AT11&$AV$2,Serie_Encadeada[[#All],[Mês]],0),Análises!$AJ$5)) -> - | BA11: =IF($AT11 >$A$13,"-", INDEX(Serie_Encadeada[#All],MATCH($AT11&$AU$2,Serie_Encadeada[[#All],[Mês]],0),Análises!AJ$6)) -> - | BB11: =IF($AT11 >$A$13,"-",INDEX(Serie_Encadeada[#All],MATCH($AT11&$AV$2,Serie_Encadeada[[#All],[Mês]],0),Análises!$AJ$6)) -> - | BC11: =IF($AT11 >$A$13,"-", INDEX(Serie_Encadeada[#All],MATCH($AT11&$AU$2,Serie_Encadeada[[#All],[Mês]],0),Análises!AJ$7)) -> - | BD11: =IF($AT11 >$A$13,"-",INDEX(Serie_Encadeada[#All],MATCH($AT11&$AV$2,Serie_Encadeada[[#All],[Mês]],0),Análises!$AJ$7)) -> - | BE11: =IF($AT11 >$A$13,"-",INDEX(Serie_Encadeada[#All],MATCH($AT11&$AU$2,Serie_Encadeada[[#All],[Mês]],0),Análises!$AJ$8)) -> - | BF11: =IF($AT11 >$A$13,"-",INDEX(Serie_Encadeada[#All],MATCH($AT11&$AV$2,Serie_Encadeada[[#All],[Mês]],0),Análises!$AJ$8)) -> -
A12: Mês | B12: Ano | AE12: 10 | AF12: 2012 | AJ12: Mensal | AK12: =IF($A$13=1,$AE$14,$A$13-1) -> 1 | AL12: =IF($A$13=1,$B$13-1,$B$13) -> 2023 | AT12: 9 | AU12: =IF($AT12 >$A$13,"-", INDEX(Serie_Encadeada[#All],MATCH($AT12&$AU$2,Serie_Encadeada[[#All],[Mês]],0),Análises!AJ$3)) -> - | AV12: =IF($AT12 >$A$13,"-",INDEX(Serie_Encadeada[#All],MATCH($AT12&$AV$2,Serie_Encadeada[[#All],[Mês]],0),Análises!$AJ$3)) -> - | AW12: =IF($AT12 >$A$13,"-", INDEX(Serie_Encadeada[#All],MATCH($AT12&$AU$2,Serie_Encadeada[[#All],[Mês]],0),Análises!AJ$4)) -> - | AX12: =IF($AT12 >$A$13,"-",INDEX(Serie_Encadeada[#All],MATCH($AT12&$AV$2,Serie_Encadeada[[#All],[Mês]],0),Análises!$AJ$4)) -> - | AY12: =IF($AT12 >$A$13,"-", INDEX(Serie_Encadeada[#All],MATCH($AT12&$AU$2,Serie_Encadeada[[#All],[Mês]],0),Análises!AJ$5)) -> - | AZ12: =IF($AT12 >$A$13,"-",INDEX(Serie_Encadeada[#All],MATCH($AT12&$AV$2,Serie_Encadeada[[#All],[Mês]],0),Análises!$AJ$5)) -> - | BA12: =IF($AT12 >$A$13,"-", INDEX(Serie_Encadeada[#All],MATCH($AT12&$AU$2,Serie_Encadeada[[#All],[Mês]],0),Análises!AJ$6)) -> - | BB12: =IF($AT12 >$A$13,"-",INDEX(Serie_Encadeada[#All],MATCH($AT12&$AV$2,Serie_Encadeada[[#All],[Mês]],0),Análises!$AJ$6)) -> - | BC12: =IF($AT12 >$A$13,"-", INDEX(Serie_Encadeada[#All],MATCH($AT12&$AU$2,Serie_Encadeada[[#All],[Mês]],0),Análises!AJ$7)) -> - | BD12: =IF($AT12 >$A$13,"-",INDEX(Serie_Encadeada[#All],MATCH($AT12&$AV$2,Serie_Encadeada[[#All],[Mês]],0),Análises!$AJ$7)) -> - | BE12: =IF($AT12 >$A$13,"-",INDEX(Serie_Encadeada[#All],MATCH($AT12&$AU$2,Serie_Encadeada[[#All],[Mês]],0),Análises!$AJ$8)) -> - | BF12: =IF($AT12 >$A$13,"-",INDEX(Serie_Encadeada[#All],MATCH($AT12&$AV$2,Serie_Encadeada[[#All],[Mês]],0),Análises!$AJ$8)) -> -
A13: 2 | B13: 2023 | D13: Indústria Geral | K13: Indústria Extrativa | P13: Indústria de Transformação | AE13: 11 | AF13: 2013 | AJ13: Anual | AK13: =A13 -> 2 | AL13: =IF($AK$13=1, AL12, AL12-1) -> 2022 | AT13: 10 | AU13: =IF($AT13 >$A$13,"-", INDEX(Serie_Encadeada[#All],MATCH($AT13&$AU$2,Serie_Encadeada[[#All],[Mês]],0),Análises!AJ$3)) -> - | AV13: =IF($AT13 >$A$13,"-",INDEX(Serie_Encadeada[#All],MATCH($AT13&$AV$2,Serie_Encadeada[[#All],[Mês]],0),Análises!$AJ$3)) -> - | AW13: =IF($AT13 >$A$13,"-", INDEX(Serie_Encadeada[#All],MATCH($AT13&$AU$2,Serie_Encadeada[[#All],[Mês]],0),Análises!AJ$4)) -> - | AX13: =IF($AT13 >$A$13,"-",INDEX(Serie_Encadeada[#All],MATCH($AT13&$AV$2,Serie_Encadeada[[#All],[Mês]],0),Análises!$AJ$4)) -> - | AY13: =IF($AT13 >$A$13,"-", INDEX(Serie_Encadeada[#All],MATCH($AT13&$AU$2,Serie_Encadeada[[#All],[Mês]],0),Análises!AJ$5)) -> - | AZ13: =IF($AT13 >$A$13,"-",INDEX(Serie_Encadeada[#All],MATCH($AT13&$AV$2,Serie_Encadeada[[#All],[Mês]],0),Análises!$AJ$5)) -> - | BA13: =IF($AT13 >$A$13,"-", INDEX(Serie_Encadeada[#All],MATCH($AT13&$AU$2,Serie_Encadeada[[#All],[Mês]],0),Análises!AJ$6)) -> - | BB13: =IF($AT13 >$A$13,"-",INDEX(Serie_Encadeada[#All],MATCH($AT13&$AV$2,Serie_Encadeada[[#All],[Mês]],0),Análises!$AJ$6)) -> - | BC13: =IF($AT13 >$A$13,"-", INDEX(Serie_Encadeada[#All],MATCH($AT13&$AU$2,Serie_Encadeada[[#All],[Mês]],0),Análises!AJ$7)) -> - | BD13: =IF($AT13 >$A$13,"-",INDEX(Serie_Encadeada[#All],MATCH($AT13&$AV$2,Serie_Encadeada[[#All],[Mês]],0),Análises!$AJ$7)) -> - | BE13: =IF($AT13 >$A$13,"-",INDEX(Serie_Encadeada[#All],MATCH($AT13&$AU$2,Serie_Encadeada[[#All],[Mês]],0),Análises!$AJ$8)) -> - | BF13: =IF($AT13 >$A$13,"-",INDEX(Serie_Encadeada[#All],MATCH($AT13&$AV$2,Serie_Encadeada[[#All],[Mês]],0),Análises!$AJ$8)) -> -
AE14: 12 | AF14: 2014 | AJ14: Acumulado | AK14: 1 | AT14: 11 | AU14: =IF($AT14 >$A$13,"-", INDEX(Serie_Encadeada[#All],MATCH($AT14&$AU$2,Serie_Encadeada[[#All],[Mês]],0),Análises!AJ$3)) -> - | AV14: =IF($AT14 >$A$13,"-",INDEX(Serie_Encadeada[#All],MATCH($AT14&$AV$2,Serie_Encadeada[[#All],[Mês]],0),Análises!$AJ$3)) -> - | AW14: =IF($AT14 >$A$13,"-", INDEX(Serie_Encadeada[#All],MATCH($AT14&$AU$2,Serie_Encadeada[[#All],[Mês]],0),Análises!AJ$4)) -> - | AX14: =IF($AT14 >$A$13,"-",INDEX(Serie_Encadeada[#All],MATCH($AT14&$AV$2,Serie_Encadeada[[#All],[Mês]],0),Análises!$AJ$4)) -> - | AY14: =IF($AT14 >$A$13,"-", INDEX(Serie_Encadeada[#All],MATCH($AT14&$AU$2,Serie_Encadeada[[#All],[Mês]],0),Análises!AJ$5)) -> - | AZ14: =IF($AT14 >$A$13,"-",INDEX(Serie_Encadeada[#All],MATCH($AT14&$AV$2,Serie_Encadeada[[#All],[Mês]],0),Análises!$AJ$5)) -> - | BA14: =IF($AT14 >$A$13,"-", INDEX(Serie_Encadeada[#All],MATCH($AT14&$AU$2,Serie_Encadeada[[#All],[Mês]],0),Análises!AJ$6)) -> - | BB14: =IF($AT14 >$A$13,"-",INDEX(Serie_Encadeada[#All],MATCH($AT14&$AV$2,Serie_Encadeada[[#All],[Mês]],0),Análises!$AJ$6)) -> - | BC14: =IF($AT14 >$A$13,"-", INDEX(Serie_Encadeada[#All],MATCH($AT14&$AU$2,Serie_Encadeada[[#All],[Mês]],0),Análises!AJ$7)) -> - | BD14: =IF($AT14 >$A$13,"-",INDEX(Serie_Encadeada[#All],MATCH($AT14&$AV$2,Serie_Encadeada[[#All],[Mês]],0),Análises!$AJ$7)) -> - | BE14: =IF($AT14 >$A$13,"-",INDEX(Serie_Encadeada[#All],MATCH($AT14&$AU$2,Serie_Encadeada[[#All],[Mês]],0),Análises!$AJ$8)) -> - | BF14: =IF($AT14 >$A$13,"-",INDEX(Serie_Encadeada[#All],MATCH($AT14&$AV$2,Serie_Encadeada[[#All],[Mês]],0),Análises!$AJ$8)) -> -
D15: Dados Dessazonalizados | F15: =A13&"/"&B13 -> 2/2023 | G15: =F15 -> 2/2023 | H15: Acumulado | I15: Acumulado | K15: =F15 -> 2/2023 | L15: =G15 -> 2/2023 | M15: Acumulado | N15: Acumulado | P15: =F15 -> 2/2023 | Q15: =G15 -> 2/2023 | R15: Acumulado | S15: Acumulado | AF15: 2015 | AT15: 12 | AU15: =IF($AT15 >$A$13,"-", INDEX(Serie_Encadeada[#All],MATCH($AT15&$AU$2,Serie_Encadeada[[#All],[Mês]],0),Análises!AJ$3)) -> - | AV15: =IF($AT15 >$A$13,"-",INDEX(Serie_Encadeada[#All],MATCH($AT15&$AV$2,Serie_Encadeada[[#All],[Mês]],0),Análises!$AJ$3)) -> - | AW15: =IF($AT15 >$A$13,"-", INDEX(Serie_Encadeada[#All],MATCH($AT15&$AU$2,Serie_Encadeada[[#All],[Mês]],0),Análises!AJ$4)) -> - | AX15: =IF($AT15 >$A$13,"-",INDEX(Serie_Encadeada[#All],MATCH($AT15&$AV$2,Serie_Encadeada[[#All],[Mês]],0),Análises!$AJ$4)) -> - | AY15: =IF($AT15 >$A$13,"-", INDEX(Serie_Encadeada[#All],MATCH($AT15&$AU$2,Serie_Encadeada[[#All],[Mês]],0),Análises!AJ$5)) -> - | AZ15: =IF($AT15 >$A$13,"-",INDEX(Serie_Encadeada[#All],MATCH($AT15&$AV$2,Serie_Encadeada[[#All],[Mês]],0),Análises!$AJ$5)) -> - | BA15: =IF($AT15 >$A$13,"-", INDEX(Serie_Encadeada[#All],MATCH($AT15&$AU$2,Serie_Encadeada[[#All],[Mês]],0),Análises!AJ$6)) -> - | BB15: =IF($AT15 >$A$13,"-",INDEX(Serie_Encadeada[#All],MATCH($AT15&$AV$2,Serie_Encadeada[[#All],[Mês]],0),Análises!$AJ$6)) -> - | BC15: =IF($AT15 >$A$13,"-", INDEX(Serie_Encadeada[#All],MATCH($AT15&$AU$2,Serie_Encadeada[[#All],[Mês]],0),Análises!AJ$7)) -> - | BD15: =IF($AT15 >$A$13,"-",INDEX(Serie_Encadeada[#All],MATCH($AT15&$AV$2,Serie_Encadeada[[#All],[Mês]],0),Análises!$AJ$7)) -> - | BE15: =IF($AT15 >$A$13,"-",INDEX(Serie_Encadeada[#All],MATCH($AT15&$AU$2,Serie_Encadeada[[#All],[Mês]],0),Análises!$AJ$8)) -> - | BF15: =IF($AT15 >$A$13,"-",INDEX(Serie_Encadeada[#All],MATCH($AT15&$AV$2,Serie_Encadeada[[#All],[Mês]],0),Análises!$AJ$8)) -> -
D16: (var. % em relação ao mês anterior) | F16: =IFERROR(AK12&"/"&AL12,"-") -> 1/2023 | G16: =IFERROR(A13&"/"&(B13-1),"-") -> 2/2022 | H16: no ano | I16: 12 meses | K16: =F16 -> 1/2023 | L16: =G16 -> 2/2022 | M16: no ano | N16: 12 meses | P16: =F16 -> 1/2023 | Q16: =G16 -> 2/2022 | R16: no ano | S16: 12 meses | AF16: 2016 | AK16: 12 meses | AT16: média | AU16: =AVERAGE(AU4:AU15) -> 96.8689 | AV16: 86.7827 | AW16: 97.89215 | AX16: 97.95415 | AY16: 109.8742 | AZ16: 109.40655 | BA16: 128.6943 | BB16: 122.82135 | BC16: 117.135 | BD16: 112.27175 | BE16: 79.5768 | BF16: 82.17875
D17: =IFERROR(IF(AL3=TRUE,((INDEX(Serie_dessazonalizada[#All],MATCH(Análises!$A$13&Análises!$B$13,Serie_dessazonalizada[[#All],[Mês]],0),$AJ$3)/INDEX(Serie_dessazonalizada[#All],MATCH(Análises!$AK$12&Análises!$AL$12,Serie_dessazonalizada[[#All],[Mês]],0),$AJ$3))-1)*100,"-"),"-") -> 0.1534193062 | F17: =IFERROR(IF(AL3=TRUE,((INDEX(Serie_Encadeada[#All],MATCH(Análises!$A$13&Análises!$B$13,Serie_Encadeada[[#All],[Mês]],0),$AJ3)/INDEX(Serie_Encadeada[#All],MATCH(Análises!$AK$12&Análises!$AL$12,Serie_Encadeada[[#All],[Mês]],0),$AJ3))-1)*100,"-"),"-") -> -1.003927788 | G17: =IFERROR(IF($AL3=TRUE,((INDEX(Serie_Encadeada[#All],MATCH(Análises!$A$13&Análises!$B$13,Serie_Encadeada[[#All],[Mês]],0),$AJ3)/INDEX(Serie_Encadeada[#All],MATCH(Análises!$AK$13&Análises!$AL$13,Serie_Encadeada[[#All],[Mês]],0),$AJ3))-1)*100,"-"),"-") -> 14.80762794 | H17: =IFERROR(IF(AL3=TRUE,AM3,"-"),"-") -> 11.62236252 | I17: =IFERROR(IF(AL3=TRUE,AN3,"-"),"-") -> 6.416068503 | K17: =IFERROR(IF($AL$3=TRUE,((INDEX(Indice_faturamento[#All],MATCH(Análises!$A$13&Análises!$B$13,Indice_faturamento[[#All],[Mês]],0),4)/INDEX(Indice_faturamento[#All],MATCH(Análises!$AK$12&Análises!$AL$12,Indice_faturamento[[#All],[Mês]],0),4))-1)*100,"-"),"-") -> 32.88799771 | L17: =IFERROR(IF($AL$3=TRUE,((INDEX(Indice_faturamento[#All],MATCH(Análises!$A$13&Análises!$B$13,Indice_faturamento[[#All],[Mês]],0),4)/INDEX(Indice_faturamento[#All],MATCH(Análises!$AK$13&Análises!$AL$13,Indice_faturamento[[#All],[Mês]],0),4))-1)*100,"-"),"-") -> 8.885124574 | M17: =IFERROR(IF(AL3=TRUE,AO3,"-"),"-") -> 2.324697865 | N17: =IFERROR(IF(AL3=TRUE,AP3,"-"),"-") -> -8.156930257 | P17: =IFERROR(IF($AL$3=TRUE,((INDEX(Indice_faturamento[#All],MATCH(Análises!$A$13&Análises!$B$13,Indice_faturamento[[#All],[Mês]],0),5)/INDEX(Indice_faturamento[#All],MATCH(Análises!$AK$12&Análises!$AL$12,Indice_faturamento[[#All],[Mês]],0),5))-1)*100,"-"),"-") -> -2.801971232 | Q17: =IFERROR(IF($AL$3=TRUE,((INDEX(Indice_faturamento[#All],MATCH(Análises!$A$13&Análises!$B$13,Indice_faturamento[[#All],[Mês]],0),5)/INDEX(Indice_faturamento[#All],MATCH(Análises!$AK$13&Análises!$AL$13,Indice_faturamento[[#All],[Mês]],0),5))-1)*100,"-"),"-") -> 15.26241988 | R17: =IFERROR(IF(AL3=TRUE,AQ3,"-"),"-") -> 12.26149749 | S17: =IFERROR(IF(AL3=TRUE,AR3,"-"),"-") -> 7.870905734 | AF17: 2017 | AK17: Linha | AL17: Período | AM17: Faturamento | AN17: Horas Trabalhadas | AO17: Emprego | AP17: Massa salarial | AQ17: RMR | AR17: UCI
D18: =IFERROR(IF(AL5=TRUE,((INDEX(Serie_dessazonalizada[#All],MATCH(Análises!$A$13&Análises!$B$13,Serie_dessazonalizada[[#All],[Mês]],0),$AJ$5)/INDEX(Serie_dessazonalizada[#All],MATCH(Análises!$AK$12&Análises!$AL$12,Serie_dessazonalizada[[#All],[Mês]],0),$AJ$5))-1)*100,"-"),"-") -> 0.2898428708 | F18: =IFERROR(IF(AL5=TRUE,((INDEX(Serie_Encadeada[#All],MATCH(Análises!$A$13&Análises!$B$13,Serie_Encadeada[[#All],[Mês]],0),$AJ5)/INDEX(Serie_Encadeada[#All],MATCH(Análises!$AK$12&Análises!$AL$12,Serie_Encadeada[[#All],[Mês]],0),$AJ5))-1)*100,"-"),"-") -> 0.5735669953 | G18: =IFERROR(IF($AL5=TRUE,((INDEX(Serie_Encadeada[#All],MATCH(Análises!$A$13&Análises!$B$13,Serie_Encadeada[[#All],[Mês]],0),$AJ5)/INDEX(Serie_Encadeada[#All],MATCH(Análises!$AK$13&Análises!$AL$13,Serie_Encadeada[[#All],[Mês]],0),$AJ5))-1)*100,"-"),"-") -> 0.9534786349 | H18: =IFERROR(IF(AL5=TRUE,AM5,"-"),"-") -> 0.4274424155 | I18: =IFERROR(IF(AL5=TRUE,AN5,"-"),"-") -> 0.07754138151 | K18: =IFERROR(IF($AL$5=TRUE,((INDEX(Indice_Emprego[#All],MATCH(Análises!$A$13&Análises!$B$13,Indice_Emprego[[#All],[Mês]],0),4)/INDEX(Indice_Emprego[#All],MATCH(Análises!$AK$12&Análises!$AL$12,Indice_Emprego[[#All],[Mês]],0),4))-1)*100,"-"),"-") -> -1.545299705 | L18: =IFERROR(IF($AL$5=TRUE,((INDEX(Indice_Emprego[#All],MATCH(Análises!$A$13&Análises!$B$13,Indice_Emprego[[#All],[Mês]],0),4)/INDEX(Indice_Emprego[#All],MATCH(Análises!$AK$13&Análises!$AL$13,Indice_Emprego[[#All],[Mês]],0),4))-1)*100,"-"),"-") -> -0.2492621544 | M18: =IFERROR(IF(AL5=TRUE,AO5,"-"),"-") -> -0.8499413183 | N18: =IFERROR(IF(AL5=TRUE,AP5,"-"),"-") -> -2.966118354 | P18: =IFERROR(IF($AL$5=TRUE,((INDEX(Indice_Emprego[#All],MATCH(Análises!$A$13&Análises!$B$13,Indice_Emprego[[#All],[Mês]],0),5)/INDEX(Indice_Emprego[#All],MATCH(Análises!$AK$12&Análises!$AL$12,Indice_Emprego[[#All],[Mês]],0),5))-1)*100,"-"),"-") -> 0.7602674057 | Q18: =IFERROR(IF($AL$5=TRUE,((INDEX(Indice_Emprego[#All],MATCH(Análises!$A$13&Análises!$B$13,Indice_Emprego[[#All],[Mês]],0),5)/INDEX(Indice_Emprego[#All],MATCH(Análises!$AK$13&Análises!$AL$13,Indice_Emprego[[#All],[Mês]],0),5))-1)*100,"-"),"-") -> 1.058424865 | R18: =IFERROR(IF(AL5=TRUE,AQ5,"-"),"-") -> 0.5403208319 | S18: =IFERROR(IF(AL5=TRUE,AR5,"-"),"-") -> 0.3345130427 | AF18: 2018 | AK18: =AK19-1 -> 220 | AL18: 1 | AM18: =INDEX(Serie_Encadeada[#All],$AK18,$AJ$3) -> 105.2718 | AN18: =INDEX(Serie_Encadeada[#All],$AK18,$AJ$4) -> 101.8271 | AO18: =INDEX(Serie_Encadeada[#All],$AK18,$AJ$5) -> 108.152 | AP18: =INDEX(Serie_Encadeada[#All],$AK18,$AJ$6) -> 119.0147 | AQ18: =INDEX(Serie_Encadeada[#All],$AK18,$AJ$7) -> 110.0439 | AR18: =INDEX(Serie_Encadeada[#All],$AK18,$AJ$8) -> 82.5241 | AU18: Extrativa
D19: =IFERROR(IF(AL4=TRUE,((INDEX(Serie_dessazonalizada[#All],MATCH(Análises!$A$13&Análises!$B$13,Serie_dessazonalizada[[#All],[Mês]],0),$AJ$4)/INDEX(Serie_dessazonalizada[#All],MATCH(Análises!$AK$12&Análises!$AL$12,Serie_dessazonalizada[[#All],[Mês]],0),$AJ$4))-1)*100,"-"),"-") -> -1.751405771 | F19: =IFERROR(IF(AL4=TRUE,((INDEX(Serie_Encadeada[#All],MATCH(Análises!$A$13&Análises!$B$13,Serie_Encadeada[[#All],[Mês]],0),$AJ4)/INDEX(Serie_Encadeada[#All],MATCH(Análises!$AK$12&Análises!$AL$12,Serie_Encadeada[[#All],[Mês]],0),$AJ4))-1)*100,"-"),"-") -> -2.479694031 | G19: =IFERROR(IF($AL4=TRUE,((INDEX(Serie_Encadeada[#All],MATCH(Análises!$A$13&Análises!$B$13,Serie_Encadeada[[#All],[Mês]],0),$AJ4)/INDEX(Serie_Encadeada[#All],MATCH(Análises!$AK$13&Análises!$AL$13,Serie_Encadeada[[#All],[Mês]],0),$AJ4))-1)*100,"-"),"-") -> -2.655485745 | H19: =IFERROR(IF(AL4=TRUE,AM4,"-"),"-") -> -0.0632949191 | I19: =IFERROR(IF(AL4=TRUE,AN4,"-"),"-") -> 0.763020727 | K19: =IFERROR(IF($AL$4=TRUE,((INDEX(Indice_Horas[#All],MATCH(Análises!$A$13&Análises!$B$13,Indice_Horas[[#All],[Mês]],0),4)/INDEX(Indice_Horas[#All],MATCH(Análises!$AK$12&Análises!$AL$12,Indice_Horas[[#All],[Mês]],0),4))-1)*100,"-"),"-") -> -5.283630772 | L19: =IFERROR(IF($AL$4=TRUE,((INDEX(Indice_Horas[#All],MATCH(Análises!$A$13&Análises!$B$13,Indice_Horas[[#All],[Mês]],0),4)/INDEX(Indice_Horas[#All],MATCH(Análises!$AK$13&Análises!$AL$13,Indice_Horas[[#All],[Mês]],0),4))-1)*100,"-"),"-") -> 7.634388987 | M19: =IFERROR(IF(AL4=TRUE,AO4,"-"),"-") -> 8.84293673 | N19: =IFERROR(IF(AL4=TRUE,AP4,"-"),"-") -> 2.827350005 | P19: =IFERROR(IF($AL$4=TRUE,((INDEX(Indice_Horas[#All],MATCH(Análises!$A$13&Análises!$B$13,Indice_Horas[[#All],[Mês]],0),5)/INDEX(Indice_Horas[#All],MATCH(Análises!$AK$12&Análises!$AL$12,Indice_Horas[[#All],[Mês]],0),5))-1)*100,"-"),"-") -> -2.169812716 | Q19: =IFERROR(IF($AL$4=TRUE,((INDEX(Indice_Horas[#All],MATCH(Análises!$A$13&Análises!$B$13,Indice_Horas[[#All],[Mês]],0),5)/INDEX(Indice_Horas[#All],MATCH(Análises!$AK$13&Análises!$AL$13,Indice_Horas[[#All],[Mês]],0),5))-1)*100,"-"),"-") -> -3.640991555 | R19: =IFERROR(IF(AL4=TRUE,AQ4,"-"),"-") -> -0.9448339243 | S19: =IFERROR(IF(AL4=TRUE,AR4,"-"),"-") -> 0.5584508749 | AF19: 2019 | AK19: 221 | AL19: 2 | AM19: =INDEX(Serie_Encadeada[#All],$AK19,$AJ$3) -> 96.3514 | AN19: =INDEX(Serie_Encadeada[#All],$AK19,$AJ$4) -> 100.1536 | AO19: =INDEX(Serie_Encadeada[#All],$AK19,$AJ$5) -> 109.2935 | AP19: =INDEX(Serie_Encadeada[#All],$AK19,$AJ$6) -> 122.0436 | AQ19: =INDEX(Serie_Encadeada[#All],$AK19,$AJ$7) -> 111.6659 | AR19: =INDEX(Serie_Encadeada[#All],$AK19,$AJ$8) -> 83.471 | AU19: =$B$13 -> 2023 | AV19: =$AL$13 -> 2022 | AW19: =$B$13 -> 2023 | AX19: =$AL$13 -> 2022 | AY19: =$B$13 -> 2023 | AZ19: =$AL$13 -> 2022 | BA19: =$B$13 -> 2023 | BB19: =$AL$13 -> 2022 | BC19: =$B$13 -> 2023 | BD19: =$AL$13 -> 2022 | BE19: =$B$13 -> 2023 | BF19: =$AL$13 -> 2022
D20: =IFERROR(IF(AL6=TRUE,((INDEX(Serie_dessazonalizada[#All],MATCH(Análises!$A$13&Análises!$B$13,Serie_dessazonalizada[[#All],[Mês]],0),$AJ$6)/INDEX(Serie_dessazonalizada[#All],MATCH(Análises!$AK$12&Análises!$AL$12,Serie_dessazonalizada[[#All],[Mês]],0),$AJ$6))-1)*100,"-"),"-") -> -3.605602399 | F20: =IFERROR(IF(AL6=TRUE,((INDEX(Serie_Encadeada[#All],MATCH(Análises!$A$13&Análises!$B$13,Serie_Encadeada[[#All],[Mês]],0),$AJ6)/INDEX(Serie_Encadeada[#All],MATCH(Análises!$AK$12&Análises!$AL$12,Serie_Encadeada[[#All],[Mês]],0),$AJ6))-1)*100,"-"),"-") -> -3.109538366 | G20: =IFERROR(IF($AL6=TRUE,((INDEX(Serie_Encadeada[#All],MATCH(Análises!$A$13&Análises!$B$13,Serie_Encadeada[[#All],[Mês]],0),$AJ6)/INDEX(Serie_Encadeada[#All],MATCH(Análises!$AK$13&Análises!$AL$13,Serie_Encadeada[[#All],[Mês]],0),$AJ6))-1)*100,"-"),"-") -> -0.5085256996 | H20: =IFERROR(IF(AL6=TRUE,AM6,"-"),"-") -> 4.781701227 | I20: =IFERROR(IF(AL6=TRUE,AN6,"-"),"-") -> 4.098873495 | K20: =IFERROR(IF($AL$6=TRUE,((INDEX(Indice_massa_salarial[#All],MATCH(Análises!$A$13&Análises!$B$13,Indice_massa_salarial[[#All],[Mês]],0),4)/INDEX(Indice_massa_salarial[#All],MATCH(Análises!$AK$12&Análises!$AL$12,Indice_massa_salarial[[#All],[Mês]],0),4))-1)*100,"-"),"-") -> 8.461341784 | L20: =IFERROR(IF($AL$6=TRUE,((INDEX(Indice_massa_salarial[#All],MATCH(Análises!$A$13&Análises!$B$13,Indice_massa_salarial[[#All],[Mês]],0),4)/INDEX(Indice_massa_salarial[#All],MATCH(Análises!$AK$13&Análises!$AL$13,Indice_massa_salarial[[#All],[Mês]],0),4))-1)*100,"-"),"-") -> -12.64545729 | M20: =IFERROR(IF(AL6=TRUE,AO6,"-"),"-") -> -5.429323376 | N20: =IFERROR(IF(AL6=TRUE,AP6,"-"),"-") -> 0.2241231728 | P20: =IFERROR(IF($AL$6=TRUE,((INDEX(Indice_massa_salarial[#All],MATCH(Análises!$A$13&Análises!$B$13,Indice_massa_salarial[[#All],[Mês]],0),5)/INDEX(Indice_massa_salarial[#All],MATCH(Análises!$AK$12&Análises!$AL$12,Indice_massa_salarial[[#All],[Mês]],0),5))-1)*100,"-"),"-") -> -4.372467495 | Q20: =IFERROR(IF($AL$6=TRUE,((INDEX(Indice_massa_salarial[#All],MATCH(Análises!$A$13&Análises!$B$13,Indice_massa_salarial[[#All],[Mês]],0),5)/INDEX(Indice_massa_salarial[#All],MATCH(Análises!$AK$13&Análises!$AL$13,Indice_massa_salarial[[#All],[Mês]],0),5))-1)*100,"-"),"-") -> 1.232783701 | R20: =IFERROR(IF(AL6=TRUE,AQ6,"-"),"-") -> 6.114316077 | S20: =IFERROR(IF(AL6=TRUE,AR6,"-"),"-") -> 4.556991743 | AF20: 2020 | AK20: 222 | AL20: 3 | AM20: =INDEX(Serie_Encadeada[#All],$AK20,$AJ$3) -> 106.7238 | AN20: =INDEX(Serie_Encadeada[#All],$AK20,$AJ$4) -> 102.6272 | AO20: =INDEX(Serie_Encadeada[#All],$AK20,$AJ$5) -> 109.6478 | AP20: =INDEX(Serie_Encadeada[#All],$AK20,$AJ$6) -> 114.6959 | AQ20: =INDEX(Serie_Encadeada[#All],$AK20,$AJ$7) -> 104.6039 | AR20: =INDEX(Serie_Encadeada[#All],$AK20,$AJ$8) -> 84.0146 | AT20: Mês/Ano | AU20: Faturamento | AW20: Horas Trabalhadas | AY20: Emprego | BA20: Massa salarial | BC20: RMR | BE20: UCI
D21: =IFERROR(IF(AL7=TRUE,((INDEX(Serie_dessazonalizada[#All],MATCH(Análises!$A$13&Análises!$B$13,Serie_dessazonalizada[[#All],[Mês]],0),$AJ$7)/INDEX(Serie_dessazonalizada[#All],MATCH(Análises!$AK$12&Análises!$AL$12,Serie_dessazonalizada[[#All],[Mês]],0),$AJ$7))-1)*100,"-"),"-") -> -4.043627992 | F21: =IFERROR(IF(AL7=TRUE,((INDEX(Serie_Encadeada[#All],MATCH(Análises!$A$13&Análises!$B$13,Serie_Encadeada[[#All],[Mês]],0),$AJ7)/INDEX(Serie_Encadeada[#All],MATCH(Análises!$AK$12&Análises!$AL$12,Serie_Encadeada[[#All],[Mês]],0),$AJ7))-1)*100,"-"),"-") -> -3.662091287 | G21: =IFERROR(IF($AL7=TRUE,((INDEX(Serie_Encadeada[#All],MATCH(Análises!$A$13&Análises!$B$13,Serie_Encadeada[[#All],[Mês]],0),$AJ7)/INDEX(Serie_Encadeada[#All],MATCH(Análises!$AK$13&Análises!$AL$13,Serie_Encadeada[[#All],[Mês]],0),$AJ7))-1)*100,"-"),"-") -> -1.448224185 | H21: =IFERROR(IF(AL7=TRUE,AM7,"-"),"-") -> 4.331677381 | I21: =IFERROR(IF(AL7=TRUE,AN7,"-"),"-") -> 3.971199548 | K21: =IFERROR(IF($AL$7=TRUE,((INDEX(Indice_RMR[#All],MATCH(Análises!$A$13&Análises!$B$13,Indice_RMR[[#All],[Mês]],0),4)/INDEX(Indice_RMR[#All],MATCH(Análises!$AK$12&Análises!$AL$12,Indice_RMR[[#All],[Mês]],0),4))-1)*100,"-"),"-") -> 10.16371644 | L21: =IFERROR(IF($AL$7=TRUE,((INDEX(Indice_RMR[#All],MATCH(Análises!$A$13&Análises!$B$13,Indice_RMR[[#All],[Mês]],0),4)/INDEX(Indice_RMR[#All],MATCH(Análises!$AK$13&Análises!$AL$13,Indice_RMR[[#All],[Mês]],0),4))-1)*100,"-"),"-") -> -12.42713466 | M21: =IFERROR(IF(AL7=TRUE,AO7,"-"),"-") -> -4.766569027 | N21: =IFERROR(IF(AL7=TRUE,AP7,"-"),"-") -> 3.148925776 | P21: =IFERROR(IF($AL$7=TRUE,((INDEX(Indice_RMR[#All],MATCH(Análises!$A$13&Análises!$B$13,Indice_RMR[[#All],[Mês]],0),5)/INDEX(Indice_RMR[#All],MATCH(Análises!$AK$12&Análises!$AL$12,Indice_RMR[[#All],[Mês]],0),5))-1)*100,"-"),"-") -> -5.094005467 | Q21: =IFERROR(IF($AL$7=TRUE,((INDEX(Indice_RMR[#All],MATCH(Análises!$A$13&Análises!$B$13,Indice_RMR[[#All],[Mês]],0),5)/INDEX(Indice_RMR[#All],MATCH(Análises!$AK$13&Análises!$AL$13,Indice_RMR[[#All],[Mês]],0),5))-1)*100,"-"),"-") -> 0.1725715436 | R21: =IFERROR(IF(AL7=TRUE,AQ7,"-"),"-") -> 5.550753844 | S21: =IFERROR(IF(AL7=TRUE,AR7,"-"),"-") -> 4.170566344 | AF21: 2021 | AK21: 223 | AL21: 4 | AM21: =INDEX(Serie_Encadeada[#All],$AK21,$AJ$3) -> 111.5682 | AN21: =INDEX(Serie_Encadeada[#All],$AK21,$AJ$4) -> 102.6951 | AO21: =INDEX(Serie_Encadeada[#All],$AK21,$AJ$5) -> 110.0185 | AP21: =INDEX(Serie_Encadeada[#All],$AK21,$AJ$6) -> 114.3418 | AQ21: =INDEX(Serie_Encadeada[#All],$AK21,$AJ$7) -> 103.9296 | AR21: =INDEX(Serie_Encadeada[#All],$AK21,$AJ$8) -> 83.8822 | AT21: 1 | AU21: =INDEX(Indice_faturamento[#All],MATCH($AT21&$AU$19,Indice_faturamento[[#All],[Mês]],0),$AI$3) -> 48.2258 | AV21: =INDEX(Indice_faturamento[#All],MATCH($AT21&$AV$2,Indice_faturamento[[#All],[Mês]],0),$AI$3) -> 50.9037 | AW21: =INDEX(Indice_Horas[#All],MATCH($AT21&$AU$19,Indice_Horas[[#All],[Mês]],0),$AI$3) -> 171.9348 | AX21: =INDEX(Indice_Horas[#All],MATCH($AT21&$AV$2,Indice_Horas[[#All],[Mês]],0),$AI$3) -> 156.286 | AY21: =INDEX(Indice_Emprego[#All],MATCH($AT21&$AU$19,Indice_Emprego[[#All],[Mês]],0),$AI$3) -> 157.4646 | AZ21: =INDEX(Indice_Emprego[#All],MATCH($AT21&$AV$2,Indice_Emprego[[#All],[Mês]],0),$AI$3) -> 159.756 | BA21: =INDEX(Indice_massa_salarial[#All],MATCH($AT21&$AU$19,Indice_massa_salarial[[#All],[Mês]],0),$AI$3) -> 153.7073 | BB21: =INDEX(Indice_massa_salarial[#All],MATCH($AT21&$AV$2,Indice_massa_salarial[[#All],[Mês]],0),$AI$3) -> 147.9693 | BC21: =INDEX(Indice_RMR[#All],MATCH($AT21&$AU$19,Indice_RMR[[#All],[Mês]],0),$AI$3) -> 97.6139 | BD21: =INDEX(Indice_RMR[#All],MATCH($AT21&$AV$2,Indice_RMR[[#All],[Mês]],0),$AI$3) -> 92.622 | BE21: =INDEX(Indice_UCI[#All],MATCH($AT21&$AU$19,Indice_UCI[[#All],[Mês]],0),$AI$3) -> 55.3487 | BF21: =INDEX(Indice_UCI[#All],MATCH($AT21&$AV$2,Indice_UCI[[#All],[Mês]],0),$AI$3) -> 80.0421
D22: =IFERROR(IF(AL8=TRUE,ROUNDUP(INDEX(Serie_dessazonalizada[#All],MATCH(Análises!$A$13&Análises!$B$13,Serie_dessazonalizada[[#All],[Mês]],0),$AJ8)-INDEX(Serie_dessazonalizada[#All],MATCH(Análises!$AK$12&Análises!$AL$12,Serie_dessazonalizada[[#All],[Mês]],0),$AJ8),2)&" p.p.","-"),"-") -> -0,22 p.p. | F22: =IFERROR(IF(AL8=TRUE,ROUNDUP(INDEX(Serie_Encadeada[#All],MATCH(Análises!$A$13&Análises!$B$13,Serie_Encadeada[[#All],[Mês]],0),$AJ8)-INDEX(Serie_Encadeada[#All],MATCH(Análises!$AK$12&Análises!$AL$12,Serie_Encadeada[[#All],[Mês]],0),$AJ8),2)&" p.p.","-"),"-") -> -0,88 p.p. | G22: =IFERROR(IF($AL8=TRUE,ROUNDUP(((INDEX(Serie_Encadeada[#All],MATCH(Análises!$A$13&Análises!$B$13,Serie_Encadeada[[#All],[Mês]],0),$AJ8)-INDEX(Serie_Encadeada[#All],MATCH(Análises!$AK$13&Análises!$AL$13,Serie_Encadeada[[#All],[Mês]],0),$AJ8))),2)&" p.p.","-"),"-") -> -3,4 p.p. | H22: =IFERROR(IF(AL8=TRUE,AM8,"-"),"-") -> -2,61 p.p. | I22: =IFERROR(IF(AL8=TRUE,AN8,"-"),"-") -> -0,11 p.p. | K22: =IFERROR(IF($AL$8=TRUE,ROUNDUP(INDEX(Indice_UCI[#All],MATCH(Análises!$A$13&Análises!$B$13,Indice_UCI[[#All],[Mês]],0),4)-INDEX(Indice_UCI[#All],MATCH(Análises!$AK$12&Análises!$AL$12,Indice_UCI[[#All],[Mês]],0),4),2)&" p.p.","-"),"-") -> 23,93 p.p. | L22: =IFERROR(IF($AL$8=TRUE,ROUNDUP(((INDEX(Indice_UCI[#All],MATCH(Análises!$A$13&Análises!$B$13,Indice_UCI[[#All],[Mês]],0),4)-INDEX(Indice_UCI[#All],MATCH(Análises!$AK$13&Análises!$AL$13,Indice_UCI[[#All],[Mês]],0),4))),2)&" p.p.","-"),"-") -> -3,48 p.p. | M22: =IFERROR(IF(AL8=TRUE,AO8,"-"),"-") -> -14,09 p.p. | N22: =IFERROR(IF(AL8=TRUE,AP8,"-"),"-") -> -5,1 p.p. | P22: =IFERROR(IF($AL$8=TRUE,ROUNDUP(INDEX(Indice_UCI[#All],MATCH(Análises!$A$13&Análises!$B$13,Indice_UCI[[#All],[Mês]],0),5)-INDEX(Indice_UCI[#All],MATCH(Análises!$AK$12&Análises!$AL$12,Indice_UCI[[#All],[Mês]],0),5),2)&" p.p.","-"),"-") -> -2,39 p.p. | Q22: =IFERROR(IF($AL$8=TRUE,ROUNDUP(((INDEX(Indice_UCI[#All],MATCH(Análises!$A$13&Análises!$B$13,Indice_UCI[[#All],[Mês]],0),5)-INDEX(Indice_UCI[#All],MATCH(Análises!$AK$13&Análises!$AL$13,Indice_UCI[[#All],[Mês]],0),5))),2)&" p.p.","-"),"-") -> -3,4 p.p. | R22: =IFERROR(IF(AL8=TRUE,AQ8,"-"),"-") -> -1,91 p.p. | S22: =IFERROR(IF(AL8=TRUE,AR8,"-"),"-") -> 0,21 p.p. | AF22: 2022 | AK22: 224 | AL22: 5 | AM22: =INDEX(Serie_Encadeada[#All],$AK22,$AJ$3) -> 110.1368 | AN22: =INDEX(Serie_Encadeada[#All],$AK22,$AJ$4) -> 103.4333 | AO22: =INDEX(Serie_Encadeada[#All],$AK22,$AJ$5) -> 109.6611 | AP22: =INDEX(Serie_Encadeada[#All],$AK22,$AJ$6) -> 112.6102 | AQ22: =INDEX(Serie_Encadeada[#All],$AK22,$AJ$7) -> 102.6894 | AR22: =INDEX(Serie_Encadeada[#All],$AK22,$AJ$8) -> 84.3222 | AT22: 2 | AU22: =IF($AT22 >$A$13,"-", INDEX(Indice_faturamento[#All],MATCH($AT22&$AU$19,Indice_faturamento[[#All],[Mês]],0),$AI$3)) -> 64.0863 | AV22: =IF($AT22 >$A$13,"-",INDEX(Indice_faturamento[#All],MATCH($AT22&$AV$2,Indice_faturamento[[#All],[Mês]],0),$AI$3)) -> 58.8568 | AW22: =IF($AT22 >$A$13,"-", INDEX(Indice_Horas[#All],MATCH($AT22&$AU$19,Indice_Horas[[#All],[Mês]],0),$AI$3)) -> 162.8504 | AX22: =IF($AT22 >$A$13,"-",INDEX(Indice_Horas[#All],MATCH($AT22&$AV$2,Indice_Horas[[#All],[Mês]],0),$AI$3)) -> 151.2996 | AY22: =IF($AT22 >$A$13,"-", INDEX(Indice_Emprego[#All],MATCH($AT22&$AU$19,Indice_Emprego[[#All],[Mês]],0),$AI$3)) -> 155.0313 | AZ22: =IF($AT22 >$A$13,"-",INDEX(Indice_Emprego[#All],MATCH($AT22&$AV$2,Indice_Emprego[[#All],[Mês]],0),$AI$3)) -> 155.4187 | BA22: =IF($AT22 >$A$13,"-", INDEX(Indice_massa_salarial[#All],MATCH($AT22&$AU$19,Indice_massa_salarial[[#All],[Mês]],0),$AI$3)) -> 166.713 | BB22: =IF($AT22 >$A$13,"-",INDEX(Indice_massa_salarial[#All],MATCH($AT22&$AV$2,Indice_massa_salarial[[#All],[Mês]],0),$AI$3)) -> 190.8464 | BC22: =IF($AT22 >$A$13,"-", INDEX(Indice_RMR[#All],MATCH($AT22&$AU$19,Indice_RMR[[#All],[Mês]],0),$AI$3)) -> 107.5351 | BD22: =IF($AT22 >$A$13,"-",INDEX(Indice_RMR[#All],MATCH($AT22&$AV$2,Indice_RMR[[#All],[Mês]],0),$AI$3)) -> 122.795 | BE22: =IF($AT22 >$A$13,"-", INDEX(Indice_UCI[#All],MATCH($AT22&$AU$19,Indice_UCI[[#All],[Mês]],0),$AI$3)) -> 79.2751 | BF22: =IF($AT22 >$A$13,"-",INDEX(Indice_UCI[#All],MATCH($AT22&$AV$2,Indice_UCI[[#All],[Mês]],0),$AI$3)) -> 82.7545
AF23: 2023 | AK23: 225 | AL23: 6 | AM23: =INDEX(Serie_Encadeada[#All],$AK23,$AJ$3) -> 109.0231 | AN23: =INDEX(Serie_Encadeada[#All],$AK23,$AJ$4) -> 103.3117 | AO23: =INDEX(Serie_Encadeada[#All],$AK23,$AJ$5) -> 110.2529 | AP23: =INDEX(Serie_Encadeada[#All],$AK23,$AJ$6) -> 110.0553 | AQ23: =INDEX(Serie_Encadeada[#All],$AK23,$AJ$7) -> 99.8207 | AR23: =INDEX(Serie_Encadeada[#All],$AK23,$AJ$8) -> 84.6343 | AT23: 3 | AU23: =IF($AT23 >$A$13,"-", INDEX(Indice_faturamento[#All],MATCH($AT23&$AU$19,Indice_faturamento[[#All],[Mês]],0),$AI$3)) -> - | AV23: =IF($AT23 >$A$13,"-",INDEX(Indice_faturamento[#All],MATCH($AT23&$AV$2,Indice_faturamento[[#All],[Mês]],0),$AI$3)) -> - | AW23: =IF($AT23 >$A$13,"-", INDEX(Indice_Horas[#All],MATCH($AT23&$AU$19,Indice_Horas[[#All],[Mês]],0),$AI$3)) -> - | AX23: =IF($AT23 >$A$13,"-",INDEX(Indice_Horas[#All],MATCH($AT23&$AV$2,Indice_Horas[[#All],[Mês]],0),$AI$3)) -> - | AY23: =IF($AT23 >$A$13,"-", INDEX(Indice_Emprego[#All],MATCH($AT23&$AU$19,Indice_Emprego[[#All],[Mês]],0),$AI$3)) -> - | AZ23: =IF($AT23 >$A$13,"-",INDEX(Indice_Emprego[#All],MATCH($AT23&$AV$2,Indice_Emprego[[#All],[Mês]],0),$AI$3)) -> - | BA23: =IF($AT23 >$A$13,"-", INDEX(Indice_massa_salarial[#All],MATCH($AT23&$AU$19,Indice_massa_salarial[[#All],[Mês]],0),$AI$3)) -> - | BB23: =IF($AT23 >$A$13,"-",INDEX(Indice_massa_salarial[#All],MATCH($AT23&$AV$2,Indice_massa_salarial[[#All],[Mês]],0),$AI$3)) -> - | BC23: =IF($AT23 >$A$13,"-", INDEX(Indice_RMR[#All],MATCH($AT23&$AU$19,Indice_RMR[[#All],[Mês]],0),$AI$3)) -> - | BD23: =IF($AT23 >$A$13,"-",INDEX(Indice_RMR[#All],MATCH($AT23&$AV$2,Indice_RMR[[#All],[Mês]],0),$AI$3)) -> - | BE23: =IF($AT23 >$A$13,"-", INDEX(Indice_UCI[#All],MATCH($AT23&$AU$19,Indice_UCI[[#All],[Mês]],0),$AI$3)) -> - | BF23: =IF($AT23 >$A$13,"-",INDEX(Indice_UCI[#All],MATCH($AT23&$AV$2,Indice_UCI[[#All],[Mês]],0),$AI$3)) -> -
A24: Acesse as séries: | AF24: 2024 | AK24: 226 | AL24: 7 | AM24: =INDEX(Serie_Encadeada[#All],$AK24,$AJ$3) -> 110.6686 | AN24: =INDEX(Serie_Encadeada[#All],$AK24,$AJ$4) -> 103.1499 | AO24: =INDEX(Serie_Encadeada[#All],$AK24,$AJ$5) -> 110.5656 | AP24: =INDEX(Serie_Encadeada[#All],$AK24,$AJ$6) -> 109.9975 | AQ24: =INDEX(Serie_Encadeada[#All],$AK24,$AJ$7) -> 99.4862 | AR24: =INDEX(Serie_Encadeada[#All],$AK24,$AJ$8) -> 83.105 | AT24: 4 | AU24: =IF($AT24 >$A$13,"-", INDEX(Indice_faturamento[#All],MATCH($AT24&$AU$19,Indice_faturamento[[#All],[Mês]],0),$AI$3)) -> - | AV24: =IF($AT24 >$A$13,"-",INDEX(Indice_faturamento[#All],MATCH($AT24&$AV$2,Indice_faturamento[[#All],[Mês]],0),$AI$3)) -> - | AW24: =IF($AT24 >$A$13,"-", INDEX(Indice_Horas[#All],MATCH($AT24&$AU$19,Indice_Horas[[#All],[Mês]],0),$AI$3)) -> - | AX24: =IF($AT24 >$A$13,"-",INDEX(Indice_Horas[#All],MATCH($AT24&$AV$2,Indice_Horas[[#All],[Mês]],0),$AI$3)) -> - | AY24: =IF($AT24 >$A$13,"-", INDEX(Indice_Emprego[#All],MATCH($AT24&$AU$19,Indice_Emprego[[#All],[Mês]],0),$AI$3)) -> - | AZ24: =IF($AT24 >$A$13,"-",INDEX(Indice_Emprego[#All],MATCH($AT24&$AV$2,Indice_Emprego[[#All],[Mês]],0),$AI$3)) -> - | BA24: =IF($AT24 >$A$13,"-", INDEX(Indice_massa_salarial[#All],MATCH($AT24&$AU$19,Indice_massa_salarial[[#All],[Mês]],0),$AI$3)) -> - | BB24: =IF($AT24 >$A$13,"-",INDEX(Indice_massa_salarial[#All],MATCH($AT24&$AV$2,Indice_massa_salarial[[#All],[Mês]],0),$AI$3)) -> - | BC24: =IF($AT24 >$A$13,"-", INDEX(Indice_RMR[#All],MATCH($AT24&$AU$19,Indice_RMR[[#All],[Mês]],0),$AI$3)) -> - | BD24: =IF($AT24 >$A$13,"-",INDEX(Indice_RMR[#All],MATCH($AT24&$AV$2,Indice_RMR[[#All],[Mês]],0),$AI$3)) -> - | BE24: =IF($AT24 >$A$13,"-", INDEX(Indice_UCI[#All],MATCH($AT24&$AU$19,Indice_UCI[[#All],[Mês]],0),$AI$3)) -> - | BF24: =IF($AT24 >$A$13,"-",INDEX(Indice_UCI[#All],MATCH($AT24&$AV$2,Indice_UCI[[#All],[Mês]],0),$AI$3)) -> -
AF25: 2025 | AK25: 227 | AL25: 8 | AM25: =INDEX(Serie_Encadeada[#All],$AK25,$AJ$3) -> 98.4987 | AN25: =INDEX(Serie_Encadeada[#All],$AK25,$AJ$4) -> 101.262 | AO25: =INDEX(Serie_Encadeada[#All],$AK25,$AJ$5) -> 110.0776 | AP25: =INDEX(Serie_Encadeada[#All],$AK25,$AJ$6) -> 115.4184 | AQ25: =INDEX(Serie_Encadeada[#All],$AK25,$AJ$7) -> 104.8519 | AR25: =INDEX(Serie_Encadeada[#All],$AK25,$AJ$8) -> 82.3308 | AT25: 5 | AU25: =IF($AT25 >$A$13,"-", INDEX(Indice_faturamento[#All],MATCH($AT25&$AU$19,Indice_faturamento[[#All],[Mês]],0),$AI$3)) -> - | AV25: =IF($AT25 >$A$13,"-",INDEX(Indice_faturamento[#All],MATCH($AT25&$AV$2,Indice_faturamento[[#All],[Mês]],0),$AI$3)) -> - | AW25: =IF($AT25 >$A$13,"-", INDEX(Indice_Horas[#All],MATCH($AT25&$AU$19,Indice_Horas[[#All],[Mês]],0),$AI$3)) -> - | AX25: =IF($AT25 >$A$13,"-",INDEX(Indice_Horas[#All],MATCH($AT25&$AV$2,Indice_Horas[[#All],[Mês]],0),$AI$3)) -> - | AY25: =IF($AT25 >$A$13,"-", INDEX(Indice_Emprego[#All],MATCH($AT25&$AU$19,Indice_Emprego[[#All],[Mês]],0),$AI$3)) -> - | AZ25: =IF($AT25 >$A$13,"-",INDEX(Indice_Emprego[#All],MATCH($AT25&$AV$2,Indice_Emprego[[#All],[Mês]],0),$AI$3)) -> - | BA25: =IF($AT25 >$A$13,"-", INDEX(Indice_massa_salarial[#All],MATCH($AT25&$AU$19,Indice_massa_salarial[[#All],[Mês]],0),$AI$3)) -> - | BB25: =IF($AT25 >$A$13,"-",INDEX(Indice_massa_salarial[#All],MATCH($AT25&$AV$2,Indice_massa_salarial[[#All],[Mês]],0),$AI$3)) -> - | BC25: =IF($AT25 >$A$13,"-", INDEX(Indice_RMR[#All],MATCH($AT25&$AU$19,Indice_RMR[[#All],[Mês]],0),$AI$3)) -> - | BD25: =IF($AT25 >$A$13,"-",INDEX(Indice_RMR[#All],MATCH($AT25&$AV$2,Indice_RMR[[#All],[Mês]],0),$AI$3)) -> - | BE25: =IF($AT25 >$A$13,"-", INDEX(Indice_UCI[#All],MATCH($AT25&$AU$19,Indice_UCI[[#All],[Mês]],0),$AI$3)) -> - | BF25: =IF($AT25 >$A$13,"-",INDEX(Indice_UCI[#All],MATCH($AT25&$AV$2,Indice_UCI[[#All],[Mês]],0),$AI$3)) -> -
AF26: 2026 | AK26: 228 | AL26: 9 | AM26: =INDEX(Serie_Encadeada[#All],$AK26,$AJ$3) -> 102.4776 | AN26: =INDEX(Serie_Encadeada[#All],$AK26,$AJ$4) -> 101.7671 | AO26: =INDEX(Serie_Encadeada[#All],$AK26,$AJ$5) -> 109.5861 | AP26: =INDEX(Serie_Encadeada[#All],$AK26,$AJ$6) -> 128.5656 | AQ26: =INDEX(Serie_Encadeada[#All],$AK26,$AJ$7) -> 117.3193 | AR26: =INDEX(Serie_Encadeada[#All],$AK26,$AJ$8) -> 82.0853 | AT26: 6 | AU26: =IF($AT26 >$A$13,"-", INDEX(Indice_faturamento[#All],MATCH($AT26&$AU$19,Indice_faturamento[[#All],[Mês]],0),$AI$3)) -> - | AV26: =IF($AT26 >$A$13,"-",INDEX(Indice_faturamento[#All],MATCH($AT26&$AV$2,Indice_faturamento[[#All],[Mês]],0),$AI$3)) -> - | AW26: =IF($AT26 >$A$13,"-", INDEX(Indice_Horas[#All],MATCH($AT26&$AU$19,Indice_Horas[[#All],[Mês]],0),$AI$3)) -> - | AX26: =IF($AT26 >$A$13,"-",INDEX(Indice_Horas[#All],MATCH($AT26&$AV$2,Indice_Horas[[#All],[Mês]],0),$AI$3)) -> - | AY26: =IF($AT26 >$A$13,"-", INDEX(Indice_Emprego[#All],MATCH($AT26&$AU$19,Indice_Emprego[[#All],[Mês]],0),$AI$3)) -> - | AZ26: =IF($AT26 >$A$13,"-",INDEX(Indice_Emprego[#All],MATCH($AT26&$AV$2,Indice_Emprego[[#All],[Mês]],0),$AI$3)) -> - | BA26: =IF($AT26 >$A$13,"-", INDEX(Indice_massa_salarial[#All],MATCH($AT26&$AU$19,Indice_massa_salarial[[#All],[Mês]],0),$AI$3)) -> - | BB26: =IF($AT26 >$A$13,"-",INDEX(Indice_massa_salarial[#All],MATCH($AT26&$AV$2,Indice_massa_salarial[[#All],[Mês]],0),$AI$3)) -> - | BC26: =IF($AT26 >$A$13,"-", INDEX(Indice_RMR[#All],MATCH($AT26&$AU$19,Indice_RMR[[#All],[Mês]],0),$AI$3)) -> - | BD26: =IF($AT26 >$A$13,"-",INDEX(Indice_RMR[#All],MATCH($AT26&$AV$2,Indice_RMR[[#All],[Mês]],0),$AI$3)) -> - | BE26: =IF($AT26 >$A$13,"-", INDEX(Indice_UCI[#All],MATCH($AT26&$AU$19,Indice_UCI[[#All],[Mês]],0),$AI$3)) -> - | BF26: =IF($AT26 >$A$13,"-",INDEX(Indice_UCI[#All],MATCH($AT26&$AV$2,Indice_UCI[[#All],[Mês]],0),$AI$3)) -> -
AF27: 2027 | AK27: 229 | AL27: 10 | AM27: =INDEX(Serie_Encadeada[#All],$AK27,$AJ$3) -> 107.5406 | AN27: =INDEX(Serie_Encadeada[#All],$AK27,$AJ$4) -> 98.0519 | AO27: =INDEX(Serie_Encadeada[#All],$AK27,$AJ$5) -> 108.8426 | AP27: =INDEX(Serie_Encadeada[#All],$AK27,$AJ$6) -> 165.105 | AQ27: =INDEX(Serie_Encadeada[#All],$AK27,$AJ$7) -> 151.6915 | AR27: =INDEX(Serie_Encadeada[#All],$AK27,$AJ$8) -> 76.9938 | AT27: 7 | AU27: =IF($AT27 >$A$13,"-", INDEX(Indice_faturamento[#All],MATCH($AT27&$AU$19,Indice_faturamento[[#All],[Mês]],0),$AI$3)) -> - | AV27: =IF($AT27 >$A$13,"-",INDEX(Indice_faturamento[#All],MATCH($AT27&$AV$2,Indice_faturamento[[#All],[Mês]],0),$AI$3)) -> - | AW27: =IF($AT27 >$A$13,"-", INDEX(Indice_Horas[#All],MATCH($AT27&$AU$19,Indice_Horas[[#All],[Mês]],0),$AI$3)) -> - | AX27: =IF($AT27 >$A$13,"-",INDEX(Indice_Horas[#All],MATCH($AT27&$AV$2,Indice_Horas[[#All],[Mês]],0),$AI$3)) -> - | AY27: =IF($AT27 >$A$13,"-", INDEX(Indice_Emprego[#All],MATCH($AT27&$AU$19,Indice_Emprego[[#All],[Mês]],0),$AI$3)) -> - | AZ27: =IF($AT27 >$A$13,"-",INDEX(Indice_Emprego[#All],MATCH($AT27&$AV$2,Indice_Emprego[[#All],[Mês]],0),$AI$3)) -> - | BA27: =IF($AT27 >$A$13,"-", INDEX(Indice_massa_salarial[#All],MATCH($AT27&$AU$19,Indice_massa_salarial[[#All],[Mês]],0),$AI$3)) -> - | BB27: =IF($AT27 >$A$13,"-",INDEX(Indice_massa_salarial[#All],MATCH($AT27&$AV$2,Indice_massa_salarial[[#All],[Mês]],0),$AI$3)) -> - | BC27: =IF($AT27 >$A$13,"-", INDEX(Indice_RMR[#All],MATCH($AT27&$AU$19,Indice_RMR[[#All],[Mês]],0),$AI$3)) -> - | BD27: =IF($AT27 >$A$13,"-",INDEX(Indice_RMR[#All],MATCH($AT27&$AV$2,Indice_RMR[[#All],[Mês]],0),$AI$3)) -> - | BE27: =IF($AT27 >$A$13,"-", INDEX(Indice_UCI[#All],MATCH($AT27&$AU$19,Indice_UCI[[#All],[Mês]],0),$AI$3)) -> - | BF27: =IF($AT27 >$A$13,"-",INDEX(Indice_UCI[#All],MATCH($AT27&$AV$2,Indice_UCI[[#All],[Mês]],0),$AI$3)) -> -
A28: Dados Setoriais | AF28: 2028 | AK28: 230 | AL28: 11 | AM28: =INDEX(Serie_Encadeada[#All],$AK28,$AJ$3) -> 89.6161 | AN28: =INDEX(Serie_Encadeada[#All],$AK28,$AJ$4) -> 96.6082 | AO28: =INDEX(Serie_Encadeada[#All],$AK28,$AJ$5) -> 109.6654 | AP28: =INDEX(Serie_Encadeada[#All],$AK28,$AJ$6) -> 118.3335 | AQ28: =INDEX(Serie_Encadeada[#All],$AK28,$AJ$7) -> 107.9041 | AR28: =INDEX(Serie_Encadeada[#All],$AK28,$AJ$8) -> 81.8199 | AT28: 8 | AU28: =IF($AT28 >$A$13,"-", INDEX(Indice_faturamento[#All],MATCH($AT28&$AU$19,Indice_faturamento[[#All],[Mês]],0),$AI$3)) -> - | AV28: =IF($AT28 >$A$13,"-",INDEX(Indice_faturamento[#All],MATCH($AT28&$AV$2,Indice_faturamento[[#All],[Mês]],0),$AI$3)) -> - | AW28: =IF($AT28 >$A$13,"-", INDEX(Indice_Horas[#All],MATCH($AT28&$AU$19,Indice_Horas[[#All],[Mês]],0),$AI$3)) -> - | AX28: =IF($AT28 >$A$13,"-",INDEX(Indice_Horas[#All],MATCH($AT28&$AV$2,Indice_Horas[[#All],[Mês]],0),$AI$3)) -> - | AY28: =IF($AT28 >$A$13,"-", INDEX(Indice_Emprego[#All],MATCH($AT28&$AU$19,Indice_Emprego[[#All],[Mês]],0),$AI$3)) -> - | AZ28: =IF($AT28 >$A$13,"-",INDEX(Indice_Emprego[#All],MATCH($AT28&$AV$2,Indice_Emprego[[#All],[Mês]],0),$AI$3)) -> - | BA28: =IF($AT28 >$A$13,"-", INDEX(Indice_massa_salarial[#All],MATCH($AT28&$AU$19,Indice_massa_salarial[[#All],[Mês]],0),$AI$3)) -> - | BB28: =IF($AT28 >$A$13,"-",INDEX(Indice_massa_salarial[#All],MATCH($AT28&$AV$2,Indice_massa_salarial[[#All],[Mês]],0),$AI$3)) -> - | BC28: =IF($AT28 >$A$13,"-", INDEX(Indice_RMR[#All],MATCH($AT28&$AU$19,Indice_RMR[[#All],[Mês]],0),$AI$3)) -> - | BD28: =IF($AT28 >$A$13,"-",INDEX(Indice_RMR[#All],MATCH($AT28&$AV$2,Indice_RMR[[#All],[Mês]],0),$AI$3)) -> - | BE28: =IF($AT28 >$A$13,"-", INDEX(Indice_UCI[#All],MATCH($AT28&$AU$19,Indice_UCI[[#All],[Mês]],0),$AI$3)) -> - | BF28: =IF($AT28 >$A$13,"-",INDEX(Indice_UCI[#All],MATCH($AT28&$AV$2,Indice_UCI[[#All],[Mês]],0),$AI$3)) -> -
AF29: 2029 | AK29: 231 | AL29: 12 | AM29: =INDEX(Serie_Encadeada[#All],$AK29,$AJ$3) -> 83.9493 | AN29: =INDEX(Serie_Encadeada[#All],$AK29,$AJ$4) -> 99.3001 | AO29: =INDEX(Serie_Encadeada[#All],$AK29,$AJ$5) -> 109.1477 | AP29: =INDEX(Serie_Encadeada[#All],$AK29,$AJ$6) -> 127.3092 | AQ29: =INDEX(Serie_Encadeada[#All],$AK29,$AJ$7) -> 116.6394 | AR29: =INDEX(Serie_Encadeada[#All],$AK29,$AJ$8) -> 82.5376 | AT29: 9 | AU29: =IF($AT29 >$A$13,"-", INDEX(Indice_faturamento[#All],MATCH($AT29&$AU$19,Indice_faturamento[[#All],[Mês]],0),$AI$3)) -> - | AV29: =IF($AT29 >$A$13,"-",INDEX(Indice_faturamento[#All],MATCH($AT29&$AV$2,Indice_faturamento[[#All],[Mês]],0),$AI$3)) -> - | AW29: =IF($AT29 >$A$13,"-", INDEX(Indice_Horas[#All],MATCH($AT29&$AU$19,Indice_Horas[[#All],[Mês]],0),$AI$3)) -> - | AX29: =IF($AT29 >$A$13,"-",INDEX(Indice_Horas[#All],MATCH($AT29&$AV$2,Indice_Horas[[#All],[Mês]],0),$AI$3)) -> - | AY29: =IF($AT29 >$A$13,"-", INDEX(Indice_Emprego[#All],MATCH($AT29&$AU$19,Indice_Emprego[[#All],[Mês]],0),$AI$3)) -> - | AZ29: =IF($AT29 >$A$13,"-",INDEX(Indice_Emprego[#All],MATCH($AT29&$AV$2,Indice_Emprego[[#All],[Mês]],0),$AI$3)) -> - | BA29: =IF($AT29 >$A$13,"-", INDEX(Indice_massa_salarial[#All],MATCH($AT29&$AU$19,Indice_massa_salarial[[#All],[Mês]],0),$AI$3)) -> - | BB29: =IF($AT29 >$A$13,"-",INDEX(Indice_massa_salarial[#All],MATCH($AT29&$AV$2,Indice_massa_salarial[[#All],[Mês]],0),$AI$3)) -> - | BC29: =IF($AT29 >$A$13,"-", INDEX(Indice_RMR[#All],MATCH($AT29&$AU$19,Indice_RMR[[#All],[Mês]],0),$AI$3)) -> - | BD29: =IF($AT29 >$A$13,"-",INDEX(Indice_RMR[#All],MATCH($AT29&$AV$2,Indice_RMR[[#All],[Mês]],0),$AI$3)) -> - | BE29: =IF($AT29 >$A$13,"-", INDEX(Indice_UCI[#All],MATCH($AT29&$AU$19,Indice_UCI[[#All],[Mês]],0),$AI$3)) -> - | BF29: =IF($AT29 >$A$13,"-",INDEX(Indice_UCI[#All],MATCH($AT29&$AV$2,Indice_UCI[[#All],[Mês]],0),$AI$3)) -> -
AK30: 232 | AL30: 13 | AM30: =INDEX(Serie_Encadeada[#All],$AK30,$AJ$3) -> 110.4605 | AN30: =INDEX(Serie_Encadeada[#All],$AK30,$AJ$4) -> 107.7469 | AO30: =INDEX(Serie_Encadeada[#All],$AK30,$AJ$5) -> 109.2676 | AP30: =INDEX(Serie_Encadeada[#All],$AK30,$AJ$6) -> 126.3048 | AQ30: =INDEX(Serie_Encadeada[#All],$AK30,$AJ$7) -> 115.5922 | AR30: =INDEX(Serie_Encadeada[#All],$AK30,$AJ$8) -> 84.5897 | AT30: 10 | AU30: =IF($AT30 >$A$13,"-", INDEX(Indice_faturamento[#All],MATCH($AT30&$AU$19,Indice_faturamento[[#All],[Mês]],0),$AI$3)) -> - | AV30: =IF($AT30 >$A$13,"-",INDEX(Indice_faturamento[#All],MATCH($AT30&$AV$2,Indice_faturamento[[#All],[Mês]],0),$AI$3)) -> - | AW30: =IF($AT30 >$A$13,"-", INDEX(Indice_Horas[#All],MATCH($AT30&$AU$19,Indice_Horas[[#All],[Mês]],0),$AI$3)) -> - | AX30: =IF($AT30 >$A$13,"-",INDEX(Indice_Horas[#All],MATCH($AT30&$AV$2,Indice_Horas[[#All],[Mês]],0),$AI$3)) -> - | AY30: =IF($AT30 >$A$13,"-", INDEX(Indice_Emprego[#All],MATCH($AT30&$AU$19,Indice_Emprego[[#All],[Mês]],0),$AI$3)) -> - | AZ30: =IF($AT30 >$A$13,"-",INDEX(Indice_Emprego[#All],MATCH($AT30&$AV$2,Indice_Emprego[[#All],[Mês]],0),$AI$3)) -> - | BA30: =IF($AT30 >$A$13,"-", INDEX(Indice_massa_salarial[#All],MATCH($AT30&$AU$19,Indice_massa_salarial[[#All],[Mês]],0),$AI$3)) -> - | BB30: =IF($AT30 >$A$13,"-",INDEX(Indice_massa_salarial[#All],MATCH($AT30&$AV$2,Indice_massa_salarial[[#All],[Mês]],0),$AI$3)) -> - | BC30: =IF($AT30 >$A$13,"-", INDEX(Indice_RMR[#All],MATCH($AT30&$AU$19,Indice_RMR[[#All],[Mês]],0),$AI$3)) -> - | BD30: =IF($AT30 >$A$13,"-",INDEX(Indice_RMR[#All],MATCH($AT30&$AV$2,Indice_RMR[[#All],[Mês]],0),$AI$3)) -> - | BE30: =IF($AT30 >$A$13,"-", INDEX(Indice_UCI[#All],MATCH($AT30&$AU$19,Indice_UCI[[#All],[Mês]],0),$AI$3)) -> - | BF30: =IF($AT30 >$A$13,"-",INDEX(Indice_UCI[#All],MATCH($AT30&$AV$2,Indice_UCI[[#All],[Mês]],0),$AI$3)) -> -
AK31: 233 | AL31: 14 | AM31: =INDEX(Serie_Encadeada[#All],$AK31,$AJ$3) -> 99.6407 | AN31: =INDEX(Serie_Encadeada[#All],$AK31,$AJ$4) -> 100.9112 | AO31: =INDEX(Serie_Encadeada[#All],$AK31,$AJ$5) -> 108.4364 | AP31: =INDEX(Serie_Encadeada[#All],$AK31,$AJ$6) -> 113.4871 | AQ31: =INDEX(Serie_Encadeada[#All],$AK31,$AJ$7) -> 104.6577 | AR31: =INDEX(Serie_Encadeada[#All],$AK31,$AJ$8) -> 83.4427 | AT31: 11 | AU31: =IF($AT31 >$A$13,"-", INDEX(Indice_faturamento[#All],MATCH($AT31&$AU$19,Indice_faturamento[[#All],[Mês]],0),$AI$3)) -> - | AV31: =IF($AT31 >$A$13,"-",INDEX(Indice_faturamento[#All],MATCH($AT31&$AV$2,Indice_faturamento[[#All],[Mês]],0),$AI$3)) -> - | AW31: =IF($AT31 >$A$13,"-", INDEX(Indice_Horas[#All],MATCH($AT31&$AU$19,Indice_Horas[[#All],[Mês]],0),$AI$3)) -> - | AX31: =IF($AT31 >$A$13,"-",INDEX(Indice_Horas[#All],MATCH($AT31&$AV$2,Indice_Horas[[#All],[Mês]],0),$AI$3)) -> - | AY31: =IF($AT31 >$A$13,"-", INDEX(Indice_Emprego[#All],MATCH($AT31&$AU$19,Indice_Emprego[[#All],[Mês]],0),$AI$3)) -> - | AZ31: =IF($AT31 >$A$13,"-",INDEX(Indice_Emprego[#All],MATCH($AT31&$AV$2,Indice_Emprego[[#All],[Mês]],0),$AI$3)) -> - | BA31: =IF($AT31 >$A$13,"-", INDEX(Indice_massa_salarial[#All],MATCH($AT31&$AU$19,Indice_massa_salarial[[#All],[Mês]],0),$AI$3)) -> - | BB31: =IF($AT31 >$A$13,"-",INDEX(Indice_massa_salarial[#All],MATCH($AT31&$AV$2,Indice_massa_salarial[[#All],[Mês]],0),$AI$3)) -> - | BC31: =IF($AT31 >$A$13,"-", INDEX(Indice_RMR[#All],MATCH($AT31&$AU$19,Indice_RMR[[#All],[Mês]],0),$AI$3)) -> - | BD31: =IF($AT31 >$A$13,"-",INDEX(Indice_RMR[#All],MATCH($AT31&$AV$2,Indice_RMR[[#All],[Mês]],0),$AI$3)) -> - | BE31: =IF($AT31 >$A$13,"-", INDEX(Indice_UCI[#All],MATCH($AT31&$AU$19,Indice_UCI[[#All],[Mês]],0),$AI$3)) -> - | BF31: =IF($AT31 >$A$13,"-",INDEX(Indice_UCI[#All],MATCH($AT31&$AV$2,Indice_UCI[[#All],[Mês]],0),$AI$3)) -> -
AK32: 234 | AL32: 15 | AM32: =INDEX(Serie_Encadeada[#All],$AK32,$AJ$3) -> 112.1824 | AN32: =INDEX(Serie_Encadeada[#All],$AK32,$AJ$4) -> 102.7585 | AO32: =INDEX(Serie_Encadeada[#All],$AK32,$AJ$5) -> 108.894 | AP32: =INDEX(Serie_Encadeada[#All],$AK32,$AJ$6) -> 113.1923 | AQ32: =INDEX(Serie_Encadeada[#All],$AK32,$AJ$7) -> 103.9472 | AR32: =INDEX(Serie_Encadeada[#All],$AK32,$AJ$8) -> 84.2576 | AT32: 12 | AU32: =IF($AT32 >$A$13,"-", INDEX(Indice_faturamento[#All],MATCH($AT32&$AU$19,Indice_faturamento[[#All],[Mês]],0),$AI$3)) -> - | AV32: =IF($AT32 >$A$13,"-",INDEX(Indice_faturamento[#All],MATCH($AT32&$AV$2,Indice_faturamento[[#All],[Mês]],0),$AI$3)) -> - | AW32: =IF($AT32 >$A$13,"-", INDEX(Indice_Horas[#All],MATCH($AT32&$AU$19,Indice_Horas[[#All],[Mês]],0),$AI$3)) -> - | AX32: =IF($AT32 >$A$13,"-",INDEX(Indice_Horas[#All],MATCH($AT32&$AV$2,Indice_Horas[[#All],[Mês]],0),$AI$3)) -> - | AY32: =IF($AT32 >$A$13,"-", INDEX(Indice_Emprego[#All],MATCH($AT32&$AU$19,Indice_Emprego[[#All],[Mês]],0),$AI$3)) -> - | AZ32: =IF($AT32 >$A$13,"-",INDEX(Indice_Emprego[#All],MATCH($AT32&$AV$2,Indice_Emprego[[#All],[Mês]],0),$AI$3)) -> - | BA32: =IF($AT32 >$A$13,"-", INDEX(Indice_massa_salarial[#All],MATCH($AT32&$AU$19,Indice_massa_salarial[[#All],[Mês]],0),$AI$3)) -> - | BB32: =IF($AT32 >$A$13,"-",INDEX(Indice_massa_salarial[#All],MATCH($AT32&$AV$2,Indice_massa_salarial[[#All],[Mês]],0),$AI$3)) -> - | BC32: =IF($AT32 >$A$13,"-", INDEX(Indice_RMR[#All],MATCH($AT32&$AU$19,Indice_RMR[[#All],[Mês]],0),$AI$3)) -> - | BD32: =IF($AT32 >$A$13,"-",INDEX(Indice_RMR[#All],MATCH($AT32&$AV$2,Indice_RMR[[#All],[Mês]],0),$AI$3)) -> - | BE32: =IF($AT32 >$A$13,"-", INDEX(Indice_UCI[#All],MATCH($AT32&$AU$19,Indice_UCI[[#All],[Mês]],0),$AI$3)) -> - | BF32: =IF($AT32 >$A$13,"-",INDEX(Indice_UCI[#All],MATCH($AT32&$AV$2,Indice_UCI[[#All],[Mês]],0),$AI$3)) -> -
AK33: 235 | AL33: 16 | AM33: =INDEX(Serie_Encadeada[#All],$AK33,$AJ$3) -> 113.7266 | AN33: =INDEX(Serie_Encadeada[#All],$AK33,$AJ$4) -> 100.028 | AO33: =INDEX(Serie_Encadeada[#All],$AK33,$AJ$5) -> 110.0987 | AP33: =INDEX(Serie_Encadeada[#All],$AK33,$AJ$6) -> 113.8183 | AQ33: =INDEX(Serie_Encadeada[#All],$AK33,$AJ$7) -> 103.3784 | AR33: =INDEX(Serie_Encadeada[#All],$AK33,$AJ$8) -> 83.4761 | AT33: média | AU33: =AVERAGE(AU21:AU32) -> 56.15605 | AV33: 54.88025 | AW33: 167.3926 | AX33: 153.7928 | AY33: 156.24795 | AZ33: 157.58735 | BA33: 160.21015 | BB33: 169.40785 | BC33: 102.5745 | BD33: 107.7085 | BE33: 67.3119 | BF33: 81.3983
AK34: 236 | AL34: 17 | AM34: =INDEX(Serie_Encadeada[#All],$AK34,$AJ$3) -> 111.9883 | AN34: =INDEX(Serie_Encadeada[#All],$AK34,$AJ$4) -> 102.8721 | AO34: =INDEX(Serie_Encadeada[#All],$AK34,$AJ$5) -> 110.0336 | AP34: =INDEX(Serie_Encadeada[#All],$AK34,$AJ$6) -> 120.4098 | AQ34: =INDEX(Serie_Encadeada[#All],$AK34,$AJ$7) -> 109.43 | AR34: =INDEX(Serie_Encadeada[#All],$AK34,$AJ$8) -> 83.5191
AK35: 237 | AL35: 18 | AM35: =INDEX(Serie_Encadeada[#All],$AK35,$AJ$3) -> 122.5189 | AN35: =INDEX(Serie_Encadeada[#All],$AK35,$AJ$4) -> 110.3783 | AO35: =INDEX(Serie_Encadeada[#All],$AK35,$AJ$5) -> 110.0498 | AP35: =INDEX(Serie_Encadeada[#All],$AK35,$AJ$6) -> 116.6901 | AQ35: =INDEX(Serie_Encadeada[#All],$AK35,$AJ$7) -> 106.0339 | AR35: =INDEX(Serie_Encadeada[#All],$AK35,$AJ$8) -> 83.6664
AK36: 238 | AL36: 19 | AM36: =INDEX(Serie_Encadeada[#All],$AK36,$AJ$3) -> 115.3086 | AN36: =INDEX(Serie_Encadeada[#All],$AK36,$AJ$4) -> 103.5324 | AO36: =INDEX(Serie_Encadeada[#All],$AK36,$AJ$5) -> 110.0532 | AP36: =INDEX(Serie_Encadeada[#All],$AK36,$AJ$6) -> 118.6176 | AQ36: =INDEX(Serie_Encadeada[#All],$AK36,$AJ$7) -> 107.7821 | AR36: =INDEX(Serie_Encadeada[#All],$AK36,$AJ$8) -> 82.6708 | AU36: Transformação
AK37: 239 | AL37: 20 | AM37: =INDEX(Serie_Encadeada[#All],$AK37,$AJ$3) -> 114.0226 | AN37: =INDEX(Serie_Encadeada[#All],$AK37,$AJ$4) -> 101.9833 | AO37: =INDEX(Serie_Encadeada[#All],$AK37,$AJ$5) -> 109.7235 | AP37: =INDEX(Serie_Encadeada[#All],$AK37,$AJ$6) -> 119.0728 | AQ37: =INDEX(Serie_Encadeada[#All],$AK37,$AJ$7) -> 108.5207 | AR37: =INDEX(Serie_Encadeada[#All],$AK37,$AJ$8) -> 82.577 | AU37: =$B$13 -> 2023 | AV37: =$AL$13 -> 2022 | AW37: =$B$13 -> 2023 | AX37: =$AL$13 -> 2022 | AY37: =$B$13 -> 2023 | AZ37: =$AL$13 -> 2022 | BA37: =$B$13 -> 2023 | BB37: =$AL$13 -> 2022 | BC37: =$B$13 -> 2023 | BD37: =$AL$13 -> 2022 | BE37: =$B$13 -> 2023 | BF37: =$AL$13 -> 2022
AK38: 240 | AL38: 21 | AM38: =INDEX(Serie_Encadeada[#All],$AK38,$AJ$3) -> 110.4702 | AN38: =INDEX(Serie_Encadeada[#All],$AK38,$AJ$4) -> 101.0367 | AO38: =INDEX(Serie_Encadeada[#All],$AK38,$AJ$5) -> 109.994 | AP38: =INDEX(Serie_Encadeada[#All],$AK38,$AJ$6) -> 137.9807 | AQ38: =INDEX(Serie_Encadeada[#All],$AK38,$AJ$7) -> 125.4438 | AR38: =INDEX(Serie_Encadeada[#All],$AK38,$AJ$8) -> 83.1883 | AT38: Mês/Ano | AU38: Faturamento | AW38: Horas Trabalhadas | AY38: Emprego | BA38: Massa salarial | BC38: RMR | BE38: UCI
AK39: 241 | AL39: 22 | AM39: =INDEX(Serie_Encadeada[#All],$AK39,$AJ$3) -> 106.8042 | AN39: =INDEX(Serie_Encadeada[#All],$AK39,$AJ$4) -> 96.42 | AO39: =INDEX(Serie_Encadeada[#All],$AK39,$AJ$5) -> 109.6312 | AP39: =INDEX(Serie_Encadeada[#All],$AK39,$AJ$6) -> 180.2693 | AQ39: =INDEX(Serie_Encadeada[#All],$AK39,$AJ$7) -> 164.4324 | AR39: =INDEX(Serie_Encadeada[#All],$AK39,$AJ$8) -> 79.9485 | AT39: 1 | AU39: =INDEX(Indice_faturamento[#All],MATCH($AT39&$AU$19,Indice_faturamento[[#All],[Mês]],0),$AH$3) -> 102.9204 | AV39: =INDEX(Indice_faturamento[#All],MATCH($AT39&$AV$2,Indice_faturamento[[#All],[Mês]],0),$AH$3) -> 93.9992 | AW39: =INDEX(Indice_Horas[#All],MATCH($AT39&$AU$19,Indice_Horas[[#All],[Mês]],0),$AH$3) -> 94.6902 | AX39: =INDEX(Indice_Horas[#All],MATCH($AT39&$AV$2,Indice_Horas[[#All],[Mês]],0),$AH$3) -> 92.9767 | AY39: =INDEX(Indice_Emprego[#All],MATCH($AT39&$AU$19,Indice_Emprego[[#All],[Mês]],0),$AH$3) -> 106.6993 | AZ39: =INDEX(Indice_Emprego[#All],MATCH($AT39&$AV$2,Indice_Emprego[[#All],[Mês]],0),$AH$3) -> 106.6741 | BA39: =INDEX(Indice_massa_salarial[#All],MATCH($AT39&$AU$19,Indice_massa_salarial[[#All],[Mês]],0),$AH$3) -> 128.6276 | BB39: =INDEX(Indice_massa_salarial[#All],MATCH($AT39&$AV$2,Indice_massa_salarial[[#All],[Mês]],0),$AH$3) -> 115.6265 | BC39: =INDEX(Indice_RMR[#All],MATCH($AT39&$AU$19,Indice_RMR[[#All],[Mês]],0),$AH$3) -> 120.5515 | BD39: =INDEX(Indice_RMR[#All],MATCH($AT39&$AV$2,Indice_RMR[[#All],[Mês]],0),$AH$3) -> 108.3923 | BE39: =INDEX(Indice_UCI[#All],MATCH($AT39&$AU$19,Indice_UCI[[#All],[Mês]],0),$AH$3) -> 81.5127 | BF39: =INDEX(Indice_UCI[#All],MATCH($AT39&$AV$2,Indice_UCI[[#All],[Mês]],0),$AH$3) -> 81.9278
AK40: 242 | AL40: 23 | AM40: =INDEX(Serie_Encadeada[#All],$AK40,$AJ$3) -> 97.3576 | AN40: =INDEX(Serie_Encadeada[#All],$AK40,$AJ$4) -> 99.1211 | AO40: =INDEX(Serie_Encadeada[#All],$AK40,$AJ$5) -> 109.56 | AP40: =INDEX(Serie_Encadeada[#All],$AK40,$AJ$6) -> 130.7268 | AQ40: =INDEX(Serie_Encadeada[#All],$AK40,$AJ$7) -> 119.3198 | AR40: =INDEX(Serie_Encadeada[#All],$AK40,$AJ$8) -> 80.0154 | AT40: 2 | AU40: =IF($AT40 >$A$13,"-", INDEX(Indice_faturamento[#All],MATCH($AT40&$AU$19,Indice_faturamento[[#All],[Mês]],0),$AH$3)) -> 100.0366 | AV40: =IF($AT40 >$A$13,"-",INDEX(Indice_faturamento[#All],MATCH($AT40&$AV$2,Indice_faturamento[[#All],[Mês]],0),$AH$3)) -> 86.7903 | AW40: =IF($AT40 >$A$13,"-", INDEX(Indice_Horas[#All],MATCH($AT40&$AU$19,Indice_Horas[[#All],[Mês]],0),$AH$3)) -> 92.6356 | AX40: =IF($AT40 >$A$13,"-",INDEX(Indice_Horas[#All],MATCH($AT40&$AV$2,Indice_Horas[[#All],[Mês]],0),$AH$3)) -> 96.1359 | AY40: =IF($AT40 >$A$13,"-", INDEX(Indice_Emprego[#All],MATCH($AT40&$AU$19,Indice_Emprego[[#All],[Mês]],0),$AH$3)) -> 107.5105 | AZ40: =IF($AT40 >$A$13,"-",INDEX(Indice_Emprego[#All],MATCH($AT40&$AV$2,Indice_Emprego[[#All],[Mês]],0),$AH$3)) -> 106.3845 | BA40: =IF($AT40 >$A$13,"-", INDEX(Indice_massa_salarial[#All],MATCH($AT40&$AU$19,Indice_massa_salarial[[#All],[Mês]],0),$AH$3)) -> 123.0034 | BB40: =IF($AT40 >$A$13,"-",INDEX(Indice_massa_salarial[#All],MATCH($AT40&$AV$2,Indice_massa_salarial[[#All],[Mês]],0),$AH$3)) -> 121.5055 | BC40: =IF($AT40 >$A$13,"-", INDEX(Indice_RMR[#All],MATCH($AT40&$AU$19,Indice_RMR[[#All],[Mês]],0),$AH$3)) -> 114.4106 | BD40: =IF($AT40 >$A$13,"-",INDEX(Indice_RMR[#All],MATCH($AT40&$AV$2,Indice_RMR[[#All],[Mês]],0),$AH$3)) -> 114.2135 | BE40: =IF($AT40 >$A$13,"-", INDEX(Indice_UCI[#All],MATCH($AT40&$AU$19,Indice_UCI[[#All],[Mês]],0),$AH$3)) -> 79.1299 | BF40: =IF($AT40 >$A$13,"-",INDEX(Indice_UCI[#All],MATCH($AT40&$AV$2,Indice_UCI[[#All],[Mês]],0),$AH$3)) -> 82.5245
AK41: =MATCH($A$13&$B$13,Serie_Encadeada[[#All],[Mês]],0) -> 243 | AL41: 24 | AM41: =INDEX(Serie_Encadeada[#All],$AK41,$AJ$3) -> 96.3802 | AN41: =INDEX(Serie_Encadeada[#All],$AK41,$AJ$4) -> 96.6632 | AO41: =INDEX(Serie_Encadeada[#All],$AK41,$AJ$5) -> 110.1884 | AP41: =INDEX(Serie_Encadeada[#All],$AK41,$AJ$6) -> 126.6618 | AQ41: =INDEX(Serie_Encadeada[#All],$AK41,$AJ$7) -> 114.9502 | AR41: =INDEX(Serie_Encadeada[#All],$AK41,$AJ$8) -> 79.1382 | AT41: 3 | AU41: =IF($AT41 >$A$13,"-", INDEX(Indice_faturamento[#All],MATCH($AT41&$AU$19,Indice_faturamento[[#All],[Mês]],0),$AH$3)) -> - | AV41: =IF($AT41 >$A$13,"-",INDEX(Indice_faturamento[#All],MATCH($AT41&$AV$2,Indice_faturamento[[#All],[Mês]],0),$AH$3)) -> - | AW41: =IF($AT41 >$A$13,"-", INDEX(Indice_Horas[#All],MATCH($AT41&$AU$19,Indice_Horas[[#All],[Mês]],0),$AH$3)) -> - | AX41: =IF($AT41 >$A$13,"-",INDEX(Indice_Horas[#All],MATCH($AT41&$AV$2,Indice_Horas[[#All],[Mês]],0),$AH$3)) -> - | AY41: =IF($AT41 >$A$13,"-", INDEX(Indice_Emprego[#All],MATCH($AT41&$AU$19,Indice_Emprego[[#All],[Mês]],0),$AH$3)) -> - | AZ41: =IF($AT41 >$A$13,"-",INDEX(Indice_Emprego[#All],MATCH($AT41&$AV$2,Indice_Emprego[[#All],[Mês]],0),$AH$3)) -> - | BA41: =IF($AT41 >$A$13,"-", INDEX(Indice_massa_salarial[#All],MATCH($AT41&$AU$19,Indice_massa_salarial[[#All],[Mês]],0),$AH$3)) -> - | BB41: =IF($AT41 >$A$13,"-",INDEX(Indice_massa_salarial[#All],MATCH($AT41&$AV$2,Indice_massa_salarial[[#All],[Mês]],0),$AH$3)) -> - | BC41: =IF($AT41 >$A$13,"-", INDEX(Indice_RMR[#All],MATCH($AT41&$AU$19,Indice_RMR[[#All],[Mês]],0),$AH$3)) -> - | BD41: =IF($AT41 >$A$13,"-",INDEX(Indice_RMR[#All],MATCH($AT41&$AV$2,Indice_RMR[[#All],[Mês]],0),$AH$3)) -> - | BE41: =IF($AT41 >$A$13,"-", INDEX(Indice_UCI[#All],MATCH($AT41&$AU$19,Indice_UCI[[#All],[Mês]],0),$AH$3)) -> - | BF41: =IF($AT41 >$A$13,"-",INDEX(Indice_UCI[#All],MATCH($AT41&$AV$2,Indice_UCI[[#All],[Mês]],0),$AH$3)) -> -
AT42: 4 | AU42: =IF($AT42 >$A$13,"-", INDEX(Indice_faturamento[#All],MATCH($AT42&$AU$19,Indice_faturamento[[#All],[Mês]],0),$AH$3)) -> - | AV42: =IF($AT42 >$A$13,"-",INDEX(Indice_faturamento[#All],MATCH($AT42&$AV$2,Indice_faturamento[[#All],[Mês]],0),$AH$3)) -> - | AW42: =IF($AT42 >$A$13,"-", INDEX(Indice_Horas[#All],MATCH($AT42&$AU$19,Indice_Horas[[#All],[Mês]],0),$AH$3)) -> - | AX42: =IF($AT42 >$A$13,"-",INDEX(Indice_Horas[#All],MATCH($AT42&$AV$2,Indice_Horas[[#All],[Mês]],0),$AH$3)) -> - | AY42: =IF($AT42 >$A$13,"-", INDEX(Indice_Emprego[#All],MATCH($AT42&$AU$19,Indice_Emprego[[#All],[Mês]],0),$AH$3)) -> - | AZ42: =IF($AT42 >$A$13,"-",INDEX(Indice_Emprego[#All],MATCH($AT42&$AV$2,Indice_Emprego[[#All],[Mês]],0),$AH$3)) -> - | BA42: =IF($AT42 >$A$13,"-", INDEX(Indice_massa_salarial[#All],MATCH($AT42&$AU$19,Indice_massa_salarial[[#All],[Mês]],0),$AH$3)) -> - | BB42: =IF($AT42 >$A$13,"-",INDEX(Indice_massa_salarial[#All],MATCH($AT42&$AV$2,Indice_massa_salarial[[#All],[Mês]],0),$AH$3)) -> - | BC42: =IF($AT42 >$A$13,"-", INDEX(Indice_RMR[#All],MATCH($AT42&$AU$19,Indice_RMR[[#All],[Mês]],0),$AH$3)) -> - | BD42: =IF($AT42 >$A$13,"-",INDEX(Indice_RMR[#All],MATCH($AT42&$AV$2,Indice_RMR[[#All],[Mês]],0),$AH$3)) -> - | BE42: =IF($AT42 >$A$13,"-", INDEX(Indice_UCI[#All],MATCH($AT42&$AU$19,Indice_UCI[[#All],[Mês]],0),$AH$3)) -> - | BF42: =IF($AT42 >$A$13,"-",INDEX(Indice_UCI[#All],MATCH($AT42&$AV$2,Indice_UCI[[#All],[Mês]],0),$AH$3)) -> -
AK43: Extrativa | AT43: 5 | AU43: =IF($AT43 >$A$13,"-", INDEX(Indice_faturamento[#All],MATCH($AT43&$AU$19,Indice_faturamento[[#All],[Mês]],0),$AH$3)) -> - | AV43: =IF($AT43 >$A$13,"-",INDEX(Indice_faturamento[#All],MATCH($AT43&$AV$2,Indice_faturamento[[#All],[Mês]],0),$AH$3)) -> - | AW43: =IF($AT43 >$A$13,"-", INDEX(Indice_Horas[#All],MATCH($AT43&$AU$19,Indice_Horas[[#All],[Mês]],0),$AH$3)) -> - | AX43: =IF($AT43 >$A$13,"-",INDEX(Indice_Horas[#All],MATCH($AT43&$AV$2,Indice_Horas[[#All],[Mês]],0),$AH$3)) -> - | AY43: =IF($AT43 >$A$13,"-", INDEX(Indice_Emprego[#All],MATCH($AT43&$AU$19,Indice_Emprego[[#All],[Mês]],0),$AH$3)) -> - | AZ43: =IF($AT43 >$A$13,"-",INDEX(Indice_Emprego[#All],MATCH($AT43&$AV$2,Indice_Emprego[[#All],[Mês]],0),$AH$3)) -> - | BA43: =IF($AT43 >$A$13,"-", INDEX(Indice_massa_salarial[#All],MATCH($AT43&$AU$19,Indice_massa_salarial[[#All],[Mês]],0),$AH$3)) -> - | BB43: =IF($AT43 >$A$13,"-",INDEX(Indice_massa_salarial[#All],MATCH($AT43&$AV$2,Indice_massa_salarial[[#All],[Mês]],0),$AH$3)) -> - | BC43: =IF($AT43 >$A$13,"-", INDEX(Indice_RMR[#All],MATCH($AT43&$AU$19,Indice_RMR[[#All],[Mês]],0),$AH$3)) -> - | BD43: =IF($AT43 >$A$13,"-",INDEX(Indice_RMR[#All],MATCH($AT43&$AV$2,Indice_RMR[[#All],[Mês]],0),$AH$3)) -> - | BE43: =IF($AT43 >$A$13,"-", INDEX(Indice_UCI[#All],MATCH($AT43&$AU$19,Indice_UCI[[#All],[Mês]],0),$AH$3)) -> - | BF43: =IF($AT43 >$A$13,"-",INDEX(Indice_UCI[#All],MATCH($AT43&$AV$2,Indice_UCI[[#All],[Mês]],0),$AH$3)) -> -
AJ44: Linha MSR e RMR | AK44: Linha | AL44: Período | AM44: Faturamento | AN44: Horas Trabalhadas | AO44: Emprego | AP44: Massa salarial | AQ44: RMR | AR44: UCI | AT44: 6 | AU44: =IF($AT44 >$A$13,"-", INDEX(Indice_faturamento[#All],MATCH($AT44&$AU$19,Indice_faturamento[[#All],[Mês]],0),$AH$3)) -> - | AV44: =IF($AT44 >$A$13,"-",INDEX(Indice_faturamento[#All],MATCH($AT44&$AV$2,Indice_faturamento[[#All],[Mês]],0),$AH$3)) -> - | AW44: =IF($AT44 >$A$13,"-", INDEX(Indice_Horas[#All],MATCH($AT44&$AU$19,Indice_Horas[[#All],[Mês]],0),$AH$3)) -> - | AX44: =IF($AT44 >$A$13,"-",INDEX(Indice_Horas[#All],MATCH($AT44&$AV$2,Indice_Horas[[#All],[Mês]],0),$AH$3)) -> - | AY44: =IF($AT44 >$A$13,"-", INDEX(Indice_Emprego[#All],MATCH($AT44&$AU$19,Indice_Emprego[[#All],[Mês]],0),$AH$3)) -> - | AZ44: =IF($AT44 >$A$13,"-",INDEX(Indice_Emprego[#All],MATCH($AT44&$AV$2,Indice_Emprego[[#All],[Mês]],0),$AH$3)) -> - | BA44: =IF($AT44 >$A$13,"-", INDEX(Indice_massa_salarial[#All],MATCH($AT44&$AU$19,Indice_massa_salarial[[#All],[Mês]],0),$AH$3)) -> - | BB44: =IF($AT44 >$A$13,"-",INDEX(Indice_massa_salarial[#All],MATCH($AT44&$AV$2,Indice_massa_salarial[[#All],[Mês]],0),$AH$3)) -> - | BC44: =IF($AT44 >$A$13,"-", INDEX(Indice_RMR[#All],MATCH($AT44&$AU$19,Indice_RMR[[#All],[Mês]],0),$AH$3)) -> - | BD44: =IF($AT44 >$A$13,"-",INDEX(Indice_RMR[#All],MATCH($AT44&$AV$2,Indice_RMR[[#All],[Mês]],0),$AH$3)) -> - | BE44: =IF($AT44 >$A$13,"-", INDEX(Indice_UCI[#All],MATCH($AT44&$AU$19,Indice_UCI[[#All],[Mês]],0),$AH$3)) -> - | BF44: =IF($AT44 >$A$13,"-",INDEX(Indice_UCI[#All],MATCH($AT44&$AV$2,Indice_UCI[[#All],[Mês]],0),$AH$3)) -> -
AJ45: =AJ46-1 -> 184 | AK45: =AK46-1 -> 220 | AL45: 1 | AM45: =INDEX(Indice_faturamento[#All],$AK45,$AI$3) -> 75.1462 | AN45: =INDEX(Indice_Horas[#All],$AK45,$AI$4) -> 141.8712 | AO45: =INDEX(Indice_Emprego[#All],$AK45,$AI$5) -> 152.6035 | AP45: =INDEX(Indice_massa_salarial[#All],$AJ45,$AI$6) -> 164.7993 | AQ45: =INDEX(Indice_RMR[#All],$AJ45,$AI$7) -> 107.9918 | AR45: =INDEX(Indice_UCI[#All],$AK45,$AI$8) -> 86.5359 | AT45: 7 | AU45: =IF($AT45 >$A$13,"-", INDEX(Indice_faturamento[#All],MATCH($AT45&$AU$19,Indice_faturamento[[#All],[Mês]],0),$AH$3)) -> - | AV45: =IF($AT45 >$A$13,"-",INDEX(Indice_faturamento[#All],MATCH($AT45&$AV$2,Indice_faturamento[[#All],[Mês]],0),$AH$3)) -> - | AW45: =IF($AT45 >$A$13,"-", INDEX(Indice_Horas[#All],MATCH($AT45&$AU$19,Indice_Horas[[#All],[Mês]],0),$AH$3)) -> - | AX45: =IF($AT45 >$A$13,"-",INDEX(Indice_Horas[#All],MATCH($AT45&$AV$2,Indice_Horas[[#All],[Mês]],0),$AH$3)) -> - | AY45: =IF($AT45 >$A$13,"-", INDEX(Indice_Emprego[#All],MATCH($AT45&$AU$19,Indice_Emprego[[#All],[Mês]],0),$AH$3)) -> - | AZ45: =IF($AT45 >$A$13,"-",INDEX(Indice_Emprego[#All],MATCH($AT45&$AV$2,Indice_Emprego[[#All],[Mês]],0),$AH$3)) -> - | BA45: =IF($AT45 >$A$13,"-", INDEX(Indice_massa_salarial[#All],MATCH($AT45&$AU$19,Indice_massa_salarial[[#All],[Mês]],0),$AH$3)) -> - | BB45: =IF($AT45 >$A$13,"-",INDEX(Indice_massa_salarial[#All],MATCH($AT45&$AV$2,Indice_massa_salarial[[#All],[Mês]],0),$AH$3)) -> - | BC45: =IF($AT45 >$A$13,"-", INDEX(Indice_RMR[#All],MATCH($AT45&$AU$19,Indice_RMR[[#All],[Mês]],0),$AH$3)) -> - | BD45: =IF($AT45 >$A$13,"-",INDEX(Indice_RMR[#All],MATCH($AT45&$AV$2,Indice_RMR[[#All],[Mês]],0),$AH$3)) -> - | BE45: =IF($AT45 >$A$13,"-", INDEX(Indice_UCI[#All],MATCH($AT45&$AU$19,Indice_UCI[[#All],[Mês]],0),$AH$3)) -> - | BF45: =IF($AT45 >$A$13,"-",INDEX(Indice_UCI[#All],MATCH($AT45&$AV$2,Indice_UCI[[#All],[Mês]],0),$AH$3)) -> -
AJ46: 185 | AK46: 221 | AL46: 2 | AM46: =INDEX(Indice_faturamento[#All],$AK46,$AI$3) -> 71.3806 | AN46: =INDEX(Indice_Horas[#All],$AK46,$AI$4) -> 143.1893 | AO46: =INDEX(Indice_Emprego[#All],$AK46,$AI$5) -> 153.9074 | AP46: =INDEX(Indice_massa_salarial[#All],$AJ46,$AI$6) -> 132.9221 | AQ46: =INDEX(Indice_RMR[#All],$AJ46,$AI$7) -> 86.3649 | AR46: =INDEX(Indice_UCI[#All],$AK46,$AI$8) -> 85.8283 | AT46: 8 | AU46: =IF($AT46 >$A$13,"-", INDEX(Indice_faturamento[#All],MATCH($AT46&$AU$19,Indice_faturamento[[#All],[Mês]],0),$AH$3)) -> - | AV46: =IF($AT46 >$A$13,"-",INDEX(Indice_faturamento[#All],MATCH($AT46&$AV$2,Indice_faturamento[[#All],[Mês]],0),$AH$3)) -> - | AW46: =IF($AT46 >$A$13,"-", INDEX(Indice_Horas[#All],MATCH($AT46&$AU$19,Indice_Horas[[#All],[Mês]],0),$AH$3)) -> - | AX46: =IF($AT46 >$A$13,"-",INDEX(Indice_Horas[#All],MATCH($AT46&$AV$2,Indice_Horas[[#All],[Mês]],0),$AH$3)) -> - | AY46: =IF($AT46 >$A$13,"-", INDEX(Indice_Emprego[#All],MATCH($AT46&$AU$19,Indice_Emprego[[#All],[Mês]],0),$AH$3)) -> - | AZ46: =IF($AT46 >$A$13,"-",INDEX(Indice_Emprego[#All],MATCH($AT46&$AV$2,Indice_Emprego[[#All],[Mês]],0),$AH$3)) -> - | BA46: =IF($AT46 >$A$13,"-", INDEX(Indice_massa_salarial[#All],MATCH($AT46&$AU$19,Indice_massa_salarial[[#All],[Mês]],0),$AH$3)) -> - | BB46: =IF($AT46 >$A$13,"-",INDEX(Indice_massa_salarial[#All],MATCH($AT46&$AV$2,Indice_massa_salarial[[#All],[Mês]],0),$AH$3)) -> - | BC46: =IF($AT46 >$A$13,"-", INDEX(Indice_RMR[#All],MATCH($AT46&$AU$19,Indice_RMR[[#All],[Mês]],0),$AH$3)) -> - | BD46: =IF($AT46 >$A$13,"-",INDEX(Indice_RMR[#All],MATCH($AT46&$AV$2,Indice_RMR[[#All],[Mês]],0),$AH$3)) -> - | BE46: =IF($AT46 >$A$13,"-", INDEX(Indice_UCI[#All],MATCH($AT46&$AU$19,Indice_UCI[[#All],[Mês]],0),$AH$3)) -> - | BF46: =IF($AT46 >$A$13,"-",INDEX(Indice_UCI[#All],MATCH($AT46&$AV$2,Indice_UCI[[#All],[Mês]],0),$AH$3)) -> -
AJ47: 186 | AK47: 222 | AL47: 3 | AM47: =INDEX(Indice_faturamento[#All],$AK47,$AI$3) -> 90.414 | AN47: =INDEX(Indice_Horas[#All],$AK47,$AI$4) -> 149.608 | AO47: =INDEX(Indice_Emprego[#All],$AK47,$AI$5) -> 158.5558 | AP47: =INDEX(Indice_massa_salarial[#All],$AJ47,$AI$6) -> 136.8326 | AQ47: =INDEX(Indice_RMR[#All],$AJ47,$AI$7) -> 86.2993 | AR47: =INDEX(Indice_UCI[#All],$AK47,$AI$8) -> 81.8262 | AT47: 9 | AU47: =IF($AT47 >$A$13,"-", INDEX(Indice_faturamento[#All],MATCH($AT47&$AU$19,Indice_faturamento[[#All],[Mês]],0),$AH$3)) -> - | AV47: =IF($AT47 >$A$13,"-",INDEX(Indice_faturamento[#All],MATCH($AT47&$AV$2,Indice_faturamento[[#All],[Mês]],0),$AH$3)) -> - | AW47: =IF($AT47 >$A$13,"-", INDEX(Indice_Horas[#All],MATCH($AT47&$AU$19,Indice_Horas[[#All],[Mês]],0),$AH$3)) -> - | AX47: =IF($AT47 >$A$13,"-",INDEX(Indice_Horas[#All],MATCH($AT47&$AV$2,Indice_Horas[[#All],[Mês]],0),$AH$3)) -> - | AY47: =IF($AT47 >$A$13,"-", INDEX(Indice_Emprego[#All],MATCH($AT47&$AU$19,Indice_Emprego[[#All],[Mês]],0),$AH$3)) -> - | AZ47: =IF($AT47 >$A$13,"-",INDEX(Indice_Emprego[#All],MATCH($AT47&$AV$2,Indice_Emprego[[#All],[Mês]],0),$AH$3)) -> - | BA47: =IF($AT47 >$A$13,"-", INDEX(Indice_massa_salarial[#All],MATCH($AT47&$AU$19,Indice_massa_salarial[[#All],[Mês]],0),$AH$3)) -> - | BB47: =IF($AT47 >$A$13,"-",INDEX(Indice_massa_salarial[#All],MATCH($AT47&$AV$2,Indice_massa_salarial[[#All],[Mês]],0),$AH$3)) -> - | BC47: =IF($AT47 >$A$13,"-", INDEX(Indice_RMR[#All],MATCH($AT47&$AU$19,Indice_RMR[[#All],[Mês]],0),$AH$3)) -> - | BD47: =IF($AT47 >$A$13,"-",INDEX(Indice_RMR[#All],MATCH($AT47&$AV$2,Indice_RMR[[#All],[Mês]],0),$AH$3)) -> - | BE47: =IF($AT47 >$A$13,"-", INDEX(Indice_UCI[#All],MATCH($AT47&$AU$19,Indice_UCI[[#All],[Mês]],0),$AH$3)) -> - | BF47: =IF($AT47 >$A$13,"-",INDEX(Indice_UCI[#All],MATCH($AT47&$AV$2,Indice_UCI[[#All],[Mês]],0),$AH$3)) -> -
AJ48: 187 | AK48: 223 | AL48: 4 | AM48: =INDEX(Indice_faturamento[#All],$AK48,$AI$3) -> 89.1785 | AN48: =INDEX(Indice_Horas[#All],$AK48,$AI$4) -> 143.9459 | AO48: =INDEX(Indice_Emprego[#All],$AK48,$AI$5) -> 157.3773 | AP48: =INDEX(Indice_massa_salarial[#All],$AJ48,$AI$6) -> 138.949 | AQ48: =INDEX(Indice_RMR[#All],$AJ48,$AI$7) -> 88.2904 | AR48: =INDEX(Indice_UCI[#All],$AK48,$AI$8) -> 85.0203 | AT48: 10 | AU48: =IF($AT48 >$A$13,"-", INDEX(Indice_faturamento[#All],MATCH($AT48&$AU$19,Indice_faturamento[[#All],[Mês]],0),$AH$3)) -> - | AV48: =IF($AT48 >$A$13,"-",INDEX(Indice_faturamento[#All],MATCH($AT48&$AV$2,Indice_faturamento[[#All],[Mês]],0),$AH$3)) -> - | AW48: =IF($AT48 >$A$13,"-", INDEX(Indice_Horas[#All],MATCH($AT48&$AU$19,Indice_Horas[[#All],[Mês]],0),$AH$3)) -> - | AX48: =IF($AT48 >$A$13,"-",INDEX(Indice_Horas[#All],MATCH($AT48&$AV$2,Indice_Horas[[#All],[Mês]],0),$AH$3)) -> - | AY48: =IF($AT48 >$A$13,"-", INDEX(Indice_Emprego[#All],MATCH($AT48&$AU$19,Indice_Emprego[[#All],[Mês]],0),$AH$3)) -> - | AZ48: =IF($AT48 >$A$13,"-",INDEX(Indice_Emprego[#All],MATCH($AT48&$AV$2,Indice_Emprego[[#All],[Mês]],0),$AH$3)) -> - | BA48: =IF($AT48 >$A$13,"-", INDEX(Indice_massa_salarial[#All],MATCH($AT48&$AU$19,Indice_massa_salarial[[#All],[Mês]],0),$AH$3)) -> - | BB48: =IF($AT48 >$A$13,"-",INDEX(Indice_massa_salarial[#All],MATCH($AT48&$AV$2,Indice_massa_salarial[[#All],[Mês]],0),$AH$3)) -> - | BC48: =IF($AT48 >$A$13,"-", INDEX(Indice_RMR[#All],MATCH($AT48&$AU$19,Indice_RMR[[#All],[Mês]],0),$AH$3)) -> - | BD48: =IF($AT48 >$A$13,"-",INDEX(Indice_RMR[#All],MATCH($AT48&$AV$2,Indice_RMR[[#All],[Mês]],0),$AH$3)) -> - | BE48: =IF($AT48 >$A$13,"-", INDEX(Indice_UCI[#All],MATCH($AT48&$AU$19,Indice_UCI[[#All],[Mês]],0),$AH$3)) -> - | BF48: =IF($AT48 >$A$13,"-",INDEX(Indice_UCI[#All],MATCH($AT48&$AV$2,Indice_UCI[[#All],[Mês]],0),$AH$3)) -> -
AJ49: 188 | AK49: 224 | AL49: 5 | AM49: =INDEX(Indice_faturamento[#All],$AK49,$AI$3) -> 105.3726 | AN49: =INDEX(Indice_Horas[#All],$AK49,$AI$4) -> 149.2985 | AO49: =INDEX(Indice_Emprego[#All],$AK49,$AI$5) -> 159.5433 | AP49: =INDEX(Indice_massa_salarial[#All],$AJ49,$AI$6) -> 137.9709 | AQ49: =INDEX(Indice_RMR[#All],$AJ49,$AI$7) -> 86.4787 | AR49: =INDEX(Indice_UCI[#All],$AK49,$AI$8) -> 88.222 | AT49: 11 | AU49: =IF($AT49 >$A$13,"-", INDEX(Indice_faturamento[#All],MATCH($AT49&$AU$19,Indice_faturamento[[#All],[Mês]],0),$AH$3)) -> - | AV49: =IF($AT49 >$A$13,"-",INDEX(Indice_faturamento[#All],MATCH($AT49&$AV$2,Indice_faturamento[[#All],[Mês]],0),$AH$3)) -> - | AW49: =IF($AT49 >$A$13,"-", INDEX(Indice_Horas[#All],MATCH($AT49&$AU$19,Indice_Horas[[#All],[Mês]],0),$AH$3)) -> - | AX49: =IF($AT49 >$A$13,"-",INDEX(Indice_Horas[#All],MATCH($AT49&$AV$2,Indice_Horas[[#All],[Mês]],0),$AH$3)) -> - | AY49: =IF($AT49 >$A$13,"-", INDEX(Indice_Emprego[#All],MATCH($AT49&$AU$19,Indice_Emprego[[#All],[Mês]],0),$AH$3)) -> - | AZ49: =IF($AT49 >$A$13,"-",INDEX(Indice_Emprego[#All],MATCH($AT49&$AV$2,Indice_Emprego[[#All],[Mês]],0),$AH$3)) -> - | BA49: =IF($AT49 >$A$13,"-", INDEX(Indice_massa_salarial[#All],MATCH($AT49&$AU$19,Indice_massa_salarial[[#All],[Mês]],0),$AH$3)) -> - | BB49: =IF($AT49 >$A$13,"-",INDEX(Indice_massa_salarial[#All],MATCH($AT49&$AV$2,Indice_massa_salarial[[#All],[Mês]],0),$AH$3)) -> - | BC49: =IF($AT49 >$A$13,"-", INDEX(Indice_RMR[#All],MATCH($AT49&$AU$19,Indice_RMR[[#All],[Mês]],0),$AH$3)) -> - | BD49: =IF($AT49 >$A$13,"-",INDEX(Indice_RMR[#All],MATCH($AT49&$AV$2,Indice_RMR[[#All],[Mês]],0),$AH$3)) -> - | BE49: =IF($AT49 >$A$13,"-", INDEX(Indice_UCI[#All],MATCH($AT49&$AU$19,Indice_UCI[[#All],[Mês]],0),$AH$3)) -> - | BF49: =IF($AT49 >$A$13,"-",INDEX(Indice_UCI[#All],MATCH($AT49&$AV$2,Indice_UCI[[#All],[Mês]],0),$AH$3)) -> -
AJ50: 189 | AK50: 225 | AL50: 6 | AM50: =INDEX(Indice_faturamento[#All],$AK50,$AI$3) -> 136.3821 | AN50: =INDEX(Indice_Horas[#All],$AK50,$AI$4) -> 148.664 | AO50: =INDEX(Indice_Emprego[#All],$AK50,$AI$5) -> 158.8231 | AP50: =INDEX(Indice_massa_salarial[#All],$AJ50,$AI$6) -> 134.2973 | AQ50: =INDEX(Indice_RMR[#All],$AJ50,$AI$7) -> 84.5578 | AR50: =INDEX(Indice_UCI[#All],$AK50,$AI$8) -> 89.3867 | AT50: 12 | AU50: =IF($AT50 >$A$13,"-", INDEX(Indice_faturamento[#All],MATCH($AT50&$AU$19,Indice_faturamento[[#All],[Mês]],0),$AH$3)) -> - | AV50: =IF($AT50 >$A$13,"-",INDEX(Indice_faturamento[#All],MATCH($AT50&$AV$2,Indice_faturamento[[#All],[Mês]],0),$AH$3)) -> - | AW50: =IF($AT50 >$A$13,"-", INDEX(Indice_Horas[#All],MATCH($AT50&$AU$19,Indice_Horas[[#All],[Mês]],0),$AH$3)) -> - | AX50: =IF($AT50 >$A$13,"-",INDEX(Indice_Horas[#All],MATCH($AT50&$AV$2,Indice_Horas[[#All],[Mês]],0),$AH$3)) -> - | AY50: =IF($AT50 >$A$13,"-", INDEX(Indice_Emprego[#All],MATCH($AT50&$AU$19,Indice_Emprego[[#All],[Mês]],0),$AH$3)) -> - | AZ50: =IF($AT50 >$A$13,"-",INDEX(Indice_Emprego[#All],MATCH($AT50&$AV$2,Indice_Emprego[[#All],[Mês]],0),$AH$3)) -> - | BA50: =IF($AT50 >$A$13,"-", INDEX(Indice_massa_salarial[#All],MATCH($AT50&$AU$19,Indice_massa_salarial[[#All],[Mês]],0),$AH$3)) -> - | BB50: =IF($AT50 >$A$13,"-",INDEX(Indice_massa_salarial[#All],MATCH($AT50&$AV$2,Indice_massa_salarial[[#All],[Mês]],0),$AH$3)) -> - | BC50: =IF($AT50 >$A$13,"-", INDEX(Indice_RMR[#All],MATCH($AT50&$AU$19,Indice_RMR[[#All],[Mês]],0),$AH$3)) -> - | BD50: =IF($AT50 >$A$13,"-",INDEX(Indice_RMR[#All],MATCH($AT50&$AV$2,Indice_RMR[[#All],[Mês]],0),$AH$3)) -> - | BE50: =IF($AT50 >$A$13,"-", INDEX(Indice_UCI[#All],MATCH($AT50&$AU$19,Indice_UCI[[#All],[Mês]],0),$AH$3)) -> - | BF50: =IF($AT50 >$A$13,"-",INDEX(Indice_UCI[#All],MATCH($AT50&$AV$2,Indice_UCI[[#All],[Mês]],0),$AH$3)) -> -
AJ51: 190 | AK51: 226 | AL51: 7 | AM51: =INDEX(Indice_faturamento[#All],$AK51,$AI$3) -> 118.9809 | AN51: =INDEX(Indice_Horas[#All],$AK51,$AI$4) -> 153.0444 | AO51: =INDEX(Indice_Emprego[#All],$AK51,$AI$5) -> 160.8417 | AP51: =INDEX(Indice_massa_salarial[#All],$AJ51,$AI$6) -> 141.5238 | AQ51: =INDEX(Indice_RMR[#All],$AJ51,$AI$7) -> 87.9895 | AR51: =INDEX(Indice_UCI[#All],$AK51,$AI$8) -> 85.6772 | AT51: média | AU51: =AVERAGE(AU39:AU50) -> 101.4785 | AV51: 90.39475 | AW51: 93.6629 | AX51: 94.5563 | AY51: 107.1049 | AZ51: 106.5293 | BA51: 125.8155 | BB51: 118.566 | BC51: 117.48105 | BD51: 111.3029 | BE51: 80.3213 | BF51: 82.22615
AJ52: 191 | AK52: 227 | AL52: 8 | AM52: =INDEX(Indice_faturamento[#All],$AK52,$AI$3) -> 94.1542 | AN52: =INDEX(Indice_Horas[#All],$AK52,$AI$4) -> 155.6752 | AO52: =INDEX(Indice_Emprego[#All],$AK52,$AI$5) -> 159.3741 | AP52: =INDEX(Indice_massa_salarial[#All],$AJ52,$AI$6) -> 148.4261 | AQ52: =INDEX(Indice_RMR[#All],$AJ52,$AI$7) -> 93.1306 | AR52: =INDEX(Indice_UCI[#All],$AK52,$AI$8) -> 85.7053
AJ53: 192 | AK53: 228 | AL53: 9 | AM53: =INDEX(Indice_faturamento[#All],$AK53,$AI$3) -> 119.8047 | AN53: =INDEX(Indice_Horas[#All],$AK53,$AI$4) -> 152.2219 | AO53: =INDEX(Indice_Emprego[#All],$AK53,$AI$5) -> 158.3375 | AP53: =INDEX(Indice_massa_salarial[#All],$AJ53,$AI$6) -> 153.2073 | AQ53: =INDEX(Indice_RMR[#All],$AJ53,$AI$7) -> 96.7599 | AR53: =INDEX(Indice_UCI[#All],$AK53,$AI$8) -> 84.6156
AJ54: 193 | AK54: 229 | AL54: 10 | AM54: =INDEX(Indice_faturamento[#All],$AK54,$AI$3) -> 81.6969 | AN54: =INDEX(Indice_Horas[#All],$AK54,$AI$4) -> 153.7359 | AO54: =INDEX(Indice_Emprego[#All],$AK54,$AI$5) -> 160.3725 | AP54: =INDEX(Indice_massa_salarial[#All],$AJ54,$AI$6) -> 249.5272 | AQ54: =INDEX(Indice_RMR[#All],$AJ54,$AI$7) -> 155.5922 | AR54: =INDEX(Indice_UCI[#All],$AK54,$AI$8) -> 84.7246
AJ55: 194 | AK55: 230 | AL55: 11 | AM55: =INDEX(Indice_faturamento[#All],$AK55,$AI$3) -> 50.9037 | AN55: =INDEX(Indice_Horas[#All],$AK55,$AI$4) -> 156.286 | AO55: =INDEX(Indice_Emprego[#All],$AK55,$AI$5) -> 159.756 | AP55: =INDEX(Indice_massa_salarial[#All],$AJ55,$AI$6) -> 147.9693 | AQ55: =INDEX(Indice_RMR[#All],$AJ55,$AI$7) -> 92.622 | AR55: =INDEX(Indice_UCI[#All],$AK55,$AI$8) -> 80.0421
AJ56: 195 | AK56: 231 | AL56: 12 | AM56: =INDEX(Indice_faturamento[#All],$AK56,$AI$3) -> 58.8568 | AN56: =INDEX(Indice_Horas[#All],$AK56,$AI$4) -> 151.2996 | AO56: =INDEX(Indice_Emprego[#All],$AK56,$AI$5) -> 155.4187 | AP56: =INDEX(Indice_massa_salarial[#All],$AJ56,$AI$6) -> 190.8464 | AQ56: =INDEX(Indice_RMR[#All],$AJ56,$AI$7) -> 122.795 | AR56: =INDEX(Indice_UCI[#All],$AK56,$AI$8) -> 82.7545
AJ57: 196 | AK57: 232 | AL57: 13 | AM57: =INDEX(Indice_faturamento[#All],$AK57,$AI$3) -> 72.7244 | AN57: =INDEX(Indice_Horas[#All],$AK57,$AI$4) -> 149.5802 | AO57: =INDEX(Indice_Emprego[#All],$AK57,$AI$5) -> 154.2348 | AP57: =INDEX(Indice_massa_salarial[#All],$AJ57,$AI$6) -> 164.6652 | AQ57: =INDEX(Indice_RMR[#All],$AJ57,$AI$7) -> 106.7627 | AR57: =INDEX(Indice_UCI[#All],$AK57,$AI$8) -> 86.828
AJ58: 197 | AK58: 233 | AL58: 14 | AM58: =INDEX(Indice_faturamento[#All],$AK58,$AI$3) -> 72.8422 | AN58: =INDEX(Indice_Horas[#All],$AK58,$AI$4) -> 150.5159 | AO58: =INDEX(Indice_Emprego[#All],$AK58,$AI$5) -> 149.6356 | AP58: =INDEX(Indice_massa_salarial[#All],$AJ58,$AI$6) -> 140.4935 | AQ58: =INDEX(Indice_RMR[#All],$AJ58,$AI$7) -> 93.8905 | AR58: =INDEX(Indice_UCI[#All],$AK58,$AI$8) -> 82.398
AJ59: 198 | AK59: 234 | AL59: 15 | AM59: =INDEX(Indice_faturamento[#All],$AK59,$AI$3) -> 106.2259 | AN59: =INDEX(Indice_Horas[#All],$AK59,$AI$4) -> 146.0564 | AO59: =INDEX(Indice_Emprego[#All],$AK59,$AI$5) -> 148.0752 | AP59: =INDEX(Indice_massa_salarial[#All],$AJ59,$AI$6) -> 137.2274 | AQ59: =INDEX(Indice_RMR[#All],$AJ59,$AI$7) -> 92.6741 | AR59: =INDEX(Indice_UCI[#All],$AK59,$AI$8) -> 72.9282
AJ60: 199 | AK60: 235 | AL60: 16 | AM60: =INDEX(Indice_faturamento[#All],$AK60,$AI$3) -> 101.463 | AN60: =INDEX(Indice_Horas[#All],$AK60,$AI$4) -> 144.5917 | AO60: =INDEX(Indice_Emprego[#All],$AK60,$AI$5) -> 153.28 | AP60: =INDEX(Indice_massa_salarial[#All],$AJ60,$AI$6) -> 140.1943 | AQ60: =INDEX(Indice_RMR[#All],$AJ60,$AI$7) -> 91.4628 | AR60: =INDEX(Indice_UCI[#All],$AK60,$AI$8) -> 87.4594
AJ61: 200 | AK61: 236 | AL61: 17 | AM61: =INDEX(Indice_faturamento[#All],$AK61,$AI$3) -> 106.2612 | AN61: =INDEX(Indice_Horas[#All],$AK61,$AI$4) -> 153.1014 | AO61: =INDEX(Indice_Emprego[#All],$AK61,$AI$5) -> 150.2903 | AP61: =INDEX(Indice_massa_salarial[#All],$AJ61,$AI$6) -> 143.0284 | AQ61: =INDEX(Indice_RMR[#All],$AJ61,$AI$7) -> 95.1681 | AR61: =INDEX(Indice_UCI[#All],$AK61,$AI$8) -> 85.3019
AJ62: 201 | AK62: 237 | AL62: 18 | AM62: =INDEX(Indice_faturamento[#All],$AK62,$AI$3) -> 96.9761 | AN62: =INDEX(Indice_Horas[#All],$AK62,$AI$4) -> 151.4293 | AO62: =INDEX(Indice_Emprego[#All],$AK62,$AI$5) -> 153.1327 | AP62: =INDEX(Indice_massa_salarial[#All],$AJ62,$AI$6) -> 136.1589 | AQ62: =INDEX(Indice_RMR[#All],$AJ62,$AI$7) -> 88.9156 | AR62: =INDEX(Indice_UCI[#All],$AK62,$AI$8) -> 79.9041
AJ63: 202 | AK63: 238 | AL63: 19 | AM63: =INDEX(Indice_faturamento[#All],$AK63,$AI$3) -> 92.6123 | AN63: =INDEX(Indice_Horas[#All],$AK63,$AI$4) -> 152.2503 | AO63: =INDEX(Indice_Emprego[#All],$AK63,$AI$5) -> 153.4273 | AP63: =INDEX(Indice_massa_salarial[#All],$AJ63,$AI$6) -> 141.1096 | AQ63: =INDEX(Indice_RMR[#All],$AJ63,$AI$7) -> 91.9716 | AR63: =INDEX(Indice_UCI[#All],$AK63,$AI$8) -> 81.8153
AJ64: 203 | AK64: 239 | AL64: 20 | AM64: =INDEX(Indice_faturamento[#All],$AK64,$AI$3) -> 96.8309 | AN64: =INDEX(Indice_Horas[#All],$AK64,$AI$4) -> 146.5481 | AO64: =INDEX(Indice_Emprego[#All],$AK64,$AI$5) -> 153.1982 | AP64: =INDEX(Indice_massa_salarial[#All],$AJ64,$AI$6) -> 140.3928 | AQ64: =INDEX(Indice_RMR[#All],$AJ64,$AI$7) -> 91.6413 | AR64: =INDEX(Indice_UCI[#All],$AK64,$AI$8) -> 79.4428
AJ65: 204 | AK65: 240 | AL65: 21 | AM65: =INDEX(Indice_faturamento[#All],$AK65,$AI$3) -> 77.4568 | AN65: =INDEX(Indice_Horas[#All],$AK65,$AI$4) -> 152.3172 | AO65: =INDEX(Indice_Emprego[#All],$AK65,$AI$5) -> 155.3423 | AP65: =INDEX(Indice_massa_salarial[#All],$AJ65,$AI$6) -> 154.1218 | AQ65: =INDEX(Indice_RMR[#All],$AJ65,$AI$7) -> 99.2143 | AR65: =INDEX(Indice_UCI[#All],$AK65,$AI$8) -> 85.9636
AJ66: 205 | AK66: 241 | AL66: 22 | AM66: =INDEX(Indice_faturamento[#All],$AK66,$AI$3) -> 67.4705 | AN66: =INDEX(Indice_Horas[#All],$AK66,$AI$4) -> 168.5237 | AO66: =INDEX(Indice_Emprego[#All],$AK66,$AI$5) -> 155.5933 | AP66: =INDEX(Indice_massa_salarial[#All],$AJ66,$AI$6) -> 263.6665 | AQ66: =INDEX(Indice_RMR[#All],$AJ66,$AI$7) -> 169.4588 | AR66: =INDEX(Indice_UCI[#All],$AK66,$AI$8) -> 82.4909
AJ67: 206 | AK67: 242 | AL67: 23 | AM67: =INDEX(Indice_faturamento[#All],$AK67,$AI$3) -> 48.2258 | AN67: =INDEX(Indice_Horas[#All],$AK67,$AI$4) -> 171.9348 | AO67: =INDEX(Indice_Emprego[#All],$AK67,$AI$5) -> 157.4646 | AP67: =INDEX(Indice_massa_salarial[#All],$AJ67,$AI$6) -> 153.7073 | AQ67: =INDEX(Indice_RMR[#All],$AJ67,$AI$7) -> 97.6139 | AR67: =INDEX(Indice_UCI[#All],$AK67,$AI$8) -> 55.3487
AJ68: =MATCH($A$13&$B$13,Indice_massa_salarial[[#All],[Mês]],0) -> 207 | AK68: =MATCH($A$13&$B$13,Indice_faturamento[[#All],[Mês]],0) -> 243 | AL68: 24 | AM68: =INDEX(Indice_faturamento[#All],$AK68,$AI$3) -> 64.0863 | AN68: =INDEX(Indice_Horas[#All],$AK68,$AI$4) -> 162.8504 | AO68: =INDEX(Indice_Emprego[#All],$AK68,$AI$5) -> 155.0313 | AP68: =INDEX(Indice_massa_salarial[#All],$AJ68,$AI$6) -> 166.713 | AQ68: =INDEX(Indice_RMR[#All],$AJ68,$AI$7) -> 107.5351 | AR68: =INDEX(Indice_UCI[#All],$AK68,$AI$8) -> 79.2751
AK70: Transformação
AJ71: Linha MSR e RMR | AK71: Linha | AL71: Período | AM71: Faturamento | AN71: Horas Trabalhadas | AO71: Emprego | AP71: Massa salarial | AQ71: RMR | AR71: UCI
AJ72: =AJ73-1 -> 184 | AK72: =AK73-1 -> 220 | AL72: 1 | AM72: =INDEX(Indice_faturamento[#All],$AK72,$AH$3) -> 108.6322 | AN72: =INDEX(Indice_Horas[#All],$AK72,$AH$4) -> 99.4367 | AO72: =INDEX(Indice_Emprego[#All],$AK72,$AH$5) -> 105.5471 | AP72: =INDEX(Indice_massa_salarial[#All],$AJ72,$AH$6) -> 114.9118 | AQ72: =INDEX(Indice_RMR[#All],$AJ72,$AH$7) -> 108.8725 | AR72: =INDEX(Indice_UCI[#All],$AK72,$AH$8) -> 82.2806
AJ73: 185 | AK73: 221 | AL73: 2 | AM73: =INDEX(Indice_faturamento[#All],$AK73,$AH$3) -> 99.1368 | AN73: =INDEX(Indice_Horas[#All],$AK73,$AH$4) -> 97.5846 | AO73: =INDEX(Indice_Emprego[#All],$AK73,$AH$5) -> 106.679 | AP73: =INDEX(Indice_massa_salarial[#All],$AJ73,$AH$6) -> 121.0687 | AQ73: =INDEX(Indice_RMR[#All],$AJ73,$AH$7) -> 113.4888 | AR73: =INDEX(Indice_UCI[#All],$AK73,$AH$8) -> 83.3279
AJ74: 186 | AK74: 222 | AL74: 3 | AM74: =INDEX(Indice_faturamento[#All],$AK74,$AH$3) -> 108.5431 | AN74: =INDEX(Indice_Horas[#All],$AK74,$AH$4) -> 99.8227 | AO74: =INDEX(Indice_Emprego[#All],$AK74,$AH$5) -> 106.7817 | AP74: =INDEX(Indice_massa_salarial[#All],$AJ74,$AH$6) -> 112.7122 | AQ74: =INDEX(Indice_RMR[#All],$AJ74,$AH$7) -> 105.5539 | AR74: =INDEX(Indice_UCI[#All],$AK74,$AH$8) -> 84.1475
AJ75: 187 | AK75: 223 | AL75: 4 | AM75: =INDEX(Indice_faturamento[#All],$AK75,$AH$3) -> 114.1031 | AN75: =INDEX(Indice_Horas[#All],$AK75,$AH$4) -> 100.185 | AO75: =INDEX(Indice_Emprego[#All],$AK75,$AH$5) -> 107.1903 | AP75: =INDEX(Indice_massa_salarial[#All],$AJ75,$AH$6) -> 112.094 | AQ75: =INDEX(Indice_RMR[#All],$AJ75,$AH$7) -> 104.5748 | AR75: =INDEX(Indice_UCI[#All],$AK75,$AH$8) -> 83.8132
AJ76: 188 | AK76: 224 | AL76: 5 | AM76: =INDEX(Indice_faturamento[#All],$AK76,$AH$3) -> 110.6762 | AN76: =INDEX(Indice_Horas[#All],$AK76,$AH$4) -> 100.6423 | AO76: =INDEX(Indice_Emprego[#All],$AK76,$AH$5) -> 106.6822 | AP76: =INDEX(Indice_massa_salarial[#All],$AJ76,$AH$6) -> 110.2937 | AQ76: =INDEX(Indice_RMR[#All],$AJ76,$AH$7) -> 103.3853 | AR76: =INDEX(Indice_UCI[#All],$AK76,$AH$8) -> 84.0854
AJ77: 189 | AK77: 225 | AL77: 6 | AM77: =INDEX(Indice_faturamento[#All],$AK77,$AH$3) -> 105.9255 | AN77: =INDEX(Indice_Horas[#All],$AK77,$AH$4) -> 100.552 | AO77: =INDEX(Indice_Emprego[#All],$AK77,$AH$5) -> 107.3525 | AP77: =INDEX(Indice_massa_salarial[#All],$AJ77,$AH$6) -> 107.8409 | AQ77: =INDEX(Indice_RMR[#All],$AJ77,$AH$7) -> 100.455 | AR77: =INDEX(Indice_UCI[#All],$AK77,$AH$8) -> 84.3458
AJ78: 190 | AK78: 226 | AL78: 7 | AM78: =INDEX(Indice_faturamento[#All],$AK78,$AH$3) -> 109.7275 | AN78: =INDEX(Indice_Horas[#All],$AK78,$AH$4) -> 100.1137 | AO78: =INDEX(Indice_Emprego[#All],$AK78,$AH$5) -> 107.5632 | AP78: =INDEX(Indice_massa_salarial[#All],$AJ78,$AH$6) -> 107.1178 | AQ78: =INDEX(Indice_RMR[#All],$AJ78,$AH$7) -> 99.5859 | AR78: =INDEX(Indice_UCI[#All],$AK78,$AH$8) -> 82.9489
AJ79: 191 | AK79: 227 | AL79: 8 | AM79: =INDEX(Indice_faturamento[#All],$AK79,$AH$3) -> 98.9906 | AN79: =INDEX(Indice_Horas[#All],$AK79,$AH$4) -> 97.9508 | AO79: =INDEX(Indice_Emprego[#All],$AK79,$AH$5) -> 107.1337 | AP79: =INDEX(Indice_massa_salarial[#All],$AJ79,$AH$6) -> 112.4034 | AQ79: =INDEX(Indice_RMR[#All],$AJ79,$AH$7) -> 104.9188 | AR79: =INDEX(Indice_UCI[#All],$AK79,$AH$8) -> 82.126
AJ80: 192 | AK80: 228 | AL80: 9 | AM80: =INDEX(Indice_faturamento[#All],$AK80,$AH$3) -> 100.5158 | AN80: =INDEX(Indice_Horas[#All],$AK80,$AH$4) -> 98.6969 | AO80: =INDEX(Indice_Emprego[#All],$AK80,$AH$5) -> 106.6748 | AP80: =INDEX(Indice_massa_salarial[#All],$AJ80,$AH$6) -> 126.3148 | AQ80: =INDEX(Indice_RMR[#All],$AJ80,$AH$7) -> 118.4111 | AR80: =INDEX(Indice_UCI[#All],$AK80,$AH$8) -> 81.9317
AJ81: 193 | AK81: 229 | AL81: 10 | AM81: =INDEX(Indice_faturamento[#All],$AK81,$AH$3) -> 110.4667 | AN81: =INDEX(Indice_Horas[#All],$AK81,$AH$4) -> 94.6635 | AO81: =INDEX(Indice_Emprego[#All],$AK81,$AH$5) -> 105.7653 | AP81: =INDEX(Indice_massa_salarial[#All],$AJ81,$AH$6) -> 157.3935 | AQ81: =INDEX(Indice_RMR[#All],$AJ81,$AH$7) -> 148.8139 | AR81: =INDEX(Indice_UCI[#All],$AK81,$AH$8) -> 76.5245
AJ82: 194 | AK82: 230 | AL82: 11 | AM82: =INDEX(Indice_faturamento[#All],$AK82,$AH$3) -> 93.9992 | AN82: =INDEX(Indice_Horas[#All],$AK82,$AH$4) -> 92.9767 | AO82: =INDEX(Indice_Emprego[#All],$AK82,$AH$5) -> 106.6741 | AP82: =INDEX(Indice_massa_salarial[#All],$AJ82,$AH$6) -> 115.6265 | AQ82: =INDEX(Indice_RMR[#All],$AJ82,$AH$7) -> 108.3923 | AR82: =INDEX(Indice_UCI[#All],$AK82,$AH$8) -> 81.9278
AJ83: 195 | AK83: 231 | AL83: 12 | AM83: =INDEX(Indice_faturamento[#All],$AK83,$AH$3) -> 86.7903 | AN83: =INDEX(Indice_Horas[#All],$AK83,$AH$4) -> 96.1359 | AO83: =INDEX(Indice_Emprego[#All],$AK83,$AH$5) -> 106.3845 | AP83: =INDEX(Indice_massa_salarial[#All],$AJ83,$AH$6) -> 121.5055 | AQ83: =INDEX(Indice_RMR[#All],$AJ83,$AH$7) -> 114.2135 | AR83: =INDEX(Indice_UCI[#All],$AK83,$AH$8) -> 82.5245
AJ84: 196 | AK84: 232 | AL84: 13 | AM84: =INDEX(Indice_faturamento[#All],$AK84,$AH$3) -> 114.733 | AN84: =INDEX(Indice_Horas[#All],$AK84,$AH$4) -> 105.2013 | AO84: =INDEX(Indice_Emprego[#All],$AK84,$AH$5) -> 106.5822 | AP84: =INDEX(Indice_massa_salarial[#All],$AJ84,$AH$6) -> 122.8008 | AQ84: =INDEX(Indice_RMR[#All],$AJ84,$AH$7) -> 115.217 | AR84: =INDEX(Indice_UCI[#All],$AK84,$AH$8) -> 84.4538
AJ85: 197 | AK85: 233 | AL85: 14 | AM85: =INDEX(Indice_faturamento[#All],$AK85,$AH$3) -> 102.6748 | AN85: =INDEX(Indice_Horas[#All],$AK85,$AH$4) -> 97.8927 | AO85: =INDEX(Indice_Emprego[#All],$AK85,$AH$5) -> 105.9761 | AP85: =INDEX(Indice_massa_salarial[#All],$AJ85,$AH$6) -> 111.0202 | AQ85: =INDEX(Indice_RMR[#All],$AJ85,$AH$7) -> 104.7597 | AR85: =INDEX(Indice_UCI[#All],$AK85,$AH$8) -> 83.5061
AJ86: 198 | AK86: 234 | AL86: 15 | AM86: =INDEX(Indice_faturamento[#All],$AK86,$AH$3) -> 112.8568 | AN86: =INDEX(Indice_Horas[#All],$AK86,$AH$4) -> 100.1238 | AO86: =INDEX(Indice_Emprego[#All],$AK86,$AH$5) -> 106.5542 | AP86: =INDEX(Indice_massa_salarial[#All],$AJ86,$AH$6) -> 110.9968 | AQ86: =INDEX(Indice_RMR[#All],$AJ86,$AH$7) -> 104.1693 | AR86: =INDEX(Indice_UCI[#All],$AK86,$AH$8) -> 84.9453
AJ87: 199 | AK87: 235 | AL87: 16 | AM87: =INDEX(Indice_faturamento[#All],$AK87,$AH$3) -> 115.1151 | AN87: =INDEX(Indice_Horas[#All],$AK87,$AH$4) -> 97.3163 | AO87: =INDEX(Indice_Emprego[#All],$AK87,$AH$5) -> 107.52 | AP87: =INDEX(Indice_massa_salarial[#All],$AJ87,$AH$6) -> 111.409 | AQ87: =INDEX(Indice_RMR[#All],$AJ87,$AH$7) -> 103.617 | AR87: =INDEX(Indice_UCI[#All],$AK87,$AH$8) -> 83.2343
AJ88: 200 | AK88: 236 | AL88: 17 | AM88: =INDEX(Indice_faturamento[#All],$AK88,$AH$3) -> 112.6367 | AN88: =INDEX(Indice_Horas[#All],$AK88,$AH$4) -> 99.8155 | AO88: =INDEX(Indice_Emprego[#All],$AK88,$AH$5) -> 107.6296 | AP88: =INDEX(Indice_massa_salarial[#All],$AJ88,$AH$6) -> 118.3437 | AQ88: =INDEX(Indice_RMR[#All],$AJ88,$AH$7) -> 109.9546 | AR88: =INDEX(Indice_UCI[#All],$AK88,$AH$8) -> 83.4109
AJ89: 201 | AK89: 237 | AL89: 18 | AM89: =INDEX(Indice_faturamento[#All],$AK89,$AH$3) -> 125.4109 | AN89: =INDEX(Indice_Horas[#All],$AK89,$AH$4) -> 107.8803 | AO89: =INDEX(Indice_Emprego[#All],$AK89,$AH$5) -> 107.477 | AP89: =INDEX(Indice_massa_salarial[#All],$AJ89,$AH$6) -> 114.9117 | AQ89: =INDEX(Indice_RMR[#All],$AJ89,$AH$7) -> 106.9175 | AR89: =INDEX(Indice_UCI[#All],$AK89,$AH$8) -> 83.8947
AJ90: 202 | AK90: 238 | AL90: 19 | AM90: =INDEX(Indice_faturamento[#All],$AK90,$AH$3) -> 117.8782 | AN90: =INDEX(Indice_Horas[#All],$AK90,$AH$4) -> 100.5678 | AO90: =INDEX(Indice_Emprego[#All],$AK90,$AH$5) -> 107.463 | AP90: =INDEX(Indice_massa_salarial[#All],$AJ90,$AH$6) -> 116.5631 | AQ90: =INDEX(Indice_RMR[#All],$AJ90,$AH$7) -> 108.4682 | AR90: =INDEX(Indice_UCI[#All],$AK90,$AH$8) -> 82.7228
AJ91: 203 | AK91: 239 | AL91: 20 | AM91: =INDEX(Indice_faturamento[#All],$AK91,$AH$3) -> 115.9691 | AN91: =INDEX(Indice_Horas[#All],$AK91,$AH$4) -> 99.2715 | AO91: =INDEX(Indice_Emprego[#All],$AK91,$AH$5) -> 107.1273 | AP91: =INDEX(Indice_massa_salarial[#All],$AJ91,$AH$6) -> 117.1253 | AQ91: =INDEX(Indice_RMR[#All],$AJ91,$AH$7) -> 109.3328 | AR91: =INDEX(Indice_UCI[#All],$AK91,$AH$8) -> 82.7672
AJ92: 204 | AK92: 240 | AL92: 21 | AM92: =INDEX(Indice_faturamento[#All],$AK92,$AH$3) -> 114.2079 | AN92: =INDEX(Indice_Horas[#All],$AK92,$AH$4) -> 97.9162 | AO92: =INDEX(Indice_Emprego[#All],$AK92,$AH$5) -> 107.2859 | AP92: =INDEX(Indice_massa_salarial[#All],$AJ92,$AH$6) -> 136.5063 | AQ92: =INDEX(Indice_RMR[#All],$AJ92,$AH$7) -> 127.236 | AR92: =INDEX(Indice_UCI[#All],$AK92,$AH$8) -> 83.0199
AJ93: 205 | AK93: 241 | AL93: 22 | AM93: =INDEX(Indice_faturamento[#All],$AK93,$AH$3) -> 111.2576 | AN93: =INDEX(Indice_Horas[#All],$AK93,$AH$4) -> 92.0324 | AO93: =INDEX(Indice_Emprego[#All],$AK93,$AH$5) -> 106.8865 | AP93: =INDEX(Indice_massa_salarial[#All],$AJ93,$AH$6) -> 172.6515 | AQ93: =INDEX(Indice_RMR[#All],$AJ93,$AH$7) -> 161.5279 | AR93: =INDEX(Indice_UCI[#All],$AK93,$AH$8) -> 79.7941
AJ94: 206 | AK94: 242 | AL94: 23 | AM94: =INDEX(Indice_faturamento[#All],$AK94,$AH$3) -> 102.9204 | AN94: =INDEX(Indice_Horas[#All],$AK94,$AH$4) -> 94.6902 | AO94: =INDEX(Indice_Emprego[#All],$AK94,$AH$5) -> 106.6993 | AP94: =INDEX(Indice_massa_salarial[#All],$AJ94,$AH$6) -> 128.6276 | AQ94: =INDEX(Indice_RMR[#All],$AJ94,$AH$7) -> 120.5515 | AR94: =INDEX(Indice_UCI[#All],$AK94,$AH$8) -> 81.5127
AJ95: =MATCH($A$13&$B$13,Indice_massa_salarial[[#All],[Mês]],0) -> 207 | AK95: =MATCH($A$13&$B$13,Indice_faturamento[[#All],[Mês]],0) -> 243 | AL95: 24 | AM95: =INDEX(Indice_faturamento[#All],$AK95,$AH$3) -> 100.0366 | AN95: =INDEX(Indice_Horas[#All],$AK95,$AH$4) -> 92.6356 | AO95: =INDEX(Indice_Emprego[#All],$AK95,$AH$5) -> 107.5105 | AP95: =INDEX(Indice_massa_salarial[#All],$AJ95,$AH$6) -> 123.0034 | AQ95: =INDEX(Indice_RMR[#All],$AJ95,$AH$7) -> 114.4106 | AR95: =INDEX(Indice_UCI[#All],$AK95,$AH$8) -> 79.1299

Sheet MG_series_dessazonalizadas
C1: Série Encadeada Mensal Dessazonalizada | L1: Variação Mensal Dessazonalizada
C2: Média 2006=100
A3: Período | B3: Mês | C3: Fat.real | D3: Emprego | E3: Horas | F3: Massa Real | G3: RMR Real | H3: UCI | J3: Período | K3: Fat.real | L3: Emprego | M3: Horas | N3: Massa Real | O3: RMR Real | P3: UCI
A4: 2003-01-01 | B4: =MONTH(Serie_dessazonalizada[[#This Row],[Período]])&YEAR(Serie_dessazonalizada[[#This Row],[Período]]) -> 12003 | C4: 94.13043691 | D4: 85.99904079 | E4: 91.88104056 | H4: 82.98897452 | J4: 2003-01-01
A5: 2003-02-01 | B5: =MONTH(Serie_dessazonalizada[[#This Row],[Período]])&YEAR(Serie_dessazonalizada[[#This Row],[Período]]) -> 22003 | C5: 98.90241393 | D5: 86.67369276 | E5: 92.75433091 | H5: 81.95622648 | J5: 2003-02-01 | K5: 5.06953667 | L5: 0.7844877787 | M5: 0.9504576254 | N5: -1.175735739 | O5: 6.69473579 | P5: -1.032748039
A6: 2003-03-01 | B6: =MONTH(Serie_dessazonalizada[[#This Row],[Período]])&YEAR(Serie_dessazonalizada[[#This Row],[Período]]) -> 32003 | C6: 82.78752917 | D6: 86.74813932 | E6: 86.45081223 | H6: 81.05427527 | J6: 2003-03-01 | K6: -16.29372239 | L6: 0.08589291318 | M6: -6.795929225 | N6: 5.280463154 | O6: 2.259534593 | P6: -0.9019512023
A7: 2003-04-01 | B7: =MONTH(Serie_dessazonalizada[[#This Row],[Período]])&YEAR(Serie_dessazonalizada[[#This Row],[Período]]) -> 42003 | C7: 82.37746354 | D7: 87.11629691 | E7: 89.23455491 | H7: 80.19623733 | J7: 2003-04-01 | K7: -0.4953229463 | L7: 0.4243982621 | M7: 3.220030678 | N7: -3.376167918 | O7: -4.153713599 | P7: -0.8580379412
A8: 2003-05-01 | B8: =MONTH(Serie_dessazonalizada[[#This Row],[Período]])&YEAR(Serie_dessazonalizada[[#This Row],[Período]]) -> 52003 | C8: 85.04231432 | D8: 87.58095051 | E8: 89.27979483 | H8: 79.59084141 | J8: 2003-05-01 | K8: 3.234926961 | L8: 0.5333716122 | M8: 0.05069776644 | N8: -1.185469398 | O8: -2.615436474 | P8: -0.6053959255
A9: 2003-06-01 | B9: =MONTH(Serie_dessazonalizada[[#This Row],[Período]])&YEAR(Serie_dessazonalizada[[#This Row],[Período]]) -> 62003 | C9: 80.17722318 | D9: 87.16703181 | E9: 88.8453074 | H9: 80.61408604 | J9: 2003-06-01 | K9: -5.720788742 | L9: -0.4726127058 | M9: -0.4866581905 | N9: 1.716032063 | O9: -0.5532521082 | P9: 1.023244632
A10: 2003-07-01 | B10: =MONTH(Serie_dessazonalizada[[#This Row],[Período]])&YEAR(Serie_dessazonalizada[[#This Row],[Período]]) -> 72003 | C10: 82.86288698 | D10: 86.53578448 | E10: 90.04048257 | H10: 79.84008457 | J10: 2003-07-01 | K10: 3.349659284 | L10: -0.7241812806 | M10: 1.345231628 | N10: 1.109790521 | O10: 1.284949289 | P10: -0.7740014742
A11: 2003-08-01 | B11: =MONTH(Serie_dessazonalizada[[#This Row],[Período]])&YEAR(Serie_dessazonalizada[[#This Row],[Período]]) -> 82003 | C11: 83.94771982 | D11: 86.4917638 | E11: 87.65271404 | H11: 78.48046985 | J11: 2003-08-01 | K11: 1.309190258 | L11: -0.05086992216 | M11: -2.651883311 | N11: 0.546374121 | O11: 1.247809856 | P11: -1.359614711
A12: 2003-09-01 | B12: =MONTH(Serie_dessazonalizada[[#This Row],[Período]])&YEAR(Serie_dessazonalizada[[#This Row],[Período]]) -> 92003 | C12: 87.67346633 | D12: 86.59400139 | E12: 91.36302153 | H12: 80.1254926 | J12: 2003-09-01 | K12: 4.438174758 | L12: 0.1182050068 | M12: 4.232963611 | N12: -1.328388671 | O12: -3.420549942 | P12: 1.64502275
A13: 2003-10-01 | B13: =MONTH(Serie_dessazonalizada[[#This Row],[Período]])&YEAR(Serie_dessazonalizada[[#This Row],[Período]]) -> 102003 | C13: 91.56727296 | D13: 86.49064191 | E13: 91.95349283 | H13: 79.89093528 | J13: 2003-10-01 | K13: 4.44126004 | L13: -0.1193610205 | M13: 0.6462913412 | N13: 1.061705209 | O13: 2.065209054 | P13: -0.2345573257
A14: 2003-11-01 | B14: =MONTH(Serie_dessazonalizada[[#This Row],[Período]])&YEAR(Serie_dessazonalizada[[#This Row],[Período]]) -> 112003 | C14: 91.61852972 | D14: 86.84067016 | E14: 90.29339984 | H14: 81.12641362 | J14: 2003-11-01 | K14: 0.05597716058 | L14: 0.4047007155 | M14: -1.805361533 | N14: 1.46105818 | O14: 1.681703083 | P14: 1.235478344
A15: 2003-12-01 | B15: =MONTH(Serie_dessazonalizada[[#This Row],[Período]])&YEAR(Serie_dessazonalizada[[#This Row],[Período]]) -> 122003 | C15: 95.01135083 | D15: 87.05713811 | E15: 92.4029071 | H15: 81.60396249 | J15: 2003-12-01 | K15: 3.703204064 | L15: 0.2492702516 | M15: 2.33628068 | N15: 2.879394195 | O15: 1.977667467 | P15: 0.4775488664
A16: 2004-01-01 | B16: =MONTH(Serie_dessazonalizada[[#This Row],[Período]])&YEAR(Serie_dessazonalizada[[#This Row],[Período]]) -> 12004 | C16: 89.84578192 | D16: 87.34055937 | E16: 90.20032159 | H16: 81.05082746 | J16: 2004-01-01 | K16: -5.436791361 | L16: 0.3255577491 | M16: -2.383675553 | N16: -4.620912873 | O16: -6.689152148 | P16: -0.5531350263
A17: 2004-02-01 | B17: =MONTH(Serie_dessazonalizada[[#This Row],[Período]])&YEAR(Serie_dessazonalizada[[#This Row],[Período]]) -> 22004 | C17: 92.12054547 | D17: 87.6327077 | E17: 92.31223686 | H17: 81.27082672 | J17: 2004-02-01 | K17: 2.531853478 | L17: 0.3344933081 | M17: 2.341361137 | N17: 8.057435233 | O17: 19.83333413 | P17: 0.2199992548
A18: 2004-03-01 | B18: =MONTH(Serie_dessazonalizada[[#This Row],[Período]])&YEAR(Serie_dessazonalizada[[#This Row],[Período]]) -> 32004 | C18: 93.33605629 | D18: 87.71639671 | E18: 94.59229894 | H18: 82.18017699 | J18: 2004-03-01 | K18: 1.319478524 | L18: 0.09549973776 | M18: 2.469945643 | N18: -10.3002154 | O18: -17.93461489 | P18: 0.9093502738
A19: 2004-04-01 | B19: =MONTH(Serie_dessazonalizada[[#This Row],[Período]])&YEAR(Serie_dessazonalizada[[#This Row],[Período]]) -> 42004 | C19: 93.06214619 | D19: 87.81711068 | E19: 93.20194822 | H19: 82.18511751 | J19: 2004-04-01 | K19: -0.2934665443 | L19: 0.1148177241 | M19: -1.469834997 | N19: 5.321174245 | O19: 4.78717767 | P19: 0.004940516834
A20: 2004-05-01 | B20: =MONTH(Serie_dessazonalizada[[#This Row],[Período]])&YEAR(Serie_dessazonalizada[[#This Row],[Período]]) -> 52004 | C20: 94.71118334 | D20: 89.29286503 | E20: 95.18352737 | H20: 82.08436751 | J20: 2004-05-01 | K20: 1.771974124 | L20: 1.680486117 | M20: 2.12611344 | N20: 1.380651338 | O20: 1.094951442 | P20: -0.1007499989
A21: 2004-06-01 | B21: =MONTH(Serie_dessazonalizada[[#This Row],[Período]])&YEAR(Serie_dessazonalizada[[#This Row],[Período]]) -> 62004 | C21: 97.23637789 | D21: 90.68879069 | E21: 97.9798798 | H21: 83.11435929 | J21: 2004-06-01 | K21: 2.666205262 | L21: 1.563311538 | M21: 2.937853336 | N21: -0.7964512787 | O21: -1.227680831 | P21: 1.029991778
A22: 2004-07-01 | B22: =MONTH(Serie_dessazonalizada[[#This Row],[Período]])&YEAR(Serie_dessazonalizada[[#This Row],[Período]]) -> 72004 | C22: 94.80657904 | D22: 91.31096143 | E22: 98.53675855 | H22: 82.8421557 | J22: 2004-07-01 | K22: -2.498857838 | L22: 0.6860503249 | M22: 0.5683603095 | N22: -0.8232334039 | O22: -0.186018503 | P22: -0.2722035852
A23: 2004-08-01 | B23: =MONTH(Serie_dessazonalizada[[#This Row],[Período]])&YEAR(Serie_dessazonalizada[[#This Row],[Período]]) -> 82004 | C23: 93.7099416 | D23: 91.45791385 | E23: 98.90131543 | H23: 82.03323128 | J23: 2004-08-01 | K23: -1.156710268 | L23: 0.1609362311 | M23: 0.3699704357 | N23: -0.7181414682 | O23: -0.45937411 | P23: -0.8089244266
A24: 2004-09-01 | B24: =MONTH(Serie_dessazonalizada[[#This Row],[Período]])&YEAR(Serie_dessazonalizada[[#This Row],[Período]]) -> 92004 | C24: 95.93748854 | D24: 92.38294362 | E24: 100.1844565 | H24: 83.13347873 | J24: 2004-09-01 | K24: 2.377065755 | L24: 1.011426704 | M24: 1.297395326 | N24: 0.9897255786 | O24: 0.5725766118 | P24: 1.100247458
A25: 2004-10-01 | B25: =MONTH(Serie_dessazonalizada[[#This Row],[Período]])&YEAR(Serie_dessazonalizada[[#This Row],[Período]]) -> 102004 | C25: 95.26409961 | D25: 93.26271029 | E25: 100.2098626 | H25: 83.25056205 | J25: 2004-10-01 | K25: -0.7019038504 | L25: 0.9523042179 | M25: 0.02535939798 | N25: 1.869693513 | O25: 2.605852734 | P25: 0.1170833183
A26: 2004-11-01 | B26: =MONTH(Serie_dessazonalizada[[#This Row],[Período]])&YEAR(Serie_dessazonalizada[[#This Row],[Período]]) -> 112004 | C26: 95.05090648 | D26: 93.60134145 | E26: 101.8066202 | H26: 82.79703397 | J26: 2004-11-01 | K26: -0.2237916836 | L26: 0.3630938498 | M26: 1.593413602 | N26: -3.09634216 | O26: -2.320473257 | P26: -0.4535280845
A27: 2004-12-01 | B27: =MONTH(Serie_dessazonalizada[[#This Row],[Período]])&YEAR(Serie_dessazonalizada[[#This Row],[Período]]) -> 122004 | C27: 94.21161322 | D27: 93.99131213 | E27: 101.7562104 | H27: 83.31395283 | J27: 2004-12-01 | K27: -0.8829934271 | L27: 0.4166293734 | M27: -0.04951525038 | N27: 0.4865373855 | O27: 0.1307594356 | P27: 0.5169188639
A28: 2005-01-01 | B28: =MONTH(Serie_dessazonalizada[[#This Row],[Período]])&YEAR(Serie_dessazonalizada[[#This Row],[Período]]) -> 12005 | C28: 92.14754504 | D28: 94.17869187 | E28: 99.32811568 | H28: 83.31102122 | J28: 2005-01-01 | K28: -2.19088508 | L28: 0.1993585686 | M28: -2.386188259 | N28: 3.365635739 | O28: 4.063585583 | P28: -0.002931607983
A29: 2005-02-01 | B29: =MONTH(Serie_dessazonalizada[[#This Row],[Período]])&YEAR(Serie_dessazonalizada[[#This Row],[Período]]) -> 22005 | C29: 94.99526264 | D29: 94.19419976 | E29: 97.7503392 | H29: 83.45263214 | J29: 2005-02-01 | K29: 3.090388996 | L29: 0.01646645423 | M29: -1.588449014 | N29: 14.88540732 | O29: 21.02699041 | P29: 0.1416109136
A30: 2005-03-01 | B30: =MONTH(Serie_dessazonalizada[[#This Row],[Período]])&YEAR(Serie_dessazonalizada[[#This Row],[Período]]) -> 32005 | C30: 96.23641644 | D30: 94.44868818 | E30: 101.497111 | H30: 84.41328978 | J30: 2005-03-01 | K30: 1.30654284 | L30: 0.2701741976 | M30: 3.833001304 | N30: -13.68826785 | O30: -18.59559612 | P30: 0.9606576466
A31: 2005-04-01 | B31: =MONTH(Serie_dessazonalizada[[#This Row],[Período]])&YEAR(Serie_dessazonalizada[[#This Row],[Período]]) -> 42005 | C31: 95.04389847 | D31: 95.11148711 | E31: 102.1044726 | H31: 83.56632777 | J31: 2005-04-01 | K31: -1.239154582 | L31: 0.7017555635 | M31: 0.5984028222 | N31: -0.9365009122 | O31: -1.227223431 | P31: -0.8469620173
A32: 2005-05-01 | B32: =MONTH(Serie_dessazonalizada[[#This Row],[Período]])&YEAR(Serie_dessazonalizada[[#This Row],[Período]]) -> 52005 | C32: 95.50873575 | D32: 95.58597809 | E32: 104.1083739 | H32: 83.3125443 | J32: 2005-05-01 | K32: 0.4890763956 | L32: 0.4988787311 | M32: 1.962598979 | N32: 0.06695515599 | O32: 0.2958435111 | P32: -0.2537834657
A33: 2005-06-01 | B33: =MONTH(Serie_dessazonalizada[[#This Row],[Período]])&YEAR(Serie_dessazonalizada[[#This Row],[Período]]) -> 62005 | C33: 93.88675228 | D33: 95.9694357 | E33: 106.3035243 | H33: 84.29103542 | J33: 2005-06-01 | K33: -1.698256662 | L33: 0.4011651314 | M33: 2.108524328 | N33: -1.156263167 | O33: -1.7807568 | P33: 0.9784911207
A34: 2005-07-01 | B34: =MONTH(Serie_dessazonalizada[[#This Row],[Período]])&YEAR(Serie_dessazonalizada[[#This Row],[Período]]) -> 72005 | C34: 91.87514246 | D34: 96.72718296 | E34: 104.2366778 | H34: 83.40429331 | J34: 2005-07-01 | K34: -2.142591757 | L34: 0.7895714425 | M34: -1.94428782 | N34: 0.4819941251 | O34: 0.9737574403 | P34: -0.8867421122
A35: 2005-08-01 | B35: =MONTH(Serie_dessazonalizada[[#This Row],[Período]])&YEAR(Serie_dessazonalizada[[#This Row],[Período]]) -> 82005 | C35: 94.77770318 | D35: 97.21746212 | E35: 105.5195787 | H35: 85.95437783 | J35: 2005-08-01 | K35: 3.159244864 | L35: 0.5068680255 | M35: 1.230757615 | N35: 0.6643843543 | O35: 1.14554865 | P35: 2.550084525
A36: 2005-09-01 | B36: =MONTH(Serie_dessazonalizada[[#This Row],[Período]])&YEAR(Serie_dessazonalizada[[#This Row],[Período]]) -> 92005 | C36: 95.77097656 | D36: 97.5564774 | E36: 105.1439607 | H36: 83.67526031 | J36: 2005-09-01 | K36: 1.048003216 | L36: 0.348718506 | M36: -0.3559699431 | N36: 1.627454308 | O36: 3.342092929 | P36: -2.279117522
A37: 2005-10-01 | B37: =MONTH(Serie_dessazonalizada[[#This Row],[Período]])&YEAR(Serie_dessazonalizada[[#This Row],[Período]]) -> 102005 | C37: 93.87726938 | D37: 98.11922523 | E37: 103.5548989 | H37: 83.77653111 | J37: 2005-10-01 | K37: -1.977328877 | L37: 0.5768431224 | M37: -1.511320101 | N37: -3.75034103 | O37: -3.628664298 | P37: 0.1012708007
A38: 2005-11-01 | B38: =MONTH(Serie_dessazonalizada[[#This Row],[Período]])&YEAR(Serie_dessazonalizada[[#This Row],[Período]]) -> 112005 | C38: 95.21084355 | D38: 97.6512742 | E38: 102.8328739 | H38: 82.98083371 | J38: 2005-11-01 | K38: 1.420550657 | L38: -0.4769208451 | M38: -0.6972387947 | N38: 2.115926743 | O38: 2.751161359 | P38: -0.795697405
A39: 2005-12-01 | B39: =MONTH(Serie_dessazonalizada[[#This Row],[Período]])&YEAR(Serie_dessazonalizada[[#This Row],[Período]]) -> 122005 | C39: 97.3168745 | D39: 98.39740272 | E39: 104.0468911 | H39: 82.7752024 | J39: 2005-12-01 | K39: 2.211965435 | L39: 0.7640745437 | M39: 1.180573034 | N39: -3.457862825 | O39: -4.806135778 | P39: -0.2056313066
A40: 2006-01-01 | B40: =MONTH(Serie_dessazonalizada[[#This Row],[Período]])&YEAR(Serie_dessazonalizada[[#This Row],[Período]]) -> 12006 | C40: 99.32820275 | D40: 98.67695015 | E40: 101.0533349 | F40: 95.04945491 | G40: 96.73433747 | H40: 80.99988406 | J40: 2006-01-01 | K40: 2.066782618 | L40: 0.2841004114 | M40: -2.877122214 | N40: 2.161238995 | O40: 3.960768525 | P40: -1.775318335
A41: 2006-02-01 | B41: =MONTH(Serie_dessazonalizada[[#This Row],[Período]])&YEAR(Serie_dessazonalizada[[#This Row],[Período]]) -> 22006 | C41: 99.00641629 | D41: 98.55893581 | E41: 100.4098062 | F41: 96.65303919 | G41: 97.93335405 | H41: 81.59326096 | J41: 2006-02-01 | K41: -0.3239628302 | L41: -0.1195966651 | M41: -0.6368208849 | N41: 1.687105179 | O41: 1.239494285 | P41: 0.5933768919
A42: 2006-03-01 | B42: =MONTH(Serie_dessazonalizada[[#This Row],[Período]])&YEAR(Serie_dessazonalizada[[#This Row],[Período]]) -> 32006 | C42: 98.12860936 | D42: 98.3767823 | E42: 101.002457 | F42: 98.49627951 | G42: 100.3504842 | H42: 80.39402028 | J42: 2006-03-01 | K42: -0.8866162054 | L42: -0.1848168405 | M42: 0.5902320299 | N42: 1.907069179 | O42: 2.468137865 | P42: -1.199240672
A43: 2006-04-01 | B43: =MONTH(Serie_dessazonalizada[[#This Row],[Período]])&YEAR(Serie_dessazonalizada[[#This Row],[Período]]) -> 42006 | C43: 96.7295802 | D43: 99.22755813 | E43: 98.15165278 | F43: 99.07652149 | G43: 100.7096401 | H43: 80.70658025 | J43: 2006-04-01 | K43: -1.425709756 | L43: 0.8648136447 | M43: -2.822509763 | N43: 0.5891004039 | O43: 0.3579014498 | P43: 0.3125599633
A44: 2006-05-01 | B44: =MONTH(Serie_dessazonalizada[[#This Row],[Período]])&YEAR(Serie_dessazonalizada[[#This Row],[Período]]) -> 52006 | C44: 99.17425355 | D44: 99.87698779 | E44: 101.9957568 | F44: 99.22301941 | G44: 99.91681588 | H44: 81.52921617 | J44: 2006-05-01 | K44: 2.527327573 | L44: 0.6544851734 | M44: 3.916494481 | N44: 0.147863409 | O44: -0.7872376462 | P44: 0.8226359257
A45: 2006-06-01 | B45: =MONTH(Serie_dessazonalizada[[#This Row],[Período]])&YEAR(Serie_dessazonalizada[[#This Row],[Período]]) -> 62006 | C45: 98.26659889 | D45: 99.51616965 | E45: 99.63361689 | F45: 98.64615118 | G45: 99.62543004 | H45: 82.35374997 | J45: 2006-06-01 | K45: -0.9152119941 | L45: -0.361262537 | M45: -2.315919825 | N45: -0.5813854792 | O45: -0.2916284323 | P45: 0.824533797
A46: 2006-07-01 | B46: =MONTH(Serie_dessazonalizada[[#This Row],[Período]])&YEAR(Serie_dessazonalizada[[#This Row],[Período]]) -> 72006 | C46: 97.25917053 | D46: 99.738145 | E46: 98.32179274 | F46: 101.148566 | G46: 101.4720594 | H46: 82.09609277 | J46: 2006-07-01 | K46: -1.025199176 | L46: 0.2230545559 | M46: -1.316648133 | N46: 2.536758724 | O46: 1.853572265 | P46: -0.2576572051
A47: 2006-08-01 | B47: =MONTH(Serie_dessazonalizada[[#This Row],[Período]])&YEAR(Serie_dessazonalizada[[#This Row],[Período]]) -> 82006 | C47: 100.4722618 | D47: 100.2715368 | E47: 101.4952612 | F47: 102.892327 | G47: 102.950079 | H47: 82.63318352 | J47: 2006-08-01 | K47: 3.303638404 | L47: 0.5347921977 | M47: 3.227634909 | N47: 1.723960161 | O47: 1.456577953 | P47: 0.5370907591
A48: 2006-09-01 | B48: =MONTH(Serie_dessazonalizada[[#This Row],[Período]])&YEAR(Serie_dessazonalizada[[#This Row],[Período]]) -> 92006 | C48: 98.56709409 | D48: 100.7432482 | E48: 97.61215106 | F48: 103.5303074 | G48: 102.9563172 | H48: 83.11225545 | J48: 2006-09-01 | K48: -1.896212659 | L48: 0.4704339523 | M48: -3.825902936 | N48: 0.6200466293 | O48: 0.006059459015 | P48: 0.4790719275
A49: 2006-10-01 | B49: =MONTH(Serie_dessazonalizada[[#This Row],[Período]])&YEAR(Serie_dessazonalizada[[#This Row],[Período]]) -> 102006 | C49: 103.0865261 | D49: 101.240123 | E49: 99.09322683 | F49: 101.382167 | G49: 99.87788288 | H49: 83.54977591 | J49: 2006-10-01 | K49: 4.58513267 | L49: 0.4932090507 | M49: 1.517306757 | N49: -2.07489038 | O49: -2.990039313 | P49: 0.4375204544
A50: 2006-11-01 | B50: =MONTH(Serie_dessazonalizada[[#This Row],[Período]])&YEAR(Serie_dessazonalizada[[#This Row],[Período]]) -> 112006 | C50: 107.3024187 | D50: 101.723647 | E50: 101.5180946 | F50: 101.5730982 | G50: 99.27660613 | H50: 85.2801158 | J50: 2006-11-01 | K50: 4.089664075 | L50: 0.4776011226 | M50: 2.447057036 | N50: 0.1883281148 | O50: -0.6020119136 | P50: 1.730339889
A51: 2006-12-01 | B51: =MONTH(Serie_dessazonalizada[[#This Row],[Período]])&YEAR(Serie_dessazonalizada[[#This Row],[Período]]) -> 122006 | C51: 101.4954656 | D51: 101.8865958 | E51: 100.0111654 | F51: 102.1016388 | G51: 99.06333412 | H51: 84.50282856 | J51: 2006-12-01 | K51: -5.411763545 | L51: 0.1601877769 | M51: -1.484394737 | N51: 0.5203549468 | O51: -0.2148260487 | P51: -0.7772872387
A52: 2007-01-01 | B52: =MONTH(Serie_dessazonalizada[[#This Row],[Período]])&YEAR(Serie_dessazonalizada[[#This Row],[Período]]) -> 12007 | C52: 107.1066878 | D52: 102.6820891 | E52: 102.4326622 | F52: 102.1577988 | G52: 99.99719104 | H52: 85.2701843 | J52: 2007-01-01 | K52: 5.528544759 | L52: 0.7807634352 | M52: 2.421226539 | N52: 0.05500403833 | O52: 0.9426867511 | P52: 0.7673557379
A53: 2007-02-01 | B53: =MONTH(Serie_dessazonalizada[[#This Row],[Período]])&YEAR(Serie_dessazonalizada[[#This Row],[Período]]) -> 22007 | C53: 105.0457338 | D53: 103.7727885 | E53: 101.2332513 | F53: 101.7011693 | G53: 97.8352724 | H53: 85.35970282 | J53: 2007-02-01 | K53: -1.924206657 | L53: 1.062210014 | M53: -1.170926295 | N53: -0.44698447 | O53: -2.161979373 | P53: 0.08951852715
A54: 2007-03-01 | B54: =MONTH(Serie_dessazonalizada[[#This Row],[Período]])&YEAR(Serie_dessazonalizada[[#This Row],[Período]]) -> 32007 | C54: 106.0943027 | D54: 104.472457 | E54: 104.1906932 | F54: 106.3661145 | G54: 101.7609888 | H54: 85.5795087 | J54: 2007-03-01 | K54: 0.9982022331 | L54: 0.6742312129 | M54: 2.921413544 | N54: 4.586913991 | O54: 4.012577731 | P54: 0.2198058736
A55: 2007-04-01 | B55: =MONTH(Serie_dessazonalizada[[#This Row],[Período]])&YEAR(Serie_dessazonalizada[[#This Row],[Período]]) -> 42007 | C55: 109.3660663 | D55: 106.110118 | E55: 104.6929413 | F55: 108.1785802 | G55: 102.6088291 | H55: 85.43798728 | J55: 2007-04-01 | K55: 3.083825918 | L55: 1.567552825 | M55: 0.4820470424 | N55: 1.703987914 | O55: 0.8331683297 | P55: -0.1415214183
A56: 2007-05-01 | B56: =MONTH(Serie_dessazonalizada[[#This Row],[Período]])&YEAR(Serie_dessazonalizada[[#This Row],[Período]]) -> 52007 | C56: 111.1803583 | D56: 106.8286449 | E56: 105.631293 | F56: 109.3441374 | G56: 102.6686388 | H56: 86.46555623 | J56: 2007-05-01 | K56: 1.658916793 | L56: 0.6771521073 | M56: 0.8962893265 | N56: 1.077438075 | O56: 0.05828902102 | P56: 1.02756895
A57: 2007-06-01 | B57: =MONTH(Serie_dessazonalizada[[#This Row],[Período]])&YEAR(Serie_dessazonalizada[[#This Row],[Período]]) -> 62007 | C57: 107.5924384 | D57: 108.4099688 | E57: 106.2606196 | F57: 110.0054596 | G57: 102.1086764 | H57: 85.85343496 | J57: 2007-06-01 | K57: -3.227116725 | L57: 1.480243327 | M57: 0.5957767177 | N57: 0.6048080659 | O57: -0.545407449 | P57: -0.6121212652
A58: 2007-07-01 | B58: =MONTH(Serie_dessazonalizada[[#This Row],[Período]])&YEAR(Serie_dessazonalizada[[#This Row],[Período]]) -> 72007 | C58: 111.6063347 | D58: 108.7032307 | E58: 106.3570592 | F58: 107.8388509 | G58: 99.20608856 | H58: 85.77019801 | J58: 2007-07-01 | K58: 3.730649127 | L58: 0.2705119668 | M58: 0.09075756522 | N58: -1.969546499 | O58: -2.842645606 | P58: -0.08323695189
A59: 2007-08-01 | B59: =MONTH(Serie_dessazonalizada[[#This Row],[Período]])&YEAR(Serie_dessazonalizada[[#This Row],[Período]]) -> 82007 | C59: 119.23962 | D59: 109.1418842 | E59: 109.2099421 | F59: 109.1422808 | G59: 100.1311496 | H59: 86.71548252 | J59: 2007-08-01 | K59: 6.839473165 | L59: 0.403533071 | M59: 2.682363456 | N59: 1.208683026 | O59: 0.9324640207 | P59: 0.9452845072
A60: 2007-09-01 | B60: =MONTH(Serie_dessazonalizada[[#This Row],[Período]])&YEAR(Serie_dessazonalizada[[#This Row],[Período]]) -> 92007 | C60: 107.6767973 | D60: 109.2866967 | E60: 106.0160802 | F60: 108.3113708 | G60: 99.22895106 | H60: 86.92319621 | J60: 2007-09-01 | K60: -9.697131508 | L60: 0.1326828077 | M60: -2.924515645 | N60: -0.7613089903 | O60: -0.9010168986 | P60: 0.2077136923
A61: 2007-10-01 | B61: =MONTH(Serie_dessazonalizada[[#This Row],[Período]])&YEAR(Serie_dessazonalizada[[#This Row],[Período]]) -> 102007 | C61: 118.5207462 | D61: 109.6348661 | E61: 111.3214222 | F61: 110.7477648 | G61: 100.9472678 | H61: 86.86332573 | J61: 2007-10-01 | K61: 10.07083161 | L61: 0.3185834988 | M61: 5.004280462 | N61: 2.249435072 | O61: 1.731668754 | P61: -0.05987048301
A62: 2007-11-01 | B62: =MONTH(Serie_dessazonalizada[[#This Row],[Período]])&YEAR(Serie_dessazonalizada[[#This Row],[Período]]) -> 112007 | C62: 123.2499804 | D62: 110.3988314 | E62: 111.8664722 | F62: 111.7584238 | G62: 100.8514917 | H62: 86.95288565 | J62: 2007-11-01 | K62: 3.990216383 | L62: 0.6968269526 | M62: 0.48961827 | N62: 0.912577403 | O62: -0.09487731548 | P62: 0.08955992008
A63: 2007-12-01 | B63: =MONTH(Serie_dessazonalizada[[#This Row],[Período]])&YEAR(Serie_dessazonalizada[[#This Row],[Período]]) -> 122007 | C63: 115.187746 | D63: 110.3347789 | E63: 110.002799 | F63: 112.3465094 | G63: 100.8558907 | H63: 87.01442744 | J63: 2007-12-01 | K63: -6.541367751 | L63: -0.05801915984 | M63: -1.665980209 | N63: 0.5262113768 | O63: 0.004361790703 | P63: 0.06154179469
A64: 2008-01-01 | B64: =MONTH(Serie_dessazonalizada[[#This Row],[Período]])&YEAR(Serie_dessazonalizada[[#This Row],[Período]]) -> 12008 | C64: 130.753829 | D64: 110.6467542 | E64: 114.2854288 | F64: 116.9224648 | G64: 106.7526992 | H64: 86.66627551 | J64: 2008-01-01 | K64: 13.51366235 | L64: 0.2827533683 | M64: 3.893200784 | N64: 4.073073033 | O64: 5.846766583 | P64: -0.348151937
A65: 2008-02-01 | B65: =MONTH(Serie_dessazonalizada[[#This Row],[Período]])&YEAR(Serie_dessazonalizada[[#This Row],[Período]]) -> 22008 | C65: 133.5766053 | D65: 111.3567253 | E65: 114.6590259 | F65: 114.8286115 | G65: 103.1948939 | H65: 86.13688088 | J65: 2008-02-01 | K65: 2.158847879 | L65: 0.6416555893 | M65: 0.3268982735 | N65: -1.79080496 | O65: -3.332754441 | P65: -0.5293946255
A66: 2008-03-01 | B66: =MONTH(Serie_dessazonalizada[[#This Row],[Período]])&YEAR(Serie_dessazonalizada[[#This Row],[Período]]) -> 32008 | C66: 125.8776797 | D66: 111.7509594 | E66: 114.4528585 | F66: 109.8679399 | G66: 98.29766528 | H66: 85.9987715 | J66: 2008-03-01 | K66: -5.763678163 | L66: 0.3540281033 | M66: -0.1798091324 | N66: -4.320065808 | O66: -4.745611343 | P66: -0.1381093812
A67: 2008-04-01 | B67: =MONTH(Serie_dessazonalizada[[#This Row],[Período]])&YEAR(Serie_dessazonalizada[[#This Row],[Período]]) -> 42008 | C67: 134.456716 | D67: 112.5736239 | E67: 118.6963002 | F67: 113.5405233 | G67: 101.1963239 | H67: 85.91376576 | J67: 2008-04-01 | K67: 6.815375336 | L67: 0.7361587476 | M67: 3.707589155 | N67: 3.342725282 | O67: 2.948858082 | P67: -0.0850057397
A68: 2008-05-01 | B68: =MONTH(Serie_dessazonalizada[[#This Row],[Período]])&YEAR(Serie_dessazonalizada[[#This Row],[Período]]) -> 52008 | C68: 130.5742257 | D68: 112.9290266 | E68: 114.6963924 | F68: 112.6900223 | G68: 99.72852362 | H68: 86.14003785 | J68: 2008-05-01 | K68: -2.887539111 | L68: 0.3157069439 | M68: -3.369867301 | N68: -0.7490726499 | O68: -1.450448242 | P68: 0.2262720914
A69: 2008-06-01 | B69: =MONTH(Serie_dessazonalizada[[#This Row],[Período]])&YEAR(Serie_dessazonalizada[[#This Row],[Período]]) -> 62008 | C69: 133.1197223 | D69: 113.8631858 | E69: 117.1764654 | F69: 118.7096233 | G69: 104.6284298 | H69: 86.69454342 | J69: 2008-06-01 | K69: 1.94946328 | L69: 0.8272090704 | M69: 2.162293789 | N69: 5.341733839 | O69: 4.913244469 | P69: 0.5545055746
A70: 2008-07-01 | B70: =MONTH(Serie_dessazonalizada[[#This Row],[Período]])&YEAR(Serie_dessazonalizada[[#This Row],[Período]]) -> 72008 | C70: 138.2806405 | D70: 114.106408 | E70: 117.541534 | F70: 115.7031586 | G70: 101.2388083 | H70: 87.53165876 | J70: 2008-07-01 | K70: 3.876899771 | L70: 0.2136092156 | M70: 0.3115545255 | N70: -2.532620933 | O70: -3.239675366 | P70: 0.8371153333
A71: 2008-08-01 | B71: =MONTH(Serie_dessazonalizada[[#This Row],[Período]])&YEAR(Serie_dessazonalizada[[#This Row],[Período]]) -> 82008 | C71: 128.8821454 | D71: 114.6573814 | E71: 115.9578585 | F71: 117.8796567 | G71: 102.5429288 | H71: 86.39264168 | J71: 2008-08-01 | K71: -6.796681793 | L71: 0.4828592593 | M71: -1.347332629 | N71: 1.881105187 | O71: 1.288162653 | P71: -1.139017075
A72: 2008-09-01 | B72: =MONTH(Serie_dessazonalizada[[#This Row],[Período]])&YEAR(Serie_dessazonalizada[[#This Row],[Período]]) -> 92008 | C72: 132.4081457 | D72: 116.6542772 | E72: 121.4657148 | F72: 119.8843656 | G72: 102.7418655 | H72: 86.83892503 | J72: 2008-09-01 | K72: 2.735833046 | L72: 1.74161992 | M72: 4.749877524 | N72: 1.70064027 | O72: 0.1940033054 | P72: 0.4462833458
A73: 2008-10-01 | B73: =MONTH(Serie_dessazonalizada[[#This Row],[Período]])&YEAR(Serie_dessazonalizada[[#This Row],[Período]]) -> 102008 | C73: 129.5444054 | D73: 116.9149752 | E73: 116.6603261 | F73: 122.4290287 | G73: 104.7291451 | H73: 86.48108376 | J73: 2008-10-01 | K73: -2.162812797 | L73: 0.2234792063 | M73: -3.956168794 | N73: 2.122597984 | O73: 1.934245162 | P73: -0.3578412679
A74: 2008-11-01 | B74: =MONTH(Serie_dessazonalizada[[#This Row],[Período]])&YEAR(Serie_dessazonalizada[[#This Row],[Período]]) -> 112008 | C74: 99.975441 | D74: 116.0630522 | E74: 111.729533 | F74: 123.240593 | G74: 105.7691223 | H74: 84.68935245 | J74: 2008-11-01 | K74: -22.82535036 | L74: -0.7286688466 | M74: -4.226623759 | N74: 0.6628854895 | O74: 0.9930160049 | P74: -1.79173131
A75: 2008-12-01 | B75: =MONTH(Serie_dessazonalizada[[#This Row],[Período]])&YEAR(Serie_dessazonalizada[[#This Row],[Período]]) -> 122008 | C75: 101.8352702 | D75: 113.6102575 | E75: 101.9215254 | F75: 124.1086899 | G75: 108.2930624 | H75: 81.54815716 | J75: 2008-12-01 | K75: 1.860286078 | L75: -2.113329492 | M75: -8.778348383 | N75: 0.7043920163 | O75: 2.38627314 | P75: -3.141195295
A76: 2009-01-01 | B76: =MONTH(Serie_dessazonalizada[[#This Row],[Período]])&YEAR(Serie_dessazonalizada[[#This Row],[Período]]) -> 12009 | C76: 102.9270238 | D76: 110.7651044 | E76: 103.2866572 | F76: 113.6033149 | G76: 104.1112587 | H76: 77.62587189 | J76: 2009-01-01 | K76: 1.072078011 | L76: -2.504310043 | M76: 1.339394985 | N76: -8.464657065 | O76: -3.861561994 | P76: -3.922285268
A77: 2009-02-01 | B77: =MONTH(Serie_dessazonalizada[[#This Row],[Período]])&YEAR(Serie_dessazonalizada[[#This Row],[Período]]) -> 22009 | C77: 107.3119201 | D77: 109.182295 | E77: 102.5058167 | F77: 110.5854497 | G77: 101.982414 | H77: 79.01964215 | J77: 2009-02-01 | K77: 4.260199259 | L77: -1.428978455 | M77: -0.7559935255 | N77: -2.656494002 | O77: -2.044778555 | P77: 1.393770258
A78: 2009-03-01 | B78: =MONTH(Serie_dessazonalizada[[#This Row],[Período]])&YEAR(Serie_dessazonalizada[[#This Row],[Período]]) -> 32009 | C78: 118.9200523 | D78: 108.8402451 | E78: 101.430919 | F78: 117.1263302 | G78: 107.8592662 | H78: 79.64816474 | J78: 2009-03-01 | K78: 10.81718813 | L78: -0.3132832707 | M78: -1.048621175 | N78: 5.914775034 | O78: 5.762613364 | P78: 0.6285225888
A79: 2009-04-01 | B79: =MONTH(Serie_dessazonalizada[[#This Row],[Período]])&YEAR(Serie_dessazonalizada[[#This Row],[Período]]) -> 42009 | C79: 114.7927957 | D79: 109.1190456 | E79: 102.0751806 | F79: 116.2029937 | G79: 106.7002327 | H79: 81.58880542 | J79: 2009-04-01 | K79: -3.470614573 | L79: 0.2561556911 | M79: 0.6351727238 | N79: -0.7883253093 | O79: -1.074579465 | P79: 1.940640685
A80: 2009-05-01 | B80: =MONTH(Serie_dessazonalizada[[#This Row],[Período]])&YEAR(Serie_dessazonalizada[[#This Row],[Período]]) -> 52009 | C80: 109.8350908 | D80: 109.1051868 | E80: 100.4036067 | F80: 115.8284973 | G80: 106.0052494 | H80: 82.0591891 | J80: 2009-05-01 | K80: -4.318829276 | L80: -0.01270059894 | M80: -1.63759089 | N80: -0.3222777799 | O80: -0.6513418013 | P80: 0.4703836837
A81: 2009-06-01 | B81: =MONTH(Serie_dessazonalizada[[#This Row],[Período]])&YEAR(Serie_dessazonalizada[[#This Row],[Período]]) -> 62009 | C81: 113.7569513 | D81: 109.1128769 | E81: 101.9256865 | F81: 117.9011589 | G81: 108.0096798 | H81: 82.44112117 | J81: 2009-06-01 | K81: 3.570680808 | L81: 0.007048359034 | M81: 1.515961226 | N81: 1.789422854 | O81: 1.890878407 | P81: 0.3819320701
A82: 2009-07-01 | B82: =MONTH(Serie_dessazonalizada[[#This Row],[Período]])&YEAR(Serie_dessazonalizada[[#This Row],[Período]]) -> 72009 | C82: 119.7088193 | D82: 109.6327437 | E82: 102.658532 | F82: 118.1992392 | G82: 107.776231 | H82: 82.33355796 | J82: 2009-07-01 | K82: 5.232091682 | L82: 0.4764485494 | M82: 0.7189998122 | N82: 0.2528221708 | O82: -0.2161369107 | P82: -0.1075632183
A83: 2009-08-01 | B83: =MONTH(Serie_dessazonalizada[[#This Row],[Período]])&YEAR(Serie_dessazonalizada[[#This Row],[Período]]) -> 82009 | C83: 113.5871515 | D83: 110.4405581 | E83: 101.4234348 | F83: 117.6257487 | G83: 106.0341114 | H83: 82.55204074 | J83: 2009-08-01 | K83: -5.113798509 | L83: 0.7368368555 | M83: -1.203112086 | N83: -0.4851896198 | O83: -1.616422857 | P83: 0.218482786
A84: 2009-09-01 | B84: =MONTH(Serie_dessazonalizada[[#This Row],[Período]])&YEAR(Serie_dessazonalizada[[#This Row],[Período]]) -> 92009 | C84: 123.6095618 | D84: 112.1672834 | E84: 104.8860562 | F84: 119.0887366 | G84: 105.9524814 | H84: 83.55095039 | J84: 2009-09-01 | K84: 8.823542281 | L84: 1.563488404 | M84: 3.414025052 | N84: 1.24376496 | O84: -0.07698466942 | P84: 0.9989096524
A85: 2009-10-01 | B85: =MONTH(Serie_dessazonalizada[[#This Row],[Período]])&YEAR(Serie_dessazonalizada[[#This Row],[Período]]) -> 102009 | C85: 127.455272 | D85: 113.8850569 | E85: 106.7691237 | F85: 120.1436973 | G85: 105.3512287 | H85: 83.81394102 | J85: 2009-10-01 | K85: 3.111175308 | L85: 1.531438922 | M85: 1.795345879 | N85: 0.885861092 | O85: -0.5674739369 | P85: 0.2629906296
A86: 2009-11-01 | B86: =MONTH(Serie_dessazonalizada[[#This Row],[Período]])&YEAR(Serie_dessazonalizada[[#This Row],[Período]]) -> 112009 | C86: 116.0519195 | D86: 114.8098088 | E86: 108.3226776 | F86: 121.0205946 | G86: 104.9148313 | H86: 83.69877006 | J86: 2009-11-01 | K86: -8.946944512 | L86: 0.8120046033 | M86: 1.455059097 | N86: 0.7298736679 | O86: -0.4142309744 | P86: -0.1151709674
A87: 2009-12-01 | B87: =MONTH(Serie_dessazonalizada[[#This Row],[Período]])&YEAR(Serie_dessazonalizada[[#This Row],[Período]]) -> 122009 | C87: 125.9458167 | D87: 116.5925771 | E87: 109.3298735 | F87: 125.0738318 | G87: 106.6853227 | H87: 83.84776579 | J87: 2009-12-01 | K87: 8.525405909 | L87: 1.552801415 | M87: 0.929810753 | N87: 3.349212781 | O87: 1.68755115 | P87: 0.1489957366
A88: 2010-01-01 | B88: =MONTH(Serie_dessazonalizada[[#This Row],[Período]])&YEAR(Serie_dessazonalizada[[#This Row],[Período]]) -> 12010 | C88: 120.5441685 | D88: 118.1197872 | E88: 107.8813889 | F88: 128.1069476 | G88: 109.5633832 | H88: 83.21099248 | J88: 2010-01-01 | K88: -4.288866728 | L88: 1.309869022 | M88: -1.324875409 | N88: 2.42506031 | O88: 2.697709854 | P88: -0.6367733155
A89: 2010-02-01 | B89: =MONTH(Serie_dessazonalizada[[#This Row],[Período]])&YEAR(Serie_dessazonalizada[[#This Row],[Período]]) -> 22010 | C89: 119.8530477 | D89: 119.7025766 | E89: 110.9535923 | F89: 128.674161 | G89: 108.5778129 | H89: 84.64936561 | J89: 2010-02-01 | K89: -0.5733340533 | L89: 1.339986728 | M89: 2.847760385 | N89: 0.4427654625 | O89: -0.899543481 | P89: 1.438373133
A90: 2010-03-01 | B90: =MONTH(Serie_dessazonalizada[[#This Row],[Período]])&YEAR(Serie_dessazonalizada[[#This Row],[Período]]) -> 32010 | C90: 131.7939342 | D90: 122.7187352 | E90: 117.6865425 | F90: 126.4833722 | G90: 103.4655654 | H90: 85.30707117 | J90: 2010-03-01 | K90: 9.962939386 | L90: 2.519710652 | M90: 6.068257978 | N90: -1.702586417 | O90: -4.708372164 | P90: 0.6577055606
A91: 2010-04-01 | B91: =MONTH(Serie_dessazonalizada[[#This Row],[Período]])&YEAR(Serie_dessazonalizada[[#This Row],[Período]]) -> 42010 | C91: 132.9040508 | D91: 123.0864308 | E91: 114.486859 | F91: 127.1217992 | G91: 103.2811543 | H91: 85.51018449 | J91: 2010-04-01 | K91: 0.8423123213 | L91: 0.2996246404 | M91: -2.718818572 | N91: 0.5047517629 | O91: -0.1782342796 | P91: 0.203113321
A92: 2010-05-01 | B92: =MONTH(Serie_dessazonalizada[[#This Row],[Período]])&YEAR(Serie_dessazonalizada[[#This Row],[Período]]) -> 52010 | C92: 128.8933024 | D92: 122.9303693 | E92: 114.3833346 | F92: 129.9840575 | G92: 105.7048007 | H92: 85.55949402 | J92: 2010-05-01 | K92: -3.017777365 | L92: -0.1267901577 | M92: -0.09042466064 | N92: 2.251587324 | O92: 2.346649298 | P92: 0.04930952967
A93: 2010-06-01 | B93: =MONTH(Serie_dessazonalizada[[#This Row],[Período]])&YEAR(Serie_dessazonalizada[[#This Row],[Período]]) -> 62010 | C93: 131.4156461 | D93: 122.2858782 | E93: 112.9720454 | F93: 127.818094 | G93: 104.3826299 | H93: 85.28740516 | J93: 2010-06-01 | K93: 1.95692376 | L93: -0.5242733206 | M93: -1.23382411 | N93: -1.666330127 | O93: -1.25081442 | P93: -0.2720888589
A94: 2010-07-01 | B94: =MONTH(Serie_dessazonalizada[[#This Row],[Período]])&YEAR(Serie_dessazonalizada[[#This Row],[Período]]) -> 72010 | C94: 131.2571809 | D94: 123.3130513 | E94: 115.6388306 | F94: 139.3216675 | G94: 113.2442882 | H94: 86.53765598 | J94: 2010-07-01 | K94: -0.1205832223 | L94: 0.8399769108 | M94: 2.360570796 | N94: 8.999956996 | O94: 8.489591023 | P94: 1.250250813
A95: 2010-08-01 | B95: =MONTH(Serie_dessazonalizada[[#This Row],[Período]])&YEAR(Serie_dessazonalizada[[#This Row],[Período]]) -> 82010 | C95: 131.7370949 | D95: 123.9901622 | E95: 115.0700809 | F95: 134.5919664 | G95: 108.3791162 | H95: 85.36025085 | J95: 2010-08-01 | K95: 0.365628774 | L95: 0.5490991574 | M95: -0.4918327815 | N95: -3.394806559 | O95: -4.296174286 | P95: -1.177405122
A96: 2010-09-01 | B96: =MONTH(Serie_dessazonalizada[[#This Row],[Período]])&YEAR(Serie_dessazonalizada[[#This Row],[Período]]) -> 92010 | C96: 134.2610689 | D96: 123.8282572 | E96: 116.0065681 | F96: 135.16767 | G96: 109.1108892 | H96: 84.27376364 | J96: 2010-09-01 | K96: 1.915917495 | L96: -0.1305789704 | M96: 0.8138407996 | N96: 0.4277399641 | O96: 0.6751973995 | P96: -1.086487215
A97: 2010-10-01 | B97: =MONTH(Serie_dessazonalizada[[#This Row],[Período]])&YEAR(Serie_dessazonalizada[[#This Row],[Período]]) -> 102010 | C97: 126.2392809 | D97: 123.1087556 | E97: 113.5024369 | F97: 136.8141826 | G97: 110.9911703 | H97: 86.15310248 | J97: 2010-10-01 | K97: -5.974768492 | L97: -0.5810479761 | M97: -2.158611599 | N97: 1.21812601 | O97: 1.723275413 | P97: 1.879338846
A98: 2010-11-01 | B98: =MONTH(Serie_dessazonalizada[[#This Row],[Período]])&YEAR(Serie_dessazonalizada[[#This Row],[Período]]) -> 112010 | C98: 134.2903393 | D98: 123.5091391 | E98: 117.5025646 | F98: 137.3706216 | G98: 110.7895846 | H98: 86.08661942 | J98: 2010-11-01 | K98: 6.377617481 | L98: 0.3252275355 | M98: 3.524265952 | N98: 0.4067114806 | O98: -0.1816231905 | P98: -0.06648306346
A99: 2010-12-01 | B99: =MONTH(Serie_dessazonalizada[[#This Row],[Período]])&YEAR(Serie_dessazonalizada[[#This Row],[Período]]) -> 122010 | C99: 135.7251218 | D99: 123.634995 | E99: 120.9040476 | F99: 135.626787 | G99: 109.5265779 | H99: 82.06607703 | J99: 2010-12-01 | K99: 1.068418249 | L99: 0.1019000453 | M99: 2.894815965 | N99: -1.269437746 | O99: -1.140004938 | P99: -4.020542394
A100: 2011-01-01 | B100: =MONTH(Serie_dessazonalizada[[#This Row],[Período]])&YEAR(Serie_dessazonalizada[[#This Row],[Período]]) -> 12011 | C100: 124.8334025 | D100: 123.3963385 | E100: 114.414142 | F100: 139.3788796 | G100: 113.3121077 | H100: 83.72934054 | J100: 2011-01-01 | K100: -8.024836647 | L100: -0.1930331571 | M100: -5.367815045 | N100: 2.766483422 | O100: 3.456265919 | P100: 1.663263516
A101: 2011-02-01 | B101: =MONTH(Serie_dessazonalizada[[#This Row],[Período]])&YEAR(Serie_dessazonalizada[[#This Row],[Período]]) -> 22011 | C101: 144.1720538 | D101: 122.8648267 | E101: 119.9523212 | F101: 145.099441 | G101: 119.5125866 | H101: 85.53015949 | J101: 2011-02-01 | K101: 15.49156791 | L101: -0.4307354248 | M101: 4.840467336 | N101: 4.104324385 | O101: 5.4720356 | P101: 1.800818946
A102: 2011-03-01 | B102: =MONTH(Serie_dessazonalizada[[#This Row],[Período]])&YEAR(Serie_dessazonalizada[[#This Row],[Período]]) -> 32011 | C102: 130.9212778 | D102: 122.7011285 | E102: 115.645229 | F102: 136.8130525 | G102: 111.7786502 | H102: 84.68422916 | J102: 2011-03-01 | K102: -9.190946321 | L102: -0.1332344334 | M102: -3.590670089 | N102: -5.710834197 | O102: -6.471231664 | P102: -0.845930325
A103: 2011-04-01 | B103: =MONTH(Serie_dessazonalizada[[#This Row],[Período]])&YEAR(Serie_dessazonalizada[[#This Row],[Período]]) -> 42011 | C103: 138.2301745 | D103: 123.2827488 | E103: 116.2314004 | F103: 137.7739468 | G103: 111.388476 | H103: 85.27894353 | J103: 2011-04-01 | K103: 5.582665328 | L103: 0.4740138619 | M103: 0.5068703698 | N103: 0.7023411163 | O103: -0.3490597052 | P103: 0.5947143623
A104: 2011-05-01 | B104: =MONTH(Serie_dessazonalizada[[#This Row],[Período]])&YEAR(Serie_dessazonalizada[[#This Row],[Período]]) -> 52011 | C104: 137.4622483 | D104: 124.1995148 | E104: 118.7815171 | F104: 143.8532652 | G104: 115.5788316 | H104: 86.0702943 | J104: 2011-05-01 | K104: -0.5555416677 | L104: 0.7436287235 | M104: 2.193999815 | N104: 4.412531215 | O104: 3.761929225 | P104: 0.7913507747
A105: 2011-06-01 | B105: =MONTH(Serie_dessazonalizada[[#This Row],[Período]])&YEAR(Serie_dessazonalizada[[#This Row],[Período]]) -> 62011 | C105: 134.3132232 | D105: 124.2447011 | E105: 117.1107673 | F105: 145.6518546 | G105: 116.906094 | H105: 86.41850232 | J105: 2011-06-01 | K105: -2.290829064 | L105: 0.03638204348 | M105: -1.406573901 | N105: 1.250294446 | O105: 1.148361133 | P105: 0.3482080208
A106: 2011-07-01 | B106: =MONTH(Serie_dessazonalizada[[#This Row],[Período]])&YEAR(Serie_dessazonalizada[[#This Row],[Período]]) -> 72011 | C106: 131.4892327 | D106: 124.3060367 | E106: 116.4523185 | F106: 139.5326695 | G106: 112.5442194 | H106: 86.12102216 | J106: 2011-07-01 | K106: -2.102540935 | L106: 0.04936675204 | M106: -0.5622444831 | N106: -4.201240749 | O106: -3.73109256 | P106: -0.2974801619
A107: 2011-08-01 | B107: =MONTH(Serie_dessazonalizada[[#This Row],[Período]])&YEAR(Serie_dessazonalizada[[#This Row],[Período]]) -> 82011 | C107: 132.2551043 | D107: 124.5298095 | E107: 118.2796077 | F107: 141.7102282 | G107: 113.8437789 | H107: 86.49085747 | J107: 2011-08-01 | K107: 0.5824595791 | L107: 0.1800176348 | M107: 1.569130763 | N107: 1.560608515 | O107: 1.154710089 | P107: 0.369835307
A108: 2011-09-01 | B108: =MONTH(Serie_dessazonalizada[[#This Row],[Período]])&YEAR(Serie_dessazonalizada[[#This Row],[Período]]) -> 92011 | C108: 135.2692245 | D108: 124.1495601 | E108: 117.7271284 | F108: 146.3486271 | G108: 117.802703 | H108: 85.9131201 | J108: 2011-09-01 | K108: 2.279019948 | L108: -0.3053480279 | M108: -0.467095985 | N108: 3.273157422 | O108: 3.477505922 | P108: -0.5777373654
A109: 2011-10-01 | B109: =MONTH(Serie_dessazonalizada[[#This Row],[Período]])&YEAR(Serie_dessazonalizada[[#This Row],[Período]]) -> 102011 | C109: 129.1158382 | D109: 123.8776268 | E109: 115.554279 | F109: 143.2857714 | G109: 115.6858803 | H109: 84.9594483 | J109: 2011-10-01 | K109: -4.548992067 | L109: -0.2190369128 | M109: -1.845665807 | N109: -2.092848967 | O109: -1.796922002 | P109: -0.9536717991
A110: 2011-11-01 | B110: =MONTH(Serie_dessazonalizada[[#This Row],[Período]])&YEAR(Serie_dessazonalizada[[#This Row],[Período]]) -> 112011 | C110: 132.1588687 | D110: 123.1463808 | E110: 118.5344592 | F110: 141.8257362 | G110: 115.0590329 | H110: 85.20942026 | J110: 2011-11-01 | K110: 2.356821995 | L110: -0.5902970148 | M110: 2.579030576 | N110: -1.018967322 | O110: -0.5418530084 | P110: 0.2499719608
A111: 2011-12-01 | B111: =MONTH(Serie_dessazonalizada[[#This Row],[Período]])&YEAR(Serie_dessazonalizada[[#This Row],[Período]]) -> 122011 | C111: 132.1436551 | D111: 123.0503915 | E111: 119.4415913 | F111: 146.8656407 | G111: 119.5970593 | H111: 84.97194727 | J111: 2011-12-01 | K111: -0.011511619 | L111: -0.07794732086 | M111: 0.7652898175 | N111: 3.553589553 | O111: 3.944085294 | P111: -0.2374729884
A112: 2012-01-01 | B112: =MONTH(Serie_dessazonalizada[[#This Row],[Período]])&YEAR(Serie_dessazonalizada[[#This Row],[Período]]) -> 12012 | C112: 131.5576366 | D112: 123.4356251 | E112: 116.9062463 | F112: 139.0988564 | G112: 112.6600943 | H112: 84.72740094 | J112: 2012-01-01 | K112: -0.443470797 | L112: 0.3130697738 | M112: -2.122665186 | N112: -5.288360388 | O112: -5.800280612 | P112: -0.2445463301
A113: 2012-02-01 | B113: =MONTH(Serie_dessazonalizada[[#This Row],[Período]])&YEAR(Serie_dessazonalizada[[#This Row],[Período]]) -> 22012 | C113: 131.2728977 | D113: 123.2676753 | E113: 118.9771354 | F113: 149.3190339 | G113: 122.7385506 | H113: 84.6822686 | J113: 2012-02-01 | K113: -0.21643658 | L113: -0.1360626621 | M113: 1.771410183 | N113: 7.347420283 | O113: 8.94589727 | P113: -0.04513234853
A114: 2012-03-01 | B114: =MONTH(Serie_dessazonalizada[[#This Row],[Período]])&YEAR(Serie_dessazonalizada[[#This Row],[Período]]) -> 32012 | C114: 128.9385739 | D114: 123.1926018 | E114: 121.1635144 | F114: 152.4248352 | G114: 124.0405342 | H114: 83.49086168 | J114: 2012-03-01 | K114: -1.77822217 | L114: -0.06090287177 | M114: 1.83764638 | N114: 2.079976818 | O114: 1.060778062 | P114: -1.191406919
A115: 2012-04-01 | B115: =MONTH(Serie_dessazonalizada[[#This Row],[Período]])&YEAR(Serie_dessazonalizada[[#This Row],[Período]]) -> 42012 | C115: 126.0671511 | D115: 121.5612741 | E115: 117.197861 | F115: 144.2718384 | G115: 118.3299027 | H115: 84.29295963 | J115: 2012-04-01 | K115: -2.226969615 | L115: -1.324209102 | M115: -3.272976527 | N115: -5.348863807 | O115: -4.603843035 | P115: 0.8020979538
A116: 2012-05-01 | B116: =MONTH(Serie_dessazonalizada[[#This Row],[Período]])&YEAR(Serie_dessazonalizada[[#This Row],[Período]]) -> 52012 | C116: 133.3555039 | D116: 120.8537236 | E116: 117.5664382 | F116: 139.8599682 | G116: 115.3421226 | H116: 84.27738956 | J116: 2012-05-01 | K116: 5.781325893 | L116: -0.5820525724 | M116: 0.3144913989 | N116: -3.058025936 | O116: -2.524957763 | P116: -0.01557006595
A117: 2012-06-01 | B117: =MONTH(Serie_dessazonalizada[[#This Row],[Período]])&YEAR(Serie_dessazonalizada[[#This Row],[Período]]) -> 62012 | C117: 132.2401402 | D117: 123.0375558 | E117: 118.878701 | F117: 141.2244073 | G117: 114.3654221 | H117: 87.40353714 | J117: 2012-06-01 | K117: -0.8363837317 | L117: 1.807004511 | M117: 1.116188205 | N117: 0.9755751917 | O117: -0.846785668 | P117: 3.126147578
A118: 2012-07-01 | B118: =MONTH(Serie_dessazonalizada[[#This Row],[Período]])&YEAR(Serie_dessazonalizada[[#This Row],[Período]]) -> 72012 | C118: 138.3073513 | D118: 124.6147697 | E118: 121.078196 | F118: 144.5446505 | G118: 116.0069723 | H118: 84.84456478 | J118: 2012-07-01 | K118: 4.58802529 | L118: 1.28189627 | M118: 1.850201151 | N118: 2.351040628 | O118: 1.435355364 | P118: -2.558972363
A119: 2012-08-01 | B119: =MONTH(Serie_dessazonalizada[[#This Row],[Período]])&YEAR(Serie_dessazonalizada[[#This Row],[Período]]) -> 82012 | C119: 141.8410358 | D119: 124.7424182 | E119: 122.5836576 | F119: 146.6588629 | G119: 117.5502808 | H119: 85.95903251 | J119: 2012-08-01 | K119: 2.554950633 | L119: 0.1024345185 | M119: 1.243379594 | N119: 1.462670788 | O119: 1.330358374 | P119: 1.114467729
A120: 2012-09-01 | B120: =MONTH(Serie_dessazonalizada[[#This Row],[Período]])&YEAR(Serie_dessazonalizada[[#This Row],[Período]]) -> 92012 | C120: 128.0757257 | D120: 124.818288 | E120: 119.1303471 | F120: 141.9084293 | G120: 113.4202936 | H120: 84.99160401 | J120: 2012-09-01 | K120: -9.704744463 | L120: 0.06082116152 | M120: -2.817105152 | N120: -3.239104305 | O120: -3.513379205 | P120: -0.9674285026
A121: 2012-10-01 | B121: =MONTH(Serie_dessazonalizada[[#This Row],[Período]])&YEAR(Serie_dessazonalizada[[#This Row],[Período]]) -> 102012 | C121: 136.1447265 | D121: 125.7027668 | E121: 122.8150182 | F121: 146.0034011 | G121: 116.1827877 | H121: 86.16720151 | J121: 2012-10-01 | K121: 6.300179594 | L121: 0.7086131147 | M121: 3.092974344 | N121: 2.885643791 | O121: 2.435625871 | P121: 1.175597501
A122: 2012-11-01 | B122: =MONTH(Serie_dessazonalizada[[#This Row],[Período]])&YEAR(Serie_dessazonalizada[[#This Row],[Período]]) -> 112012 | C122: 140.925815 | D122: 126.8381944 | E122: 121.3401814 | F122: 149.997912 | G122: 118.3080014 | H122: 85.06106824 | J122: 2012-11-01 | K122: 3.511769166 | L122: 0.9032638676 | M122: -1.200860272 | N122: 2.735902655 | O122: 1.829198476 | P122: -1.106133268
A123: 2012-12-01 | B123: =MONTH(Serie_dessazonalizada[[#This Row],[Período]])&YEAR(Serie_dessazonalizada[[#This Row],[Período]]) -> 122012 | C123: 133.170561 | D123: 127.4504809 | E123: 123.0146119 | F123: 153.744478 | G123: 120.8772651 | H123: 85.6025493 | J123: 2012-12-01 | K123: -5.503075517 | L123: 0.4827303573 | M123: 1.379947244 | N123: 2.49774538 | O123: 2.171673641 | P123: 0.5414810619
A124: 2013-01-01 | B124: =MONTH(Serie_dessazonalizada[[#This Row],[Período]])&YEAR(Serie_dessazonalizada[[#This Row],[Período]]) -> 12013 | C124: 142.8980778 | D124: 128.2748116 | E124: 127.0516571 | F124: 143.2656644 | G124: 111.6127272 | H124: 85.19556838 | J124: 2013-01-01 | K124: 7.304554933 | L124: 0.6467851022 | M124: 3.281760739 | N124: -6.815733267 | O124: -7.664417203 | P124: -0.4069809214
A125: 2013-02-01 | B125: =MONTH(Serie_dessazonalizada[[#This Row],[Período]])&YEAR(Serie_dessazonalizada[[#This Row],[Período]]) -> 22013 | C125: 125.7490868 | D125: 127.152526 | E125: 121.3476056 | F125: 170.947932 | G125: 136.0335807 | H125: 83.12148827 | J125: 2013-02-01 | K125: -12.00085489 | L125: -0.8749072106 | M125: -4.489553028 | N125: 19.32233217 | O125: 21.87998992 | P125: -2.074080111
A126: 2013-03-01 | B126: =MONTH(Serie_dessazonalizada[[#This Row],[Período]])&YEAR(Serie_dessazonalizada[[#This Row],[Período]]) -> 32013 | C126: 136.0739624 | D126: 127.8845423 | E126: 123.3208232 | F126: 140.4210155 | G126: 110.2590991 | H126: 84.71081354 | J126: 2013-03-01 | K126: 8.210696291 | L126: 0.5756993079 | M126: 1.626086954 | N126: -17.85743537 | O126: -18.9471463 | P126: 1.58932527
A127: 2013-04-01 | B127: =MONTH(Serie_dessazonalizada[[#This Row],[Período]])&YEAR(Serie_dessazonalizada[[#This Row],[Período]]) -> 42013 | C127: 143.4298236 | D127: 128.5999143 | E127: 128.9040175 | F127: 148.6575395 | G127: 115.6597541 | H127: 86.91153656 | J127: 2013-04-01 | K127: 5.405781584 | L127: 0.5593889445 | M127: 4.527373491 | N127: 5.865592116 | O127: 4.898149049 | P127: 2.20072302
A128: 2013-05-01 | B128: =MONTH(Serie_dessazonalizada[[#This Row],[Período]])&YEAR(Serie_dessazonalizada[[#This Row],[Período]]) -> 52013 | C128: 136.2831869 | D128: 128.1540893 | E128: 125.5378848 | F128: 150.1267173 | G128: 117.1504908 | H128: 85.92166952 | J128: 2013-05-01 | K128: -4.982671339 | L128: -0.346675927 | M128: -2.611348105 | N128: 0.9882968023 | O128: 1.288898365 | P128: -0.9898670366
A129: 2013-06-01 | B129: =MONTH(Serie_dessazonalizada[[#This Row],[Período]])&YEAR(Serie_dessazonalizada[[#This Row],[Período]]) -> 62013 | C129: 132.3943049 | D129: 127.9102308 | E129: 123.6083787 | F129: 147.7129747 | G129: 115.122197 | H129: 85.3810774 | J129: 2013-06-01 | K129: -2.853530279 | L129: -0.1902853663 | M129: -1.536991081 | N129: -1.607803433 | O129: -1.731357486 | P129: -0.5405921232
A130: 2013-07-01 | B130: =MONTH(Serie_dessazonalizada[[#This Row],[Período]])&YEAR(Serie_dessazonalizada[[#This Row],[Período]]) -> 72013 | C130: 136.8481406 | D130: 127.8270471 | E130: 123.3549715 | F130: 147.0403224 | G130: 115.0540019 | H130: 84.19847252 | J130: 2013-07-01 | K130: 3.364068912 | L130: -0.0650329331 | M130: -0.2050081203 | N130: -0.4553779744 | O130: -0.05923713938 | P130: -1.182604881
A131: 2013-08-01 | B131: =MONTH(Serie_dessazonalizada[[#This Row],[Período]])&YEAR(Serie_dessazonalizada[[#This Row],[Período]]) -> 82013 | C131: 131.8499706 | D131: 127.7392629 | E131: 124.6579917 | F131: 146.3684915 | G131: 114.6017838 | H131: 84.20492104 | J131: 2013-08-01 | K131: -3.652347719 | L131: -0.06867418038 | M131: 1.056317513 | N131: -0.4569024812 | O131: -0.3930486248 | P131: 0.006448518812
A132: 2013-09-01 | B132: =MONTH(Serie_dessazonalizada[[#This Row],[Período]])&YEAR(Serie_dessazonalizada[[#This Row],[Período]]) -> 92013 | C132: 130.9826104 | D132: 127.2399117 | E132: 122.0577116 | F132: 147.4008639 | G132: 115.432549 | H132: 83.32596596 | J132: 2013-09-01 | K132: -0.6578387816 | L132: -0.3909144256 | M132: -2.085931297 | N132: 0.7053241934 | O132: 0.7249147402 | P132: -0.8789550772
A133: 2013-10-01 | B133: =MONTH(Serie_dessazonalizada[[#This Row],[Período]])&YEAR(Serie_dessazonalizada[[#This Row],[Período]]) -> 102013 | C133: 128.7327293 | D133: 127.3754498 | E133: 125.4348523 | F133: 151.5842581 | G133: 118.7695914 | H133: 83.93795852 | J133: 2013-10-01 | K133: -1.717694455 | L133: 0.1065217084 | M133: 2.766839279 | N133: 2.83810696 | O133: 2.890902492 | P133: 0.6119925602
A134: 2013-11-01 | B134: =MONTH(Serie_dessazonalizada[[#This Row],[Período]])&YEAR(Serie_dessazonalizada[[#This Row],[Período]]) -> 112013 | C134: 130.1518531 | D134: 126.4401038 | E134: 121.5937717 | F134: 146.8720885 | G134: 116.1312093 | H134: 86.63987857 | J134: 2013-11-01 | K134: 1.102379893 | L134: -0.7343220527 | M134: -3.062211607 | N134: -3.108614098 | O134: -2.221429012 | P134: 2.701920056
A135: 2013-12-01 | B135: =MONTH(Serie_dessazonalizada[[#This Row],[Período]])&YEAR(Serie_dessazonalizada[[#This Row],[Período]]) -> 122013 | C135: 130.8351979 | D135: 126.2710539 | E135: 119.3905181 | F135: 146.4055464 | G135: 115.4940248 | H135: 87.92491577 | J135: 2013-12-01 | K135: 0.5250366146 | L135: -0.1336995892 | M135: -1.811979057 | N135: -0.3176519825 | O135: -0.5486763385 | P135: 1.285037196
A136: 2014-01-01 | B136: =MONTH(Serie_dessazonalizada[[#This Row],[Período]])&YEAR(Serie_dessazonalizada[[#This Row],[Período]]) -> 12014 | C136: 135.1145202 | D136: 126.2760145 | E136: 124.6607911 | F136: 152.172721 | G136: 120.4301959 | H136: 86.38257094 | J136: 2014-01-01 | K136: 3.270772931 | L136: 0.003928549998 | M136: 4.414314609 | N136: 3.939177706 | O136: 4.273962372 | P136: -1.542344831
A137: 2014-02-01 | B137: =MONTH(Serie_dessazonalizada[[#This Row],[Período]])&YEAR(Serie_dessazonalizada[[#This Row],[Período]]) -> 22014 | C137: 139.6535249 | D137: 127.3314348 | E137: 130.588228 | F137: 185.2652068 | G137: 146.8649498 | H137: 85.96709849 | J137: 2014-02-01 | K137: 3.359375943 | L137: 0.8358042682 | M137: 4.754852584 | N137: 21.74666104 | O137: 21.9502706 | P137: -0.415472447
A138: 2014-03-01 | B138: =MONTH(Serie_dessazonalizada[[#This Row],[Período]])&YEAR(Serie_dessazonalizada[[#This Row],[Período]]) -> 32014 | C138: 123.1237843 | D138: 127.8599963 | E138: 118.4868051 | F138: 151.2184699 | G138: 118.9044798 | H138: 87.09558793 | J138: 2014-03-01 | K138: -11.83625014 | L138: 0.4151068055 | M138: -9.266855918 | N138: -18.37729679 | O138: -19.03821847 | P138: 1.128489435
A139: 2014-04-01 | B139: =MONTH(Serie_dessazonalizada[[#This Row],[Período]])&YEAR(Serie_dessazonalizada[[#This Row],[Período]]) -> 42014 | C139: 126.2878527 | D139: 127.9112009 | E139: 122.6234721 | F139: 149.6591607 | G139: 117.303327 | H139: 85.33441558 | J139: 2014-04-01 | K139: 2.569827099 | L139: 0.04004742086 | M139: 3.491247002 | N139: -1.03116318 | O139: -1.346587507 | P139: -1.761172348
A140: 2014-05-01 | B140: =MONTH(Serie_dessazonalizada[[#This Row],[Período]])&YEAR(Serie_dessazonalizada[[#This Row],[Período]]) -> 52014 | C140: 125.0557719 | D140: 127.6775565 | E140: 120.7036703 | F140: 149.9109222 | G140: 117.9152258 | H140: 85.68826576 | J140: 2014-05-01 | K140: -0.9756131087 | L140: -0.1826613863 | M140: -1.565607073 | N140: 0.1682232487 | O140: 0.521638093 | P140: 0.3538501846
A141: 2014-06-01 | B141: =MONTH(Serie_dessazonalizada[[#This Row],[Período]])&YEAR(Serie_dessazonalizada[[#This Row],[Período]]) -> 62014 | C141: 116.2852124 | D141: 127.5147787 | E141: 117.9919254 | F141: 147.0643691 | G141: 115.2353462 | H141: 84.01679607 | J141: 2014-06-01 | K141: -7.013318402 | L141: -0.127491353 | M141: -2.24661345 | N141: -1.898829731 | O141: -2.272717186 | P141: -1.671469693
A142: 2014-07-01 | B142: =MONTH(Serie_dessazonalizada[[#This Row],[Período]])&YEAR(Serie_dessazonalizada[[#This Row],[Período]]) -> 72014 | C142: 119.7909971 | D142: 127.3820901 | E142: 120.9493788 | F142: 148.221805 | G142: 116.5049523 | H142: 85.56184919 | J142: 2014-07-01 | K142: 3.014815585 | L142: -0.1040574037 | M142: 2.506487906 | N142: 0.7870267351 | O142: 1.101750606 | P142: 1.54505312
A143: 2014-08-01 | B143: =MONTH(Serie_dessazonalizada[[#This Row],[Período]])&YEAR(Serie_dessazonalizada[[#This Row],[Período]]) -> 82014 | C143: 115.9014821 | D143: 126.8925217 | E143: 115.5619542 | F143: 149.6114228 | G143: 117.9742445 | H143: 84.84935186 | J143: 2014-08-01 | K143: -3.246917653 | L143: -0.3843306383 | M143: -4.454280503 | N143: 0.9375259189 | O143: 1.26114136 | P143: -0.7124973278
A144: 2014-09-01 | B144: =MONTH(Serie_dessazonalizada[[#This Row],[Período]])&YEAR(Serie_dessazonalizada[[#This Row],[Período]]) -> 92014 | C144: 125.4160678 | D144: 124.3497613 | E144: 120.6874674 | F144: 152.6924807 | G144: 122.3643155 | H144: 85.21293063 | J144: 2014-09-01 | K144: 8.209201061 | L144: -2.003869415 | M144: 4.435294704 | N144: 2.059373455 | O144: 3.72121141 | P144: 0.3635787708
A145: 2014-10-01 | B145: =MONTH(Serie_dessazonalizada[[#This Row],[Período]])&YEAR(Serie_dessazonalizada[[#This Row],[Período]]) -> 102014 | C145: 131.8903103 | D145: 123.7893401 | E145: 119.6395375 | F145: 146.2561009 | G145: 117.697696 | H145: 85.20319952 | J145: 2014-10-01 | K145: 5.162211394 | L145: -0.4506813409 | M145: -0.8683005086 | N145: -4.215256595 | O145: -3.81370952 | P145: -0.00973111509
A146: 2014-11-01 | B146: =MONTH(Serie_dessazonalizada[[#This Row],[Período]])&YEAR(Serie_dessazonalizada[[#This Row],[Período]]) -> 112014 | C146: 127.5816417 | D146: 123.8753547 | E146: 115.6939998 | F146: 150.7046304 | G146: 121.5395665 | H146: 84.07634554 | J146: 2014-11-01 | K146: -3.266857592 | L146: 0.06948460992 | M146: -3.297854395 | N146: 3.041602718 | O146: 3.264184995 | P146: -1.126853975
A147: 2014-12-01 | B147: =MONTH(Serie_dessazonalizada[[#This Row],[Período]])&YEAR(Serie_dessazonalizada[[#This Row],[Período]]) -> 122014 | C147: 122.0552565 | D147: 124.1200208 | E147: 111.1541945 | F147: 142.5164232 | G147: 113.8035166 | H147: 85.16406854 | J147: 2014-12-01 | K147: -4.331646059 | L147: 0.1975099281 | M147: -3.9239764 | N147: -5.433281804 | O147: -6.365046491 | P147: 1.087722995
A148: 2015-01-01 | B148: =MONTH(Serie_dessazonalizada[[#This Row],[Período]])&YEAR(Serie_dessazonalizada[[#This Row],[Período]]) -> 12015 | C148: 120.6301353 | D148: 123.8519227 | E148: 114.2374742 | F148: 147.6908415 | G148: 119.2407982 | H148: 84.99879842 | J148: 2015-01-01 | K148: -1.167603318 | L148: -0.2159990377 | M148: 2.773876168 | N148: 3.630752329 | O148: 4.777779938 | P148: -0.1652701235
A149: 2015-02-01 | B149: =MONTH(Serie_dessazonalizada[[#This Row],[Período]])&YEAR(Serie_dessazonalizada[[#This Row],[Período]]) -> 22015 | C149: 111.908023 | D149: 123.9790616 | E149: 112.0753445 | F149: 145.2742056 | G149: 117.9296885 | H149: 84.81292331 | J149: 2015-02-01 | K149: -7.230458854 | L149: 0.1026539348 | M149: -1.892662426 | N149: -1.636280158 | O149: -1.09954787 | P149: -0.1858751043
A150: 2015-03-01 | B150: =MONTH(Serie_dessazonalizada[[#This Row],[Período]])&YEAR(Serie_dessazonalizada[[#This Row],[Período]]) -> 32015 | C150: 112.3272274 | D150: 123.2358658 | E150: 112.0129722 | F150: 145.4731558 | G150: 119.0218651 | H150: 84.70447898 | J150: 2015-03-01 | K150: 0.3745972308 | L150: -0.5994526646 | M150: -0.055652149 | N150: 0.1369480634 | O150: 0.9261251981 | P150: -0.1084443309
A151: 2015-04-01 | B151: =MONTH(Serie_dessazonalizada[[#This Row],[Período]])&YEAR(Serie_dessazonalizada[[#This Row],[Período]]) -> 42015 | C151: 103.1296844 | D151: 120.7046293 | E151: 109.6540112 | F151: 142.4454028 | G151: 118.3604715 | H151: 83.36272181 | J151: 2015-04-01 | K151: -8.188168784 | L151: -2.053977116 | M151: -2.105971216 | N151: -2.081313894 | O151: -0.5556907902 | P151: -1.341757171
A152: 2015-05-01 | B152: =MONTH(Serie_dessazonalizada[[#This Row],[Período]])&YEAR(Serie_dessazonalizada[[#This Row],[Período]]) -> 52015 | C152: 102.9407508 | D152: 119.6040461 | E152: 108.7767358 | F152: 143.1655212 | G152: 120.4371666 | H152: 83.32492176 | J152: 2015-05-01 | K152: -0.1831999972 | L152: -0.9117986707 | M152: -0.8000394672 | N152: 0.5055399733 | O152: 1.754551222 | P152: -0.03780005089
A153: 2015-06-01 | B153: =MONTH(Serie_dessazonalizada[[#This Row],[Período]])&YEAR(Serie_dessazonalizada[[#This Row],[Período]]) -> 62015 | C153: 100.4854087 | D153: 117.4068617 | E153: 109.0717269 | F153: 140.2918987 | G153: 119.6974774 | H153: 82.00235787 | J153: 2015-06-01 | K153: -2.385199378 | L153: -1.837048537 | M153: 0.271189525 | N153: -2.007202961 | O153: -0.6141701941 | P153: -1.32256389
A154: 2015-07-01 | B154: =MONTH(Serie_dessazonalizada[[#This Row],[Período]])&YEAR(Serie_dessazonalizada[[#This Row],[Período]]) -> 72015 | C154: 105.2802869 | D154: 116.4240379 | E154: 107.7071145 | F154: 138.3898583 | G154: 119.1821173 | H154: 81.42775284 | J154: 2015-07-01 | K154: 4.771715912 | L154: -0.8371093704 | M154: -1.251114756 | N154: -1.355773509 | O154: -0.4305522087 | P154: -0.5746050269
A155: 2015-08-01 | B155: =MONTH(Serie_dessazonalizada[[#This Row],[Período]])&YEAR(Serie_dessazonalizada[[#This Row],[Período]]) -> 82015 | C155: 103.220463 | D155: 114.7207469 | E155: 106.8046874 | F155: 135.7006397 | G155: 118.4559176 | H155: 81.01368475 | J155: 2015-08-01 | K155: -1.956514381 | L155: -1.463006255 | M155: -0.8378528386 | N155: -1.943219397 | O155: -0.6093193419 | P155: -0.414068093
A156: 2015-09-01 | B156: =MONTH(Serie_dessazonalizada[[#This Row],[Período]])&YEAR(Serie_dessazonalizada[[#This Row],[Período]]) -> 92015 | C156: 103.5543037 | D156: 113.5001583 | E156: 106.3488469 | F156: 132.3723032 | G156: 116.4124165 | H156: 81.58349636 | J156: 2015-09-01 | K156: 0.323424992 | L156: -1.063965037 | M156: -0.4267981412 | N156: -2.452705112 | O156: -1.725115232 | P156: 0.5698116173
A157: 2015-10-01 | B157: =MONTH(Serie_dessazonalizada[[#This Row],[Período]])&YEAR(Serie_dessazonalizada[[#This Row],[Período]]) -> 102015 | C157: 106.3654981 | D157: 112.0150863 | E157: 107.150743 | F157: 133.8031619 | G157: 118.8609223 | H157: 81.46095956 | J157: 2015-10-01 | K157: 2.714705532 | L157: -1.308431662 | M157: 0.7540241719 | N157: 1.080935134 | O157: 2.103302959 | P157: -0.1225368036
A158: 2015-11-01 | B158: =MONTH(Serie_dessazonalizada[[#This Row],[Período]])&YEAR(Serie_dessazonalizada[[#This Row],[Período]]) -> 112015 | C158: 97.13979008 | D158: 111.2218391 | E158: 106.3508303 | F158: 133.5624632 | G158: 119.8755756 | H158: 80.64504389 | J158: 2015-11-01 | K158: -8.673590804 | L158: -0.7081610789 | M158: -0.7465301769 | N158: -0.1798901047 | O158: 0.8536474714 | P158: -0.8159156671
A159: 2015-12-01 | B159: =MONTH(Serie_dessazonalizada[[#This Row],[Período]])&YEAR(Serie_dessazonalizada[[#This Row],[Período]]) -> 122015 | C159: 100.5198337 | D159: 110.7223187 | E159: 104.0010845 | F159: 125.5991872 | G159: 112.2923246 | H159: 81.05135178 | J159: 2015-12-01 | K159: 3.479566494 | L159: -0.4491207486 | M159: -2.209428784 | N159: -5.962211159 | O159: -6.325934965 | P159: 0.4063078893
A160: 2016-01-01 | B160: =MONTH(Serie_dessazonalizada[[#This Row],[Período]])&YEAR(Serie_dessazonalizada[[#This Row],[Período]]) -> 12016 | C160: 97.06940335 | D160: 111.3782352 | E160: 104.305162 | F160: 125.2853117 | G160: 112.3012002 | H160: 80.19156465 | J160: 2016-01-01 | K160: -3.43258658 | L160: 0.5923977428 | M160: 0.2923791586 | N160: -0.2499024223 | O160: 0.007903937048 | P160: -0.8597871332
A161: 2016-02-01 | B161: =MONTH(Serie_dessazonalizada[[#This Row],[Período]])&YEAR(Serie_dessazonalizada[[#This Row],[Período]]) -> 22016 | C161: 96.18823964 | D161: 111.1760137 | E161: 104.2353988 | F161: 124.6657526 | G161: 112.3661381 | H161: 80.06394858 | J161: 2016-02-01 | K161: -0.9077666893 | L161: -0.181562904 | M161: -0.06688369205 | N161: -0.4945185878 | O161: 0.05782479286 | P161: -0.1276160726
A162: 2016-03-01 | B162: =MONTH(Serie_dessazonalizada[[#This Row],[Período]])&YEAR(Serie_dessazonalizada[[#This Row],[Período]]) -> 32016 | C162: 97.03860285 | D162: 110.4631901 | E162: 106.7676635 | F162: 127.9728142 | G162: 116.5142882 | H162: 80.18807364 | J162: 2016-03-01 | K162: 0.884061516 | L162: -0.6411666481 | M162: 2.42937109 | N162: 2.652742629 | O162: 3.691637162 | P162: 0.1241250673
A163: 2016-04-01 | B163: =MONTH(Serie_dessazonalizada[[#This Row],[Período]])&YEAR(Serie_dessazonalizada[[#This Row],[Período]]) -> 42016 | C163: 96.01976357 | D163: 109.716471 | E163: 102.927794 | F163: 124.7379999 | G163: 113.9341843 | H163: 79.20202011 | J163: 2016-04-01 | K163: -1.049931933 | L163: -0.6759891534 | M163: -3.596472289 | N163: -2.527735479 | O163: -2.214409874 | P163: -0.9860535337
A164: 2016-05-01 | B164: =MONTH(Serie_dessazonalizada[[#This Row],[Período]])&YEAR(Serie_dessazonalizada[[#This Row],[Período]]) -> 52016 | C164: 91.59440279 | D164: 109.6414903 | E164: 102.8826653 | F164: 123.7600357 | G164: 113.6248094 | H164: 79.22914361 | J164: 2016-05-01 | K164: -4.608801999 | L164: -0.06834037812 | M164: -0.04384508473 | N164: -0.7840146902 | O164: -0.2715382893 | P164: 0.02712349882
A165: 2016-06-01 | B165: =MONTH(Serie_dessazonalizada[[#This Row],[Período]])&YEAR(Serie_dessazonalizada[[#This Row],[Período]]) -> 62016 | C165: 98.5028586 | D165: 109.681073 | E165: 105.4682494 | F165: 126.0478754 | G165: 115.3551479 | H165: 79.06115387 | J165: 2016-06-01 | K165: 7.542443213 | L165: 0.03610190372 | M165: 2.513138809 | N165: 1.848609418 | O165: 1.522852751 | P165: -0.1679897407
A166: 2016-07-01 | B166: =MONTH(Serie_dessazonalizada[[#This Row],[Período]])&YEAR(Serie_dessazonalizada[[#This Row],[Período]]) -> 72016 | C166: 90.64785165 | D166: 108.8493262 | E166: 102.8770366 | F166: 126.1410986 | G166: 116.2778048 | H166: 77.9211437 | J166: 2016-07-01 | K166: -7.974394923 | L166: -0.7583320748 | M166: -2.456865287 | N166: 0.07395861001 | O166: 0.7998402503 | P166: -1.140010171
A167: 2016-08-01 | B167: =MONTH(Serie_dessazonalizada[[#This Row],[Período]])&YEAR(Serie_dessazonalizada[[#This Row],[Período]]) -> 82016 | C167: 90.71052929 | D167: 108.7822658 | E167: 102.2434357 | F167: 125.1298344 | G167: 115.3769893 | H167: 77.90648956 | J167: 2016-08-01 | K167: 0.06914410114 | L167: -0.06160847541 | M167: -0.615881779 | N167: -0.8016928766 | O167: -0.7747098027 | P167: -0.01465413728
A168: 2016-09-01 | B168: =MONTH(Serie_dessazonalizada[[#This Row],[Período]])&YEAR(Serie_dessazonalizada[[#This Row],[Período]]) -> 92016 | C168: 91.72210204 | D168: 108.3310965 | E168: 102.4814171 | F168: 125.4994067 | G168: 115.8162366 | H168: 77.74195538 | J168: 2016-09-01 | K168: 1.115165744 | L168: -0.4147452291 | M168: 0.2327595379 | N168: 0.2953510804 | O168: 0.3807061657 | P168: -0.1645341807
A169: 2016-10-01 | B169: =MONTH(Serie_dessazonalizada[[#This Row],[Período]])&YEAR(Serie_dessazonalizada[[#This Row],[Período]]) -> 102016 | C169: 86.87665359 | D169: 107.1568624 | E169: 98.67444825 | F169: 124.0185742 | G169: 115.3576985 | H169: 75.50103889 | J169: 2016-10-01 | K169: -5.282749017 | L169: -1.083930808 | M169: -3.714789394 | N169: -1.179951857 | O169: -0.3959186146 | P169: -2.240916488
A170: 2016-11-01 | B170: =MONTH(Serie_dessazonalizada[[#This Row],[Período]])&YEAR(Serie_dessazonalizada[[#This Row],[Período]]) -> 112016 | C170: 92.13467691 | D170: 106.35436 | E170: 102.3760327 | F170: 122.9283406 | G170: 115.4104033 | H170: 75.87245979 | J170: 2016-11-01 | K170: 6.052285734 | L170: -0.7489043572 | M170: 3.751310018 | N170: -0.8790889666 | O170: 0.04568810931 | P170: 0.3714209003
A171: 2016-12-01 | B171: =MONTH(Serie_dessazonalizada[[#This Row],[Período]])&YEAR(Serie_dessazonalizada[[#This Row],[Período]]) -> 122016 | C171: 91.08537339 | D171: 105.7511607 | E171: 103.29311 | F171: 124.2380121 | G171: 116.7750123 | H171: 75.82024403 | J171: 2016-12-01 | K171: -1.138880113 | L171: -0.5671599044 | M171: 0.8957929755 | N171: 1.0653943 | O171: 1.182396903 | P171: -0.05221575929
A172: 2017-01-01 | B172: =MONTH(Serie_dessazonalizada[[#This Row],[Período]])&YEAR(Serie_dessazonalizada[[#This Row],[Período]]) -> 12017 | C172: 92.96890763 | D172: 104.9087969 | E172: 101.8317814 | F172: 124.2929825 | G172: 118.3159789 | H172: 77.78947876 | J172: 2017-01-01 | K172: 2.067877827 | L172: -0.7965528182 | M172: -1.414739665 | N172: 0.04424604081 | O172: 1.319603051 | P172: 1.969234724
A173: 2017-02-01 | B173: =MONTH(Serie_dessazonalizada[[#This Row],[Período]])&YEAR(Serie_dessazonalizada[[#This Row],[Período]]) -> 22017 | C173: 92.64248675 | D173: 104.9354273 | E173: 103.6328888 | F173: 124.9610655 | G173: 119.0156945 | H173: 77.99693569 | J173: 2017-02-01 | K173: -0.3511075854 | L173: 0.02538433738 | M173: 1.768708523 | N173: 0.5375066411 | O173: 0.5913956498 | P173: 0.2074569305
A174: 2017-03-01 | B174: =MONTH(Serie_dessazonalizada[[#This Row],[Período]])&YEAR(Serie_dessazonalizada[[#This Row],[Período]]) -> 32017 | C174: 94.65440406 | D174: 104.0137077 | E174: 104.0842297 | F174: 125.8731776 | G174: 121.2894659 | H174: 78.37642955 | J174: 2017-03-01 | K174: 2.171700458 | L174: -0.8783683319 | M174: 0.4355189576 | N174: 0.7299170451 | O174: 1.910480301 | P174: 0.3794938666
A175: 2017-04-01 | B175: =MONTH(Serie_dessazonalizada[[#This Row],[Período]])&YEAR(Serie_dessazonalizada[[#This Row],[Período]]) -> 42017 | C175: 91.08673259 | D175: 103.4665311 | E175: 101.7052731 | F175: 128.5253329 | G175: 124.3297104 | H175: 75.01817926 | J175: 2017-04-01 | K175: -3.769155277 | L175: -0.5260620498 | M175: -2.285607101 | N175: 2.107005906 | O175: 2.506602233 | P175: -3.358250293
A176: 2017-05-01 | B176: =MONTH(Serie_dessazonalizada[[#This Row],[Período]])&YEAR(Serie_dessazonalizada[[#This Row],[Período]]) -> 52017 | C176: 95.56630275 | D176: 103.3237412 | E176: 103.4471391 | F176: 124.6564962 | G176: 121.6732581 | H176: 78.33563409 | J176: 2017-05-01 | K176: 4.917917273 | L176: -0.1380058901 | M176: 1.712660424 | N176: -3.010174406 | O176: -2.136619045 | P176: 3.317454827
A177: 2017-06-01 | B177: =MONTH(Serie_dessazonalizada[[#This Row],[Período]])&YEAR(Serie_dessazonalizada[[#This Row],[Período]]) -> 62017 | C177: 94.65361892 | D177: 103.0792865 | E177: 100.9512154 | F177: 126.089966 | G177: 122.7127372 | H177: 77.73513248 | J177: 2017-06-01 | K177: -0.9550268276 | L177: -0.2365909511 | M177: -2.412752723 | N177: 1.149935887 | O177: 0.8543201481 | P177: -0.6005016059
A178: 2017-07-01 | B178: =MONTH(Serie_dessazonalizada[[#This Row],[Período]])&YEAR(Serie_dessazonalizada[[#This Row],[Período]]) -> 72017 | C178: 92.43581445 | D178: 103.1982012 | E178: 98.79558207 | F178: 124.6837582 | G178: 121.111005 | H178: 79.12986066 | J178: 2017-07-01 | K178: -2.343074135 | L178: 0.1153623309 | M178: -2.135321863 | N178: -1.115241634 | O178: -1.305269713 | P178: 1.394728179
A179: 2017-08-01 | B179: =MONTH(Serie_dessazonalizada[[#This Row],[Período]])&YEAR(Serie_dessazonalizada[[#This Row],[Período]]) -> 82017 | C179: 94.50206709 | D179: 103.1071315 | E179: 101.5758584 | F179: 127.0571259 | G179: 123.4460499 | H179: 79.93968956 | J179: 2017-08-01 | K179: 2.235337727 | L179: -0.08824741702 | M179: 2.814170658 | N179: 1.903509883 | O179: 1.92802037 | P179: 0.8098288956
A180: 2017-09-01 | B180: =MONTH(Serie_dessazonalizada[[#This Row],[Período]])&YEAR(Serie_dessazonalizada[[#This Row],[Período]]) -> 92017 | C180: 95.36422402 | D180: 103.2755153 | E180: 100.641321 | F180: 126.6370244 | G180: 122.4293941 | H180: 80.01955934 | J180: 2017-09-01 | K180: 0.9123154161 | L180: 0.1633096369 | M180: -0.9200388708 | N180: -0.3306398374 | O180: -0.8235628209 | P180: 0.07986978094
A181: 2017-10-01 | B181: =MONTH(Serie_dessazonalizada[[#This Row],[Período]])&YEAR(Serie_dessazonalizada[[#This Row],[Período]]) -> 102017 | C181: 98.19479193 | D181: 103.4006926 | E181: 100.3937781 | F181: 124.8249781 | G181: 120.3238507 | H181: 79.68811578 | J181: 2017-10-01 | K181: 2.968165415 | L181: 0.1212071123 | M181: -0.2459654705 | N181: -1.430897764 | O181: -1.719802171 | P181: -0.3314435556
A182: 2017-11-01 | B182: =MONTH(Serie_dessazonalizada[[#This Row],[Período]])&YEAR(Serie_dessazonalizada[[#This Row],[Período]]) -> 112017 | C182: 95.26362582 | D182: 103.1269659 | E182: 99.71440154 | F182: 125.4815546 | G182: 121.4473613 | H182: 79.02676137 | J182: 2017-11-01 | K182: -2.98505252 | L182: -0.2647242364 | M182: -0.6767117891 | N182: 0.5259977348 | O182: 0.9337388616 | P182: -0.6613544075
A183: 2017-12-01 | B183: =MONTH(Serie_dessazonalizada[[#This Row],[Período]])&YEAR(Serie_dessazonalizada[[#This Row],[Período]]) -> 122017 | C183: 97.60482005 | D183: 103.036413 | E183: 100.9055226 | F183: 125.0776669 | G183: 121.3595236 | H183: 78.71930436 | J183: 2017-12-01 | K183: 2.457595132 | L183: -0.08780722603 | M183: 1.194532624 | N183: -0.3218702308 | O183: -0.07232576386 | P183: -0.3074570096
A184: 2018-01-01 | B184: =MONTH(Serie_dessazonalizada[[#This Row],[Período]])&YEAR(Serie_dessazonalizada[[#This Row],[Período]]) -> 12018 | C184: 99.28893368 | D184: 103.3115224 | E184: 101.361359 | F184: 126.5829373 | G184: 122.5983372 | H184: 80.27946704 | J184: 2018-01-01 | K184: 1.725441043 | L184: 0.2670021229 | M184: 0.4517457336 | N184: 1.20346863 | O184: 1.020779934 | P184: 1.560162678
A185: 2018-02-01 | B185: =MONTH(Serie_dessazonalizada[[#This Row],[Período]])&YEAR(Serie_dessazonalizada[[#This Row],[Período]]) -> 22018 | C185: 95.41237682 | D185: 103.1713044 | E185: 100.1524714 | F185: 125.8735389 | G185: 121.6825786 | H185: 79.79790934 | J185: 2018-02-01 | K185: -3.904319153 | L185: -0.1357234474 | M185: -1.19265137 | N185: -0.5604218194 | O185: -0.746958474 | P185: -0.4815577067
A186: 2018-03-01 | B186: =MONTH(Serie_dessazonalizada[[#This Row],[Período]])&YEAR(Serie_dessazonalizada[[#This Row],[Período]]) -> 32018 | C186: 100.4913054 | D186: 103.155164 | E186: 101.1420232 | F186: 124.6920204 | G186: 120.7493233 | H186: 80.43081238 | J186: 2018-03-01 | K186: 5.323133913 | L186: -0.01564427224 | M186: 0.988045383 | N186: -0.9386552518 | O186: -0.7669588573 | P186: 0.6329030443
A187: 2018-04-01 | B187: =MONTH(Serie_dessazonalizada[[#This Row],[Período]])&YEAR(Serie_dessazonalizada[[#This Row],[Período]]) -> 42018 | C187: 98.35756205 | D187: 104.2437182 | E187: 100.3255785 | F187: 125.6647579 | G187: 120.4009766 | H187: 80.15992786 | J187: 2018-04-01 | K187: -2.123311413 | L187: 1.055258972 | M187: -0.8072259832 | N187: 0.7801120778 | O187: -0.2884874549 | P187: -0.2708845168
A188: 2018-05-01 | B188: =MONTH(Serie_dessazonalizada[[#This Row],[Período]])&YEAR(Serie_dessazonalizada[[#This Row],[Período]]) -> 52018 | C188: 82.49259912 | D188: 104.7005931 | E188: 98.89122005 | F188: 127.0600441 | G188: 122.9962902 | H188: 78.49514889 | J188: 2018-05-01 | K188: -16.12988631 | L188: 0.4382757721 | M188: -1.429703676 | N188: 1.110324195 | O188: 2.15555859 | P188: -1.664778978
A189: 2018-06-01 | B189: =MONTH(Serie_dessazonalizada[[#This Row],[Período]])&YEAR(Serie_dessazonalizada[[#This Row],[Período]]) -> 62018 | C189: 105.8881145 | D189: 103.6506549 | E189: 99.71863361 | F189: 122.6595833 | G189: 118.8809166 | H189: 79.57025455 | J189: 2018-06-01 | K189: 28.36074468 | L189: -1.002800645 | M189: 0.8366906182 | N189: -3.46329235 | O189: -3.345933088 | P189: 1.075105659
A190: 2018-07-01 | B190: =MONTH(Serie_dessazonalizada[[#This Row],[Período]])&YEAR(Serie_dessazonalizada[[#This Row],[Período]]) -> 72018 | C190: 101.341149 | D190: 103.7474675 | E190: 98.89276902 | F190: 124.7684854 | G190: 120.4720527 | H190: 79.29515847 | J190: 2018-07-01 | K190: -4.294122644 | L190: 0.09340280597 | M190: -0.8281948482 | N190: 1.719312937 | O190: 1.338428471 | P190: -0.2750960789
A191: 2018-08-01 | B191: =MONTH(Serie_dessazonalizada[[#This Row],[Período]])&YEAR(Serie_dessazonalizada[[#This Row],[Período]]) -> 82018 | C191: 102.9289155 | D191: 102.7111815 | E191: 98.08526943 | F191: 123.6417356 | G191: 120.4283837 | H191: 79.39211177 | J191: 2018-08-01 | K191: 1.566753937 | L191: -0.9988542466 | M191: -0.8165405814 | N191: -0.9030724418 | O191: -0.03624819958 | P191: 0.09695330827
A192: 2018-09-01 | B192: =MONTH(Serie_dessazonalizada[[#This Row],[Período]])&YEAR(Serie_dessazonalizada[[#This Row],[Período]]) -> 92018 | C192: 97.58045934 | D192: 102.6180362 | E192: 95.13225835 | F192: 121.109636 | G192: 117.6550512 | H192: 79.74906152 | J192: 2018-09-01 | K192: -5.196262008 | L192: -0.09068661092 | M192: -3.010657054 | N192: -2.047932716 | O192: -2.302889414 | P192: 0.3569497497
A193: 2018-10-01 | B193: =MONTH(Serie_dessazonalizada[[#This Row],[Período]])&YEAR(Serie_dessazonalizada[[#This Row],[Período]]) -> 102018 | C193: 100.2417483 | D193: 102.6361486 | E193: 97.81757115 | F193: 123.8155935 | G193: 120.1585854 | H193: 79.89944134 | J193: 2018-10-01 | K193: 2.727276546 | L193: 0.01765027712 | M193: 2.82271529 | N193: 2.234304008 | O193: 2.127859497 | P193: 0.1503798187
A194: 2018-11-01 | B194: =MONTH(Serie_dessazonalizada[[#This Row],[Período]])&YEAR(Serie_dessazonalizada[[#This Row],[Período]]) -> 112018 | C194: 96.15839882 | D194: 103.8767702 | E194: 98.63990266 | F194: 122.1191362 | G194: 117.4764071 | H194: 79.75173722 | J194: 2018-11-01 | K194: -4.073501886 | L194: 1.20875697 | M194: 0.8406787292 | N194: -1.370148329 | O194: -2.232198616 | P194: -0.1477041279
A195: 2018-12-01 | B195: =MONTH(Serie_dessazonalizada[[#This Row],[Período]])&YEAR(Serie_dessazonalizada[[#This Row],[Período]]) -> 122018 | C195: 94.75382301 | D195: 104.2355231 | E195: 95.04175443 | F195: 127.7386043 | G195: 122.9520098 | H195: 79.75613134 | J195: 2018-12-01 | K195: -1.460689675 | L195: 0.3453639096 | M195: -3.64776134 | N195: 4.601627779 | O195: 4.661023303 | P195: 0.004394124043
A196: 2019-01-01 | B196: =MONTH(Serie_dessazonalizada[[#This Row],[Período]])&YEAR(Serie_dessazonalizada[[#This Row],[Período]]) -> 12019 | C196: 93.71002522 | D196: 103.3601094 | E196: 97.67628626 | F196: 125.2646495 | G196: 121.3453694 | H196: 81.18795267 | J196: 2019-01-01 | K196: -1.101589106 | L196: -0.8398420259 | M196: 2.771973068 | N196: -1.936732296 | O196: -1.306721525 | P196: 1.431821331
A197: 2019-02-01 | B197: =MONTH(Serie_dessazonalizada[[#This Row],[Período]])&YEAR(Serie_dessazonalizada[[#This Row],[Período]]) -> 22019 | C197: 95.30250404 | D197: 102.9426855 | E197: 96.93633369 | F197: 122.2738193 | G197: 118.2217227 | H197: 79.36635653 | J197: 2019-02-01 | K197: 1.699368677 | L197: -0.4038538871 | M197: -0.7575560036 | N197: -2.38760914 | O197: -2.574178757 | P197: -1.821596143
A198: 2019-03-01 | B198: =MONTH(Serie_dessazonalizada[[#This Row],[Período]])&YEAR(Serie_dessazonalizada[[#This Row],[Período]]) -> 32019 | C198: 90.47329832 | D198: 103.1027792 | E198: 91.72293841 | F198: 122.5361416 | G198: 118.449588 | H198: 78.83042685 | J198: 2019-03-01 | K198: -5.067239063 | L198: 0.1555172302 | M198: -5.378164287 | N198: 0.2145367731 | O198: 0.1927440322 | P198: -0.5359296807
A199: 2019-04-01 | B199: =MONTH(Serie_dessazonalizada[[#This Row],[Período]])&YEAR(Serie_dessazonalizada[[#This Row],[Período]]) -> 42019 | C199: 94.37652156 | D199: 103.9236329 | E199: 96.22168056 | F199: 122.0951895 | G199: 116.6955444 | H199: 79.88532841 | J199: 2019-04-01 | K199: 4.314226747 | L199: 0.7961509663 | M199: 4.904707836 | N199: -0.3598547307 | O199: -1.480835583 | P199: 1.054901561
A200: 2019-05-01 | B200: =MONTH(Serie_dessazonalizada[[#This Row],[Período]])&YEAR(Serie_dessazonalizada[[#This Row],[Período]]) -> 52019 | C200: 92.38098471 | D200: 104.8129303 | E200: 100.9541466 | F200: 128.1541076 | G200: 124.3488345 | H200: 80.8442471 | J200: 2019-05-01 | K200: -2.114442043 | L200: 0.8557219752 | M200: 4.918294963 | N200: 4.962454427 | O200: 6.558339574 | P200: 0.9589186951
... 45 more rows

Sheet MG_series
C1: Série Encadeada Mensal | K1: Variação - contra mês anterior | S1: Variação - contra mês ano anterior | AA1: Variação - acumulada no ano | AI1: Variação - últimos 12 meses
C2: Média 2006=100 | AQ2: Acumulado | AY2: 12 meses
A3: Período | B3: Mês | C3: Fat.real | D3: Emprego | E3: Horas | F3: Massa Real | G3: RMR Real | H3: UCI | J3: Período | K3: Fat.real | L3: Emprego | M3: Horas | N3: Massa Real | O3: RMR Real | P3: UCI | R3: Período | S3: Fat.real | T3: Emprego | U3: Horas | V3: Massa Real | W3: RMR Real | X3: UCI | Z3: Período | AA3: Fat.real | AB3: Emprego | AC3: Horas | AD3: Massa Real | AE3: RMR Real | AF3: UCI | AH3: Período | AI3: Fat.real | AJ3: Emprego | AK3: Horas | AL3: Massa Real | AM3: RMR Real | AN3: UCI | AQ3: Mês | AR3: Fat.real | AS3: Emprego | AT3: Horas | AU3: Massa Real | AV3: RMR Real | AW3: UCI | AX3: UCI | AY3: Mês | AZ3: Fat.real | BA3: Emprego | BB3: Horas | BC3: Massa Real | BD3: RMR Real | BE3: UCI
A4: 2003-01-01 | B4: =MONTH(Serie_Encadeada[[#This Row],[Período]])&YEAR(Serie_Encadeada[[#This Row],[Período]]) -> 12003 | C4: 83.4424 | D4: 84.8008 | E4: 86.2806 | H4: 82.1877 | J4: 2003-01-01 | R4: 2003-01-01 | Z4: 2003-01-01 | AH4: 2003-01-01 | AQ4: 2003-01-01 | AR4: =IF(MONTH(Serie_Encadeada[[#This Row],[Período]])=1,Serie_Encadeada[[#This Row],[Fat.real]],Serie_Encadeada[[#This Row],[Fat.real]]+AR3) -> 83.4424 | AS4: =IF(MONTH(Serie_Encadeada[[#This Row],[Período]])=1,Serie_Encadeada[[#This Row],[Emprego]],Serie_Encadeada[[#This Row],[Emprego]]+AS3) -> 84.8008 | AT4: =IF(MONTH(Serie_Encadeada[[#This Row],[Período]])=1,Serie_Encadeada[[#This Row],[Horas]],Serie_Encadeada[[#This Row],[Horas]]+AT3) -> 86.2806 | AW4: =IF(MONTH(Serie_Encadeada[[#This Row],[Período]])=1,Serie_Encadeada[[#This Row],[UCI]],Serie_Encadeada[[#This Row],[UCI]]+AW3)/MONTH(AQ4) -> 82.1877 | AX4: =AW4/MONTH(AQ4) -> 82.1877 | AY4: 2003-01-01
A5: 2003-02-01 | B5: =MONTH(Serie_Encadeada[[#This Row],[Período]])&YEAR(Serie_Encadeada[[#This Row],[Período]]) -> 22003 | C5: 87.4038 | D5: 85.5531 | E5: 85.9094 | H5: 80.4618 | J5: 2003-02-01 | K5: 4.747466516 | L5: 0.8871378572 | M5: -0.4302241755 | P5: -1.7259 | R5: 2003-02-01 | Z5: 2003-02-01 | AH5: 2003-02-01 | AQ5: 2003-02-01 | AR5: =IF(MONTH(Serie_Encadeada[[#This Row],[Período]])=1,Serie_Encadeada[[#This Row],[Fat.real]],Serie_Encadeada[[#This Row],[Fat.real]]+AR4) -> 170.8462 | AS5: =IF(MONTH(Serie_Encadeada[[#This Row],[Período]])=1,Serie_Encadeada[[#This Row],[Emprego]],Serie_Encadeada[[#This Row],[Emprego]]+AS4) -> 170.3539 | AT5: =IF(MONTH(Serie_Encadeada[[#This Row],[Período]])=1,Serie_Encadeada[[#This Row],[Horas]],Serie_Encadeada[[#This Row],[Horas]]+AT4) -> 172.19 | AW5: =IF(MONTH(Serie_Encadeada[[#This Row],[Período]])=1,Serie_Encadeada[[#This Row],[UCI]],Serie_Encadeada[[#This Row],[UCI]]+AW4) -> 162.6495 | AX5: =AW5/MONTH(AQ5) -> 81.32475 | AY5: 2003-02-01
A6: 2003-03-01 | B6: =MONTH(Serie_Encadeada[[#This Row],[Período]])&YEAR(Serie_Encadeada[[#This Row],[Período]]) -> 32003 | C6: 85.1541 | D6: 85.9447 | E6: 85.7479 | H6: 81.0698 | J6: 2003-03-01 | K6: -2.573915551 | L6: 0.4577274231 | M6: -0.1879887416 | P6: 0.608 | R6: 2003-03-01 | Z6: 2003-03-01 | AH6: 2003-03-01 | AQ6: 2003-03-01 | AR6: =IF(MONTH(Serie_Encadeada[[#This Row],[Período]])=1,Serie_Encadeada[[#This Row],[Fat.real]],Serie_Encadeada[[#This Row],[Fat.real]]+AR5) -> 256.0003 | AS6: =IF(MONTH(Serie_Encadeada[[#This Row],[Período]])=1,Serie_Encadeada[[#This Row],[Emprego]],Serie_Encadeada[[#This Row],[Emprego]]+AS5) -> 256.2986 | AT6: =IF(MONTH(Serie_Encadeada[[#This Row],[Período]])=1,Serie_Encadeada[[#This Row],[Horas]],Serie_Encadeada[[#This Row],[Horas]]+AT5) -> 257.9379 | AW6: =IF(MONTH(Serie_Encadeada[[#This Row],[Período]])=1,Serie_Encadeada[[#This Row],[UCI]],Serie_Encadeada[[#This Row],[UCI]]+AW5) -> 243.7193 | AX6: 81.23976667 | AY6: 2003-03-01
A7: 2003-04-01 | B7: =MONTH(Serie_Encadeada[[#This Row],[Período]])&YEAR(Serie_Encadeada[[#This Row],[Período]]) -> 42003 | C7: 78.0853 | D7: 86.8485 | E7: 85.7744 | H7: 79.6678 | J7: 2003-04-01 | K7: -8.301185733 | L7: 1.05160644 | M7: 0.03090454693 | P7: -1.402 | R7: 2003-04-01 | Z7: 2003-04-01 | AH7: 2003-04-01 | AQ7: 2003-04-01 | AR7: =IF(MONTH(Serie_Encadeada[[#This Row],[Período]])=1,Serie_Encadeada[[#This Row],[Fat.real]],Serie_Encadeada[[#This Row],[Fat.real]]+AR6) -> 334.0856 | AS7: =IF(MONTH(Serie_Encadeada[[#This Row],[Período]])=1,Serie_Encadeada[[#This Row],[Emprego]],Serie_Encadeada[[#This Row],[Emprego]]+AS6) -> 343.1471 | AT7: =IF(MONTH(Serie_Encadeada[[#This Row],[Período]])=1,Serie_Encadeada[[#This Row],[Horas]],Serie_Encadeada[[#This Row],[Horas]]+AT6) -> 343.7123 | AW7: =IF(MONTH(Serie_Encadeada[[#This Row],[Período]])=1,Serie_Encadeada[[#This Row],[UCI]],Serie_Encadeada[[#This Row],[UCI]]+AW6) -> 323.3871 | AX7: 80.846775 | AY7: 2003-04-01
A8: 2003-05-01 | B8: =MONTH(Serie_Encadeada[[#This Row],[Período]])&YEAR(Serie_Encadeada[[#This Row],[Período]]) -> 52003 | C8: 87.6128 | D8: 88.1929 | E8: 91.532 | H8: 79.7998 | J8: 2003-05-01 | K8: 12.20140026 | L8: 1.547982982 | M8: 6.712492305 | P8: 0.132 | R8: 2003-05-01 | Z8: 2003-05-01 | AH8: 2003-05-01 | AQ8: 2003-05-01 | AR8: =IF(MONTH(Serie_Encadeada[[#This Row],[Período]])=1,Serie_Encadeada[[#This Row],[Fat.real]],Serie_Encadeada[[#This Row],[Fat.real]]+AR7) -> 421.6984 | AS8: =IF(MONTH(Serie_Encadeada[[#This Row],[Período]])=1,Serie_Encadeada[[#This Row],[Emprego]],Serie_Encadeada[[#This Row],[Emprego]]+AS7) -> 431.34 | AT8: =IF(MONTH(Serie_Encadeada[[#This Row],[Período]])=1,Serie_Encadeada[[#This Row],[Horas]],Serie_Encadeada[[#This Row],[Horas]]+AT7) -> 435.2443 | AW8: =IF(MONTH(Serie_Encadeada[[#This Row],[Período]])=1,Serie_Encadeada[[#This Row],[UCI]],Serie_Encadeada[[#This Row],[UCI]]+AW7) -> 403.1869 | AX8: 80.63738 | AY8: 2003-05-01
A9: 2003-06-01 | B9: =MONTH(Serie_Encadeada[[#This Row],[Período]])&YEAR(Serie_Encadeada[[#This Row],[Período]]) -> 62003 | C9: 82.2324 | D9: 87.9622 | E9: 90.7265 | H9: 80.3948 | J9: 2003-06-01 | K9: -6.141111801 | L9: -0.2615856832 | M9: -0.8800201023 | P9: 0.595 | R9: 2003-06-01 | Z9: 2003-06-01 | AH9: 2003-06-01 | AQ9: 2003-06-01 | AR9: =IF(MONTH(Serie_Encadeada[[#This Row],[Período]])=1,Serie_Encadeada[[#This Row],[Fat.real]],Serie_Encadeada[[#This Row],[Fat.real]]+AR8) -> 503.9308 | AS9: =IF(MONTH(Serie_Encadeada[[#This Row],[Período]])=1,Serie_Encadeada[[#This Row],[Emprego]],Serie_Encadeada[[#This Row],[Emprego]]+AS8) -> 519.3022 | AT9: =IF(MONTH(Serie_Encadeada[[#This Row],[Período]])=1,Serie_Encadeada[[#This Row],[Horas]],Serie_Encadeada[[#This Row],[Horas]]+AT8) -> 525.9708 | AW9: =IF(MONTH(Serie_Encadeada[[#This Row],[Período]])=1,Serie_Encadeada[[#This Row],[UCI]],Serie_Encadeada[[#This Row],[UCI]]+AW8) -> 483.5817 | AX9: 80.59695 | AY9: 2003-06-01
A10: 2003-07-01 | B10: =MONTH(Serie_Encadeada[[#This Row],[Período]])&YEAR(Serie_Encadeada[[#This Row],[Período]]) -> 72003 | C10: 85.6187 | D10: 87.1149 | E10: 93.1129 | H10: 79.8844 | J10: 2003-07-01 | K10: 4.117963236 | L10: -0.9632546708 | M10: 2.630323004 | P10: -0.5104 | R10: 2003-07-01 | Z10: 2003-07-01 | AH10: 2003-07-01 | AQ10: 2003-07-01 | AR10: =IF(MONTH(Serie_Encadeada[[#This Row],[Período]])=1,Serie_Encadeada[[#This Row],[Fat.real]],Serie_Encadeada[[#This Row],[Fat.real]]+AR9) -> 589.5495 | AS10: =IF(MONTH(Serie_Encadeada[[#This Row],[Período]])=1,Serie_Encadeada[[#This Row],[Emprego]],Serie_Encadeada[[#This Row],[Emprego]]+AS9) -> 606.4171 | AT10: =IF(MONTH(Serie_Encadeada[[#This Row],[Período]])=1,Serie_Encadeada[[#This Row],[Horas]],Serie_Encadeada[[#This Row],[Horas]]+AT9) -> 619.0837 | AW10: =IF(MONTH(Serie_Encadeada[[#This Row],[Período]])=1,Serie_Encadeada[[#This Row],[UCI]],Serie_Encadeada[[#This Row],[UCI]]+AW9) -> 563.4661 | AX10: 80.49515714 | AY10: 2003-07-01
A11: 2003-08-01 | B11: =MONTH(Serie_Encadeada[[#This Row],[Período]])&YEAR(Serie_Encadeada[[#This Row],[Período]]) -> 82003 | C11: 89.654 | D11: 87.1934 | E11: 92.2255 | H11: 79.6672 | J11: 2003-08-01 | K11: 4.713105899 | L11: 0.09011087655 | M11: -0.9530365825 | P11: -0.2172 | R11: 2003-08-01 | Z11: 2003-08-01 | AH11: 2003-08-01 | AQ11: 2003-08-01 | AR11: =IF(MONTH(Serie_Encadeada[[#This Row],[Período]])=1,Serie_Encadeada[[#This Row],[Fat.real]],Serie_Encadeada[[#This Row],[Fat.real]]+AR10) -> 679.2035 | AS11: =IF(MONTH(Serie_Encadeada[[#This Row],[Período]])=1,Serie_Encadeada[[#This Row],[Emprego]],Serie_Encadeada[[#This Row],[Emprego]]+AS10) -> 693.6105 | AT11: =IF(MONTH(Serie_Encadeada[[#This Row],[Período]])=1,Serie_Encadeada[[#This Row],[Horas]],Serie_Encadeada[[#This Row],[Horas]]+AT10) -> 711.3092 | AW11: =IF(MONTH(Serie_Encadeada[[#This Row],[Período]])=1,Serie_Encadeada[[#This Row],[UCI]],Serie_Encadeada[[#This Row],[UCI]]+AW10) -> 643.1333 | AX11: 80.3916625 | AY11: 2003-08-01
A12: 2003-09-01 | B12: =MONTH(Serie_Encadeada[[#This Row],[Período]])&YEAR(Serie_Encadeada[[#This Row],[Período]]) -> 92003 | C12: 92.1342 | D12: 87.5011 | E12: 94.5584 | H12: 80.9007 | J12: 2003-09-01 | K12: 2.766413099 | L12: 0.3528936823 | M12: 2.529560696 | P12: 1.2335 | R12: 2003-09-01 | Z12: 2003-09-01 | AH12: 2003-09-01 | AQ12: 2003-09-01 | AR12: =IF(MONTH(Serie_Encadeada[[#This Row],[Período]])=1,Serie_Encadeada[[#This Row],[Fat.real]],Serie_Encadeada[[#This Row],[Fat.real]]+AR11) -> 771.3377 | AS12: =IF(MONTH(Serie_Encadeada[[#This Row],[Período]])=1,Serie_Encadeada[[#This Row],[Emprego]],Serie_Encadeada[[#This Row],[Emprego]]+AS11) -> 781.1116 | AT12: =IF(MONTH(Serie_Encadeada[[#This Row],[Período]])=1,Serie_Encadeada[[#This Row],[Horas]],Serie_Encadeada[[#This Row],[Horas]]+AT11) -> 805.8676 | AW12: =IF(MONTH(Serie_Encadeada[[#This Row],[Período]])=1,Serie_Encadeada[[#This Row],[UCI]],Serie_Encadeada[[#This Row],[UCI]]+AW11) -> 724.034 | AX12: 80.44822222 | AY12: 2003-09-01
A13: 2003-10-01 | B13: =MONTH(Serie_Encadeada[[#This Row],[Período]])&YEAR(Serie_Encadeada[[#This Row],[Período]]) -> 102003 | C13: 96.2653 | D13: 87.1709 | E13: 96.5932 | H13: 80.9068 | J13: 2003-10-01 | K13: 4.483785608 | L13: -0.3773666845 | M13: 2.151897663 | P13: 0.0061 | R13: 2003-10-01 | Z13: 2003-10-01 | AH13: 2003-10-01 | AQ13: 2003-10-01 | AR13: =IF(MONTH(Serie_Encadeada[[#This Row],[Período]])=1,Serie_Encadeada[[#This Row],[Fat.real]],Serie_Encadeada[[#This Row],[Fat.real]]+AR12) -> 867.603 | AS13: =IF(MONTH(Serie_Encadeada[[#This Row],[Período]])=1,Serie_Encadeada[[#This Row],[Emprego]],Serie_Encadeada[[#This Row],[Emprego]]+AS12) -> 868.2825 | AT13: =IF(MONTH(Serie_Encadeada[[#This Row],[Período]])=1,Serie_Encadeada[[#This Row],[Horas]],Serie_Encadeada[[#This Row],[Horas]]+AT12) -> 902.4608 | AW13: =IF(MONTH(Serie_Encadeada[[#This Row],[Período]])=1,Serie_Encadeada[[#This Row],[UCI]],Serie_Encadeada[[#This Row],[UCI]]+AW12) -> 804.9408 | AX13: 80.49408 | AY13: 2003-10-01
A14: 2003-11-01 | B14: =MONTH(Serie_Encadeada[[#This Row],[Período]])&YEAR(Serie_Encadeada[[#This Row],[Período]]) -> 112003 | C14: 92.5564 | D14: 87.0184 | E14: 92.6285 | H14: 81.6846 | J14: 2003-11-01 | K14: -3.852790154 | L14: -0.1749437025 | M14: -4.104533238 | P14: 0.7778 | R14: 2003-11-01 | Z14: 2003-11-01 | AH14: 2003-11-01 | AQ14: 2003-11-01 | AR14: =IF(MONTH(Serie_Encadeada[[#This Row],[Período]])=1,Serie_Encadeada[[#This Row],[Fat.real]],Serie_Encadeada[[#This Row],[Fat.real]]+AR13) -> 960.1594 | AS14: =IF(MONTH(Serie_Encadeada[[#This Row],[Período]])=1,Serie_Encadeada[[#This Row],[Emprego]],Serie_Encadeada[[#This Row],[Emprego]]+AS13) -> 955.3009 | AT14: =IF(MONTH(Serie_Encadeada[[#This Row],[Período]])=1,Serie_Encadeada[[#This Row],[Horas]],Serie_Encadeada[[#This Row],[Horas]]+AT13) -> 995.0893 | AW14: =IF(MONTH(Serie_Encadeada[[#This Row],[Período]])=1,Serie_Encadeada[[#This Row],[UCI]],Serie_Encadeada[[#This Row],[UCI]]+AW13) -> 886.6254 | AX14: 80.60230909 | AY14: 2003-11-01
A15: 2003-12-01 | B15: =MONTH(Serie_Encadeada[[#This Row],[Período]])&YEAR(Serie_Encadeada[[#This Row],[Período]]) -> 122003 | C15: 93.4625 | D15: 86.0889 | E15: 87.2444 | H15: 80.8402 | J15: 2003-12-01 | K15: 0.9789706601 | L15: -1.068164894 | M15: -5.812573884 | P15: -0.8444 | R15: 2003-12-01 | Z15: 2003-12-01 | AH15: 2003-12-01 | AQ15: 2003-12-01 | AR15: =IF(MONTH(Serie_Encadeada[[#This Row],[Período]])=1,Serie_Encadeada[[#This Row],[Fat.real]],Serie_Encadeada[[#This Row],[Fat.real]]+AR14) -> 1053.6219 | AS15: =IF(MONTH(Serie_Encadeada[[#This Row],[Período]])=1,Serie_Encadeada[[#This Row],[Emprego]],Serie_Encadeada[[#This Row],[Emprego]]+AS14) -> 1041.3898 | AT15: =IF(MONTH(Serie_Encadeada[[#This Row],[Período]])=1,Serie_Encadeada[[#This Row],[Horas]],Serie_Encadeada[[#This Row],[Horas]]+AT14) -> 1082.3337 | AW15: =IF(MONTH(Serie_Encadeada[[#This Row],[Período]])=1,Serie_Encadeada[[#This Row],[UCI]],Serie_Encadeada[[#This Row],[UCI]]+AW14) -> 967.4656 | AX15: 80.62213333 | AY15: 2003-12-01 | AZ15: =SUM(C4:C15) -> 1053.6219 | BA15: =SUM(D4:D15) -> 1041.3898 | BB15: 1082.3337 | BC15: 0 | BD15: 0 | BE15: =SUM(H4:H15)/12 -> 80.62213333
A16: 2004-01-01 | B16: =MONTH(Serie_Encadeada[[#This Row],[Período]])&YEAR(Serie_Encadeada[[#This Row],[Período]]) -> 12004 | C16: 79.6518 | D16: 86.1209 | E16: 84.5805 | H16: 80.2469 | J16: 2004-01-01 | K16: -14.77672863 | L16: 0.03717087801 | M16: -3.053376492 | P16: -0.5933 | R16: 2004-01-01 | S16: 1.556707012 | U16: -1.97043136 | X16: -1.9408 | Z16: 2004-01-01 | AA16: -4.542774417 | AB16: 1.556707012 | AC16: -1.97043136 | AF16: -1.9408 | AH16: 2004-01-01 | AQ16: 2004-01-01 | AR16: =IF(MONTH(Serie_Encadeada[[#This Row],[Período]])=1,Serie_Encadeada[[#This Row],[Fat.real]],Serie_Encadeada[[#This Row],[Fat.real]]+AR15) -> 79.6518 | AS16: =IF(MONTH(Serie_Encadeada[[#This Row],[Período]])=1,Serie_Encadeada[[#This Row],[Emprego]],Serie_Encadeada[[#This Row],[Emprego]]+AS15) -> 86.1209 | AT16: =IF(MONTH(Serie_Encadeada[[#This Row],[Período]])=1,Serie_Encadeada[[#This Row],[Horas]],Serie_Encadeada[[#This Row],[Horas]]+AT15) -> 84.5805 | AW16: =IF(MONTH(Serie_Encadeada[[#This Row],[Período]])=1,Serie_Encadeada[[#This Row],[UCI]],Serie_Encadeada[[#This Row],[UCI]]+AW15) -> 80.2469 | AX16: 80.2469 | AY16: 2004-01-01 | AZ16: 1049.8313 | BA16: 1042.7099 | BB16: 1080.6336 | BC16: 0 | BD16: 0 | BE16: 80.4604
A17: 2004-02-01 | B17: =MONTH(Serie_Encadeada[[#This Row],[Período]])&YEAR(Serie_Encadeada[[#This Row],[Período]]) -> 22004 | C17: 81.4002 | D17: 86.4875 | E17: 85.2634 | H17: 79.7755 | J17: 2004-02-01 | K17: 2.195053972 | L17: 0.425680642 | M17: 0.8073965039 | P17: -0.4714 | R17: 2004-02-01 | S17: -6.868808908 | T17: 1.092187191 | U17: -0.7519549665 | X17: -0.6863 | Z17: 2004-02-01 | AA17: -5.732758469 | AB17: 1.323421419 | AC17: -1.362506533 | AF17: -1.31355 | AH17: 2004-02-01 | AQ17: 2004-02-01 | AR17: =IF(MONTH(Serie_Encadeada[[#This Row],[Período]])=1,Serie_Encadeada[[#This Row],[Fat.real]],Serie_Encadeada[[#This Row],[Fat.real]]+AR16) -> 161.052 | AS17: =IF(MONTH(Serie_Encadeada[[#This Row],[Período]])=1,Serie_Encadeada[[#This Row],[Emprego]],Serie_Encadeada[[#This Row],[Emprego]]+AS16) -> 172.6084 | AT17: =IF(MONTH(Serie_Encadeada[[#This Row],[Período]])=1,Serie_Encadeada[[#This Row],[Horas]],Serie_Encadeada[[#This Row],[Horas]]+AT16) -> 169.8439 | AW17: =IF(MONTH(Serie_Encadeada[[#This Row],[Período]])=1,Serie_Encadeada[[#This Row],[UCI]],Serie_Encadeada[[#This Row],[UCI]]+AW16) -> 160.0224 | AX17: 80.0112 | AY17: 2004-02-01 | AZ17: 1043.8277 | BA17: 1043.6443 | BB17: 1079.9876 | BC17: 0 | BD17: 0 | BE17: 80.40320833
A18: 2004-03-01 | B18: =MONTH(Serie_Encadeada[[#This Row],[Período]])&YEAR(Serie_Encadeada[[#This Row],[Período]]) -> 32004 | C18: 96.0034 | D18: 86.895 | E18: 94.1459 | H18: 82.196 | J18: 2004-03-01 | K18: 17.94000506 | L18: 0.4711663535 | M18: 10.41771733 | P18: 2.4205 | R18: 2004-03-01 | S18: 12.74078406 | T18: 1.105710998 | U18: 9.793825855 | X18: 1.1262 | Z18: 2004-03-01 | AA18: 0.4121479545 | AB18: 1.250416506 | AC18: 2.346262414 | AF18: -0.5003 | AH18: 2004-03-01 | AQ18: 2004-03-01 | AR18: =IF(MONTH(Serie_Encadeada[[#This Row],[Período]])=1,Serie_Encadeada[[#This Row],[Fat.real]],Serie_Encadeada[[#This Row],[Fat.real]]+AR17) -> 257.0554 | AS18: =IF(MONTH(Serie_Encadeada[[#This Row],[Período]])=1,Serie_Encadeada[[#This Row],[Emprego]],Serie_Encadeada[[#This Row],[Emprego]]+AS17) -> 259.5034 | AT18: =IF(MONTH(Serie_Encadeada[[#This Row],[Período]])=1,Serie_Encadeada[[#This Row],[Horas]],Serie_Encadeada[[#This Row],[Horas]]+AT17) -> 263.9898 | AW18: =IF(MONTH(Serie_Encadeada[[#This Row],[Período]])=1,Serie_Encadeada[[#This Row],[UCI]],Serie_Encadeada[[#This Row],[UCI]]+AW17) -> 242.2184 | AX18: 80.73946667 | AY18: 2004-03-01 | AZ18: 1054.677 | BA18: 1044.5946 | BB18: 1088.3856 | BC18: 0 | BD18: 0 | BE18: 80.49705833
A19: 2004-04-01 | B19: =MONTH(Serie_Encadeada[[#This Row],[Período]])&YEAR(Serie_Encadeada[[#This Row],[Período]]) -> 42004 | C19: 88.2174 | D19: 87.5366 | E19: 89.6595 | H19: 81.6586 | J19: 2004-04-01 | K19: -8.110129433 | L19: 0.7383623914 | M19: -4.765369496 | P19: -0.5374 | R19: 2004-04-01 | S19: 12.97568172 | T19: 0.7922992337 | U19: 4.529440019 | X19: 1.9908 | Z19: 2004-04-01 | AA19: 3.348602873 | AB19: 1.134469736 | AC19: 2.891080709 | AF19: 0.122475 | AH19: 2004-04-01 | AQ19: 2004-04-01 | AR19: =IF(MONTH(Serie_Encadeada[[#This Row],[Período]])=1,Serie_Encadeada[[#This Row],[Fat.real]],Serie_Encadeada[[#This Row],[Fat.real]]+AR18) -> 345.2728 | AS19: =IF(MONTH(Serie_Encadeada[[#This Row],[Período]])=1,Serie_Encadeada[[#This Row],[Emprego]],Serie_Encadeada[[#This Row],[Emprego]]+AS18) -> 347.04 | AT19: =IF(MONTH(Serie_Encadeada[[#This Row],[Período]])=1,Serie_Encadeada[[#This Row],[Horas]],Serie_Encadeada[[#This Row],[Horas]]+AT18) -> 353.6493 | AW19: =IF(MONTH(Serie_Encadeada[[#This Row],[Período]])=1,Serie_Encadeada[[#This Row],[UCI]],Serie_Encadeada[[#This Row],[UCI]]+AW18) -> 323.877 | AX19: 80.96925 | AY19: 2004-04-01 | AZ19: 1064.8091 | BA19: 1045.2827 | BB19: 1092.2707 | BC19: 0 | BD19: 0 | BE19: 80.66295833
A20: 2004-05-01 | B20: =MONTH(Serie_Encadeada[[#This Row],[Período]])&YEAR(Serie_Encadeada[[#This Row],[Período]]) -> 52004 | C20: 97.5678 | D20: 89.8963 | E20: 97.6306 | H20: 82.2963 | J20: 2004-05-01 | K20: 10.59926953 | L20: 2.695672439 | M20: 8.890413174 | P20: 0.6377 | R20: 2004-05-01 | S20: 11.36249498 | T20: 1.931447996 | U20: 6.66280645 | X20: 2.4965 | Z20: 2004-05-01 | AA20: 5.013583167 | AB20: 1.297421987 | AC20: 3.684275704 | AF20: 0.59728 | AH20: 2004-05-01 | AQ20: 2004-05-01 | AR20: =IF(MONTH(Serie_Encadeada[[#This Row],[Período]])=1,Serie_Encadeada[[#This Row],[Fat.real]],Serie_Encadeada[[#This Row],[Fat.real]]+AR19) -> 442.8406 | AS20: =IF(MONTH(Serie_Encadeada[[#This Row],[Período]])=1,Serie_Encadeada[[#This Row],[Emprego]],Serie_Encadeada[[#This Row],[Emprego]]+AS19) -> 436.9363 | AT20: =IF(MONTH(Serie_Encadeada[[#This Row],[Período]])=1,Serie_Encadeada[[#This Row],[Horas]],Serie_Encadeada[[#This Row],[Horas]]+AT19) -> 451.2799 | AW20: =IF(MONTH(Serie_Encadeada[[#This Row],[Período]])=1,Serie_Encadeada[[#This Row],[UCI]],Serie_Encadeada[[#This Row],[UCI]]+AW19) -> 406.1733 | AX20: 81.23466 | AY20: 2004-05-01 | AZ20: 1074.7641 | BA20: 1046.9861 | BB20: 1098.3693 | BC20: 0 | BD20: 0 | BE20: 80.871
A21: 2004-06-01 | B21: =MONTH(Serie_Encadeada[[#This Row],[Período]])&YEAR(Serie_Encadeada[[#This Row],[Período]]) -> 62004 | C21: 99.7514 | D21: 91.5027 | E21: 100.1556 | H21: 82.8951 | J21: 2004-06-01 | K21: 2.23803345 | L21: 1.78694785 | M21: 2.586279302 | P21: 0.5988 | R21: 2004-06-01 | S21: 21.30425477 | T21: 4.025024385 | U21: 10.39288411 | X21: 2.5003 | Z21: 2004-06-01 | AA21: 7.671926384 | AB21: 1.759437953 | AC21: 4.841466484 | AF21: 0.91445 | AH21: 2004-06-01 | AQ21: 2004-06-01 | AR21: =IF(MONTH(Serie_Encadeada[[#This Row],[Período]])=1,Serie_Encadeada[[#This Row],[Fat.real]],Serie_Encadeada[[#This Row],[Fat.real]]+AR20) -> 542.592 | AS21: =IF(MONTH(Serie_Encadeada[[#This Row],[Período]])=1,Serie_Encadeada[[#This Row],[Emprego]],Serie_Encadeada[[#This Row],[Emprego]]+AS20) -> 528.439 | AT21: =IF(MONTH(Serie_Encadeada[[#This Row],[Período]])=1,Serie_Encadeada[[#This Row],[Horas]],Serie_Encadeada[[#This Row],[Horas]]+AT20) -> 551.4355 | AW21: =IF(MONTH(Serie_Encadeada[[#This Row],[Período]])=1,Serie_Encadeada[[#This Row],[UCI]],Serie_Encadeada[[#This Row],[UCI]]+AW20) -> 489.0684 | AX21: 81.5114 | AY21: 2004-06-01 | AZ21: 1092.2831 | BA21: 1050.5266 | BB21: 1107.7984 | BC21: 0 | BD21: 0 | BE21: 81.07935833
A22: 2004-07-01 | B22: =MONTH(Serie_Encadeada[[#This Row],[Período]])&YEAR(Serie_Encadeada[[#This Row],[Período]]) -> 72004 | C22: 97.9744 | D22: 91.9253 | E22: 101.8695 | H22: 82.888 | J22: 2004-07-01 | K22: -1.781428632 | L22: 0.4618442953 | M22: 1.711237315 | P22: -0.0071 | R22: 2004-07-01 | S22: 14.43107639 | T22: 5.521902683 | U22: 9.404282328 | X22: 3.0036 | Z22: 2004-07-01 | AA22: 8.653539694 | AB22: 2.299935144 | AC22: 5.527733972 | AF22: 1.2129 | AH22: 2004-07-01 | AQ22: 2004-07-01 | AR22: =IF(MONTH(Serie_Encadeada[[#This Row],[Período]])=1,Serie_Encadeada[[#This Row],[Fat.real]],Serie_Encadeada[[#This Row],[Fat.real]]+AR21) -> 640.5664 | AS22: =IF(MONTH(Serie_Encadeada[[#This Row],[Período]])=1,Serie_Encadeada[[#This Row],[Emprego]],Serie_Encadeada[[#This Row],[Emprego]]+AS21) -> 620.3643 | AT22: =IF(MONTH(Serie_Encadeada[[#This Row],[Período]])=1,Serie_Encadeada[[#This Row],[Horas]],Serie_Encadeada[[#This Row],[Horas]]+AT21) -> 653.305 | AW22: =IF(MONTH(Serie_Encadeada[[#This Row],[Período]])=1,Serie_Encadeada[[#This Row],[UCI]],Serie_Encadeada[[#This Row],[UCI]]+AW21) -> 571.9564 | AX22: 81.70805714 | AY22: 2004-07-01 | AZ22: 1104.6388 | BA22: 1055.337 | BB22: 1116.555 | BC22: 0 | BD22: 0 | BE22: 81.32965833
A23: 2004-08-01 | B23: =MONTH(Serie_Encadeada[[#This Row],[Período]])&YEAR(Serie_Encadeada[[#This Row],[Período]]) -> 82004 | C23: 100.0955 | D23: 92.211 | E23: 104.24 | H23: 83.2245 | J23: 2004-08-01 | K23: 2.164953294 | L23: 0.310795831 | M23: 2.326996795 | P23: 0.3365 | R23: 2004-08-01 | S23: 11.64644076 | T23: 5.754563992 | U23: 13.02730807 | X23: 3.5573 | Z23: 2004-08-01 | AA23: 9.048598837 | AB23: 2.734214664 | AC23: 6.500098691 | AF23: 1.50595 | AH23: 2004-08-01 | AQ23: 2004-08-01 | AR23: =IF(MONTH(Serie_Encadeada[[#This Row],[Período]])=1,Serie_Encadeada[[#This Row],[Fat.real]],Serie_Encadeada[[#This Row],[Fat.real]]+AR22) -> 740.6619 | AS23: =IF(MONTH(Serie_Encadeada[[#This Row],[Período]])=1,Serie_Encadeada[[#This Row],[Emprego]],Serie_Encadeada[[#This Row],[Emprego]]+AS22) -> 712.5753 | AT23: =IF(MONTH(Serie_Encadeada[[#This Row],[Período]])=1,Serie_Encadeada[[#This Row],[Horas]],Serie_Encadeada[[#This Row],[Horas]]+AT22) -> 757.545 | AW23: =IF(MONTH(Serie_Encadeada[[#This Row],[Período]])=1,Serie_Encadeada[[#This Row],[UCI]],Serie_Encadeada[[#This Row],[UCI]]+AW22) -> 655.1809 | AX23: 81.8976125 | AY23: 2004-08-01 | AZ23: 1115.0803 | BA23: 1060.3546 | BB23: 1128.5695 | BC23: 0 | BD23: 0 | BE23: 81.6261
A24: 2004-09-01 | B24: =MONTH(Serie_Encadeada[[#This Row],[Período]])&YEAR(Serie_Encadeada[[#This Row],[Período]]) -> 92004 | C24: 100.8154 | D24: 93.3621 | E24: 103.5887 | H24: 83.909 | J24: 2004-09-01 | K24: 0.7192131514 | L24: 1.248332628 | M24: -0.6248081351 | P24: 0.6845 | R24: 2004-09-01 | S24: 9.422342626 | T24: 6.698201508 | U24: 9.549971235 | X24: 3.0083 | Z24: 2004-09-01 | AA24: 9.093241521 | AB24: 3.178265436 | AC24: 6.857962772 | AF24: 1.672877778 | AH24: 2004-09-01 | AQ24: 2004-09-01 | AR24: =IF(MONTH(Serie_Encadeada[[#This Row],[Período]])=1,Serie_Encadeada[[#This Row],[Fat.real]],Serie_Encadeada[[#This Row],[Fat.real]]+AR23) -> 841.4773 | AS24: =IF(MONTH(Serie_Encadeada[[#This Row],[Período]])=1,Serie_Encadeada[[#This Row],[Emprego]],Serie_Encadeada[[#This Row],[Emprego]]+AS23) -> 805.9374 | AT24: =IF(MONTH(Serie_Encadeada[[#This Row],[Período]])=1,Serie_Encadeada[[#This Row],[Horas]],Serie_Encadeada[[#This Row],[Horas]]+AT23) -> 861.1337 | AW24: =IF(MONTH(Serie_Encadeada[[#This Row],[Período]])=1,Serie_Encadeada[[#This Row],[UCI]],Serie_Encadeada[[#This Row],[UCI]]+AW23) -> 739.0899 | AX24: 82.1211 | AY24: 2004-09-01 | AZ24: 1123.7615 | BA24: 1066.2156 | BB24: 1137.5998 | BC24: 0 | BD24: 0 | BE24: 81.87679167
A25: 2004-10-01 | B25: =MONTH(Serie_Encadeada[[#This Row],[Período]])&YEAR(Serie_Encadeada[[#This Row],[Período]]) -> 102004 | C25: 100.1382 | D25: 94.0116 | E25: 105.1133 | H25: 84.2668 | J25: 2004-10-01 | K25: -0.6717227725 | L25: 0.6956784391 | M25: 1.471782154 | P25: 0.3578 | R25: 2004-10-01 | S25: 4.023152683 | T25: 7.847458269 | U25: 8.820600208 | X25: 3.36 | Z25: 2004-10-01 | AA25: 8.530687423 | AB25: 3.647027321 | AC25: 7.068029991 | AF25: 1.84159 | AH25: 2004-10-01 | AQ25: 2004-10-01 | AR25: =IF(MONTH(Serie_Encadeada[[#This Row],[Período]])=1,Serie_Encadeada[[#This Row],[Fat.real]],Serie_Encadeada[[#This Row],[Fat.real]]+AR24) -> 941.6155 | AS25: =IF(MONTH(Serie_Encadeada[[#This Row],[Período]])=1,Serie_Encadeada[[#This Row],[Emprego]],Serie_Encadeada[[#This Row],[Emprego]]+AS24) -> 899.949 | AT25: =IF(MONTH(Serie_Encadeada[[#This Row],[Período]])=1,Serie_Encadeada[[#This Row],[Horas]],Serie_Encadeada[[#This Row],[Horas]]+AT24) -> 966.247 | AW25: =IF(MONTH(Serie_Encadeada[[#This Row],[Período]])=1,Serie_Encadeada[[#This Row],[UCI]],Serie_Encadeada[[#This Row],[UCI]]+AW24) -> 823.3567 | AX25: 82.33567 | AY25: 2004-10-01 | AZ25: 1127.6344 | BA25: 1073.0563 | BB25: 1146.1199 | BC25: 0 | BD25: 0 | BE25: 82.15679167
A26: 2004-11-01 | B26: =MONTH(Serie_Encadeada[[#This Row],[Período]])&YEAR(Serie_Encadeada[[#This Row],[Período]]) -> 112004 | C26: 96.0112 | D26: 93.8054 | E26: 104.3065 | H26: 83.3531 | J26: 2004-11-01 | K26: -4.121304357 | L26: -0.2193346353 | M26: -0.7675527264 | P26: -0.9137 | R26: 2004-11-01 | S26: 3.732643016 | T26: 7.799499876 | U26: 12.60735087 | X26: 1.6685 | Z26: 2004-11-01 | AA26: 8.068170764 | AB26: 4.025276224 | AC26: 7.583661084 | AF26: 1.825854545 | AH26: 2004-11-01 | AQ26: 2004-11-01 | AR26: =IF(MONTH(Serie_Encadeada[[#This Row],[Período]])=1,Serie_Encadeada[[#This Row],[Fat.real]],Serie_Encadeada[[#This Row],[Fat.real]]+AR25) -> 1037.6267 | AS26: =IF(MONTH(Serie_Encadeada[[#This Row],[Período]])=1,Serie_Encadeada[[#This Row],[Emprego]],Serie_Encadeada[[#This Row],[Emprego]]+AS25) -> 993.7544 | AT26: =IF(MONTH(Serie_Encadeada[[#This Row],[Período]])=1,Serie_Encadeada[[#This Row],[Horas]],Serie_Encadeada[[#This Row],[Horas]]+AT25) -> 1070.5535 | AW26: =IF(MONTH(Serie_Encadeada[[#This Row],[Período]])=1,Serie_Encadeada[[#This Row],[UCI]],Serie_Encadeada[[#This Row],[UCI]]+AW25) -> 906.7098 | AX26: 82.42816364 | AY26: 2004-11-01 | AZ26: 1131.0892 | BA26: 1079.8433 | BB26: 1157.7979 | BC26: 0 | BD26: 0 | BE26: 82.29583333
A27: 2004-12-01 | B27: =MONTH(Serie_Encadeada[[#This Row],[Período]])&YEAR(Serie_Encadeada[[#This Row],[Período]]) -> 122004 | C27: 92.653 | D27: 92.9566 | E27: 96.0543 | H27: 82.5466 | J27: 2004-12-01 | K27: -3.497716933 | L27: -0.9048519595 | M27: -7.911491614 | P27: -0.8065 | R27: 2004-12-01 | S27: -0.8661227765 | T27: 7.977451216 | U27: 10.09795471 | X27: 1.7064 | Z27: 2004-12-01 | AA27: 7.275646036 | AB27: 4.351991925 | AC27: 7.786332441 | AF27: 1.8159 | AH27: 2004-12-01 | AI27: 7.275646036 | AJ27: 4.351991925 | AK27: 7.786332441 | AN27: 1.8159 | AQ27: 2004-12-01 | AR27: =IF(MONTH(Serie_Encadeada[[#This Row],[Período]])=1,Serie_Encadeada[[#This Row],[Fat.real]],Serie_Encadeada[[#This Row],[Fat.real]]+AR26) -> 1130.2797 | AS27: =IF(MONTH(Serie_Encadeada[[#This Row],[Período]])=1,Serie_Encadeada[[#This Row],[Emprego]],Serie_Encadeada[[#This Row],[Emprego]]+AS26) -> 1086.711 | AT27: =IF(MONTH(Serie_Encadeada[[#This Row],[Período]])=1,Serie_Encadeada[[#This Row],[Horas]],Serie_Encadeada[[#This Row],[Horas]]+AT26) -> 1166.6078 | AW27: =IF(MONTH(Serie_Encadeada[[#This Row],[Período]])=1,Serie_Encadeada[[#This Row],[UCI]],Serie_Encadeada[[#This Row],[UCI]]+AW26) -> 989.2564 | AX27: 82.43803333 | AY27: 2004-12-01 | AZ27: 1130.2797 | BA27: 1086.711 | BB27: 1166.6078 | BC27: 0 | BD27: 0 | BE27: 82.43803333
A28: 2005-01-01 | B28: =MONTH(Serie_Encadeada[[#This Row],[Período]])&YEAR(Serie_Encadeada[[#This Row],[Período]]) -> 12005 | C28: 81.7076 | D28: 92.8694 | E28: 93.1697 | H28: 82.5038 | J28: 2005-01-01 | K28: -11.81332499 | L28: -0.09380721756 | M28: -3.003093042 | P28: -0.0428 | R28: 2005-01-01 | S28: 2.580983732 | T28: 7.836076957 | U28: 10.15505938 | X28: 2.2569 | Z28: 2005-01-01 | AA28: 2.580983732 | AB28: 7.836076957 | AC28: 10.15505938 | AF28: 2.2569 | AH28: 2005-01-01 | AI28: 7.858805505 | AJ28: 4.867087193 | AK28: 8.750736605 | AN28: 2.165708333 | AQ28: 2005-01-01 | AR28: =IF(MONTH(Serie_Encadeada[[#This Row],[Período]])=1,Serie_Encadeada[[#This Row],[Fat.real]],Serie_Encadeada[[#This Row],[Fat.real]]+AR27) -> 81.7076 | AS28: =IF(MONTH(Serie_Encadeada[[#This Row],[Período]])=1,Serie_Encadeada[[#This Row],[Emprego]],Serie_Encadeada[[#This Row],[Emprego]]+AS27) -> 92.8694 | AT28: =IF(MONTH(Serie_Encadeada[[#This Row],[Período]])=1,Serie_Encadeada[[#This Row],[Horas]],Serie_Encadeada[[#This Row],[Horas]]+AT27) -> 93.1697 | AW28: =IF(MONTH(Serie_Encadeada[[#This Row],[Período]])=1,Serie_Encadeada[[#This Row],[UCI]],Serie_Encadeada[[#This Row],[UCI]]+AW27) -> 82.5038 | AX28: 82.5038 | AY28: 2005-01-01 | AZ28: 1132.3355 | BA28: 1093.4595 | BB28: 1175.197 | BC28: 0 | BD28: 0 | BE28: 82.62610833
A29: 2005-02-01 | B29: =MONTH(Serie_Encadeada[[#This Row],[Período]])&YEAR(Serie_Encadeada[[#This Row],[Período]]) -> 22005 | C29: 83.9289 | D29: 92.9606 | E29: 90.1293 | H29: 81.9562 | J29: 2005-02-01 | K29: 2.718596557 | L29: 0.0982024219 | M29: -3.26329268 | P29: -0.5476 | R29: 2005-02-01 | S29: 3.106503424 | T29: 7.484434167 | U29: 5.706903548 | X29: 2.1807 | Z29: 2005-02-01 | AA29: 2.84659613 | AB29: 7.659882138 | AC29: 7.922039002 | AF29: 2.2188 | AH29: 2005-02-01 | AI29: 8.721410631 | AJ29: 5.393437208 | AK29: 9.266337873 | AN29: 2.404625 | AQ29: 2005-02-01 | AR29: =IF(MONTH(Serie_Encadeada[[#This Row],[Período]])=1,Serie_Encadeada[[#This Row],[Fat.real]],Serie_Encadeada[[#This Row],[Fat.real]]+AR28) -> 165.6365 | AS29: =IF(MONTH(Serie_Encadeada[[#This Row],[Período]])=1,Serie_Encadeada[[#This Row],[Emprego]],Serie_Encadeada[[#This Row],[Emprego]]+AS28) -> 185.83 | AT29: =IF(MONTH(Serie_Encadeada[[#This Row],[Período]])=1,Serie_Encadeada[[#This Row],[Horas]],Serie_Encadeada[[#This Row],[Horas]]+AT28) -> 183.299 | AW29: =IF(MONTH(Serie_Encadeada[[#This Row],[Período]])=1,Serie_Encadeada[[#This Row],[UCI]],Serie_Encadeada[[#This Row],[UCI]]+AW28) -> 164.46 | AX29: 82.23 | AY29: 2005-02-01 | AZ29: 1134.8642 | BA29: 1099.9326 | BB29: 1180.0629 | BC29: 0 | BD29: 0 | BE29: 82.80783333
A30: 2005-03-01 | B30: =MONTH(Serie_Encadeada[[#This Row],[Período]])&YEAR(Serie_Encadeada[[#This Row],[Período]]) -> 32005 | C30: 96.3506 | D30: 93.5709 | E30: 99.8729 | H30: 83.7122 | J30: 2005-03-01 | K30: 14.80026546 | L30: 0.6565146955 | M30: 10.81069086 | P30: 1.756 | R30: 2005-03-01 | S30: 0.3616538581 | T30: 7.682720525 | U30: 6.083111426 | X30: 1.5162 | Z30: 2005-03-01 | AA30: 1.918535849 | AB30: 7.667529597 | AC30: 7.26622771 | AF30: 1.9846 | AH30: 2005-03-01 | AI30: 7.635930242 | AJ30: 5.936647576 | AK30: 8.94942932 | AN30: 2.437125 | AQ30: 2005-03-01 | AR30: =IF(MONTH(Serie_Encadeada[[#This Row],[Período]])=1,Serie_Encadeada[[#This Row],[Fat.real]],Serie_Encadeada[[#This Row],[Fat.real]]+AR29) -> 261.9871 | AS30: =IF(MONTH(Serie_Encadeada[[#This Row],[Período]])=1,Serie_Encadeada[[#This Row],[Emprego]],Serie_Encadeada[[#This Row],[Emprego]]+AS29) -> 279.4009 | AT30: =IF(MONTH(Serie_Encadeada[[#This Row],[Período]])=1,Serie_Encadeada[[#This Row],[Horas]],Serie_Encadeada[[#This Row],[Horas]]+AT29) -> 283.1719 | AW30: =IF(MONTH(Serie_Encadeada[[#This Row],[Período]])=1,Serie_Encadeada[[#This Row],[UCI]],Serie_Encadeada[[#This Row],[UCI]]+AW29) -> 248.1722 | AX30: 82.72406667 | AY30: 2005-03-01 | AZ30: 1135.2114 | BA30: 1106.6085 | BB30: 1185.7899 | BC30: 0 | BD30: 0 | BE30: 82.93418333
A31: 2005-04-01 | B31: =MONTH(Serie_Encadeada[[#This Row],[Período]])&YEAR(Serie_Encadeada[[#This Row],[Período]]) -> 42005 | C31: 92.5604 | D31: 94.8142 | E31: 99.9237 | H31: 83.757 | J31: 2005-04-01 | K31: -3.933758586 | L31: 1.328725063 | M31: 0.05086464897 | P31: 0.0448 | R31: 2005-04-01 | S31: 4.923065064 | T31: 8.313779608 | U31: 11.44797818 | X31: 2.0984 | Z31: 2005-04-01 | AA31: 2.6861948 | AB31: 7.830538266 | AC31: 8.326412635 | AF31: 2.01305 | AH31: 2005-04-01 | AI31: 7.019596283 | AJ31: 6.563143157 | AK31: 9.501618967 | AN31: 2.446091667 | AQ31: 2005-04-01 | AR31: =IF(MONTH(Serie_Encadeada[[#This Row],[Período]])=1,Serie_Encadeada[[#This Row],[Fat.real]],Serie_Encadeada[[#This Row],[Fat.real]]+AR30) -> 354.5475 | AS31: =IF(MONTH(Serie_Encadeada[[#This Row],[Período]])=1,Serie_Encadeada[[#This Row],[Emprego]],Serie_Encadeada[[#This Row],[Emprego]]+AS30) -> 374.2151 | AT31: =IF(MONTH(Serie_Encadeada[[#This Row],[Período]])=1,Serie_Encadeada[[#This Row],[Horas]],Serie_Encadeada[[#This Row],[Horas]]+AT30) -> 383.0956 | AW31: =IF(MONTH(Serie_Encadeada[[#This Row],[Período]])=1,Serie_Encadeada[[#This Row],[UCI]],Serie_Encadeada[[#This Row],[UCI]]+AW30) -> 331.9292 | AX31: 82.9823 | AY31: 2005-04-01 | AZ31: 1139.5544 | BA31: 1113.8861 | BB31: 1196.0541 | BC31: 0 | BD31: 0 | BE31: 83.10905
A32: 2005-05-01 | B32: =MONTH(Serie_Encadeada[[#This Row],[Período]])&YEAR(Serie_Encadeada[[#This Row],[Período]]) -> 52005 | C32: 98.379 | D32: 96.2103 | E32: 106.8342 | H32: 83.5279 | J32: 2005-05-01 | K32: 6.286273612 | L32: 1.472458767 | M32: 6.915776738 | P32: -0.2291 | R32: 2005-05-01 | S32: 0.831421842 | T32: 7.023648359 | U32: 9.426962448 | X32: 1.2316 | Z32: 2005-05-01 | AA32: 2.277546368 | AB32: 7.664526843 | AC32: 8.564507305 | AF32: 1.85676 | AH32: 2005-05-01 | AI32: 6.103804547 | AJ32: 6.992834002 | AK32: 9.731553859 | AN32: 2.340683333 | AQ32: 2005-05-01 | AR32: =IF(MONTH(Serie_Encadeada[[#This Row],[Período]])=1,Serie_Encadeada[[#This Row],[Fat.real]],Serie_Encadeada[[#This Row],[Fat.real]]+AR31) -> 452.9265 | AS32: =IF(MONTH(Serie_Encadeada[[#This Row],[Período]])=1,Serie_Encadeada[[#This Row],[Emprego]],Serie_Encadeada[[#This Row],[Emprego]]+AS31) -> 470.4254 | AT32: =IF(MONTH(Serie_Encadeada[[#This Row],[Período]])=1,Serie_Encadeada[[#This Row],[Horas]],Serie_Encadeada[[#This Row],[Horas]]+AT31) -> 489.9298 | AW32: =IF(MONTH(Serie_Encadeada[[#This Row],[Período]])=1,Serie_Encadeada[[#This Row],[UCI]],Serie_Encadeada[[#This Row],[UCI]]+AW31) -> 415.4571 | AX32: 83.09142 | AY32: 2005-05-01 | AZ32: 1140.3656 | BA32: 1120.2001 | BB32: 1205.2577 | BC32: 0 | BD32: 0 | BE32: 83.21168333
A33: 2005-06-01 | B33: =MONTH(Serie_Encadeada[[#This Row],[Período]])&YEAR(Serie_Encadeada[[#This Row],[Período]]) -> 62005 | C33: 96.3326 | D33: 96.8067 | E33: 108.5872 | H33: 84.0699 | J33: 2005-06-01 | K33: -2.080118725 | L33: 0.619892049 | M33: 1.640860324 | P33: 0.542 | R33: 2005-06-01 | S33: -3.427320318 | T33: 5.796550266 | U33: 8.418500813 | X33: 1.1748 | Z33: 2005-06-01 | AA33: 1.228750147 | AB33: 7.341074372 | AC33: 8.537988577 | AF33: 1.7431 | AH33: 2005-06-01 | AI33: 4.089022342 | AJ33: 7.137134843 | AK33: 9.55867963 | AN33: 2.230225 | AQ33: 2005-06-01 | AR33: =IF(MONTH(Serie_Encadeada[[#This Row],[Período]])=1,Serie_Encadeada[[#This Row],[Fat.real]],Serie_Encadeada[[#This Row],[Fat.real]]+AR32) -> 549.2591 | AS33: =IF(MONTH(Serie_Encadeada[[#This Row],[Período]])=1,Serie_Encadeada[[#This Row],[Emprego]],Serie_Encadeada[[#This Row],[Emprego]]+AS32) -> 567.2321 | AT33: =IF(MONTH(Serie_Encadeada[[#This Row],[Período]])=1,Serie_Encadeada[[#This Row],[Horas]],Serie_Encadeada[[#This Row],[Horas]]+AT32) -> 598.517 | AW33: =IF(MONTH(Serie_Encadeada[[#This Row],[Período]])=1,Serie_Encadeada[[#This Row],[UCI]],Serie_Encadeada[[#This Row],[UCI]]+AW32) -> 499.527 | AX33: 83.2545 | AY33: 2005-06-01 | AZ33: 1136.9468 | BA33: 1125.5041 | BB33: 1213.6893 | BC33: 0 | BD33: 0 | BE33: 83.30958333
A34: 2005-07-01 | B34: =MONTH(Serie_Encadeada[[#This Row],[Período]])&YEAR(Serie_Encadeada[[#This Row],[Período]]) -> 72005 | C34: 94.9652 | D34: 97.3704 | E34: 107.643 | H34: 83.4517 | J34: 2005-07-01 | K34: -1.419457172 | L34: 0.5822944073 | M34: -0.8695315838 | P34: -0.6182 | R34: 2005-07-01 | S34: -3.071414574 | T34: 5.923396497 | U34: 5.667545242 | X34: 0.5637 | Z34: 2005-07-01 | AA34: 0.5710415033 | AB34: 7.131003509 | AC34: 8.09040188 | AF34: 1.574614286 | AH34: 2005-07-01 | AI34: 2.652342105 | AJ34: 7.164744532 | AK34: 9.216545535 | AN34: 2.0269 | AQ34: 2005-07-01 | AR34: =IF(MONTH(Serie_Encadeada[[#This Row],[Período]])=1,Serie_Encadeada[[#This Row],[Fat.real]],Serie_Encadeada[[#This Row],[Fat.real]]+AR33) -> 644.2243 | AS34: =IF(MONTH(Serie_Encadeada[[#This Row],[Período]])=1,Serie_Encadeada[[#This Row],[Emprego]],Serie_Encadeada[[#This Row],[Emprego]]+AS33) -> 664.6025 | AT34: =IF(MONTH(Serie_Encadeada[[#This Row],[Período]])=1,Serie_Encadeada[[#This Row],[Horas]],Serie_Encadeada[[#This Row],[Horas]]+AT33) -> 706.16 | AW34: =IF(MONTH(Serie_Encadeada[[#This Row],[Período]])=1,Serie_Encadeada[[#This Row],[UCI]],Serie_Encadeada[[#This Row],[UCI]]+AW33) -> 582.9787 | AX34: 83.28267143 | AY34: 2005-07-01 | AZ34: 1133.9376 | BA34: 1130.9492 | BB34: 1219.4628 | BC34: 0 | BD34: 0 | BE34: 83.35655833
A35: 2005-08-01 | B35: =MONTH(Serie_Encadeada[[#This Row],[Período]])&YEAR(Serie_Encadeada[[#This Row],[Período]]) -> 82005 | C35: 101.2597 | D35: 98.0232 | E35: 111.3265 | H35: 87.151 | J35: 2005-08-01 | K35: 6.628217494 | L35: 0.6704296172 | M35: 3.421959626 | P35: 3.6993 | R35: 2005-08-01 | S35: 1.16308925 | T35: 6.303152552 | U35: 6.798254029 | X35: 3.9265 | Z35: 2005-08-01 | AA35: 0.6510527948 | AB35: 7.023875231 | AC35: 7.912599252 | AF35: 1.8686 | AH35: 2005-08-01 | AI35: 1.795520915 | AJ35: 7.205778143 | AK35: 8.681769266 | AN35: 2.057666667 | AQ35: 2005-08-01 | AR35: =IF(MONTH(Serie_Encadeada[[#This Row],[Período]])=1,Serie_Encadeada[[#This Row],[Fat.real]],Serie_Encadeada[[#This Row],[Fat.real]]+AR34) -> 745.484 | AS35: =IF(MONTH(Serie_Encadeada[[#This Row],[Período]])=1,Serie_Encadeada[[#This Row],[Emprego]],Serie_Encadeada[[#This Row],[Emprego]]+AS34) -> 762.6257 | AT35: =IF(MONTH(Serie_Encadeada[[#This Row],[Período]])=1,Serie_Encadeada[[#This Row],[Horas]],Serie_Encadeada[[#This Row],[Horas]]+AT34) -> 817.4865 | AW35: =IF(MONTH(Serie_Encadeada[[#This Row],[Período]])=1,Serie_Encadeada[[#This Row],[UCI]],Serie_Encadeada[[#This Row],[UCI]]+AW34) -> 670.1297 | AX35: 83.7662125 | AY35: 2005-08-01 | AZ35: 1135.1018 | BA35: 1136.7614 | BB35: 1226.5493 | BC35: 0 | BD35: 0 | BE35: 83.68376667
A36: 2005-09-01 | B36: =MONTH(Serie_Encadeada[[#This Row],[Período]])&YEAR(Serie_Encadeada[[#This Row],[Período]]) -> 92005 | C36: 100.6316 | D36: 98.5905 | E36: 108.4643 | H36: 84.4511 | J36: 2005-09-01 | K36: -0.6202862541 | L36: 0.5787405431 | M36: -2.570996124 | P36: -2.6999 | R36: 2005-09-01 | S36: -0.1823134164 | T36: 5.600131102 | U36: 4.706690981 | X36: 0.5421 | Z36: 2005-09-01 | AA36: 0.5512091651 | AB36: 6.858944628 | AC36: 7.526949648 | AF36: 1.721211111 | AH36: 2005-09-01 | AI36: 0.9927818314 | AJ36: 7.106836554 | AK36: 8.247636823 | AN36: 1.85215 | AQ36: 2005-09-01 | AR36: =IF(MONTH(Serie_Encadeada[[#This Row],[Período]])=1,Serie_Encadeada[[#This Row],[Fat.real]],Serie_Encadeada[[#This Row],[Fat.real]]+AR35) -> 846.1156 | AS36: =IF(MONTH(Serie_Encadeada[[#This Row],[Período]])=1,Serie_Encadeada[[#This Row],[Emprego]],Serie_Encadeada[[#This Row],[Emprego]]+AS35) -> 861.2162 | AT36: =IF(MONTH(Serie_Encadeada[[#This Row],[Período]])=1,Serie_Encadeada[[#This Row],[Horas]],Serie_Encadeada[[#This Row],[Horas]]+AT35) -> 925.9508 | AW36: =IF(MONTH(Serie_Encadeada[[#This Row],[Período]])=1,Serie_Encadeada[[#This Row],[UCI]],Serie_Encadeada[[#This Row],[UCI]]+AW35) -> 754.5808 | AX36: 83.84231111 | AY36: 2005-09-01 | AZ36: 1134.918 | BA36: 1141.9898 | BB36: 1231.4249 | BC36: 0 | BD36: 0 | BE36: 83.72894167
A37: 2005-10-01 | B37: =MONTH(Serie_Encadeada[[#This Row],[Período]])&YEAR(Serie_Encadeada[[#This Row],[Período]]) -> 102005 | C37: 98.6659 | D37: 98.9078 | E37: 108.3808 | H37: 84.7933 | J37: 2005-10-01 | K37: -1.953362562 | L37: 0.3218362824 | M37: -0.07698385552 | P37: 0.3422 | R37: 2005-10-01 | S37: -1.47026809 | T37: 5.208080705 | U37: 3.108550488 | X37: 0.5265 | Z37: 2005-10-01 | AA37: 0.3362306589 | AB37: 6.686490012 | AC37: 7.046293546 | AF37: 1.60174 | AH37: 2005-10-01 | AI37: 0.5153532031 | AJ37: 6.880319327 | AK37: 7.728030898 | AN37: 1.616025 | AQ37: 2005-10-01 | AR37: =IF(MONTH(Serie_Encadeada[[#This Row],[Período]])=1,Serie_Encadeada[[#This Row],[Fat.real]],Serie_Encadeada[[#This Row],[Fat.real]]+AR36) -> 944.7815 | AS37: =IF(MONTH(Serie_Encadeada[[#This Row],[Período]])=1,Serie_Encadeada[[#This Row],[Emprego]],Serie_Encadeada[[#This Row],[Emprego]]+AS36) -> 960.124 | AT37: =IF(MONTH(Serie_Encadeada[[#This Row],[Período]])=1,Serie_Encadeada[[#This Row],[Horas]],Serie_Encadeada[[#This Row],[Horas]]+AT36) -> 1034.3316 | AW37: =IF(MONTH(Serie_Encadeada[[#This Row],[Período]])=1,Serie_Encadeada[[#This Row],[UCI]],Serie_Encadeada[[#This Row],[UCI]]+AW36) -> 839.3741 | AX37: 83.93741 | AY37: 2005-10-01 | AZ37: 1133.4457 | BA37: 1146.886 | BB37: 1234.6924 | BC37: 0 | BD37: 0 | BE37: 83.77281667
A38: 2005-11-01 | B38: =MONTH(Serie_Encadeada[[#This Row],[Período]])&YEAR(Serie_Encadeada[[#This Row],[Período]]) -> 112005 | C38: 96.1591 | D38: 97.8682 | E38: 105.1496 | H38: 83.5356 | J38: 2005-11-01 | K38: -2.540695418 | L38: -1.051079895 | M38: -2.981339868 | P38: -1.2577 | R38: 2005-11-01 | S38: 0.1540445281 | T38: 4.331093946 | U38: 0.8082909502 | X38: 0.1825 | Z38: 2005-11-01 | AA38: 0.3193730462 | AB38: 6.464152511 | AC38: 6.438510546 | AF38: 1.472718182 | AH38: 2005-11-01 | AI38: 0.2214148981 | AJ38: 6.584797998 | AK38: 6.714263344 | AN38: 1.492191667 | AQ38: 2005-11-01 | AR38: =IF(MONTH(Serie_Encadeada[[#This Row],[Período]])=1,Serie_Encadeada[[#This Row],[Fat.real]],Serie_Encadeada[[#This Row],[Fat.real]]+AR37) -> 1040.9406 | AS38: =IF(MONTH(Serie_Encadeada[[#This Row],[Período]])=1,Serie_Encadeada[[#This Row],[Emprego]],Serie_Encadeada[[#This Row],[Emprego]]+AS37) -> 1057.9922 | AT38: =IF(MONTH(Serie_Encadeada[[#This Row],[Período]])=1,Serie_Encadeada[[#This Row],[Horas]],Serie_Encadeada[[#This Row],[Horas]]+AT37) -> 1139.4812 | AW38: =IF(MONTH(Serie_Encadeada[[#This Row],[Período]])=1,Serie_Encadeada[[#This Row],[UCI]],Serie_Encadeada[[#This Row],[UCI]]+AW37) -> 922.9097 | AX38: 83.90088182 | AY38: 2005-11-01 | AZ38: 1133.5936 | BA38: 1150.9488 | BB38: 1235.5355 | BC38: 0 | BD38: 0 | BE38: 83.788025
A39: 2005-12-01 | B39: =MONTH(Serie_Encadeada[[#This Row],[Período]])&YEAR(Serie_Encadeada[[#This Row],[Período]]) -> 122005 | C39: 95.6804 | D39: 97.3172 | E39: 98.1334 | H39: 82.0043 | J39: 2005-12-01 | K39: -0.4978207991 | L39: -0.5630020783 | M39: -6.672588388 | P39: -1.5313 | R39: 2005-12-01 | S39: 3.267460309 | T39: 4.691006341 | U39: 2.164504869 | X39: -0.5423 | Z39: 2005-12-01 | AA39: 0.5610381218 | AB39: 6.312478663 | AC39: 6.086604256 | AF39: 1.3048 | AH39: 2005-12-01 | AI39: 0.5610381218 | AJ39: 6.312478663 | AK39: 6.086604256 | AN39: 1.3048 | AQ39: 2005-12-01 | AR39: =IF(MONTH(Serie_Encadeada[[#This Row],[Período]])=1,Serie_Encadeada[[#This Row],[Fat.real]],Serie_Encadeada[[#This Row],[Fat.real]]+AR38) -> 1136.621 | AS39: =IF(MONTH(Serie_Encadeada[[#This Row],[Período]])=1,Serie_Encadeada[[#This Row],[Emprego]],Serie_Encadeada[[#This Row],[Emprego]]+AS38) -> 1155.3094 | AT39: =IF(MONTH(Serie_Encadeada[[#This Row],[Período]])=1,Serie_Encadeada[[#This Row],[Horas]],Serie_Encadeada[[#This Row],[Horas]]+AT38) -> 1237.6146 | AW39: =IF(MONTH(Serie_Encadeada[[#This Row],[Período]])=1,Serie_Encadeada[[#This Row],[UCI]],Serie_Encadeada[[#This Row],[UCI]]+AW38) -> 1004.914 | AX39: 83.74283333 | AY39: 2005-12-01 | AZ39: 1136.621 | BA39: 1155.3094 | BB39: 1237.6146 | BC39: 0 | BD39: 0 | BE39: 83.74283333
A40: 2006-01-01 | B40: =MONTH(Serie_Encadeada[[#This Row],[Período]])&YEAR(Serie_Encadeada[[#This Row],[Período]]) -> 12006 | C40: 88.0996 | D40: 97.3086 | E40: 95.0198 | F40: 96.0306 | G40: 98.6808 | H40: 80.1908 | J40: 2006-01-01 | K40: -7.9230438 | L40: -0.008837081215 | M40: -3.172823932 | P40: -1.8135 | R40: 2006-01-01 | S40: 7.823017687 | T40: 4.780045957 | U40: 1.985731413 | X40: -2.313 | Z40: 2006-01-01 | AA40: 7.823017687 | AB40: 4.780045957 | AC40: 1.985731413 | AF40: -2.313 | AH40: 2006-01-01 | AI40: 0.942962576 | AJ40: 6.062327869 | AK40: 5.468674614 | AN40: 0.923975 | AQ40: 2006-01-01 | AR40: =IF(MONTH(Serie_Encadeada[[#This Row],[Período]])=1,Serie_Encadeada[[#This Row],[Fat.real]],Serie_Encadeada[[#This Row],[Fat.real]]+AR39) -> 88.0996 | AS40: =IF(MONTH(Serie_Encadeada[[#This Row],[Período]])=1,Serie_Encadeada[[#This Row],[Emprego]],Serie_Encadeada[[#This Row],[Emprego]]+AS39) -> 97.3086 | AT40: =IF(MONTH(Serie_Encadeada[[#This Row],[Período]])=1,Serie_Encadeada[[#This Row],[Horas]],Serie_Encadeada[[#This Row],[Horas]]+AT39) -> 95.0198 | AU40: =IF(MONTH(Serie_Encadeada[[#This Row],[Período]])=1,Serie_Encadeada[[#This Row],[Massa Real]],Serie_Encadeada[[#This Row],[Massa Real]]+AU39) -> 96.0306 | AV40: =IF(MONTH(Serie_Encadeada[[#This Row],[Período]])=1,Serie_Encadeada[[#This Row],[RMR Real]],Serie_Encadeada[[#This Row],[RMR Real]]+AV39) -> 98.6808 | AW40: =IF(MONTH(Serie_Encadeada[[#This Row],[Período]])=1,Serie_Encadeada[[#This Row],[UCI]],Serie_Encadeada[[#This Row],[UCI]]+AW39) -> 80.1908 | AX40: 80.1908 | AY40: 2006-01-01 | AZ40: 1143.013 | BA40: 1159.7486 | BB40: 1239.4647 | BC40: 96.0306 | BD40: 98.6808 | BE40: 83.55008333
A41: 2006-02-01 | B41: =MONTH(Serie_Encadeada[[#This Row],[Período]])&YEAR(Serie_Encadeada[[#This Row],[Período]]) -> 22006 | C41: 87.4585 | D41: 97.2725 | E41: 92.7387 | F41: 102.7924 | G41: 105.6759 | H41: 80.0963 | J41: 2006-02-01 | K41: -0.7276991042 | L41: -0.03709846817 | M41: -2.400657547 | N41: 7.041297253 | O41: 7.088612982 | P41: -0.0945 | R41: 2006-02-01 | S41: 4.205464387 | T41: 4.638416706 | U41: 2.895173933 | X41: -1.8599 | Z41: 2006-02-01 | AA41: 5.989984092 | AB41: 4.709196578 | AC41: 2.432910163 | AF41: -2.08645 | AH41: 2006-02-01 | AI41: 1.029057045 | AJ41: 5.830166321 | AK41: 5.254906327 | AN41: 0.5872583333 | AQ41: 2006-02-01 | AR41: =IF(MONTH(Serie_Encadeada[[#This Row],[Período]])=1,Serie_Encadeada[[#This Row],[Fat.real]],Serie_Encadeada[[#This Row],[Fat.real]]+AR40) -> 175.5581 | AS41: =IF(MONTH(Serie_Encadeada[[#This Row],[Período]])=1,Serie_Encadeada[[#This Row],[Emprego]],Serie_Encadeada[[#This Row],[Emprego]]+AS40) -> 194.5811 | AT41: =IF(MONTH(Serie_Encadeada[[#This Row],[Período]])=1,Serie_Encadeada[[#This Row],[Horas]],Serie_Encadeada[[#This Row],[Horas]]+AT40) -> 187.7585 | AU41: =IF(MONTH(Serie_Encadeada[[#This Row],[Período]])=1,Serie_Encadeada[[#This Row],[Massa Real]],Serie_Encadeada[[#This Row],[Massa Real]]+AU40) -> 198.823 | AV41: =IF(MONTH(Serie_Encadeada[[#This Row],[Período]])=1,Serie_Encadeada[[#This Row],[RMR Real]],Serie_Encadeada[[#This Row],[RMR Real]]+AV40) -> 204.3567 | AW41: =IF(MONTH(Serie_Encadeada[[#This Row],[Período]])=1,Serie_Encadeada[[#This Row],[UCI]],Serie_Encadeada[[#This Row],[UCI]]+AW40) -> 160.2871 | AX41: 80.14355 | AY41: 2006-02-01 | AZ41: 1146.5426 | BA41: 1164.0605 | BB41: 1242.0741 | BC41: 198.823 | BD41: 204.3567 | BE41: 83.39509167
A42: 2006-03-01 | B42: =MONTH(Serie_Encadeada[[#This Row],[Período]])&YEAR(Serie_Encadeada[[#This Row],[Período]]) -> 32006 | C42: 100.913 | D42: 97.4848 | E42: 101.289 | F42: 94.0754 | G42: 96.5238 | H42: 80.4069 | J42: 2006-03-01 | K42: 15.38386778 | L42: 0.2182528464 | M42: 9.219775563 | N42: -8.480198925 | O42: -8.660536603 | P42: 0.3106 | R42: 2006-03-01 | S42: 4.735206631 | T42: 4.182817521 | U42: 1.417902154 | X42: -3.3053 | Z42: 2006-03-01 | AA42: 5.52851648 | AB42: 4.532913101 | AC42: 2.074923395 | AF42: -2.492733333 | AH42: 2006-03-01 | AI42: 1.400056412 | AJ42: 5.545402913 | AK42: 4.865980053 | AN42: 0.1854666667 | AQ42: 2006-03-01 | AR42: =IF(MONTH(Serie_Encadeada[[#This Row],[Período]])=1,Serie_Encadeada[[#This Row],[Fat.real]],Serie_Encadeada[[#This Row],[Fat.real]]+AR41) -> 276.4711 | AS42: =IF(MONTH(Serie_Encadeada[[#This Row],[Período]])=1,Serie_Encadeada[[#This Row],[Emprego]],Serie_Encadeada[[#This Row],[Emprego]]+AS41) -> 292.0659 | AT42: =IF(MONTH(Serie_Encadeada[[#This Row],[Período]])=1,Serie_Encadeada[[#This Row],[Horas]],Serie_Encadeada[[#This Row],[Horas]]+AT41) -> 289.0475 | AU42: =IF(MONTH(Serie_Encadeada[[#This Row],[Período]])=1,Serie_Encadeada[[#This Row],[Massa Real]],Serie_Encadeada[[#This Row],[Massa Real]]+AU41) -> 292.8984 | AV42: =IF(MONTH(Serie_Encadeada[[#This Row],[Período]])=1,Serie_Encadeada[[#This Row],[RMR Real]],Serie_Encadeada[[#This Row],[RMR Real]]+AV41) -> 300.8805 | AW42: =IF(MONTH(Serie_Encadeada[[#This Row],[Período]])=1,Serie_Encadeada[[#This Row],[UCI]],Serie_Encadeada[[#This Row],[UCI]]+AW41) -> 240.694 | AX42: 80.23133333 | AY42: 2006-03-01 | AZ42: 1151.105 | BA42: 1167.9744 | BB42: 1243.4902 | BC42: 292.8984 | BD42: 300.8805 | BE42: 83.11965
A43: 2006-04-01 | B43: =MONTH(Serie_Encadeada[[#This Row],[Período]])&YEAR(Serie_Encadeada[[#This Row],[Período]]) -> 42006 | C43: 91.7079 | D43: 98.9366 | E43: 94.9857 | F43: 92.3179 | G43: 93.3045 | H43: 80.1837 | J43: 2006-04-01 | K43: -9.121817803 | L43: 1.489257812 | M43: -6.223084442 | N43: -1.86818233 | O43: -3.335239599 | P43: -0.2232 | R43: 2006-04-01 | S43: -0.9210202203 | T43: 4.347871943 | U43: -4.941770571 | X43: -3.5733 | Z43: 2006-04-01 | AA43: 3.84475987 | AB43: 4.486029559 | AC43: 0.2447430876 | AF43: -2.762875 | AH43: 2006-04-01 | AI43: 0.9387967788 | AJ43: 5.225911339 | AK43: 3.553192117 | AN43: -0.287175 | AQ43: 2006-04-01 | AR43: =IF(MONTH(Serie_Encadeada[[#This Row],[Período]])=1,Serie_Encadeada[[#This Row],[Fat.real]],Serie_Encadeada[[#This Row],[Fat.real]]+AR42) -> 368.179 | AS43: =IF(MONTH(Serie_Encadeada[[#This Row],[Período]])=1,Serie_Encadeada[[#This Row],[Emprego]],Serie_Encadeada[[#This Row],[Emprego]]+AS42) -> 391.0025 | AT43: =IF(MONTH(Serie_Encadeada[[#This Row],[Período]])=1,Serie_Encadeada[[#This Row],[Horas]],Serie_Encadeada[[#This Row],[Horas]]+AT42) -> 384.0332 | AU43: =IF(MONTH(Serie_Encadeada[[#This Row],[Período]])=1,Serie_Encadeada[[#This Row],[Massa Real]],Serie_Encadeada[[#This Row],[Massa Real]]+AU42) -> 385.2163 | AV43: =IF(MONTH(Serie_Encadeada[[#This Row],[Período]])=1,Serie_Encadeada[[#This Row],[RMR Real]],Serie_Encadeada[[#This Row],[RMR Real]]+AV42) -> 394.185 | AW43: =IF(MONTH(Serie_Encadeada[[#This Row],[Período]])=1,Serie_Encadeada[[#This Row],[UCI]],Serie_Encadeada[[#This Row],[UCI]]+AW42) -> 320.8777 | AX43: 80.219425 | AY43: 2006-04-01 | AZ43: 1150.2525 | BA43: 1172.0968 | BB43: 1238.5522 | BC43: 385.2163 | BD43: 394.185 | BE43: 82.821875
A44: 2006-05-01 | B44: =MONTH(Serie_Encadeada[[#This Row],[Período]])&YEAR(Serie_Encadeada[[#This Row],[Período]]) -> 52006 | C44: 102.1395 | D44: 100.5109 | E44: 104.6668 | F44: 91.6924 | G44: 91.2347 | H44: 81.7488 | J44: 2006-05-01 | K44: 11.37481068 | L44: 1.591221045 | M44: 10.19216577 | N44: -0.6775500743 | O44: -2.218328162 | P44: 1.5651 | R44: 2006-05-01 | S44: 3.822462111 | T44: 4.469999574 | U44: -2.028751093 | X44: -1.7791 | Z44: 2006-05-01 | AA44: 3.839916631 | AB44: 4.482751144 | AC44: -0.2510155537 | AF44: -2.56612 | AH44: 2006-05-01 | AI44: 1.196756549 | AJ44: 5.016719781 | AK44: 2.582609512 | AN44: -0.5380666667 | AQ44: 2006-05-01 | AR44: =IF(MONTH(Serie_Encadeada[[#This Row],[Período]])=1,Serie_Encadeada[[#This Row],[Fat.real]],Serie_Encadeada[[#This Row],[Fat.real]]+AR43) -> 470.3185 | AS44: =IF(MONTH(Serie_Encadeada[[#This Row],[Período]])=1,Serie_Encadeada[[#This Row],[Emprego]],Serie_Encadeada[[#This Row],[Emprego]]+AS43) -> 491.5134 | AT44: =IF(MONTH(Serie_Encadeada[[#This Row],[Período]])=1,Serie_Encadeada[[#This Row],[Horas]],Serie_Encadeada[[#This Row],[Horas]]+AT43) -> 488.7 | AU44: =IF(MONTH(Serie_Encadeada[[#This Row],[Período]])=1,Serie_Encadeada[[#This Row],[Massa Real]],Serie_Encadeada[[#This Row],[Massa Real]]+AU43) -> 476.9087 | AV44: =IF(MONTH(Serie_Encadeada[[#This Row],[Período]])=1,Serie_Encadeada[[#This Row],[RMR Real]],Serie_Encadeada[[#This Row],[RMR Real]]+AV43) -> 485.4197 | AW44: =IF(MONTH(Serie_Encadeada[[#This Row],[Período]])=1,Serie_Encadeada[[#This Row],[UCI]],Serie_Encadeada[[#This Row],[UCI]]+AW43) -> 402.6265 | AX44: 80.5253 | AY44: 2006-05-01 | AZ44: 1154.013 | BA44: 1176.3974 | BB44: 1236.3848 | BC44: 476.9087 | BD44: 485.4197 | BE44: 82.67361667
A45: 2006-06-01 | B45: =MONTH(Serie_Encadeada[[#This Row],[Período]])&YEAR(Serie_Encadeada[[#This Row],[Período]]) -> 62006 | C45: 100.8451 | D45: 100.3619 | E45: 101.4772 | F45: 94.7357 | G45: 94.3987 | H45: 82.1291 | J45: 2006-06-01 | K45: -1.267286407 | L45: -0.1482426284 | M45: -3.047384653 | N45: 3.319031894 | O45: 3.467978741 | P45: 0.3803 | R45: 2006-06-01 | S45: 4.684291714 | T45: 3.672473083 | U45: -6.547733066 | X45: -1.9408 | Z45: 2006-06-01 | AA45: 3.988008574 | AB45: 4.344464991 | AC45: -1.393410713 | AF45: -2.4619 | AH45: 2006-06-01 | AI45: 1.897951602 | AJ45: 4.837698948 | AK45: 1.28414249 | AN45: -0.7977 | AQ45: 2006-06-01 | AR45: =IF(MONTH(Serie_Encadeada[[#This Row],[Período]])=1,Serie_Encadeada[[#This Row],[Fat.real]],Serie_Encadeada[[#This Row],[Fat.real]]+AR44) -> 571.1636 | AS45: =IF(MONTH(Serie_Encadeada[[#This Row],[Período]])=1,Serie_Encadeada[[#This Row],[Emprego]],Serie_Encadeada[[#This Row],[Emprego]]+AS44) -> 591.8753 | AT45: =IF(MONTH(Serie_Encadeada[[#This Row],[Período]])=1,Serie_Encadeada[[#This Row],[Horas]],Serie_Encadeada[[#This Row],[Horas]]+AT44) -> 590.1772 | AU45: =IF(MONTH(Serie_Encadeada[[#This Row],[Período]])=1,Serie_Encadeada[[#This Row],[Massa Real]],Serie_Encadeada[[#This Row],[Massa Real]]+AU44) -> 571.6444 | AV45: =IF(MONTH(Serie_Encadeada[[#This Row],[Período]])=1,Serie_Encadeada[[#This Row],[RMR Real]],Serie_Encadeada[[#This Row],[RMR Real]]+AV44) -> 579.8184 | AW45: =IF(MONTH(Serie_Encadeada[[#This Row],[Período]])=1,Serie_Encadeada[[#This Row],[UCI]],Serie_Encadeada[[#This Row],[UCI]]+AW44) -> 484.7556 | AX45: 80.7926 | AY45: 2006-06-01 | AZ45: 1158.5255 | BA45: 1179.9526 | BB45: 1229.2748 | BC45: 571.6444 | BD45: 579.8184 | BE45: 82.51188333
A46: 2006-07-01 | B46: =MONTH(Serie_Encadeada[[#This Row],[Período]])&YEAR(Serie_Encadeada[[#This Row],[Período]]) -> 72006 | C46: 100.5656 | D46: 100.3912 | E46: 101.3576 | F46: 96.7788 | G46: 96.4062 | H46: 82.1446 | J46: 2006-07-01 | K46: -0.2771577399 | L46: 0.02919434566 | M46: -0.117858987 | N46: 2.156631555 | O46: 2.126618269 | P46: 0.0155 | R46: 2006-07-01 | S46: 5.897318176 | T46: 3.102380189 | U46: -5.839116338 | X46: -1.3071 | Z46: 2006-07-01 | AA46: 4.269460186 | AB46: 4.162488104 | AC46: -2.071088705 | AF46: -2.296928571 | AH46: 2006-07-01 | AI46: 2.662254078 | AJ46: 4.600047465 | AK46: 0.2891929135 | AN46: -0.9536 | AQ46: 2006-07-01 | AR46: =IF(MONTH(Serie_Encadeada[[#This Row],[Período]])=1,Serie_Encadeada[[#This Row],[Fat.real]],Serie_Encadeada[[#This Row],[Fat.real]]+AR45) -> 671.7292 | AS46: =IF(MONTH(Serie_Encadeada[[#This Row],[Período]])=1,Serie_Encadeada[[#This Row],[Emprego]],Serie_Encadeada[[#This Row],[Emprego]]+AS45) -> 692.2665 | AT46: =IF(MONTH(Serie_Encadeada[[#This Row],[Período]])=1,Serie_Encadeada[[#This Row],[Horas]],Serie_Encadeada[[#This Row],[Horas]]+AT45) -> 691.5348 | AU46: =IF(MONTH(Serie_Encadeada[[#This Row],[Período]])=1,Serie_Encadeada[[#This Row],[Massa Real]],Serie_Encadeada[[#This Row],[Massa Real]]+AU45) -> 668.4232 | AV46: =IF(MONTH(Serie_Encadeada[[#This Row],[Período]])=1,Serie_Encadeada[[#This Row],[RMR Real]],Serie_Encadeada[[#This Row],[RMR Real]]+AV45) -> 676.2246 | AW46: =IF(MONTH(Serie_Encadeada[[#This Row],[Período]])=1,Serie_Encadeada[[#This Row],[UCI]],Serie_Encadeada[[#This Row],[UCI]]+AW45) -> 566.9002 | AX46: 80.98574286 | AY46: 2006-07-01 | AZ46: 1164.1259 | BA46: 1182.9734 | BB46: 1222.9894 | BC46: 668.4232 | BD46: 676.2246 | BE46: 82.40295833
A47: 2006-08-01 | B47: =MONTH(Serie_Encadeada[[#This Row],[Período]])&YEAR(Serie_Encadeada[[#This Row],[Período]]) -> 82006 | C47: 107.3727 | D47: 101.1044 | E47: 107.0211 | F47: 95.307 | G47: 94.2596 | H47: 83.8312 | J47: 2006-08-01 | K47: 6.768815579 | L47: 0.7104208337 | M47: 5.58764217 | N47: -1.520787611 | O47: -2.22662028 | P47: 1.6866 | R47: 2006-08-01 | S47: 6.036952509 | T47: 3.143337496 | U47: -3.867363117 | X47: -3.3198 | Z47: 2006-08-01 | AA47: 4.509540111 | AB47: 4.031492776 | AC47: -2.315707966 | AF47: -2.4247875 | AH47: 2006-08-01 | AI47: 3.095502095 | AJ47: 4.336283762 | AK47: -0.6412542896 | AN47: -1.557458333 | AQ47: 2006-08-01 | AR47: =IF(MONTH(Serie_Encadeada[[#This Row],[Período]])=1,Serie_Encadeada[[#This Row],[Fat.real]],Serie_Encadeada[[#This Row],[Fat.real]]+AR46) -> 779.1019 | AS47: =IF(MONTH(Serie_Encadeada[[#This Row],[Período]])=1,Serie_Encadeada[[#This Row],[Emprego]],Serie_Encadeada[[#This Row],[Emprego]]+AS46) -> 793.3709 | AT47: =IF(MONTH(Serie_Encadeada[[#This Row],[Período]])=1,Serie_Encadeada[[#This Row],[Horas]],Serie_Encadeada[[#This Row],[Horas]]+AT46) -> 798.5559 | AU47: =IF(MONTH(Serie_Encadeada[[#This Row],[Período]])=1,Serie_Encadeada[[#This Row],[Massa Real]],Serie_Encadeada[[#This Row],[Massa Real]]+AU46) -> 763.7302 | AV47: =IF(MONTH(Serie_Encadeada[[#This Row],[Período]])=1,Serie_Encadeada[[#This Row],[RMR Real]],Serie_Encadeada[[#This Row],[RMR Real]]+AV46) -> 770.4842 | AW47: =IF(MONTH(Serie_Encadeada[[#This Row],[Período]])=1,Serie_Encadeada[[#This Row],[UCI]],Serie_Encadeada[[#This Row],[UCI]]+AW46) -> 650.7314 | AX47: 81.341425 | AY47: 2006-08-01 | AZ47: 1170.2389 | BA47: =SUM(D36:D47) -> 1186.0546 | BB47: 1218.684 | BC47: 763.7302 | BD47: 770.4842 | BE47: 82.12630833
A48: 2006-09-01 | B48: =MONTH(Serie_Encadeada[[#This Row],[Período]])&YEAR(Serie_Encadeada[[#This Row],[Período]]) -> 92006 | C48: 103.5603 | D48: 101.805 | E48: 100.3186 | F48: 94.0481 | G48: 92.3832 | H48: 83.8867 | J48: 2006-09-01 | K48: -3.550623203 | L48: 0.6929470923 | M48: -6.262783694 | N48: -1.320889337 | O48: -1.990672568 | P48: 0.0555 | R48: 2006-09-01 | S48: 2.910318429 | T48: 3.260456129 | U48: -7.510028645 | X48: -0.5644 | Z48: 2006-09-01 | AA48: 4.31933887 | AB48: 3.943225871 | AC48: -2.924161845 | AF48: -2.218077778 | AH48: 2006-09-01 | AI48: 3.3702523 | AJ48: 4.140080761 | AK48: -1.696132667 | AN48: -1.649666667 | AQ48: 2006-09-01 | AR48: =IF(MONTH(Serie_Encadeada[[#This Row],[Período]])=1,Serie_Encadeada[[#This Row],[Fat.real]],Serie_Encadeada[[#This Row],[Fat.real]]+AR47) -> 882.6622 | AS48: =IF(MONTH(Serie_Encadeada[[#This Row],[Período]])=1,Serie_Encadeada[[#This Row],[Emprego]],Serie_Encadeada[[#This Row],[Emprego]]+AS47) -> 895.1759 | AT48: =IF(MONTH(Serie_Encadeada[[#This Row],[Período]])=1,Serie_Encadeada[[#This Row],[Horas]],Serie_Encadeada[[#This Row],[Horas]]+AT47) -> 898.8745 | AU48: =IF(MONTH(Serie_Encadeada[[#This Row],[Período]])=1,Serie_Encadeada[[#This Row],[Massa Real]],Serie_Encadeada[[#This Row],[Massa Real]]+AU47) -> 857.7783 | AV48: =IF(MONTH(Serie_Encadeada[[#This Row],[Período]])=1,Serie_Encadeada[[#This Row],[RMR Real]],Serie_Encadeada[[#This Row],[RMR Real]]+AV47) -> 862.8674 | AW48: =IF(MONTH(Serie_Encadeada[[#This Row],[Período]])=1,Serie_Encadeada[[#This Row],[UCI]],Serie_Encadeada[[#This Row],[UCI]]+AW47) -> 734.6181 | AX48: 81.62423333 | AY48: 2006-09-01 | AZ48: 1173.1676 | BA48: 1189.2691 | BB48: 1210.5383 | BC48: 857.7783 | BD48: 862.8674 | BE48: 82.079275
A49: 2006-10-01 | B49: =MONTH(Serie_Encadeada[[#This Row],[Período]])&YEAR(Serie_Encadeada[[#This Row],[Período]]) -> 102006 | C49: 108.3337 | D49: 102.0418 | E49: 103.4658 | F49: 94.4321 | G49: 92.5351 | H49: 84.5654 | J49: 2006-10-01 | K49: 4.609295261 | L49: 0.2326015422 | M49: 3.137204865 | N49: 0.4083017094 | O49: 0.1644238346 | P49: 0.6787 | R49: 2006-10-01 | S49: 9.798522083 | T49: 3.168607531 | U49: -4.534936077 | X49: -0.2279 | Z49: 2006-10-01 | AA49: 4.891543706 | AB49: 3.863428057 | AC49: -3.092944274 | AF49: -2.01906 | AH49: 2006-10-01 | AI49: 4.357482674 | AJ49: 3.968755395 | AK49: -2.354359677 | AN49: -1.712533333 | AQ49: 2006-10-01 | AR49: =IF(MONTH(Serie_Encadeada[[#This Row],[Período]])=1,Serie_Encadeada[[#This Row],[Fat.real]],Serie_Encadeada[[#This Row],[Fat.real]]+AR48) -> 990.9959 | AS49: =IF(MONTH(Serie_Encadeada[[#This Row],[Período]])=1,Serie_Encadeada[[#This Row],[Emprego]],Serie_Encadeada[[#This Row],[Emprego]]+AS48) -> 997.2177 | AT49: =IF(MONTH(Serie_Encadeada[[#This Row],[Período]])=1,Serie_Encadeada[[#This Row],[Horas]],Serie_Encadeada[[#This Row],[Horas]]+AT48) -> 1002.3403 | AU49: =IF(MONTH(Serie_Encadeada[[#This Row],[Período]])=1,Serie_Encadeada[[#This Row],[Massa Real]],Serie_Encadeada[[#This Row],[Massa Real]]+AU48) -> 952.2104 | AV49: =IF(MONTH(Serie_Encadeada[[#This Row],[Período]])=1,Serie_Encadeada[[#This Row],[RMR Real]],Serie_Encadeada[[#This Row],[RMR Real]]+AV48) -> 955.4025 | AW49: =IF(MONTH(Serie_Encadeada[[#This Row],[Período]])=1,Serie_Encadeada[[#This Row],[UCI]],Serie_Encadeada[[#This Row],[UCI]]+AW48) -> 819.1835 | AX49: 81.91835 | AY49: 2006-10-01 | AZ49: 1182.8354 | BA49: 1192.4031 | BB49: 1205.6233 | BC49: 952.2104 | BD49: 955.4025 | BE49: 82.06028333
A50: 2006-11-01 | B50: =MONTH(Serie_Encadeada[[#This Row],[Período]])&YEAR(Serie_Encadeada[[#This Row],[Período]]) -> 112006 | C50: 108.3523 | D50: 101.953 | E50: 103.5404 | F50: 107.5064 | G50: 105.4261 | H50: 85.8325 | J50: 2006-11-01 | K50: 0.01716917266 | L50: -0.0870231611 | M50: 0.0721011194 | N50: 13.84518612 | O50: 13.93092999 | P50: 1.2671 | R50: 2006-11-01 | S50: 12.68023515 | T50: 4.173776569 | U50: -1.530390986 | X50: 2.2969 | Z50: 2006-11-01 | AA50: 5.61104063 | AB50: 3.892136445 | AC50: -2.948754223 | AF50: -1.6267 | AH50: 2006-11-01 | AI50: 5.419490724 | AJ50: 3.956657325 | AK50: -2.551233858 | AN50: -1.536333333 | AQ50: 2006-11-01 | AR50: =IF(MONTH(Serie_Encadeada[[#This Row],[Período]])=1,Serie_Encadeada[[#This Row],[Fat.real]],Serie_Encadeada[[#This Row],[Fat.real]]+AR49) -> 1099.3482 | AS50: =IF(MONTH(Serie_Encadeada[[#This Row],[Período]])=1,Serie_Encadeada[[#This Row],[Emprego]],Serie_Encadeada[[#This Row],[Emprego]]+AS49) -> 1099.1707 | AT50: =IF(MONTH(Serie_Encadeada[[#This Row],[Período]])=1,Serie_Encadeada[[#This Row],[Horas]],Serie_Encadeada[[#This Row],[Horas]]+AT49) -> 1105.8807 | AU50: =IF(MONTH(Serie_Encadeada[[#This Row],[Período]])=1,Serie_Encadeada[[#This Row],[Massa Real]],Serie_Encadeada[[#This Row],[Massa Real]]+AU49) -> 1059.7168 | AV50: =IF(MONTH(Serie_Encadeada[[#This Row],[Período]])=1,Serie_Encadeada[[#This Row],[RMR Real]],Serie_Encadeada[[#This Row],[RMR Real]]+AV49) -> 1060.8286 | AW50: =IF(MONTH(Serie_Encadeada[[#This Row],[Período]])=1,Serie_Encadeada[[#This Row],[UCI]],Serie_Encadeada[[#This Row],[UCI]]+AW49) -> 905.016 | AX50: 82.27418182 | AY50: 2006-11-01 | AZ50: 1195.0286 | BA50: 1196.4879 | BB50: 1204.0141 | BC50: 1059.7168 | BD50: 1060.8286 | BE50: 82.25169167
A51: 2006-12-01 | B51: =MONTH(Serie_Encadeada[[#This Row],[Período]])&YEAR(Serie_Encadeada[[#This Row],[Período]]) -> 122006 | C51: 99.7587 | D51: 100.7664 | E51: 94.1178 | F51: 139.5777 | G51: 138.5222 | H51: 83.7282 | J51: 2006-12-01 | K51: -7.931165282 | L51: -1.163869626 | M51: -9.100409116 | N51: 29.8319914 | O51: 31.39270067 | P51: -2.1043 | R51: 2006-12-01 | S51: 4.262419471 | T51: 3.544286108 | U51: -4.091980916 | X51: 1.7239 | Z51: 2006-12-01 | AA51: 5.497514123 | AB51: 3.862835358 | AC51: -3.039403381 | AF51: -1.347483333 | AH51: 2006-12-01 | AI51: 5.497514123 | AJ51: 3.862835358 | AK51: -3.039403381 | AN51: -1.347483333 | AQ51: 2006-12-01 | AR51: =IF(MONTH(Serie_Encadeada[[#This Row],[Período]])=1,Serie_Encadeada[[#This Row],[Fat.real]],Serie_Encadeada[[#This Row],[Fat.real]]+AR50) -> 1199.1069 | AS51: =IF(MONTH(Serie_Encadeada[[#This Row],[Período]])=1,Serie_Encadeada[[#This Row],[Emprego]],Serie_Encadeada[[#This Row],[Emprego]]+AS50) -> 1199.9371 | AT51: =IF(MONTH(Serie_Encadeada[[#This Row],[Período]])=1,Serie_Encadeada[[#This Row],[Horas]],Serie_Encadeada[[#This Row],[Horas]]+AT50) -> 1199.9985 | AU51: =IF(MONTH(Serie_Encadeada[[#This Row],[Período]])=1,Serie_Encadeada[[#This Row],[Massa Real]],Serie_Encadeada[[#This Row],[Massa Real]]+AU50) -> 1199.2945 | AV51: =IF(MONTH(Serie_Encadeada[[#This Row],[Período]])=1,Serie_Encadeada[[#This Row],[RMR Real]],Serie_Encadeada[[#This Row],[RMR Real]]+AV50) -> 1199.3508 | AW51: =IF(MONTH(Serie_Encadeada[[#This Row],[Período]])=1,Serie_Encadeada[[#This Row],[UCI]],Serie_Encadeada[[#This Row],[UCI]]+AW50) -> 988.7442 | AX51: 82.39535 | AY51: 2006-12-01 | AZ51: 1199.1069 | BA51: 1199.9371 | BB51: 1199.9985 | BC51: 1199.2945 | BD51: 1199.3508 | BE51: 82.39535
A52: 2007-01-01 | B52: =MONTH(Serie_Encadeada[[#This Row],[Período]])&YEAR(Serie_Encadeada[[#This Row],[Período]]) -> 12007 | C52: 95.0178 | D52: 101.2584 | E52: 96.6606 | F52: 103.9529 | G52: 102.6442 | H52: 84.4614 | J52: 2007-01-01 | K52: -4.752367463 | L52: 0.4882579908 | M52: 2.70172061 | N52: -25.52327485 | O52: -25.90054157 | P52: 0.7332 | R52: 2007-01-01 | S52: 7.852703077 | T52: 4.059045141 | U52: 1.726797994 | V52: 8.24976622 | W52: 4.01638414 | X52: 4.2706 | Z52: 2007-01-01 | AA52: 7.852703077 | AB52: 4.059045141 | AC52: 1.726797994 | AD52: 8.24976622 | AE52: 4.01638414 | AF52: 4.2706 | AH52: 2007-01-01 | AI52: 5.512806941 | AJ52: 3.805850682 | AK52: -3.051752906 | AN52: -0.79885 | AQ52: 2007-01-01 | AR52: =IF(MONTH(Serie_Encadeada[[#This Row],[Período]])=1,Serie_Encadeada[[#This Row],[Fat.real]],Serie_Encadeada[[#This Row],[Fat.real]]+AR51) -> 95.0178 | AS52: =IF(MONTH(Serie_Encadeada[[#This Row],[Período]])=1,Serie_Encadeada[[#This Row],[Emprego]],Serie_Encadeada[[#This Row],[Emprego]]+AS51) -> 101.2584 | AT52: =IF(MONTH(Serie_Encadeada[[#This Row],[Período]])=1,Serie_Encadeada[[#This Row],[Horas]],Serie_Encadeada[[#This Row],[Horas]]+AT51) -> 96.6606 | AU52: =IF(MONTH(Serie_Encadeada[[#This Row],[Período]])=1,Serie_Encadeada[[#This Row],[Massa Real]],Serie_Encadeada[[#This Row],[Massa Real]]+AU51) -> 103.9529 | AV52: =IF(MONTH(Serie_Encadeada[[#This Row],[Período]])=1,Serie_Encadeada[[#This Row],[RMR Real]],Serie_Encadeada[[#This Row],[RMR Real]]+AV51) -> 102.6442 | AW52: =IF(MONTH(Serie_Encadeada[[#This Row],[Período]])=1,Serie_Encadeada[[#This Row],[UCI]],Serie_Encadeada[[#This Row],[UCI]]+AW51) -> 84.4614 | AX52: 84.4614 | AY52: 2007-01-01 | AZ52: 1206.0251 | BA52: 1203.8869 | BB52: 1201.6393 | BC52: 1207.2168 | BD52: 1203.3142 | BE52: 82.75123333
A53: 2007-02-01 | B53: =MONTH(Serie_Encadeada[[#This Row],[Período]])&YEAR(Serie_Encadeada[[#This Row],[Período]]) -> 22007 | C53: 92.7724 | D53: 102.4245 | E53: 93.8085 | F53: 108.6465 | G53: 106.0599 | H53: 83.8639 | J53: 2007-02-01 | K53: -2.36313617 | L53: 1.151608163 | M53: -2.950633454 | N53: 4.515121752 | O53: 3.327708726 | P53: -0.5975 | R53: 2007-02-01 | S53: 6.075910289 | T53: 5.296460973 | U53: 1.153563723 | V53: 5.695070842 | W53: 0.3633751877 | X53: 3.7676 | Z53: 2007-02-01 | AA53: 6.967550913 | AB53: 4.67763827 | AC53: 1.443663003 | AD53: 6.92897703 | AE53: 2.127358682 | AF53: 4.0191 | AH53: 2007-02-01 | AI53: 5.651460312 | AJ53: 3.86392288 | AK53: -3.169295616 | AN53: -0.3298916667 | AQ53: 2007-02-01 | AR53: =IF(MONTH(Serie_Encadeada[[#This Row],[Período]])=1,Serie_Encadeada[[#This Row],[Fat.real]],Serie_Encadeada[[#This Row],[Fat.real]]+AR52) -> 187.7902 | AS53: =IF(MONTH(Serie_Encadeada[[#This Row],[Período]])=1,Serie_Encadeada[[#This Row],[Emprego]],Serie_Encadeada[[#This Row],[Emprego]]+AS52) -> 203.6829 | AT53: =IF(MONTH(Serie_Encadeada[[#This Row],[Período]])=1,Serie_Encadeada[[#This Row],[Horas]],Serie_Encadeada[[#This Row],[Horas]]+AT52) -> 190.4691 | AU53: =IF(MONTH(Serie_Encadeada[[#This Row],[Período]])=1,Serie_Encadeada[[#This Row],[Massa Real]],Serie_Encadeada[[#This Row],[Massa Real]]+AU52) -> 212.5994 | AV53: =IF(MONTH(Serie_Encadeada[[#This Row],[Período]])=1,Serie_Encadeada[[#This Row],[RMR Real]],Serie_Encadeada[[#This Row],[RMR Real]]+AV52) -> 208.7041 | AW53: =IF(MONTH(Serie_Encadeada[[#This Row],[Período]])=1,Serie_Encadeada[[#This Row],[UCI]],Serie_Encadeada[[#This Row],[UCI]]+AW52) -> 168.3253 | AX53: 84.16265 | AY53: 2007-02-01 | AZ53: 1211.339 | BA53: 1209.0389 | BB53: 1202.7091 | BC53: 1213.0709 | BD53: 1203.6982 | BE53: 83.0652
A54: 2007-03-01 | B54: =MONTH(Serie_Encadeada[[#This Row],[Período]])&YEAR(Serie_Encadeada[[#This Row],[Período]]) -> 32007 | C54: 109.0858 | D54: 103.558 | E54: 104.9152 | F54: 101.0286 | G54: 97.5347 | H54: 85.5935 | J54: 2007-03-01 | K54: 17.58432465 | L54: 1.106668815 | M54: 11.83975866 | N54: -7.011638663 | O54: -8.038099225 | P54: 1.7296 | R54: 2007-03-01 | S54: 8.098857432 | T54: 6.229894301 | U54: 3.580053115 | V54: 7.391092677 | W54: 1.047306467 | X54: 5.1866 | Z54: 2007-03-01 | AA54: 7.380482083 | AB54: 5.195745207 | AC54: 2.192304033 | AD54: 7.077402949 | AE54: 1.780873137 | AF54: 4.408266667 | AH54: 2007-03-01 | AI54: 5.942707225 | AJ54: 4.035850443 | AK54: -2.98795278 | AN54: 0.3777666667 | AQ54: 2007-03-01 | AR54: =IF(MONTH(Serie_Encadeada[[#This Row],[Período]])=1,Serie_Encadeada[[#This Row],[Fat.real]],Serie_Encadeada[[#This Row],[Fat.real]]+AR53) -> 296.876 | AS54: =IF(MONTH(Serie_Encadeada[[#This Row],[Período]])=1,Serie_Encadeada[[#This Row],[Emprego]],Serie_Encadeada[[#This Row],[Emprego]]+AS53) -> 307.2409 | AT54: =IF(MONTH(Serie_Encadeada[[#This Row],[Período]])=1,Serie_Encadeada[[#This Row],[Horas]],Serie_Encadeada[[#This Row],[Horas]]+AT53) -> 295.3843 | AU54: =IF(MONTH(Serie_Encadeada[[#This Row],[Período]])=1,Serie_Encadeada[[#This Row],[Massa Real]],Serie_Encadeada[[#This Row],[Massa Real]]+AU53) -> 313.628 | AV54: =IF(MONTH(Serie_Encadeada[[#This Row],[Período]])=1,Serie_Encadeada[[#This Row],[RMR Real]],Serie_Encadeada[[#This Row],[RMR Real]]+AV53) -> 306.2388 | AW54: =IF(MONTH(Serie_Encadeada[[#This Row],[Período]])=1,Serie_Encadeada[[#This Row],[UCI]],Serie_Encadeada[[#This Row],[UCI]]+AW53) -> 253.9188 | AX54: 84.6396 | AY54: 2007-03-01 | AZ54: 1219.5118 | BA54: 1215.1121 | BB54: 1206.3353 | BC54: 1220.0241 | BD54: 1204.7091 | BE54: 83.49741667
A55: 2007-04-01 | B55: =MONTH(Serie_Encadeada[[#This Row],[Período]])&YEAR(Serie_Encadeada[[#This Row],[Período]]) -> 42007 | C55: 103.6996 | D55: 105.8167 | E55: 101.8978 | F55: 100.1822 | G55: 94.6598 | H55: 84.9204 | J55: 2007-04-01 | K55: -4.937581243 | L55: 2.181096584 | M55: -2.876037028 | N55: -0.8377825685 | O55: -2.947566353 | P55: -0.6731 | R55: 2007-04-01 | S55: 13.07597274 | T55: 6.954049361 | U55: 7.276990115 | V55: 8.518716305 | W55: 1.452555879 | X55: 4.7367 | Z55: 2007-04-01 | AA55: 8.799143895 | AB55: 5.640654472 | AC55: 3.449936099 | AD55: 7.42281674 | AE55: 1.703159684 | AF55: 4.490375 | AH55: 2007-04-01 | AI55: 7.063753393 | AJ55: 4.256935093 | AK55: -2.043095156 | AN55: 1.070266667 | AQ55: 2007-04-01 | AR55: =IF(MONTH(Serie_Encadeada[[#This Row],[Período]])=1,Serie_Encadeada[[#This Row],[Fat.real]],Serie_Encadeada[[#This Row],[Fat.real]]+AR54) -> 400.5756 | AS55: =IF(MONTH(Serie_Encadeada[[#This Row],[Período]])=1,Serie_Encadeada[[#This Row],[Emprego]],Serie_Encadeada[[#This Row],[Emprego]]+AS54) -> 413.0576 | AT55: =IF(MONTH(Serie_Encadeada[[#This Row],[Período]])=1,Serie_Encadeada[[#This Row],[Horas]],Serie_Encadeada[[#This Row],[Horas]]+AT54) -> 397.2821 | AU55: =IF(MONTH(Serie_Encadeada[[#This Row],[Período]])=1,Serie_Encadeada[[#This Row],[Massa Real]],Serie_Encadeada[[#This Row],[Massa Real]]+AU54) -> 413.8102 | AV55: =IF(MONTH(Serie_Encadeada[[#This Row],[Período]])=1,Serie_Encadeada[[#This Row],[RMR Real]],Serie_Encadeada[[#This Row],[RMR Real]]+AV54) -> 400.8986 | AW55: =IF(MONTH(Serie_Encadeada[[#This Row],[Período]])=1,Serie_Encadeada[[#This Row],[UCI]],Serie_Encadeada[[#This Row],[UCI]]+AW54) -> 338.8392 | AX55: 84.7098 | AY55: 2007-04-01 | AZ55: 1231.5035 | BA55: 1221.9922 | BB55: 1213.2474 | BC55: 1227.8884 | BD55: 1206.0644 | BE55: 83.89214167
A56: 2007-05-01 | B56: =MONTH(Serie_Encadeada[[#This Row],[Período]])&YEAR(Serie_Encadeada[[#This Row],[Período]]) -> 52007 | C56: 114.4828 | D56: 107.4801 | E56: 108.2256 | F56: 100.6364 | G56: 93.6177 | H56: 86.6908 | J56: 2007-05-01 | K56: 10.3984972 | L56: 1.571963594 | M56: 6.209947614 | N56: 0.4533739527 | O56: -1.100889712 | P56: 1.7704 | R56: 2007-05-01 | S56: 12.08474684 | T56: 6.933775342 | U56: 3.400123057 | V56: 9.754352596 | W56: 2.611944797 | X56: 4.942 | Z56: 2007-05-01 | AA56: 9.5126813 | AB56: 5.905088244 | AC56: 3.439267444 | AD56: 7.871087275 | AE56: 1.873965972 | AF56: 4.5807 | AH56: 2007-05-01 | AI56: 7.784470366 | AJ56: 4.468217968 | AK56: -1.583536129 | AN56: 1.630358333 | AQ56: 2007-05-01 | AR56: =IF(MONTH(Serie_Encadeada[[#This Row],[Período]])=1,Serie_Encadeada[[#This Row],[Fat.real]],Serie_Encadeada[[#This Row],[Fat.real]]+AR55) -> 515.0584 | AS56: =IF(MONTH(Serie_Encadeada[[#This Row],[Período]])=1,Serie_Encadeada[[#This Row],[Emprego]],Serie_Encadeada[[#This Row],[Emprego]]+AS55) -> 520.5377 | AT56: =IF(MONTH(Serie_Encadeada[[#This Row],[Período]])=1,Serie_Encadeada[[#This Row],[Horas]],Serie_Encadeada[[#This Row],[Horas]]+AT55) -> 505.5077 | AU56: =IF(MONTH(Serie_Encadeada[[#This Row],[Período]])=1,Serie_Encadeada[[#This Row],[Massa Real]],Serie_Encadeada[[#This Row],[Massa Real]]+AU55) -> 514.4466 | AV56: =IF(MONTH(Serie_Encadeada[[#This Row],[Período]])=1,Serie_Encadeada[[#This Row],[RMR Real]],Serie_Encadeada[[#This Row],[RMR Real]]+AV55) -> 494.5163 | AW56: =IF(MONTH(Serie_Encadeada[[#This Row],[Período]])=1,Serie_Encadeada[[#This Row],[UCI]],Serie_Encadeada[[#This Row],[UCI]]+AW55) -> 425.53 | AX56: 85.106 | AY56: 2007-05-01 | AZ56: 1243.8468 | BA56: 1228.9614 | BB56: 1216.8062 | BC56: 1236.8324 | BD56: 1208.4474 | BE56: 84.303975
A57: 2007-06-01 | B57: =MONTH(Serie_Encadeada[[#This Row],[Período]])&YEAR(Serie_Encadeada[[#This Row],[Período]]) -> 62007 | C57: 110.4438 | D57: 109.3067 | E57: 107.909 | F57: 105.8115 | G57: 96.7878 | H57: 85.6254 | J57: 2007-06-01 | K57: -3.528040893 | L57: 1.699477392 | M57: -0.2925370707 | N57: 5.142373932 | O57: 3.386218632 | P57: -1.0654 | R57: 2007-06-01 | S57: 9.518261175 | T57: 8.912545498 | U57: 6.338172516 | V57: 11.69126317 | W57: 2.530861124 | X57: 3.4963 | Z57: 2007-06-01 | AA57: 9.513666487 | AB57: 6.415050603 | AC57: 3.937715656 | AD57: 8.504185469 | AE57: 1.980913334 | AF57: 4.399966667 | AH57: 2007-06-01 | AI57: 8.193173133 | AJ57: 4.911519327 | AK57: -0.4910862892 | AN57: 2.08345 | AQ57: 2007-06-01 | AR57: =IF(MONTH(Serie_Encadeada[[#This Row],[Período]])=1,Serie_Encadeada[[#This Row],[Fat.real]],Serie_Encadeada[[#This Row],[Fat.real]]+AR56) -> 625.5022 | AS57: =IF(MONTH(Serie_Encadeada[[#This Row],[Período]])=1,Serie_Encadeada[[#This Row],[Emprego]],Serie_Encadeada[[#This Row],[Emprego]]+AS56) -> 629.8444 | AT57: =IF(MONTH(Serie_Encadeada[[#This Row],[Período]])=1,Serie_Encadeada[[#This Row],[Horas]],Serie_Encadeada[[#This Row],[Horas]]+AT56) -> 613.4167 | AU57: =IF(MONTH(Serie_Encadeada[[#This Row],[Período]])=1,Serie_Encadeada[[#This Row],[Massa Real]],Serie_Encadeada[[#This Row],[Massa Real]]+AU56) -> 620.2581 | AV57: =IF(MONTH(Serie_Encadeada[[#This Row],[Período]])=1,Serie_Encadeada[[#This Row],[RMR Real]],Serie_Encadeada[[#This Row],[RMR Real]]+AV56) -> 591.3041 | AW57: =IF(MONTH(Serie_Encadeada[[#This Row],[Período]])=1,Serie_Encadeada[[#This Row],[UCI]],Serie_Encadeada[[#This Row],[UCI]]+AW56) -> 511.1554 | AX57: 85.19256667 | AY57: 2007-06-01 | AZ57: 1253.4455 | BA57: 1237.9062 | BB57: 1223.238 | BC57: 1247.9082 | BD57: 1210.8365 | BE57: 84.59533333
A58: 2007-07-01 | B58: =MONTH(Serie_Encadeada[[#This Row],[Período]])&YEAR(Serie_Encadeada[[#This Row],[Período]]) -> 72007 | C58: 115.4569 | D58: 109.4062 | E58: 109.6155 | F58: 102.8636 | G58: 94.0026 | H58: 85.8213 | J58: 2007-07-01 | K58: 4.53905063 | L58: 0.09102827183 | M58: 1.58142509 | N58: -2.785992071 | O58: -2.877635404 | P58: 0.1959 | R58: 2007-07-01 | S58: 14.80754851 | T58: 8.979870746 | U58: 8.147292359 | V58: 6.28732739 | W58: -2.493200645 | X58: 3.6767 | Z58: 2007-07-01 | AA58: 10.30622161 | AB58: 6.786996048 | AC58: 4.554709322 | AD58: 8.183213868 | AE58: 1.343059688 | AF58: 4.296642857 | AH58: 2007-07-01 | AI58: 8.951858214 | AJ58: 5.405683678 | AK58: 0.6955497734 | AN58: 2.498766667 | AQ58: 2007-07-01 | AR58: =IF(MONTH(Serie_Encadeada[[#This Row],[Período]])=1,Serie_Encadeada[[#This Row],[Fat.real]],Serie_Encadeada[[#This Row],[Fat.real]]+AR57) -> 740.9591 | AS58: =IF(MONTH(Serie_Encadeada[[#This Row],[Período]])=1,Serie_Encadeada[[#This Row],[Emprego]],Serie_Encadeada[[#This Row],[Emprego]]+AS57) -> 739.2506 | AT58: =IF(MONTH(Serie_Encadeada[[#This Row],[Período]])=1,Serie_Encadeada[[#This Row],[Horas]],Serie_Encadeada[[#This Row],[Horas]]+AT57) -> 723.0322 | AU58: =IF(MONTH(Serie_Encadeada[[#This Row],[Período]])=1,Serie_Encadeada[[#This Row],[Massa Real]],Serie_Encadeada[[#This Row],[Massa Real]]+AU57) -> 723.1217 | AV58: =IF(MONTH(Serie_Encadeada[[#This Row],[Período]])=1,Serie_Encadeada[[#This Row],[RMR Real]],Serie_Encadeada[[#This Row],[RMR Real]]+AV57) -> 685.3067 | AW58: =IF(MONTH(Serie_Encadeada[[#This Row],[Período]])=1,Serie_Encadeada[[#This Row],[UCI]],Serie_Encadeada[[#This Row],[UCI]]+AW57) -> 596.9767 | AX58: 85.28238571 | AY58: 2007-07-01 | AZ58: 1268.3368 | BA58: 1246.9212 | BB58: 1231.4959 | BC58: 1253.993 | BD58: 1208.4329 | BE58: 84.901725
A59: 2007-08-01 | B59: =MONTH(Serie_Encadeada[[#This Row],[Período]])&YEAR(Serie_Encadeada[[#This Row],[Período]]) -> 82007 | C59: 127.4565 | D59: 110.053 | E59: 114.8749 | F59: 100.2471 | G59: 91.0727 | H59: 87.9139 | J59: 2007-08-01 | K59: 10.39314238 | L59: 0.5911913584 | M59: 4.798044072 | N59: -2.543659759 | O59: -3.116828683 | P59: 2.0926 | R59: 2007-08-01 | S59: 18.70475456 | T59: 8.850851199 | U59: 7.338552865 | V59: 5.183354843 | W59: -3.380981884 | X59: 4.0827 | Z59: 2007-08-01 | AA59: 11.46367375 | AB59: 7.050006498 | AC59: 4.927795286 | AD59: 7.808857107 | AE59: 0.7651292525 | AF59: 4.2699 | AH59: 2007-08-01 | AI59: 10.09893792 | AJ59: 5.886339465 | AK59: 1.69573901 | AN59: 3.115641667 | AQ59: 2007-08-01 | AR59: =IF(MONTH(Serie_Encadeada[[#This Row],[Período]])=1,Serie_Encadeada[[#This Row],[Fat.real]],Serie_Encadeada[[#This Row],[Fat.real]]+AR58) -> 868.4156 | AS59: =IF(MONTH(Serie_Encadeada[[#This Row],[Período]])=1,Serie_Encadeada[[#This Row],[Emprego]],Serie_Encadeada[[#This Row],[Emprego]]+AS58) -> 849.3036 | AT59: =IF(MONTH(Serie_Encadeada[[#This Row],[Período]])=1,Serie_Encadeada[[#This Row],[Horas]],Serie_Encadeada[[#This Row],[Horas]]+AT58) -> 837.9071 | AU59: =IF(MONTH(Serie_Encadeada[[#This Row],[Período]])=1,Serie_Encadeada[[#This Row],[Massa Real]],Serie_Encadeada[[#This Row],[Massa Real]]+AU58) -> 823.3688 | AV59: =IF(MONTH(Serie_Encadeada[[#This Row],[Período]])=1,Serie_Encadeada[[#This Row],[RMR Real]],Serie_Encadeada[[#This Row],[RMR Real]]+AV58) -> 776.3794 | AW59: =IF(MONTH(Serie_Encadeada[[#This Row],[Período]])=1,Serie_Encadeada[[#This Row],[UCI]],Serie_Encadeada[[#This Row],[UCI]]+AW58) -> 684.8906 | AX59: 85.611325 | AY59: 2007-08-01 | AZ59: 1288.4206 | BA59: 1255.8698 | BB59: 1239.3497 | BC59: 1258.9331 | BD59: 1205.246 | BE59: 85.24195
A60: 2007-09-01 | B60: =MONTH(Serie_Encadeada[[#This Row],[Período]])&YEAR(Serie_Encadeada[[#This Row],[Período]]) -> 92007 | C60: 113.1389 | D60: 110.4366 | E60: 108.7953 | F60: 97.7957 | G60: 88.5388 | H60: 87.6962 | J60: 2007-09-01 | K60: -11.23332274 | L60: 0.3485593305 | M60: -5.292365869 | N60: -2.445357522 | O60: -2.782282726 | P60: -0.2177 | R60: 2007-09-01 | S60: 9.249297269 | T60: 8.478561957 | U60: 8.449779004 | V60: 3.984769496 | W60: -4.161362672 | X60: 3.8095 | Z60: 2007-09-01 | AA60: 11.20386712 | AB60: 7.212470756 | AC60: 5.320865149 | AD60: 7.389578403 | AE60: 0.2376726714 | AF60: 4.218744444 | AH60: 2007-09-01 | AI60: 10.6405598 | AJ60: 6.325927412 | AK60: 3.080290809 | AN60: 3.480133333 | AQ60: 2007-09-01 | AR60: =IF(MONTH(Serie_Encadeada[[#This Row],[Período]])=1,Serie_Encadeada[[#This Row],[Fat.real]],Serie_Encadeada[[#This Row],[Fat.real]]+AR59) -> 981.5545 | AS60: =IF(MONTH(Serie_Encadeada[[#This Row],[Período]])=1,Serie_Encadeada[[#This Row],[Emprego]],Serie_Encadeada[[#This Row],[Emprego]]+AS59) -> 959.7402 | AT60: =IF(MONTH(Serie_Encadeada[[#This Row],[Período]])=1,Serie_Encadeada[[#This Row],[Horas]],Serie_Encadeada[[#This Row],[Horas]]+AT59) -> 946.7024 | AU60: =IF(MONTH(Serie_Encadeada[[#This Row],[Período]])=1,Serie_Encadeada[[#This Row],[Massa Real]],Serie_Encadeada[[#This Row],[Massa Real]]+AU59) -> 921.1645 | AV60: =IF(MONTH(Serie_Encadeada[[#This Row],[Período]])=1,Serie_Encadeada[[#This Row],[RMR Real]],Serie_Encadeada[[#This Row],[RMR Real]]+AV59) -> 864.9182 | AW60: =IF(MONTH(Serie_Encadeada[[#This Row],[Período]])=1,Serie_Encadeada[[#This Row],[UCI]],Serie_Encadeada[[#This Row],[UCI]]+AW59) -> 772.5868 | AX60: 85.84297778 | AY60: 2007-09-01 | AZ60: 1297.9992 | BA60: 1264.5014 | BB60: 1247.8264 | BC60: 1262.6807 | BD60: 1201.4016 | BE60: 85.55940833
A61: 2007-10-01 | B61: =MONTH(Serie_Encadeada[[#This Row],[Período]])&YEAR(Serie_Encadeada[[#This Row],[Período]]) -> 102007 | C61: 124.5371 | D61: 110.4951 | E61: 116.0103 | F61: 103.6185 | G61: 93.761 | H61: 87.8771 | J61: 2007-10-01 | K61: 10.07451902 | L61: 0.05297156921 | M61: 6.631720304 | N61: 5.954045014 | O61: 5.898205081 | P61: 0.1809 | R61: 2007-10-01 | S61: 14.95693399 | T61: 8.284154141 | U61: 12.12429614 | V61: 9.728047984 | W61: 1.324794591 | X61: 3.3117 | Z61: 2007-10-01 | AA61: 11.61414492 | AB61: 7.322132369 | AC61: 6.023144036 | AD61: 7.621487856 | AE61: 0.3429653994 | AF61: 4.12804 | AH61: 2007-10-01 | AI61: 11.10612685 | AJ61: 6.755400082 | AK61: 4.5410204 | AN61: 3.7751 | AQ61: 2007-10-01 | AR61: =IF(MONTH(Serie_Encadeada[[#This Row],[Período]])=1,Serie_Encadeada[[#This Row],[Fat.real]],Serie_Encadeada[[#This Row],[Fat.real]]+AR60) -> 1106.0916 | AS61: =IF(MONTH(Serie_Encadeada[[#This Row],[Período]])=1,Serie_Encadeada[[#This Row],[Emprego]],Serie_Encadeada[[#This Row],[Emprego]]+AS60) -> 1070.2353 | AT61: =IF(MONTH(Serie_Encadeada[[#This Row],[Período]])=1,Serie_Encadeada[[#This Row],[Horas]],Serie_Encadeada[[#This Row],[Horas]]+AT60) -> 1062.7127 | AU61: =IF(MONTH(Serie_Encadeada[[#This Row],[Período]])=1,Serie_Encadeada[[#This Row],[Massa Real]],Serie_Encadeada[[#This Row],[Massa Real]]+AU60) -> 1024.783 | AV61: =IF(MONTH(Serie_Encadeada[[#This Row],[Período]])=1,Serie_Encadeada[[#This Row],[RMR Real]],Serie_Encadeada[[#This Row],[RMR Real]]+AV60) -> 958.6792 | AW61: =IF(MONTH(Serie_Encadeada[[#This Row],[Período]])=1,Serie_Encadeada[[#This Row],[UCI]],Serie_Encadeada[[#This Row],[UCI]]+AW60) -> 860.4639 | AX61: 86.04639 | AY61: 2007-10-01 | AZ61: 1314.2026 | BA61: 1272.9547 | BB61: 1260.3709 | BC61: 1271.8671 | BD61: 1202.6275 | BE61: 85.83538333
A62: 2007-11-01 | B62: =MONTH(Serie_Encadeada[[#This Row],[Período]])&YEAR(Serie_Encadeada[[#This Row],[Período]]) -> 112007 | C62: 124.4153 | D62: 110.6607 | E62: 113.7255 | F62: 119.0967 | G62: 107.6071 | H62: 87.5004 | J62: 2007-11-01 | K62: -0.09780218104 | L62: 0.1498708993 | M62: -1.969480296 | N62: 14.93768005 | O62: 14.76744062 | P62: -0.3767 | R62: 2007-11-01 | S62: 14.82478914 | T62: 8.540896295 | U62: 9.836836636 | V62: 10.78103257 | W62: 2.068747682 | X62: 1.6679 | Z62: 2007-11-01 | AA62: 11.9305876 | AB62: 7.435178176 | AC62: 6.380209004 | AD62: 7.942018094 | AE62: 0.5144751942 | AF62: 3.904390909 | AH62: 2007-11-01 | AI62: 11.31663292 | AJ62: 7.118709684 | AK62: 5.526671158 | AN62: 3.722683333 | AQ62: 2007-11-01 | AR62: =IF(MONTH(Serie_Encadeada[[#This Row],[Período]])=1,Serie_Encadeada[[#This Row],[Fat.real]],Serie_Encadeada[[#This Row],[Fat.real]]+AR61) -> 1230.5069 | AS62: =IF(MONTH(Serie_Encadeada[[#This Row],[Período]])=1,Serie_Encadeada[[#This Row],[Emprego]],Serie_Encadeada[[#This Row],[Emprego]]+AS61) -> 1180.896 | AT62: =IF(MONTH(Serie_Encadeada[[#This Row],[Período]])=1,Serie_Encadeada[[#This Row],[Horas]],Serie_Encadeada[[#This Row],[Horas]]+AT61) -> 1176.4382 | AU62: =IF(MONTH(Serie_Encadeada[[#This Row],[Período]])=1,Serie_Encadeada[[#This Row],[Massa Real]],Serie_Encadeada[[#This Row],[Massa Real]]+AU61) -> 1143.8797 | AV62: =IF(MONTH(Serie_Encadeada[[#This Row],[Período]])=1,Serie_Encadeada[[#This Row],[RMR Real]],Serie_Encadeada[[#This Row],[RMR Real]]+AV61) -> 1066.2863 | AW62: =IF(MONTH(Serie_Encadeada[[#This Row],[Período]])=1,Serie_Encadeada[[#This Row],[UCI]],Serie_Encadeada[[#This Row],[UCI]]+AW61) -> 947.9643 | AX62: 86.17857273 | AY62: 2007-11-01 | AZ62: 1330.2656 | BA62: 1281.6624 | BB62: 1270.556 | BC62: 1283.4574 | BD62: 1204.8085 | BE62: 85.974375
A63: 2007-12-01 | B63: =MONTH(Serie_Encadeada[[#This Row],[Período]])&YEAR(Serie_Encadeada[[#This Row],[Período]]) -> 122007 | C63: 113.1956 | D63: 109.1355 | E63: 103.3779 | F63: 154.8298 | G63: 141.8478 | H63: 86.2349 | J63: 2007-12-01 | K63: -9.017942327 | L63: -1.378267081 | M63: -9.09875094 | N63: 30.00343418 | O63: 31.82011224 | P63: -1.2655 | R63: 2007-12-01 | S63: 13.46940167 | T63: 8.305447054 | U63: 9.838840262 | V63: 10.92731862 | W63: 2.400770418 | X63: 2.5067 | Z63: 2007-12-01 | AA63: 12.05860795 | AB63: 7.508260225 | AC63: 6.651474981 | AD63: 8.289456843 | AE63: 0.7323378614 | AF63: 3.787916667 | AH63: 2007-12-01 | AI63: 12.05860795 | AJ63: 7.508260225 | AK63: 6.651474981 | AN63: 3.787916667 | AQ63: 2007-12-01 | AR63: =IF(MONTH(Serie_Encadeada[[#This Row],[Período]])=1,Serie_Encadeada[[#This Row],[Fat.real]],Serie_Encadeada[[#This Row],[Fat.real]]+AR62) -> 1343.7025 | AS63: =IF(MONTH(Serie_Encadeada[[#This Row],[Período]])=1,Serie_Encadeada[[#This Row],[Emprego]],Serie_Encadeada[[#This Row],[Emprego]]+AS62) -> 1290.0315 | AT63: =IF(MONTH(Serie_Encadeada[[#This Row],[Período]])=1,Serie_Encadeada[[#This Row],[Horas]],Serie_Encadeada[[#This Row],[Horas]]+AT62) -> 1279.8161 | AU63: =IF(MONTH(Serie_Encadeada[[#This Row],[Período]])=1,Serie_Encadeada[[#This Row],[Massa Real]],Serie_Encadeada[[#This Row],[Massa Real]]+AU62) -> 1298.7095 | AV63: =IF(MONTH(Serie_Encadeada[[#This Row],[Período]])=1,Serie_Encadeada[[#This Row],[RMR Real]],Serie_Encadeada[[#This Row],[RMR Real]]+AV62) -> 1208.1341 | AW63: =IF(MONTH(Serie_Encadeada[[#This Row],[Período]])=1,Serie_Encadeada[[#This Row],[UCI]],Serie_Encadeada[[#This Row],[UCI]]+AW62) -> 1034.1992 | AX63: 86.18326667 | AY63: 2007-12-01 | AZ63: 1343.7025 | BA63: 1290.0315 | BB63: 1279.8161 | BC63: 1298.7095 | BD63: 1208.1341 | BE63: 86.18326667
A64: 2008-01-01 | B64: =MONTH(Serie_Encadeada[[#This Row],[Período]])&YEAR(Serie_Encadeada[[#This Row],[Período]]) -> 12008 | C64: 116.0009 | D64: 109.1265 | E64: 108.1692 | F64: 120.3679 | G64: 110.2849 | H64: 85.8572 | J64: 2008-01-01 | K64: 2.478276541 | L64: -0.00824662919 | M64: 4.634743016 | N64: -22.25792451 | O64: -22.25124394 | P64: -0.3777 | R64: 2008-01-01 | S64: 22.08333596 | T64: 7.770318314 | U64: 11.90619549 | V64: 15.79080526 | W64: 7.44386921 | X64: 1.3958 | Z64: 2008-01-01 | AA64: 22.08333596 | AB64: 7.770318314 | AC64: 11.90619549 | AD64: 15.79080526 | AE64: 7.44386921 | AF64: 1.3958 | AH64: 2008-01-01 | AI64: 13.15565489 | AJ64: 7.80909735 | AK64: 7.463587451 | AL64: 8.938551882 | AM64: 1.03552339 | AN64: 3.54835 | AQ64: 2008-01-01 | AR64: =IF(MONTH(Serie_Encadeada[[#This Row],[Período]])=1,Serie_Encadeada[[#This Row],[Fat.real]],Serie_Encadeada[[#This Row],[Fat.real]]+AR63) -> 116.0009 | AS64: =IF(MONTH(Serie_Encadeada[[#This Row],[Período]])=1,Serie_Encadeada[[#This Row],[Emprego]],Serie_Encadeada[[#This Row],[Emprego]]+AS63) -> 109.1265 | AT64: =IF(MONTH(Serie_Encadeada[[#This Row],[Período]])=1,Serie_Encadeada[[#This Row],[Horas]],Serie_Encadeada[[#This Row],[Horas]]+AT63) -> 108.1692 | AU64: =IF(MONTH(Serie_Encadeada[[#This Row],[Período]])=1,Serie_Encadeada[[#This Row],[Massa Real]],Serie_Encadeada[[#This Row],[Massa Real]]+AU63) -> 120.3679 | AV64: =IF(MONTH(Serie_Encadeada[[#This Row],[Período]])=1,Serie_Encadeada[[#This Row],[RMR Real]],Serie_Encadeada[[#This Row],[RMR Real]]+AV63) -> 110.2849 | AW64: =IF(MONTH(Serie_Encadeada[[#This Row],[Período]])=1,Serie_Encadeada[[#This Row],[UCI]],Serie_Encadeada[[#This Row],[UCI]]+AW63) -> 85.8572 | AX64: 85.8572 | AY64: 2008-01-01 | AZ64: 1364.6856 | BA64: 1297.8996 | BB64: 1291.3247 | BC64: 1315.1245 | BD64: 1215.7748 | BE64: 86.29958333
A65: 2008-02-01 | B65: =MONTH(Serie_Encadeada[[#This Row],[Período]])&YEAR(Serie_Encadeada[[#This Row],[Período]]) -> 22008 | C65: 117.9355 | D65: 109.9247 | E65: 106.6798 | F65: 124.3771 | G65: 113.1336 | H65: 84.6417 | J65: 2008-02-01 | K65: 1.667745681 | L65: 0.7314446995 | M65: -1.376916904 | N65: 3.330788358 | O65: 2.583037206 | P65: -1.2155 | R65: 2008-02-01 | S65: 27.12347638 | T65: 7.322662058 | U65: 13.72082487 | V65: 14.47869927 | W65: 6.669532971 | X65: 0.7778 | Z65: 2008-02-01 | AA65: 24.57327379 | AB65: 7.545208753 | AC65: 12.79992398 | AD65: 15.12026845 | AE65: 7.050364607 | AF65: 1.0868 | AH65: 2008-02-01 | AI65: 14.73656012 | AJ65: 7.970041328 | AK65: 8.438191746 | AL65: 9.70958911 | AM65: 1.590955274 | AN65: 3.2992 | AQ65: 2008-02-01 | AR65: =IF(MONTH(Serie_Encadeada[[#This Row],[Período]])=1,Serie_Encadeada[[#This Row],[Fat.real]],Serie_Encadeada[[#This Row],[Fat.real]]+AR64) -> 233.9364 | AS65: =IF(MONTH(Serie_Encadeada[[#This Row],[Período]])=1,Serie_Encadeada[[#This Row],[Emprego]],Serie_Encadeada[[#This Row],[Emprego]]+AS64) -> 219.0512 | AT65: =IF(MONTH(Serie_Encadeada[[#This Row],[Período]])=1,Serie_Encadeada[[#This Row],[Horas]],Serie_Encadeada[[#This Row],[Horas]]+AT64) -> 214.849 | AU65: =IF(MONTH(Serie_Encadeada[[#This Row],[Período]])=1,Serie_Encadeada[[#This Row],[Massa Real]],Serie_Encadeada[[#This Row],[Massa Real]]+AU64) -> 244.745 | AV65: =IF(MONTH(Serie_Encadeada[[#This Row],[Período]])=1,Serie_Encadeada[[#This Row],[RMR Real]],Serie_Encadeada[[#This Row],[RMR Real]]+AV64) -> 223.4185 | AW65: =IF(MONTH(Serie_Encadeada[[#This Row],[Período]])=1,Serie_Encadeada[[#This Row],[UCI]],Serie_Encadeada[[#This Row],[UCI]]+AW64) -> 170.4989 | AX65: 85.24945 | AY65: 2008-02-01 | AZ65: 1389.8487 | BA65: 1305.3998 | BB65: 1304.196 | BC65: 1330.8551 | BD65: 1222.8485 | BE65: 86.3644
A66: 2008-03-01 | B66: =MONTH(Serie_Encadeada[[#This Row],[Período]])&YEAR(Serie_Encadeada[[#This Row],[Período]]) -> 32008 | C66: 125.9741 | D66: 110.8181 | E66: 113.9456 | F66: 103.9731 | G66: 93.7998 | H66: 85.2986 | J66: 2008-03-01 | K66: 6.81609863 | L66: 0.8127381744 | M66: 6.810848914 | N66: -16.40494914 | O66: -17.08935277 | P66: 0.6569 | R66: 2008-03-01 | S66: 15.48166672 | T66: 7.010660693 | U66: 8.607332398 | V66: 2.914521235 | W66: -3.829303827 | X66: -0.2949 | Z66: 2008-03-01 | AA66: 21.23260216 | AB66: 7.365035059 | AC66: 11.31079072 | AD66: 11.18844618 | AE66: 3.585273976 | AF66: 0.6262333333 | AH66: 2008-03-01 | AI66: 15.35247137 | AJ66: 8.027884835 | AK66: 8.860811749 | AL66: 9.325676435 | AM66: 1.195682842 | AN66: 2.842408333 | AQ66: 2008-03-01 | AR66: =IF(MONTH(Serie_Encadeada[[#This Row],[Período]])=1,Serie_Encadeada[[#This Row],[Fat.real]],Serie_Encadeada[[#This Row],[Fat.real]]+AR65) -> 359.9105 | AS66: =IF(MONTH(Serie_Encadeada[[#This Row],[Período]])=1,Serie_Encadeada[[#This Row],[Emprego]],Serie_Encadeada[[#This Row],[Emprego]]+AS65) -> 329.8693 | AT66: =IF(MONTH(Serie_Encadeada[[#This Row],[Período]])=1,Serie_Encadeada[[#This Row],[Horas]],Serie_Encadeada[[#This Row],[Horas]]+AT65) -> 328.7946 | AU66: =IF(MONTH(Serie_Encadeada[[#This Row],[Período]])=1,Serie_Encadeada[[#This Row],[Massa Real]],Serie_Encadeada[[#This Row],[Massa Real]]+AU65) -> 348.7181 | AV66: =IF(MONTH(Serie_Encadeada[[#This Row],[Período]])=1,Serie_Encadeada[[#This Row],[RMR Real]],Serie_Encadeada[[#This Row],[RMR Real]]+AV65) -> 317.2183 | AW66: =IF(MONTH(Serie_Encadeada[[#This Row],[Período]])=1,Serie_Encadeada[[#This Row],[UCI]],Serie_Encadeada[[#This Row],[UCI]]+AW65) -> 255.7975 | AX66: 85.26583333 | AY66: 2008-03-01 | AZ66: 1406.737 | BA66: 1312.6599 | BB66: 1313.2264 | BC66: 1333.7996 | BD66: 1219.1136 | BE66: 86.339825
A67: 2008-04-01 | B67: =MONTH(Serie_Encadeada[[#This Row],[Período]])&YEAR(Serie_Encadeada[[#This Row],[Período]]) -> 42008 | C67: 130.9791 | D67: 112.2707 | E67: 117.8638 | F67: 103.9416 | G67: 92.5667 | H67: 86.1181 | J67: 2008-04-01 | K67: 3.973038902 | L67: 1.310796702 | M67: 3.438658448 | N67: -0.03029629779 | O67: -1.314608347 | P67: 0.8195 | R67: 2008-04-01 | S67: 26.30627312 | T67: 6.099226304 | U67: 15.66864054 | V67: 3.752562831 | W67: -2.211181515 | X67: 1.1977 | Z67: 2008-04-01 | AA67: 22.54605623 | AB67: 7.040761385 | AC67: 12.42852371 | AD67: 9.388241276 | AE67: 2.216620362 | AF67: 0.7691 | AH67: 2008-04-01 | AI67: 16.44437064 | AJ67: 7.947816688 | AK67: 9.556583431 | AL67: 8.931642322 | AM67: 0.9084174941 | AN67: 2.547491667 | AQ67: 2008-04-01 | AR67: =IF(MONTH(Serie_Encadeada[[#This Row],[Período]])=1,Serie_Encadeada[[#This Row],[Fat.real]],Serie_Encadeada[[#This Row],[Fat.real]]+AR66) -> 490.8896 | AS67: =IF(MONTH(Serie_Encadeada[[#This Row],[Período]])=1,Serie_Encadeada[[#This Row],[Emprego]],Serie_Encadeada[[#This Row],[Emprego]]+AS66) -> 442.14 | AT67: =IF(MONTH(Serie_Encadeada[[#This Row],[Período]])=1,Serie_Encadeada[[#This Row],[Horas]],Serie_Encadeada[[#This Row],[Horas]]+AT66) -> 446.6584 | AU67: =IF(MONTH(Serie_Encadeada[[#This Row],[Período]])=1,Serie_Encadeada[[#This Row],[Massa Real]],Serie_Encadeada[[#This Row],[Massa Real]]+AU66) -> 452.6597 | AV67: =IF(MONTH(Serie_Encadeada[[#This Row],[Período]])=1,Serie_Encadeada[[#This Row],[RMR Real]],Serie_Encadeada[[#This Row],[RMR Real]]+AV66) -> 409.785 | AW67: =IF(MONTH(Serie_Encadeada[[#This Row],[Período]])=1,Serie_Encadeada[[#This Row],[UCI]],Serie_Encadeada[[#This Row],[UCI]]+AW66) -> 341.9156 | AX67: 85.4789 | AY67: 2008-04-01 | AZ67: 1434.0165 | BA67: 1319.1139 | BB67: 1329.1924 | BC67: 1337.559 | BD67: 1217.0205 | BE67: 86.43963333
A68: 2008-05-01 | B68: =MONTH(Serie_Encadeada[[#This Row],[Período]])&YEAR(Serie_Encadeada[[#This Row],[Período]]) -> 52008 | C68: 134.4188 | D68: 113.5767 | E68: 117.2524 | F68: 102.8535 | G68: 90.5446 | H68: 86.3705 | J68: 2008-05-01 | K68: 2.626144171 | L68: 1.163259871 | M68: -0.5187343357 | N68: -1.04683784 | O68: -2.184478868 | P68: 0.2524 | R68: 2008-05-01 | S68: 17.41396961 | T68: 5.67230585 | U68: 8.3407253 | V68: 2.203079601 | W68: -3.282605747 | X68: -0.3203 | Z68: 2008-05-01 | AA68: 21.40533967 | AB68: 6.758204065 | AC68: 11.55335517 | AD68: 7.982674975 | AE68: 1.175552757 | AF68: 0.55122 | AH68: 2008-05-01 | AI68: 16.89160594 | AJ68: 7.831743129 | AK68: 9.978006358 | AL68: 8.32317297 | AM68: 0.4551294496 | AN68: 2.108966667 | AQ68: 2008-05-01 | AR68: =IF(MONTH(Serie_Encadeada[[#This Row],[Período]])=1,Serie_Encadeada[[#This Row],[Fat.real]],Serie_Encadeada[[#This Row],[Fat.real]]+AR67) -> 625.3084 | AS68: =IF(MONTH(Serie_Encadeada[[#This Row],[Período]])=1,Serie_Encadeada[[#This Row],[Emprego]],Serie_Encadeada[[#This Row],[Emprego]]+AS67) -> 555.7167 | AT68: =IF(MONTH(Serie_Encadeada[[#This Row],[Período]])=1,Serie_Encadeada[[#This Row],[Horas]],Serie_Encadeada[[#This Row],[Horas]]+AT67) -> 563.9108 | AU68: =IF(MONTH(Serie_Encadeada[[#This Row],[Período]])=1,Serie_Encadeada[[#This Row],[Massa Real]],Serie_Encadeada[[#This Row],[Massa Real]]+AU67) -> 555.5132 | AV68: =IF(MONTH(Serie_Encadeada[[#This Row],[Período]])=1,Serie_Encadeada[[#This Row],[RMR Real]],Serie_Encadeada[[#This Row],[RMR Real]]+AV67) -> 500.3296 | AW68: =IF(MONTH(Serie_Encadeada[[#This Row],[Período]])=1,Serie_Encadeada[[#This Row],[UCI]],Serie_Encadeada[[#This Row],[UCI]]+AW67) -> 428.2861 | AX68: 85.65722 | AY68: 2008-05-01 | AZ68: 1453.9525 | BA68: 1325.2105 | BB68: 1338.2192 | BC68: 1339.7761 | BD68: 1213.9474 | BE68: 86.41294167
A69: 2008-06-01 | B69: =MONTH(Serie_Encadeada[[#This Row],[Período]])&YEAR(Serie_Encadeada[[#This Row],[Período]]) -> 62008 | C69: 136.702 | D69: 114.7545 | E69: 118.634 | F69: 113.4404 | G69: 98.8408 | H69: 86.4634 | J69: 2008-06-01 | K69: 1.698571926 | L69: 1.037008471 | M69: 1.178312768 | N69: 10.29318399 | O69: 9.162556353 | P69: 0.0929 | R69: 2008-06-01 | S69: 23.77516891 | T69: 4.983957982 | U69: 9.938930024 | V69: 7.209896845 | W69: 2.121135102 | X69: 0.838 | Z69: 2008-06-01 | AA69: 21.82377616 | AB69: 6.450291532 | AC69: 11.26935409 | AD69: 7.850844673 | AE69: 1.330330705 | AF69: 0.5990166667 | AH69: 2008-06-01 | AI69: 18.09134901 | AJ69: 7.492659783 | AK69: 10.27651201 | AL69: 7.973086482 | AM69: 0.4264737642 | AN69: 1.887441667 | AQ69: 2008-06-01 | AR69: =IF(MONTH(Serie_Encadeada[[#This Row],[Período]])=1,Serie_Encadeada[[#This Row],[Fat.real]],Serie_Encadeada[[#This Row],[Fat.real]]+AR68) -> 762.0104 | AS69: =IF(MONTH(Serie_Encadeada[[#This Row],[Período]])=1,Serie_Encadeada[[#This Row],[Emprego]],Serie_Encadeada[[#This Row],[Emprego]]+AS68) -> 670.4712 | AT69: =IF(MONTH(Serie_Encadeada[[#This Row],[Período]])=1,Serie_Encadeada[[#This Row],[Horas]],Serie_Encadeada[[#This Row],[Horas]]+AT68) -> 682.5448 | AU69: =IF(MONTH(Serie_Encadeada[[#This Row],[Período]])=1,Serie_Encadeada[[#This Row],[Massa Real]],Serie_Encadeada[[#This Row],[Massa Real]]+AU68) -> 668.9536 | AV69: =IF(MONTH(Serie_Encadeada[[#This Row],[Período]])=1,Serie_Encadeada[[#This Row],[RMR Real]],Serie_Encadeada[[#This Row],[RMR Real]]+AV68) -> 599.1704 | AW69: =IF(MONTH(Serie_Encadeada[[#This Row],[Período]])=1,Serie_Encadeada[[#This Row],[UCI]],Serie_Encadeada[[#This Row],[UCI]]+AW68) -> 514.7495 | AX69: =AW69/MONTH(AQ69) -> 85.79158333 | AY69: 2008-06-01 | AZ69: 1480.2107 | BA69: 1330.6583 | BB69: 1348.9442 | BC69: 1347.405 | BD69: 1216.0004 | BE69: 86.482775
A70: 2008-07-01 | B70: =MONTH(Serie_Encadeada[[#This Row],[Período]])&YEAR(Serie_Encadeada[[#This Row],[Período]]) -> 72008 | C70: 143.1274 | D70: 114.8199 | E70: 121.1864 | F70: 110.2989 | G70: 96.0462 | H70: 87.5859 | J70: 2008-07-01 | K70: 4.700296996 | L70: 0.0569912291 | M70: 2.151491141 | N70: -2.769295595 | O70: -2.82737493 | P70: 1.1225 | R70: 2008-07-01 | S70: 23.96608605 | T70: 4.948257046 | U70: 10.55589766 | V70: 7.228310112 | W70: 2.173982422 | X70: 1.7646 | Z70: 2008-07-01 | AA70: 22.15759277 | AB70: 6.227996298 | AC70: 11.16119033 | AD70: 7.762289529 | AE70: 1.446053278 | AF70: 0.7655285714 | AH70: 2008-07-01 | AI70: 18.88649766 | AJ70: 7.149673933 | AK70: 10.4766244 | AL70: 8.042094334 | AM70: 0.7953358436 | AN70: 1.7281 | AQ70: 2008-07-01 | AR70: =IF(MONTH(Serie_Encadeada[[#This Row],[Período]])=1,Serie_Encadeada[[#This Row],[Fat.real]],Serie_Encadeada[[#This Row],[Fat.real]]+AR69) -> 905.1378 | AS70: =IF(MONTH(Serie_Encadeada[[#This Row],[Período]])=1,Serie_Encadeada[[#This Row],[Emprego]],Serie_Encadeada[[#This Row],[Emprego]]+AS69) -> 785.2911 | AT70: =IF(MONTH(Serie_Encadeada[[#This Row],[Período]])=1,Serie_Encadeada[[#This Row],[Horas]],Serie_Encadeada[[#This Row],[Horas]]+AT69) -> 803.7312 | AU70: =IF(MONTH(Serie_Encadeada[[#This Row],[Período]])=1,Serie_Encadeada[[#This Row],[Massa Real]],Serie_Encadeada[[#This Row],[Massa Real]]+AU69) -> 779.2525 | AV70: =IF(MONTH(Serie_Encadeada[[#This Row],[Período]])=1,Serie_Encadeada[[#This Row],[RMR Real]],Serie_Encadeada[[#This Row],[RMR Real]]+AV69) -> 695.2166 | AW70: =IF(MONTH(Serie_Encadeada[[#This Row],[Período]])=1,Serie_Encadeada[[#This Row],[UCI]],Serie_Encadeada[[#This Row],[UCI]]+AW69) -> 602.3354 | AX70: 86.04791429 | AY70: 2008-07-01 | AZ70: 1507.8812 | BA70: 1336.072 | BB70: 1360.5151 | BC70: 1354.8403 | BD70: 1218.044 | BE70: 86.629825
A71: 2008-08-01 | B71: =MONTH(Serie_Encadeada[[#This Row],[Período]])&YEAR(Serie_Encadeada[[#This Row],[Período]]) -> 82008 | C71: 137.7773 | D71: 115.6068 | E71: 121.5431 | F71: 107.2015 | G71: 92.7117 | H71: 87.5913 | J71: 2008-08-01 | K71: -3.737998455 | L71: 0.6853341625 | M71: 0.2943399589 | N71: -2.80818757 | O71: -3.471766712 | P71: 0.0054 | R71: 2008-08-01 | S71: 8.097507777 | T71: 5.046477606 | U71: 5.80474934 | V71: 6.937258035 | W71: 1.79966115 | X71: -0.3226 | Z71: 2008-08-01 | AA71: 20.09400798 | AB71: 6.074894773 | AC71: 10.4268361 | AD71: 7.661839992 | AE71: 1.487533028 | AF71: 0.6295125 | AH71: 2008-08-01 | AI71: 17.83434695 | AJ71: 6.828414856 | AK71: 10.31457062 | AL71: 8.170537418 | AM71: 1.197846747 | AN71: 1.360991667 | AQ71: 2008-08-01 | AR71: =IF(MONTH(Serie_Encadeada[[#This Row],[Período]])=1,Serie_Encadeada[[#This Row],[Fat.real]],Serie_Encadeada[[#This Row],[Fat.real]]+AR70) -> 1042.9151 | AS71: =IF(MONTH(Serie_Encadeada[[#This Row],[Período]])=1,Serie_Encadeada[[#This Row],[Emprego]],Serie_Encadeada[[#This Row],[Emprego]]+AS70) -> 900.8979 | AT71: =IF(MONTH(Serie_Encadeada[[#This Row],[Período]])=1,Serie_Encadeada[[#This Row],[Horas]],Serie_Encadeada[[#This Row],[Horas]]+AT70) -> 925.2743 | AU71: =IF(MONTH(Serie_Encadeada[[#This Row],[Período]])=1,Serie_Encadeada[[#This Row],[Massa Real]],Serie_Encadeada[[#This Row],[Massa Real]]+AU70) -> 886.454 | AV71: =IF(MONTH(Serie_Encadeada[[#This Row],[Período]])=1,Serie_Encadeada[[#This Row],[RMR Real]],Serie_Encadeada[[#This Row],[RMR Real]]+AV70) -> 787.9283 | AW71: =IF(MONTH(Serie_Encadeada[[#This Row],[Período]])=1,Serie_Encadeada[[#This Row],[UCI]],Serie_Encadeada[[#This Row],[UCI]]+AW70) -> 689.9267 | AX71: 86.2408375 | AY71: 2008-08-01 | AZ71: 1518.202 | BA71: 1341.6258 | BB71: 1367.1833 | BC71: 1361.7947 | BD71: 1219.683 | BE71: 86.60294167
A72: 2008-09-01 | B72: =MONTH(Serie_Encadeada[[#This Row],[Período]])&YEAR(Serie_Encadeada[[#This Row],[Período]]) -> 92008 | C72: 139.1841 | D72: 117.8674 | E72: 124.7074 | F72: 107.7863 | G72: 91.431 | H72: 87.6096 | J72: 2008-09-01 | K72: 1.021068057 | L72: 1.955421307 | M72: 2.603438616 | N72: 0.5455147549 | O72: -1.381379049 | P72: 0.0183 | R72: 2008-09-01 | S72: 23.02055261 | T72: 6.728566435 | U72: 14.62572372 | V72: 10.21578658 | W72: 3.266590467 | X72: -0.0866 | Z72: 2008-09-01 | AA72: 20.43133621 | AB72: 6.150112291 | AC72: 10.90937342 | AD72: 7.932980483 | AE72: 1.669649222 | AF72: 0.5499444444 | AH72: 2008-09-01 | AI72: 18.97135222 | AJ72: 6.686841153 | AK72: 10.8403701 | AL72: 8.640711781 | AM72: 1.762408174 | AN72: 1.036316667 | AQ72: 2008-09-01 | AR72: =IF(MONTH(Serie_Encadeada[[#This Row],[Período]])=1,Serie_Encadeada[[#This Row],[Fat.real]],Serie_Encadeada[[#This Row],[Fat.real]]+AR71) -> 1182.0992 | AS72: =IF(MONTH(Serie_Encadeada[[#This Row],[Período]])=1,Serie_Encadeada[[#This Row],[Emprego]],Serie_Encadeada[[#This Row],[Emprego]]+AS71) -> 1018.7653 | AT72: =IF(MONTH(Serie_Encadeada[[#This Row],[Período]])=1,Serie_Encadeada[[#This Row],[Horas]],Serie_Encadeada[[#This Row],[Horas]]+AT71) -> 1049.9817 | AU72: =IF(MONTH(Serie_Encadeada[[#This Row],[Período]])=1,Serie_Encadeada[[#This Row],[Massa Real]],Serie_Encadeada[[#This Row],[Massa Real]]+AU71) -> 994.2403 | AV72: =IF(MONTH(Serie_Encadeada[[#This Row],[Período]])=1,Serie_Encadeada[[#This Row],[RMR Real]],Serie_Encadeada[[#This Row],[RMR Real]]+AV71) -> 879.3593 | AW72: =IF(MONTH(Serie_Encadeada[[#This Row],[Período]])=1,Serie_Encadeada[[#This Row],[UCI]],Serie_Encadeada[[#This Row],[UCI]]+AW71) -> 777.5363 | AX72: 86.39292222 | AY72: 2008-09-01 | AZ72: 1544.2472 | BA72: 1349.0566 | BB72: 1383.0954 | BC72: 1371.7853 | BD72: 1222.5752 | BE72: 86.595725
A73: 2008-10-01 | B73: =MONTH(Serie_Encadeada[[#This Row],[Período]])&YEAR(Serie_Encadeada[[#This Row],[Período]]) -> 102008 | C73: 136.1064 | D73: 117.8162 | E73: 121.2929 | F73: 114.9158 | G73: 97.5217 | H73: 87.4923 | J73: 2008-10-01 | K73: -2.211243957 | L73: -0.04343864376 | M73: -2.738009132 | N73: 6.614476979 | O73: 6.661526178 | P73: -0.1173 | R73: 2008-10-01 | S73: 9.289842143 | T73: 6.625723675 | U73: 4.553561192 | V73: 10.9027828 | W73: 4.010942716 | X73: -0.3848 | Z73: 2008-10-01 | AA73: 19.17689276 | AB73: 6.199216191 | AC73: 10.21554556 | AD73: 8.233264994 | AE73: 1.898633036 | AF73: 0.45647 | AH73: 2008-10-01 | AI73: 18.38482894 | AJ73: 6.553493223 | AK73: 10.15630399 | AL73: 8.74427053 | AM73: 1.971383492 | AN73: 0.728275 | AQ73: 2008-10-01 | AR73: =IF(MONTH(Serie_Encadeada[[#This Row],[Período]])=1,Serie_Encadeada[[#This Row],[Fat.real]],Serie_Encadeada[[#This Row],[Fat.real]]+AR72) -> 1318.2056 | AS73: =IF(MONTH(Serie_Encadeada[[#This Row],[Período]])=1,Serie_Encadeada[[#This Row],[Emprego]],Serie_Encadeada[[#This Row],[Emprego]]+AS72) -> 1136.5815 | AT73: =IF(MONTH(Serie_Encadeada[[#This Row],[Período]])=1,Serie_Encadeada[[#This Row],[Horas]],Serie_Encadeada[[#This Row],[Horas]]+AT72) -> 1171.2746 | AU73: =IF(MONTH(Serie_Encadeada[[#This Row],[Período]])=1,Serie_Encadeada[[#This Row],[Massa Real]],Serie_Encadeada[[#This Row],[Massa Real]]+AU72) -> 1109.1561 | AV73: =IF(MONTH(Serie_Encadeada[[#This Row],[Período]])=1,Serie_Encadeada[[#This Row],[RMR Real]],Serie_Encadeada[[#This Row],[RMR Real]]+AV72) -> 976.881 | AW73: =IF(MONTH(Serie_Encadeada[[#This Row],[Período]])=1,Serie_Encadeada[[#This Row],[UCI]],Serie_Encadeada[[#This Row],[UCI]]+AW72) -> 865.0286 | AX73: 86.50286 | AY73: 2008-10-01 | AZ73: 1555.8165 | BA73: 1356.3777 | BB73: 1388.378 | BC73: 1383.0826 | BD73: 1226.3359 | BE73: 86.56365833
A74: 2008-11-01 | B74: =MONTH(Serie_Encadeada[[#This Row],[Período]])&YEAR(Serie_Encadeada[[#This Row],[Período]]) -> 112008 | C74: 100.8743 | D74: 116.3469 | E74: 113.213 | F74: 132.0125 | G74: 113.4455 | H74: 85.231 | J74: 2008-11-01 | K74: -25.88570413 | L74: -1.247112027 | M74: -6.661478124 | N74: 14.87758863 | O74: 16.32846843 | P74: -2.2613 | R74: 2008-11-01 | S74: -18.9213063 | T74: 5.138409571 | U74: -0.4506465129 | V74: 10.84480091 | W74: 5.425664292 | X74: -2.2694 | Z74: 2008-11-01 | AA74: 15.32482264 | AB74: 6.099808959 | AC74: 9.184451848 | AD74: 8.505168856 | AE74: 2.254572717 | AF74: 0.2086636364 | AH74: 2008-11-01 | AI74: 15.18568172 | AJ74: 6.273219843 | AK74: 9.232926372 | AL74: 8.768580866 | AM74: 2.271381718 | AN74: 0.4001666667 | AQ74: 2008-11-01 | AR74: =IF(MONTH(Serie_Encadeada[[#This Row],[Período]])=1,Serie_Encadeada[[#This Row],[Fat.real]],Serie_Encadeada[[#This Row],[Fat.real]]+AR73) -> 1419.0799 | AS74: =IF(MONTH(Serie_Encadeada[[#This Row],[Período]])=1,Serie_Encadeada[[#This Row],[Emprego]],Serie_Encadeada[[#This Row],[Emprego]]+AS73) -> 1252.9284 | AT74: =IF(MONTH(Serie_Encadeada[[#This Row],[Período]])=1,Serie_Encadeada[[#This Row],[Horas]],Serie_Encadeada[[#This Row],[Horas]]+AT73) -> 1284.4876 | AU74: =IF(MONTH(Serie_Encadeada[[#This Row],[Período]])=1,Serie_Encadeada[[#This Row],[Massa Real]],Serie_Encadeada[[#This Row],[Massa Real]]+AU73) -> 1241.1686 | AV74: =IF(MONTH(Serie_Encadeada[[#This Row],[Período]])=1,Serie_Encadeada[[#This Row],[RMR Real]],Serie_Encadeada[[#This Row],[RMR Real]]+AV73) -> 1090.3265 | AW74: =IF(MONTH(Serie_Encadeada[[#This Row],[Período]])=1,Serie_Encadeada[[#This Row],[UCI]],Serie_Encadeada[[#This Row],[UCI]]+AW73) -> 950.2596 | AX74: 86.38723636 | AY74: 2008-11-01 | AZ74: 1532.2755 | BA74: 1362.0639 | BB74: 1387.8655 | BC74: 1395.9984 | BD74: 1232.1743 | BE74: 86.37454167
A75: 2008-12-01 | B75: =MONTH(Serie_Encadeada[[#This Row],[Período]])&YEAR(Serie_Encadeada[[#This Row],[Período]]) -> 122008 | C75: 100.0876 | D75: 112.4053 | E75: 95.8696 | F75: 172.1957 | G75: 153.1674 | H75: 80.7649 | J75: 2008-12-01 | K75: -0.7798814961 | L75: -3.387799761 | M75: -15.31926546 | N75: 30.43893571 | O75: 35.01408165 | P75: -4.4661 | R75: 2008-12-01 | S75: -11.5799554 | T75: 2.996092014 | U75: -7.262964328 | V75: 11.21612248 | W75: 7.980102617 | X75: -5.47 | Z75: 2008-12-01 | AA75: 13.05832206 | AB75: 5.837237308 | AC75: 7.85590211 | AD75: 8.828363849 | AE75: 2.926810857 | AF75: -0.2645583333 | AH75: 2008-12-01 | AI75: 13.05832206 | AJ75: 5.837237308 | AK75: 7.85590211 | AL75: 8.828363849 | AM75: 2.926810857 | AN75: -0.2645583333 | AQ75: 2008-12-01 | AR75: =IF(MONTH(Serie_Encadeada[[#This Row],[Período]])=1,Serie_Encadeada[[#This Row],[Fat.real]],Serie_Encadeada[[#This Row],[Fat.real]]+AR74) -> 1519.1675 | AS75: =IF(MONTH(Serie_Encadeada[[#This Row],[Período]])=1,Serie_Encadeada[[#This Row],[Emprego]],Serie_Encadeada[[#This Row],[Emprego]]+AS74) -> 1365.3337 | AT75: =IF(MONTH(Serie_Encadeada[[#This Row],[Período]])=1,Serie_Encadeada[[#This Row],[Horas]],Serie_Encadeada[[#This Row],[Horas]]+AT74) -> 1380.3572 | AU75: =IF(MONTH(Serie_Encadeada[[#This Row],[Período]])=1,Serie_Encadeada[[#This Row],[Massa Real]],Serie_Encadeada[[#This Row],[Massa Real]]+AU74) -> 1413.3643 | AV75: =IF(MONTH(Serie_Encadeada[[#This Row],[Período]])=1,Serie_Encadeada[[#This Row],[RMR Real]],Serie_Encadeada[[#This Row],[RMR Real]]+AV74) -> 1243.4939 | AW75: =IF(MONTH(Serie_Encadeada[[#This Row],[Período]])=1,Serie_Encadeada[[#This Row],[UCI]],Serie_Encadeada[[#This Row],[UCI]]+AW74) -> 1031.0245 | AX75: 85.91870833 | AY75: 2008-12-01 | AZ75: 1519.1675 | BA75: 1365.3337 | BB75: 1380.3572 | BC75: 1413.3643 | BD75: 1243.4939 | BE75: 85.91870833
A76: 2009-01-01 | B76: =MONTH(Serie_Encadeada[[#This Row],[Período]])&YEAR(Serie_Encadeada[[#This Row],[Período]]) -> 12009 | C76: 91.2985 | D76: 109.2849 | E76: 97.9162 | F76: 117.0208 | G76: 107.0592 | H76: 76.817 | J76: 2009-01-01 | K76: -8.781407487 | L76: -2.776025686 | M76: 2.134774736 | N76: -32.04197317 | O76: -30.10314205 | P76: -3.9479 | R76: 2009-01-01 | S76: -21.29500719 | T76: 0.1451526439 | U76: -9.478668604 | V76: -2.780724761 | W76: -2.924879109 | X76: -9.0402 | Z76: 2009-01-01 | AA76: -21.29500719 | AB76: 0.1451526439 | AC76: -9.478668604 | AD76: -2.780724761 | AE76: -2.924879109 | AF76: -9.0402 | AH76: 2009-01-01 | AI76: 9.509846077 | AJ76: 5.20783734 | AK76: 6.100673208 | AL76: 7.215491765 | AM76: 2.014632973 | AN76: -1.134225 | AQ76: 2009-01-01 | AR76: =IF(MONTH(Serie_Encadeada[[#This Row],[Período]])=1,Serie_Encadeada[[#This Row],[Fat.real]],Serie_Encadeada[[#This Row],[Fat.real]]+AR75) -> 91.2985 | AS76: =IF(MONTH(Serie_Encadeada[[#This Row],[Período]])=1,Serie_Encadeada[[#This Row],[Emprego]],Serie_Encadeada[[#This Row],[Emprego]]+AS75) -> 109.2849 | AT76: =IF(MONTH(Serie_Encadeada[[#This Row],[Período]])=1,Serie_Encadeada[[#This Row],[Horas]],Serie_Encadeada[[#This Row],[Horas]]+AT75) -> 97.9162 | AU76: =IF(MONTH(Serie_Encadeada[[#This Row],[Período]])=1,Serie_Encadeada[[#This Row],[Massa Real]],Serie_Encadeada[[#This Row],[Massa Real]]+AU75) -> 117.0208 | AV76: =IF(MONTH(Serie_Encadeada[[#This Row],[Período]])=1,Serie_Encadeada[[#This Row],[RMR Real]],Serie_Encadeada[[#This Row],[RMR Real]]+AV75) -> 107.0592 | AW76: =IF(MONTH(Serie_Encadeada[[#This Row],[Período]])=1,Serie_Encadeada[[#This Row],[UCI]],Serie_Encadeada[[#This Row],[UCI]]+AW75) -> 76.817 | AX76: 76.817 | AY76: 2009-01-01 | AZ76: 1494.4651 | BA76: 1365.4921 | BB76: 1370.1042 | BC76: 1410.0172 | BD76: 1240.2682 | BE76: 85.16535833
A77: 2009-02-01 | B77: =MONTH(Serie_Encadeada[[#This Row],[Período]])&YEAR(Serie_Encadeada[[#This Row],[Período]]) -> 22009 | C77: 94.6983 | D77: 107.8199 | E77: 95.7417 | F77: 121.8676 | G77: 113.0115 | H77: 77.5265 | J77: 2009-02-01 | K77: 3.723828979 | L77: -1.340532864 | M77: -2.220776542 | N77: 4.141827778 | O77: 5.559821108 | P77: 0.7095 | R77: 2009-02-01 | S77: -19.7033124 | T77: -1.914765289 | U77: -10.25320632 | V77: -2.017654375 | W77: -0.1079254969 | X77: -7.1152 | Z77: 2009-02-01 | AA77: -20.49257832 | AB77: -0.888559387 | AC77: -9.863252796 | AD77: -2.39293959 | AE77: -1.498443504 | AF77: -8.0777 | AH77: 2009-02-01 | AI77: 5.855256043 | AJ77: 4.4421257 | AK77: 4.214864944 | AL77: 5.759650318 | AM77: 1.414533362 | AN77: -1.791975 | AQ77: 2009-02-01 | AR77: =IF(MONTH(Serie_Encadeada[[#This Row],[Período]])=1,Serie_Encadeada[[#This Row],[Fat.real]],Serie_Encadeada[[#This Row],[Fat.real]]+AR76) -> 185.9968 | AS77: =IF(MONTH(Serie_Encadeada[[#This Row],[Período]])=1,Serie_Encadeada[[#This Row],[Emprego]],Serie_Encadeada[[#This Row],[Emprego]]+AS76) -> 217.1048 | AT77: =IF(MONTH(Serie_Encadeada[[#This Row],[Período]])=1,Serie_Encadeada[[#This Row],[Horas]],Serie_Encadeada[[#This Row],[Horas]]+AT76) -> 193.6579 | AU77: =IF(MONTH(Serie_Encadeada[[#This Row],[Período]])=1,Serie_Encadeada[[#This Row],[Massa Real]],Serie_Encadeada[[#This Row],[Massa Real]]+AU76) -> 238.8884 | AV77: =IF(MONTH(Serie_Encadeada[[#This Row],[Período]])=1,Serie_Encadeada[[#This Row],[RMR Real]],Serie_Encadeada[[#This Row],[RMR Real]]+AV76) -> 220.0707 | AW77: =IF(MONTH(Serie_Encadeada[[#This Row],[Período]])=1,Serie_Encadeada[[#This Row],[UCI]],Serie_Encadeada[[#This Row],[UCI]]+AW76) -> 154.3435 | AX77: 77.17175 | AY77: 2009-02-01 | AZ77: 1471.2279 | BA77: 1363.3873 | BB77: 1359.1661 | BC77: 1407.5077 | BD77: 1240.1461 | BE77: 84.572425
A78: 2009-03-01 | B78: =MONTH(Serie_Encadeada[[#This Row],[Período]])&YEAR(Serie_Encadeada[[#This Row],[Período]]) -> 32009 | C78: 122.2385 | D78: 108.0024 | E78: 102.8743 | F78: 111.397 | G78: 103.1184 | H78: 79.667 | J78: 2009-03-01 | K78: 29.08204266 | L78: 0.1692637444 | M78: 7.449836383 | N78: -8.591783214 | O78: -8.754064852 | P78: 2.1405 | R78: 2009-03-01 | S78: -2.965371453 | T78: -2.540830424 | U78: -9.716303218 | V78: 7.140212228 | W78: 9.93456276 | X78: -5.6316 | Z78: 2009-03-01 | AA78: -14.35779173 | AB78: -1.443632372 | AC78: -9.812326601 | AD78: 0.4494461285 | AE78: 1.882236933 | AF78: -7.262333333 | AH78: 2009-03-01 | AI78: 4.318881212 | AJ78: 3.649970567 | AK78: 2.655170502 | AL78: 6.082772854 | AM78: 2.489603922 | AN78: -2.2367 | AQ78: 2009-03-01 | AR78: =IF(MONTH(Serie_Encadeada[[#This Row],[Período]])=1,Serie_Encadeada[[#This Row],[Fat.real]],Serie_Encadeada[[#This Row],[Fat.real]]+AR77) -> 308.2353 | AS78: =IF(MONTH(Serie_Encadeada[[#This Row],[Período]])=1,Serie_Encadeada[[#This Row],[Emprego]],Serie_Encadeada[[#This Row],[Emprego]]+AS77) -> 325.1072 | AT78: =IF(MONTH(Serie_Encadeada[[#This Row],[Período]])=1,Serie_Encadeada[[#This Row],[Horas]],Serie_Encadeada[[#This Row],[Horas]]+AT77) -> 296.5322 | AU78: =IF(MONTH(Serie_Encadeada[[#This Row],[Período]])=1,Serie_Encadeada[[#This Row],[Massa Real]],Serie_Encadeada[[#This Row],[Massa Real]]+AU77) -> 350.2854 | AV78: =IF(MONTH(Serie_Encadeada[[#This Row],[Período]])=1,Serie_Encadeada[[#This Row],[RMR Real]],Serie_Encadeada[[#This Row],[RMR Real]]+AV77) -> 323.1891 | AW78: =IF(MONTH(Serie_Encadeada[[#This Row],[Período]])=1,Serie_Encadeada[[#This Row],[UCI]],Serie_Encadeada[[#This Row],[UCI]]+AW77) -> 234.0105 | AX78: 78.0035 | AY78: 2009-03-01 | AZ78: 1467.4923 | BA78: 1360.5716 | BB78: 1348.0948 | BC78: 1414.9316 | BD78: 1249.4647 | BE78: 84.103125
A79: 2009-04-01 | B79: =MONTH(Serie_Encadeada[[#This Row],[Período]])&YEAR(Serie_Encadeada[[#This Row],[Período]]) -> 42009 | C79: 108.8339 | D79: 108.8459 | E79: 100.152 | F79: 105.4086 | G79: 96.8244 | H79: 81.0848 | J79: 2009-04-01 | K79: -10.96593954 | L79: 0.7810011629 | M79: -2.646239148 | N79: -5.375728251 | O79: -6.103663362 | P79: 1.4178 | R79: 2009-04-01 | S79: -16.90743027 | T79: -3.050484231 | U79: -15.02734512 | V79: 1.411369461 | W79: 4.599602233 | X79: -5.0333 | Z79: 2009-04-01 | AA79: -15.03808596 | AB79: -1.851653322 | AC79: -11.1884608 | AD79: 0.6703269586 | AE79: 2.49606501 | AF79: -6.705075 | AH79: 2009-04-01 | AI79: 0.7901303786 | AJ79: 2.883215771 | AK79: 0.08957318745 | AL79: 5.894289523 | AM79: 3.015717484 | AN79: -2.75595 | AQ79: 2009-04-01 | AR79: =IF(MONTH(Serie_Encadeada[[#This Row],[Período]])=1,Serie_Encadeada[[#This Row],[Fat.real]],Serie_Encadeada[[#This Row],[Fat.real]]+AR78) -> 417.0692 | AS79: =IF(MONTH(Serie_Encadeada[[#This Row],[Período]])=1,Serie_Encadeada[[#This Row],[Emprego]],Serie_Encadeada[[#This Row],[Emprego]]+AS78) -> 433.9531 | AT79: =IF(MONTH(Serie_Encadeada[[#This Row],[Período]])=1,Serie_Encadeada[[#This Row],[Horas]],Serie_Encadeada[[#This Row],[Horas]]+AT78) -> 396.6842 | AU79: =IF(MONTH(Serie_Encadeada[[#This Row],[Período]])=1,Serie_Encadeada[[#This Row],[Massa Real]],Serie_Encadeada[[#This Row],[Massa Real]]+AU78) -> 455.694 | AV79: =IF(MONTH(Serie_Encadeada[[#This Row],[Período]])=1,Serie_Encadeada[[#This Row],[RMR Real]],Serie_Encadeada[[#This Row],[RMR Real]]+AV78) -> 420.0135 | AW79: =IF(MONTH(Serie_Encadeada[[#This Row],[Período]])=1,Serie_Encadeada[[#This Row],[UCI]],Serie_Encadeada[[#This Row],[UCI]]+AW78) -> 315.0953 | AX79: 78.773825 | AY79: 2009-04-01 | AZ79: =SUM(C68:C79) -> 1445.3471 | BA79: =SUM(D68:D79) -> 1357.1468 | BB79: 1330.383 | BC79: 1416.3986 | BD79: 1253.7224 | BE79: =SUM(H68:H79)/12 -> 83.68368333
A80: 2009-05-01 | B80: =MONTH(Serie_Encadeada[[#This Row],[Período]])&YEAR(Serie_Encadeada[[#This Row],[Período]]) -> 52009 | C80: 113.0388 | D80: 109.7016 | E80: 102.5209 | F80: 105.6608 | G80: 96.2992 | H80: 82.2947 | J80: 2009-05-01 | K80: 3.863593972 | L80: 0.7861573105 | M80: 2.365304737 | N80: 0.2392594153 | O80: -0.5424252564 | P80: 1.2099 | R80: 2009-05-01 | S80: -15.90551322 | T80: -3.411879373 | U80: -12.56392193 | V80: 2.729416111 | W80: 6.35554191 | X80: -4.0758 | Z80: 2009-05-01 | AA80: -15.2245516 | AB80: -2.170530416 | AC80: -11.4744566 | AD80: 1.051568172 | AE80: 3.194514176 | AF80: -6.17922 | AH80: 2009-05-01 | AI80: -2.062336975 | AJ80: 2.117490014 | AK80: -1.686397864 | AL80: 5.92858762 | AM80: 3.750541416 | AN80: -3.068908333 | AQ80: 2009-05-01 | AR80: =IF(MONTH(Serie_Encadeada[[#This Row],[Período]])=1,Serie_Encadeada[[#This Row],[Fat.real]],Serie_Encadeada[[#This Row],[Fat.real]]+AR79) -> 530.108 | AS80: =IF(MONTH(Serie_Encadeada[[#This Row],[Período]])=1,Serie_Encadeada[[#This Row],[Emprego]],Serie_Encadeada[[#This Row],[Emprego]]+AS79) -> 543.6547 | AT80: =IF(MONTH(Serie_Encadeada[[#This Row],[Período]])=1,Serie_Encadeada[[#This Row],[Horas]],Serie_Encadeada[[#This Row],[Horas]]+AT79) -> 499.2051 | AU80: =IF(MONTH(Serie_Encadeada[[#This Row],[Período]])=1,Serie_Encadeada[[#This Row],[Massa Real]],Serie_Encadeada[[#This Row],[Massa Real]]+AU79) -> 561.3548 | AV80: =IF(MONTH(Serie_Encadeada[[#This Row],[Período]])=1,Serie_Encadeada[[#This Row],[RMR Real]],Serie_Encadeada[[#This Row],[RMR Real]]+AV79) -> 516.3127 | AW80: =IF(MONTH(Serie_Encadeada[[#This Row],[Período]])=1,Serie_Encadeada[[#This Row],[UCI]],Serie_Encadeada[[#This Row],[UCI]]+AW79) -> 397.39 | AX80: 79.478 | AY80: 2009-05-01 | AZ80: 1423.9671 | BA80: 1353.2717 | BB80: 1315.6515 | BC80: 1419.2059 | BD80: 1259.477 | BE80: 83.34403333
A81: 2009-06-01 | B81: =MONTH(Serie_Encadeada[[#This Row],[Período]])&YEAR(Serie_Encadeada[[#This Row],[Período]]) -> 62009 | C81: 116.8621 | D81: 109.9134 | E81: 102.7912 | F81: 111.127 | G81: 101.0864 | H81: 82.2056 | J81: 2009-06-01 | K81: 3.382289975 | L81: 0.1930691986 | M81: 0.2636535575 | N81: 5.173347164 | O81: 4.971173177 | P81: -0.0891 | R81: 2009-06-01 | S81: -14.51324779 | T81: -4.218658092 | U81: -13.35435035 | V81: -2.039308747 | W81: 2.271936285 | X81: -4.2578 | Z81: 2009-06-01 | AA81: -15.09694618 | AB81: -2.521077714 | AC81: -11.80120338 | AD81: 0.5274207359 | AE81: 3.042323186 | AF81: -5.858983333 | AH81: 2009-06-01 | AI81: -5.140045265 | AJ81: 1.335602085 | AK81: -3.642515384 | AL81: 5.157135382 | AM81: 3.760048105 | AN81: -3.493558333 | AQ81: 2009-06-01 | AR81: =IF(MONTH(Serie_Encadeada[[#This Row],[Período]])=1,Serie_Encadeada[[#This Row],[Fat.real]],Serie_Encadeada[[#This Row],[Fat.real]]+AR80) -> 646.9701 | AS81: =IF(MONTH(Serie_Encadeada[[#This Row],[Período]])=1,Serie_Encadeada[[#This Row],[Emprego]],Serie_Encadeada[[#This Row],[Emprego]]+AS80) -> 653.5681 | AT81: =IF(MONTH(Serie_Encadeada[[#This Row],[Período]])=1,Serie_Encadeada[[#This Row],[Horas]],Serie_Encadeada[[#This Row],[Horas]]+AT80) -> 601.9963 | AU81: =IF(MONTH(Serie_Encadeada[[#This Row],[Período]])=1,Serie_Encadeada[[#This Row],[Massa Real]],Serie_Encadeada[[#This Row],[Massa Real]]+AU80) -> 672.4818 | AV81: =IF(MONTH(Serie_Encadeada[[#This Row],[Período]])=1,Serie_Encadeada[[#This Row],[RMR Real]],Serie_Encadeada[[#This Row],[RMR Real]]+AV80) -> 617.3991 | AW81: =IF(MONTH(Serie_Encadeada[[#This Row],[Período]])=1,Serie_Encadeada[[#This Row],[UCI]],Serie_Encadeada[[#This Row],[UCI]]+AW80) -> 479.5956 | AX81: 79.9326 | AY81: 2009-06-01 | AZ81: 1404.1272 | BA81: 1348.4306 | BB81: 1299.8087 | BC81: 1416.8925 | BD81: 1261.7226 | BE81: 82.98921667
